Workbook

Sheet Data Input Instructions (hidden)
A3: Worksheet ID | B3: Worksheet | C3: Input Data Notes
A4: 1 | B4: Data Current Rates | C4: R2 Service Charge should already be net of RRRP credit
A5: 1 | B5: Data Current Rates | C5: Demand billed RTSR should already be loss adjusted
A6: 2 | B6: Data Proposed Rates | C6: Mapped from Draft Rates file prepared for Claude
A7: 2 | B7: Data Proposed Rates | C7: Row 5 with header name TEXT is precedent to templates; changes to TEXT need to reflected in templates
A8: 2 | B8: Data Proposed Rates | C8: Templates are set up with 2-dimension vlookups so it will accommodate inserted/deleted rows and/or columns
A9: 3 | B9: Data Billing Quantities | C9: Row 4 with header name TEXT is precedent to templates; changes to TEXT need to reflected in templates
A10: 3 | B10: Data Billing Quantities | C10: Templates are set up with 2-dimension vlookups so it will accommodate inserted/deleted rows and/or columns
A11: 4 | B11: Data Pass Through | C11: Changes to Pass Through rates can be manually input on this sheet, which is precedent to the templates
A12: 4 | B12: Data Pass Through | C12: Links to templates from Column A TEXT; any changes in the TEXT of the charge names must be reflected in the templates
A13: 5 | B13: Data BI List | C13: Instruction Sheet for macro to create individual bill impact worksheets
A14: 5 | B14: Data BI List | C14: Need to MANUALLY update Test Year to appear as header on all bill impact worksheets
A15: 6 | B15: Data BI Summary | C15: This replaces the need for cell references in summary sheet, and displays value for totals so rows can be added to templates and worksheets without having to update the summary sheet
B16: Bill Impact Summary | C16: This file has 2 hidden columns needed to link to worksheets; see Col E and F

Sheet Data Current Rates (hidden)
A1: Current Jan 1, 2025 Rates
A3: 1 | B3: 2 | C3: 3 | D3: 4 | E3: 5 | F3: 6 | G3: 7 | H3: 8 | I3: 9 | J3: 10 | K3: 11 | L3: 12 | M3: 13 | N3: 14 | O3: 15 | P3: 16 | Q3: 17 | R3: 18 | S3: 19 | T3: 20 | U3: 21 | V3: 22 | W3: 23 | X3: 24 | Y3: 25 | Z3: 26 | AA3: 27 | AB3: 28 | AC3: 29 | AD3: 30 | AE3: 31 | AF3: 32 | AG3: 31
A4: Rate Class | B4: Proposed Fixed Charge ($/month) | C4: Proposed Volumetric Charge ($/kWh or $/kW) | D4: Proposed Group 1 DVA Rider - Volumetric ($/kWh or $/kW) (2023) | E4: Porposed Group 1 DVA Rider - Volumetric Applicable to Non-WMP Only ($/kWh or $/kW) (2023) | F4: Proposed Rate Rider for Disposition of Global Adjustment (Non WMP, Non-RPP, Non-LDC, and Class B) ($/kWh) (2023) | G4: Proposed Group 1 DVA Rider - Volumetric ($/kWh or $/kW) (2024) | H4: Porposed Group 1 DVA Rider - Volumetric Applicable to Non-WMP Only ($/kWh or $/kW) (2024) | I4: Proposed Rate Rider for Disposition of Global Adjustment (Non WMP, Non-RPP, Non-LDC, and Class B) ($/kWh) (2024) | J4: Vol CBR-B Rider ($/kWh or $/kW) - Non-WMP, Class B Only (2024) | K4: Vol Group 1 VA Rider - Chapleau (2024) | L4: Vol GA Rider ($/kWh) - Non-RPP, Non-LDC, Class B - Chapleau (2024) | M4: Current Group 1 DVA Rider - Volumetric ($/kWh or $/kW) (2025) | N4: Current Group 1 DVA Rider - Volumetric Applicable to Non-WMP Only ($/kWh or $/kW) (2025) | O4: Current Rate Rider for Disposition of Global Adjustment (Non WMP, Non-RPP, Non-LDC, and Class B) ($/kWh) (2025) | P4: Vol CBR-B Rider ($/kWh or $/kW) - Non-WMP, Class B Only (2025) | Q4: Fixed 1592 VA Rider for Acq ($/month) | R4: Vol 1592 VA Rider for Acq ($/kWh or $/kW) | S4: Current Group 2 Rate Rider - Fixed ($/month) | T4: Current Group 2 Rate Rider - Volumetric ($/kWh or $/kW) | U4: Current RTSR-NW ($/kWh or $/kW) | V4: Current RTSR-CONN ($/kWh or $/kW) | W4: Total DX Rev Related Fixed Rate Riders | X4: Total DX Rev Related Vol Rate Riders | Y4: Total DVA Rate Riders | Z4: Total CBR-B Rate Riders | AA4: Total GA Rate Rider | AB4: Addional Fixed Rate Rider | AC4: Additional Vol Rate Rider
A5: Rate as shown on Bill Impact Sheet | B5: Service Charge | C5: Distribution Volumetric Charge | D5: Group 1 Volumetric DVA Rider (General) (2023) | E5: Group 1 Volumetric Deferral/Variance Account Rider (Sub-Account RSVA Wholesale Market Service Charge & RSVA Power) (2023) | F5: Group 1 Volumetric Deferral/Variance Account Rider (Sub-Account Global Adjustment) (2023) | G5: Group 1 Volumetric DVA Rider (General) (2024) | H5: Group 1 Volumetric Deferral/Variance Account Rider (Sub-Account RSVA Wholesale Market Service Charge & RSVA Power) (2024) | I5: Group 1 Volumetric Deferral/Variance Account Rider (Sub-Account Global Adjustment) (2024) | J5: Group 1 Volumetric Deferral/Variance Account Rider (Sub-Account CBR) (2024) | K5: Group 1 Vol VA Rider ($/kWh or $/kW) (2024) - Chapleau | L5: GA Rider ($/kWh) for Non WMP, Non-RPP, Non-LDC, and Class B customers (2024) - Chapleau | M5: Group 1 Volumetric DVA Rider (General) (2025) | N5: Group 1 Volumetric Deferral/Variance Account Rider (Sub-Account RSVA Wholesale Market Service Charge & RSVA Power) (2025) | O5: Group 1 Volumetric Deferral/Variance Account Rider (Sub-Account Global Adjustment) (2025) | P5: Group 1 Volumetric Deferral/Variance Account Rider (Sub-Account CBR) (2025) | Q5: Fixed Rider for Account 1592 | R5: Volumetric Rider for Account 1592 | S5: Group 2 Fixed DVA Rider | T5: Group 2 Volumetric DVA Rider | U5: Retail Transmission Rate – Network Service Rate | V5: Retail Transmission Rate – Line and Transformation Connection Service Rate | W5: Group 2 Fixed Rate Rider | X5: Group 2 Volumetric Rate Rider | Y5: Total Deferral/Variance Account Rate Rider | Z5: CBR Class B Rate Rider | AA5: GA Rate Rider | AB5: Additional Fixed Rate Rider | AC5: Additional Volumetric Rate Rider
A6: Rounding Factor | B6: 2 | C6: 4 | D6: 4 | E6: 4 | F6: 4 | G6: 4 | H6: 4 | I6: 4 | J6: 4 | K6: 4 | L6: 4 | M6: 4 | N6: 4 | O6: 4 | P6: 4 | Q6: 2 | R6: 4 | S6: 2 | T6: 4 | U6: 4 | V6: 4
A7: UR | B7: 41.61 | C7: 0 | D7: -0.0007 | E7: 0 | F7: -0.0009 | M7: -0.0031 | N7: 0 | O7: 0 | P7: 0.0001 | S7: -0.11 | U7: 0.0137 | V7: 0.0098 | W7: =Q7+S7 -> -0.11 | X7: =R7+T7 -> 0 | Y7: =D7+E7+G7+H7+M7+N7+K7 -> -0.0038 | Z7: =J7+P7 -> 0.0001 | AB7: 0 | AC7: 0
A8: Seas-UR | B8: 41.61 | C8: 0 | D8: -0.0007 | E8: 0 | F8: -0.0009 | M8: -0.0031 | N8: 0 | O8: 0 | P8: 0.0001 | S8: -0.11 | U8: 0.0137 | V8: 0.0098 | W8: =Q8+S8 -> -0.11 | X8: 0 | Y8: =D8+E8+G8+H8+M8+N8+K8 -> -0.0038 | Z8: =J8+P8 -> 0.0001 | AB8: 0 | AC8: 0
A9: R1 | B9: 71.05 | C9: 0 | D9: -0.0007 | E9: 0 | F9: -0.0009 | M9: -0.003 | N9: 0 | O9: 0 | P9: 0.0001 | S9: -0.21 | U9: 0.0128 | V9: 0.0092 | W9: -0.21 | X9: 0 | Y9: -0.0037 | Z9: 0.0001 | AB9: 0 | AC9: 0
A10: Seas-R1 | B10: 71.05 | C10: 0 | D10: -0.0007 | E10: 0 | F10: -0.0009 | M10: -0.003 | N10: 0 | O10: 0 | P10: 0.0001 | S10: -0.21 | U10: 0.0128 | V10: 0.0092 | W10: -0.21 | X10: 0 | Y10: -0.0037 | Z10: 0.0001 | AB10: 0 | AC10: 0
A11: R2 | B11: 143.96 | C11: 0.0121 | D11: -0.0007 | E11: 0 | F11: -0.0009 | M11: -0.003 | N11: 0 | O11: 0 | P11: 0.0001 | S11: -0.44 | U11: 0.0118 | V11: 0.0086 | W11: -0.44 | X11: 0 | Y11: -0.0037 | Z11: 0.0001 | AB11: 0 | AC11: 0
A12: Seas-R2 | B12: 82.64 | C12: 0.0121 | D12: -0.0007 | E12: 0 | F12: -0.0009 | M12: -0.003 | N12: 0 | O12: 0 | P12: 0.0001 | S12: -0.44 | U12: 0.0118 | V12: 0.0086 | W12: -0.44 | X12: 0 | Y12: -0.0037 | Z12: 0.0001 | AB12: 0 | AC12: 0
A13: GSe | B13: 32.78 | C13: 0.0768 | D13: -0.0007 | E13: 0 | F13: -0.0009 | M13: -0.0029 | N13: 0 | O13: 0 | P13: 0.0001 | T13: -0.0003 | U13: 0.0101 | V13: 0.0078 | W13: 0 | X13: -0.0003 | Y13: -0.0036 | Z13: 0.0001 | AB13: 0 | AC13: 0
A14: UGe | B14: 25.51 | C14: 0.037 | D14: -0.0007 | E14: 0 | F14: -0.0009 | M14: -0.0029 | N14: 0 | O14: 0 | P14: 0.0001 | T14: -0.0001 | U14: 0.0108 | V14: 0.0083 | W14: 0 | X14: -0.0001 | Y14: -0.0036 | Z14: 0.0001 | AB14: 0 | AC14: 0
A15: St Lgt | B15: 3.31 | C15: 0.1235 | D15: -0.0007 | E15: 0 | F15: -0.0009 | M15: -0.0029 | N15: 0 | O15: 0 | P15: 0.0001 | T15: -0.0004 | U15: 0.0074 | V15: 0.0057 | W15: 0 | X15: -0.0004 | Y15: -0.0036 | Z15: 0.0001 | AB15: 0 | AC15: 0
A16: Sen Lgt | B16: 3.37 | C16: 0.1901 | D16: -0.0007 | E16: 0 | F16: -0.0009 | M16: -0.0029 | N16: 0 | O16: 0 | P16: 0.0001 | T16: -0.0005 | U16: 0.0074 | V16: 0.0057 | W16: 0 | X16: -0.0005 | Y16: -0.0036 | Z16: 0.0001 | AB16: 0 | AC16: 0
A17: USL | B17: 38.29 | C17: 0.0337 | D17: -0.0007 | E17: 0 | F17: -0.0009 | M17: -0.0029 | N17: 0 | O17: 0 | P17: 0.0001 | T17: -0.0003 | U17: 0.0085 | V17: 0.0062 | W17: 0 | X17: -0.0003 | Y17: -0.0036 | Z17: 0.0001 | AB17: 0 | AC17: 0
A18: GSd | B18: 105.55 | C18: 21.3987 | D18: -0.0855 | E18: -0.1195 | F18: -0.0009 | M18: -0.3279 | N18: -0.5624 | O18: 0 | P18: 0.0172 | T18: -0.071 | U18: 3.2717 | V18: 2.492 | W18: 0 | X18: -0.071 | Y18: -1.0953 | Z18: 0.0172 | AA18: =F18+I18+O18+L18 -> -0.0009 | AB18: 0 | AC18: 0
A19: UGd | B19: 96.47 | C19: 12.4416 | D19: -0.1053 | E19: -0.1473 | F19: -0.0009 | M19: -0.4048 | N19: -0.6949 | O19: 0 | P19: 0.0212 | T19: -0.0421 | U19: 4.1819 | V19: 3.1306 | W19: 0 | X19: -0.0421 | Y19: -1.3523 | Z19: 0.0212 | AA19: =F19+I19+O19+L19 -> -0.0009 | AB19: 0 | AC19: 0
A20: Dgen | B20: 199.26 | C20: 14.1138 | D20: -0.0394 | E20: -0.0565 | F20: -0.0009 | M20: -0.1512 | N20: -0.2668 | O20: 0 | P20: 0.0082 | T20: -0.093 | U20: 1.7955 | V20: 1.0693 | W20: 0 | X20: -0.093 | Y20: -0.5139 | Z20: 0.0082 | AA20: -0.0009 | AB20: 0 | AC20: 0
A21: ST | B21: 1241.87 | C21: 1.7096 | D21: -0.134 | E21: -0.188 | F21: -0.0009 | M21: -0.5141 | N21: -0.8857 | O21: 0 | P21: 0.0122 | T21: -0.0072 | U21: 5.5092 | V21: 4.3196 | W21: 0 | X21: -0.0072 | Y21: -1.7218 | Z21: 0.0122 | AA21: -0.0009 | AB21: 0 | AC21: 0
A22: AUR | B22: 34.36 | C22: 0 | D22: -0.0007 | E22: 0 | F22: -0.0009 | M22: -0.0031 | N22: 0 | O22: 0 | P22: 0.0001 | U22: 0.0141 | V22: 0.0101 | W22: 0 | X22: 0 | Y22: -0.0038 | Z22: 0.0001 | AB22: 0 | AC22: 0
A23: AUGe | B23: 26.36 | C23: 0.0176 | D23: -0.0007 | E23: 0 | F23: -0.0009 | M23: -0.0029 | N23: 0 | O23: 0 | P23: 0.0001 | U23: 0.0109 | V23: 0.0082 | W23: 0 | X23: 0 | Y23: -0.0036 | Z23: 0.0001 | AB23: 0 | AC23: 0
A24: AUGd | B24: 146.47 | C24: 3.1817 | D24: -0.0972 | E24: -0.1351 | F24: -0.0009 | M24: -0.3728 | N24: -0.6353 | O24: 0 | P24: 0.0197 | U24: 3.7906 | V24: 2.8288 | W24: 0 | X24: 0 | Y24: -1.2404 | Z24: 0.0197 | AA24: =F24+I24+O24+L24 -> -0.0009 | AB24: 0 | AC24: 0
A25: AR | B25: 41.71 | C25: 0 | D25: -0.0007 | E25: 0 | F25: -0.0009 | M25: -0.0031 | N25: 0 | O25: 0 | P25: 0.0001 | U25: 0.0135 | V25: 0.0098 | W25: 0 | X25: 0 | Y25: -0.0038 | Z25: 0.0001 | AB25: 0 | AC25: 0
A26: AGSe | B26: 39.96 | C26: 0.0216 | D26: -0.0007 | E26: 0 | F26: -0.0009 | M26: -0.0029 | N26: 0 | O26: 0 | P26: 0.0001 | U26: 0.0107 | V26: 0.0081 | W26: 0 | X26: 0 | Y26: -0.0036 | Z26: 0.0001 | AB26: 0 | AC26: 0
A27: AGSd | B27: 170.26 | C27: 5.135 | D27: -0.098 | E27: -0.1364 | F27: -0.0009 | M27: -0.3761 | N27: -0.6393 | O27: 0 | P27: 0.0194 | U27: 3.3278 | V27: 2.5457 | W27: 0 | X27: 0 | Y27: -1.2498 | Z27: 0.0194 | AA27: =F27+I27+O27+L27 -> -0.0009 | AB27: 0 | AC27: 0
A28: AUR-WHSI | B28: 34.36 | C28: 0 | D28: -0.0009 | E28: 0 | F28: -0.0009 | M28: -0.0031 | N28: 0 | O28: 0 | P28: 0.0001 | Q28: -0.4 | U28: 0.0141 | V28: 0.0101 | W28: -0.4 | X28: 0 | Y28: -0.004 | Z28: 0.0001 | AB28: 0 | AC28: 0
A29: AUGe-WHSI | B29: 26.36 | C29: 0.0176 | D29: -0.0009 | E29: 0 | F29: -0.0009 | M29: -0.0029 | N29: 0 | O29: 0 | P29: 0.0001 | R29: -0.0003 | U29: 0.0109 | V29: 0.0082 | W29: 0 | X29: -0.0003 | Y29: -0.0038 | Z29: 0.0001 | AB29: 0 | AC29: 0
A30: AUGd-WHSI | B30: 146.47 | C30: 3.1817 | D30: -0.0645 | E30: -0.1351 | F30: -0.0009 | M30: -0.3728 | N30: -0.6353 | O30: 0 | P30: 0.0197 | R30: -0.0392 | U30: 3.7906 | V30: 2.8288 | W30: 0 | X30: -0.0392 | Y30: -1.2077 | Z30: 0.0197 | AA30: =F30+I30+O30+L30 -> -0.0009 | AB30: 0 | AC30: 0
A31: ST-WHSI | B31: 1241.87 | C31: 1.7096 | D31: -0.1063 | E31: -0.188 | F31: -0.0009 | M31: -0.5141 | N31: -0.8857 | O31: 0 | P31: 0.0122 | R31: -0.0438 | U31: 5.5092 | V31: 4.3196 | W31: 0 | X31: -0.0438 | Y31: -1.6941 | Z31: 0.0122 | AA31: =F31+I31+O31+L31 -> -0.0009 | AB31: 0 | AC31: 0
A32: St Lgt-WHSI | B32: 3.31 | C32: 0.1235 | D32: -0.0006 | E32: 0 | F32: -0.0009 | M32: -0.0029 | N32: 0 | O32: 0 | P32: 0.0001 | R32: -0.0013 | U32: 0.0074 | V32: 0.0057 | W32: 0 | X32: -0.0013 | Y32: -0.0035 | Z32: 0.0001 | AB32: 0 | AC32: 0
A33: USL-WHSI | B33: 38.29 | C33: 0.0337 | D33: -0.0009 | E33: 0 | F33: -0.0009 | M33: -0.0029 | N33: 0 | O33: 0 | P33: 0.0001 | R33: -0.0003 | U33: 0.0085 | V33: 0.0062 | W33: 0 | X33: -0.0003 | Y33: -0.0038 | Z33: 0.0001 | AB33: 0 | AC33: 0
A34: AR-NPDI | B34: 41.71 | C34: 0 | D34: -0.0008 | E34: 0 | F34: -0.0009 | M34: -0.0031 | N34: 0 | O34: 0 | P34: 0.0001 | Q34: -0.43 | U34: 0.0135 | V34: 0.0098 | W34: -0.43 | X34: 0 | Y34: -0.0039 | Z34: 0.0001 | AB34: 0 | AC34: 0
A35: AGSe-NPDI | B35: 39.96 | C35: 0.0216 | D35: -0.0008 | E35: 0 | F35: -0.0009 | M35: -0.0029 | N35: 0 | O35: 0 | P35: 0.0001 | R35: -0.0004 | U35: 0.0107 | V35: 0.0081 | W35: 0 | X35: -0.0004 | Y35: -0.0037 | Z35: 0.0001 | AB35: 0 | AC35: 0
A36: AGSd-NPDI | B36: 170.26 | C36: 5.135 | D36: -0.0653 | E36: -0.1364 | F36: -0.0009 | M36: -0.3761 | N36: -0.6393 | O36: 0 | P36: 0.0194 | R36: -0.0618 | U36: 3.3278 | V36: 2.5457 | W36: 0 | X36: -0.0618 | Y36: -1.2171 | Z36: 0.0194 | AA36: =F36+I36+O36+L36 -> -0.0009 | AB36: 0 | AC36: 0
A37: St Lgt-NPDI | B37: 3.31 | C37: 0.1235 | D37: -0.0011 | E37: 0 | F37: -0.0009 | M37: -0.0029 | N37: 0 | O37: 0 | P37: 0.0001 | R37: -0.0011 | U37: 0.0074 | V37: 0.0057 | W37: 0 | X37: -0.0011 | Y37: -0.004 | Z37: 0.0001 | AB37: 0 | AC37: 0
A38: Sen Lgt-NPDI | B38: 3.37 | C38: 0.1901 | D38: -0.0012 | E38: 0 | F38: -0.0009 | M38: -0.0029 | N38: 0 | O38: 0 | P38: 0.0001 | R38: -0.0018 | U38: 0.0074 | V38: 0.0057 | W38: 0 | X38: -0.0018 | Y38: -0.0041 | Z38: 0.0001 | AB38: 0 | AC38: 0
A39: USL-NPDI | B39: 38.29 | C39: 0.0337 | D39: -0.0014 | E39: 0 | F39: -0.0009 | M39: -0.0029 | N39: 0 | O39: 0 | P39: 0.0001 | R39: -0.0008 | U39: 0.0085 | V39: 0.0062 | W39: 0 | X39: -0.0008 | Y39: -0.0043 | Z39: 0.0001 | AB39: 0 | AC39: 0
A40: AR-HCHI | B40: 41.71 | C40: 0 | D40: -0.0007 | E40: 0 | F40: -0.0009 | M40: -0.0031 | N40: 0 | O40: 0 | P40: 0.0001 | Q40: -0.46 | U40: 0.0135 | V40: 0.0098 | W40: -0.46 | X40: 0 | Y40: -0.0038 | Z40: 0.0001 | AB40: 0 | AC40: 0
A41: AGSe-HCHI | B41: 39.96 | C41: 0.0216 | D41: -0.0007 | E41: 0 | F41: -0.0009 | M41: -0.0029 | N41: 0 | O41: 0 | P41: 0.0001 | R41: -0.0004 | U41: 0.0107 | V41: 0.0081 | W41: 0 | X41: -0.0004 | Y41: -0.0036 | Z41: 0.0001 | AB41: 0 | AC41: 0
A42: AGSd-HCHI | B42: 170.26 | C42: 5.135 | D42: -0.098 | E42: -0.1364 | F42: -0.0009 | M42: -0.3761 | N42: -0.6393 | O42: 0 | P42: 0.0194 | R42: -0.0603 | U42: 3.3278 | V42: 2.5457 | W42: 0 | X42: -0.0603 | Y42: -1.2498 | Z42: 0.0194 | AA42: =F42+I42+O42+L42 -> -0.0009 | AB42: 0 | AC42: 0
A43: St Lgt-HCHI | B43: 3.31 | C43: 0.1235 | D43: -0.0007 | E43: 0 | F43: -0.0009 | M43: -0.0029 | N43: 0 | O43: 0 | P43: 0.0001 | R43: -0.0028 | U43: 0.0074 | V43: 0.0057 | W43: 0 | X43: -0.0028 | Y43: -0.0036 | Z43: 0.0001 | AB43: 0 | AC43: 0
A44: Sen Lgt-HCHI | B44: 3.37 | C44: 0.1901 | D44: -0.0007 | E44: 0 | F44: -0.0009 | M44: -0.0029 | N44: 0 | O44: 0 | P44: 0.0001 | R44: -0.0055 | U44: 0.0074 | V44: 0.0057 | W44: 0 | X44: -0.0055 | Y44: -0.0036 | Z44: 0.0001 | AB44: 0 | AC44: 0
A45: USL-HCHI | B45: 38.29 | C45: 0.0337 | D45: -0.0007 | E45: 0 | F45: -0.0009 | M45: -0.0029 | N45: 0 | O45: 0 | P45: 0.0001 | R45: -0.0007 | U45: 0.0085 | V45: 0.0062 | W45: 0 | X45: -0.0007 | Y45: -0.0036 | Z45: 0.0001 | AB45: 0 | AC45: 0
A46: R1-CPUC | B46: 71.05 | C46: 0 | U46: 0.0128 | V46: 0.0092 | W46: =Q46+S46 -> 0 | X46: 0 | Y46: 0 | Z46: 0 | AB46: 0 | AC46: 0
A47: GSe-CPUC | B47: 32.78 | C47: 0.0768 | U47: 0.0101 | V47: 0.0078 | W47: 0 | X47: 0 | Y47: 0 | Z47: 0 | AB47: 0 | AC47: 0
A48: GSd-CPUC | B48: 105.55 | C48: 21.3987 | U48: 3.2717 | V48: 2.492 | W48: 0 | X48: 0 | Y48: 0 | Z48: 0 | AA48: =F48+I48+O48+L48 -> 0 | AB48: 0 | AC48: 0
A49: USL-CPUC | B49: 38.29 | C49: 0.0337 | U49: 0.0085 | V49: 0.0062 | W49: 0 | X49: 0 | Y49: 0 | Z49: 0 | AB49: 0 | AC49: 0
A50: Sen Lgt-CPUC | B50: 3.37 | C50: 0.1901 | U50: 0.0074 | V50: 0.0057 | W50: 0 | X50: 0 | Y50: 0 | Z50: 0 | AB50: 0 | AC50: 0
A51: St Lgt-CPUC | B51: 3.31 | C51: 0.1235 | U51: 0.0074 | V51: 0.0057 | W51: 0 | X51: 0 | Y51: 0 | Z51: 0 | AB51: 0 | AC51: 0
A52: Sen Lgt-HONI | B52: =B50 -> 3.37 | C52: =C50 -> 0.1901 | U52: =U50 -> 0.0074 | V52: =V50 -> 0.0057 | W52: 0 | X52: 0 | Y52: 0 | Z52: 0 | AB52: 0 | AC52: 0
A53: St Lgt-HONI | B53: =B51 -> 3.31 | C53: =C51 -> 0.1235 | U53: =U51 -> 0.0074 | V53: =V51 -> 0.0057 | W53: 0 | X53: 0 | Y53: 0 | Z53: 0 | AB53: 0 | AC53: 0

Sheet Data Proposed Rates (hidden)
A1: Porposed Jan 1, 2026 Rates
A3: 1 | B3: 2 | C3: 3 | D3: 4 | E3: 5 | F3: 6 | G3: 7 | H3: 8 | I3: 9 | J3: 10 | K3: 11 | L3: 12 | M3: 13 | N3: 14 | O3: 15 | P3: 16 | Q3: 17 | R3: 18 | S3: 19 | T3: 20 | U3: 21 | V3: 22 | W3: 23 | X3: 24 | Y3: 25 | Z3: 26 | AA3: 27 | AB3: 28 | AC3: 29 | AD3: 30 | AE3: 31 | AF3: 32 | AG3: 33 | AH3: 34 | AI3: 35 | AJ3: 36 | AK3: 37
A4: Rate Class | B4: Proposed Fixed Charge ($/month) | C4: Proposed Volumetric Charge ($/kWh or $/kW) | D4: Proposed Group 1 DVA Rider - Volumetric ($/kWh or $/kW) (2023) | E4: Porposed Group 1 DVA Rider - Volumetric Applicable to Non-WMP Only ($/kWh or $/kW) (2023) | F4: Proposed Rate Rider for Disposition of Global Adjustment (Non WMP, Non-RPP, Non-LDC, and Class B) ($/kWh) (2023) | G4: Proposed Group 1 DVA Rider - Volumetric ($/kWh or $/kW) (2026) | H4: Porposed Group 1 DVA Rider - Volumetric Applicable to Non-WMP Only ($/kWh or $/kW) (2026) | I4: Proposed Rate Rider for Disposition of Global Adjustment (Non WMP, Non-RPP, Non-LDC, and Class B) ($/kWh) (2026) | J4: Vol CBR-B Rider ($/kWh or $/kW) - Non-WMP, Class B Only (2026) | K4: Vol Group 1 VA Rider ($/kWh or $/kW) - Chapleau (2026) | L4: Vol Group 1 VA Rider - Non-WMP Only ($/kW) - Chapleau (2026) | M4: Vol GA Rider ($/kWh) - Non-RPP, Non-LDC, Class B - Chapleau (2026) | N4: Proposed Group 1 DVA Rider - Volumetric ($/kWh or $/kW) (2025) | O4: Porposed Group 1 DVA Rider - Volumetric Applicable to Non-WMP Only ($/kWh or $/kW) (2025) | P4: Proposed Rate Rider for Disposition of Global Adjustment (Non WMP, Non-RPP, Non-LDC, and Class B) ($/kWh) (2025) | Q4: Vol CBR-B Rider ($/kWh or $/kW) - Non-WMP, Class B Only (2025) | R4: Fixed 1592 VA Rider for Acq ($/month) (2023) | S4: Vol 1592 VA Rider for Acq ($/kWh or $/kW) (2023) | T4: Proposed Group 2 Rate Rider - Fixed ($/month) (2023) | U4: Proposed Group 2 Rate Rider - Volumetric ($/kWh or $/kW) (2023) | V4: Fixed Rate Rider for Z-Factor Costs | W4: ESM Rate Rider - Fixed ($/month) (2026) | X4: ESM Rate Rider - Volumetric ($/kWh or $/kW) (2026) | Y4: Proposed RTSR-NW ($/kWh or $/kW) | Z4: Proposed RTSR-CONN ($/kWh or $/kW) | AA4: Total DX Rev Related Fixed Rate Riders | AB4: Total DX Rev Related Vol Rate Riders | AC4: Total DVA Rate Riders | AD4: Total CBR-B Rate Riders | AE4: Total GA Rate Rider | AF4: Addional Fixed Rate Rider | AG4: Additional Vol Rate Rider
A5: Rate as shown on Bill Impact Sheet | B5: Service Charge | C5: Distribution Volumetric Charge | D5: Group 1 Volumetric DVA Rider (General) (2023) | E5: Group 1 Volumetric Deferral/Variance Account Rider (Sub-Account RSVA Wholesale Market Service Charge & RSVA Power) (2023) | F5: Group 1 Volumetric Deferral/Variance Account Rider (Sub-Account Global Adjustment) (2023) | G5: Group 1 Volumetric DVA Rider (General) (2026) | H5: Group 1 Volumetric Deferral/Variance Account Rider (Sub-Account RSVA Wholesale Market Service Charge & RSVA Power) (2026) | I5: Group 1 Volumetric Deferral/Variance Account Rider (Sub-Account Global Adjustment) (2026) | J5: Group 1 Volumetric Deferral/Variance Account Rider (Sub-Account CBR) (2026) | K5: Group 1 Volumetric DVA Rider (General) (2026) - Chapleau | L5: Group 1 Volumetric Deferral/Variance Account Rider (Sub-Account RSVA Wholesale Market Service Charge & RSVA Power) (2026) | M5: Group 1 Volumetric Deferral/Variance Account Rider (Sub-Account Global Adjustment) (2026) - Chapleau | N5: Group 1 Volumetric DVA Rider (General) (2025) | O5: Group 1 Volumetric Deferral/Variance Account Rider (Sub-Account RSVA Wholesale Market Service Charge & RSVA Power) (2025) | P5: Group 1 Volumetric Deferral/Variance Account Rider (Sub-Account Global Adjustment) (2025) | Q5: Group 1 Volumetric Deferral/Variance Account Rider (Sub-Account CBR) (2025) | R5: Fixed Rider for Account 1592 | S5: Volumetric Rider for Account 1592 | T5: Group 2 Fixed DVA Rider | U5: Group 2 Volumetric DVA Rider | V5: Z-Factor Fixed Rate Rider | W5: ESM Fixed Rate Rider | X5: ESM Volumetric Rate Rider | Y5: Retail Transmission Rate – Network Service Rate | Z5: Retail Transmission Rate – Line and Transformation Connection Service Rate | AA5: Group 2 Fixed Rate Rider | AB5: Group 2 Volumetric Rate Rider | AC5: Total Deferral/Variance Account Rate Rider | AD5: CBR Class B Rate Rider | AE5: GA Rate Rider | AF5: Additional Fixed Rate Rider | AG5: Additional Volumetric Rate Rider
A6: Rounding Factor | B6: 2 | C6: 4 | D6: 4 | E6: 4 | F6: 4 | G6: 4 | H6: 4 | I6: 4 | J6: 4 | K6: 4 | L6: 4 | M6: 4 | N6: 4 | O6: 4 | P6: 4 | Q6: 4 | R6: 2 | S6: 4 | T6: 2 | U6: 4 | V6: 2 | W6: 2 | X6: 4 | Y6: 4 | Z6: 4
A7: UR | B7: 43.7 | C7: 0 | G7: -0.0048 | H7: 0 | I7: 0.0121 | J7: -0.0006 | V7: 0.72 | W7: -1.5 | X7: 0 | Y7: 0.0141 | Z7: 0.01 | AA7: =W7 -> -1.5 | AB7: =X7 -> 0 | AC7: =G7+H7+K7+L7 -> -0.0048 | AD7: =J7 -> -0.0006 | AF7: 0 | AG7: 0
A8: Seas-UR | B8: 43.7 | C8: 0 | G8: -0.0048 | H8: 0 | I8: 0.0121 | J8: -0.0006 | V8: 0.72 | W8: -1.5 | X8: 0 | Y8: 0.0141 | Z8: 0.01 | AA8: =W8 -> -1.5 | AB8: =X8 -> 0 | AC8: -0.0048 | AD8: =J8 -> -0.0006 | AF8: 0 | AG8: 0
A9: R1 | B9: 74.62 | C9: 0 | G9: -0.0049 | H9: 0 | I9: 0.0121 | J9: -0.0006 | V9: 1.23 | W9: -2.56 | X9: 0 | Y9: 0.0131 | Z9: 0.0094 | AA9: -2.56 | AB9: 0 | AC9: -0.0049 | AD9: -0.0006 | AF9: 0 | AG9: 0
A10: Seas-R1 | B10: 74.62 | C10: 0 | G10: -0.0049 | H10: 0 | I10: 0.0121 | J10: -0.0006 | V10: 1.23 | W10: -2.56 | X10: 0 | Y10: 0.0131 | Z10: 0.0094 | AA10: -2.56 | AB10: 0 | AC10: -0.0049 | AD10: -0.0006 | AF10: 0 | AG10: 0
A11: R2 | B11: 151.14 | C11: 0.0117 | G11: -0.0049 | H11: 0 | I11: 0.0121 | J11: -0.0006 | V11: 2.49 | W11: -5.18 | X11: 0 | Y11: 0.0121 | Z11: 0.0088 | AA11: -5.18 | AB11: 0 | AC11: -0.0049 | AD11: -0.0006 | AF11: 0 | AG11: 0
A12: Seas-R2 | B12: 92.43 | C12: 0.0117 | G12: -0.0049 | H12: 0 | I12: 0.0121 | J12: -0.0006 | V12: 2.49 | W12: -5.18 | X12: 0 | Y12: 0.0121 | Z12: 0.0088 | AA12: -5.18 | AB12: 0 | AC12: -0.0049 | AD12: -0.0006 | AF12: 0 | AG12: 0
A13: GSe | B13: 32.78 | C13: 0.0816 | G13: -0.0048 | H13: 0 | I13: 0.0121 | J13: -0.0006 | V13: 2.96 | W13: -1.12 | X13: -0.0028 | Y13: 0.0104 | Z13: 0.008 | AA13: -1.12 | AB13: -0.0028 | AC13: -0.0048 | AD13: -0.0006 | AF13: 0 | AG13: 0
A14: UGe | B14: 25.51 | C14: 0.0394 | G14: -0.0048 | H14: 0 | I14: 0.0121 | J14: -0.0006 | V14: 1.97 | W14: -0.87 | X14: -0.0014 | Y14: 0.0111 | Z14: 0.0085 | AA14: -0.87 | AB14: -0.0014 | AC14: -0.0048 | AD14: -0.0006 | AF14: 0 | AG14: 0
A15: St Lgt | B15: 3.42 | C15: 0.1297 | G15: -0.0049 | H15: 0 | I15: 0.0121 | J15: -0.0006 | V15: 2.62 | W15: -0.12 | X15: -0.0044 | Y15: 0.0076 | Z15: 0.0058 | AA15: -0.12 | AB15: -0.0044 | AC15: -0.0049 | AD15: -0.0006 | AF15: 0 | AG15: 0
A16: Sen Lgt | B16: 3.51 | C16: 0.2002 | G16: -0.005 | H16: 0 | I16: 0.0121 | J16: -0.0006 | V16: 0.22 | W16: -0.12 | X16: -0.0069 | Y16: 0.0076 | Z16: 0.0058 | AA16: -0.12 | AB16: -0.0069 | AC16: -0.005 | AD16: -0.0006 | AF16: 0 | AG16: 0
A17: USL | B17: 38.29 | C17: 0.0395 | G17: -0.0047 | H17: 0 | I17: 0.0121 | J17: -0.0006 | V17: 0.93 | W17: -1.31 | X17: -0.0014 | Y17: 0.0087 | Z17: 0.0064 | AA17: -1.31 | AB17: -0.0014 | AC17: -0.0047 | AD17: -0.0006 | AF17: 0 | AG17: 0
A18: GSd | B18: 105.55 | C18: 22.5201 | G18: -0.4747 | H18: -1.0645 | I18: 0.0121 | J18: -0.1893 | V18: 40.23 | W18: -3.62 | X18: -0.7683 | Y18: 3.3593 | Z18: 2.5541 | AA18: -3.62 | AB18: -0.7683 | AC18: -1.5392 | AD18: -0.1893 | AE18: =I18+M18 -> 0.0121 | AF18: 0 | AG18: 0
A19: UGd | B19: 96.47 | C19: 13.1059 | G19: -0.5696 | H19: -1.3175 | I19: 0.0121 | J19: -0.2353 | V19: 24.23 | W19: -3.31 | X19: -0.4449 | Y19: 4.294 | Z19: 3.2087 | AA19: -3.31 | AB19: -0.4449 | AC19: -1.8871 | AD19: -0.2353 | AE19: 0.0121 | AF19: 0 | AG19: 0
A20: Dgen | B20: 199.26 | C20: 15.7314 | G20: -0.2301 | H20: -0.5019 | I20: 0.0121 | J20: -0.0896 | V20: 5.85 | W20: -6.83 | X20: -0.5226 | Y20: 1.8436 | Z20: 1.0959 | AA20: -6.83 | AB20: -0.5226 | AC20: -0.732 | AD20: -0.0896 | AE20: 0.0121 | AF20: 0 | AG20: 0
A21: ST | B21: 1241.87 | C21: 1.8196 | G21: -0.5838 | H21: -1.4446 | I21: 0.0121 | J21: -0.2148 | V21: 108.76 | W21: -37.83 | X21: -0.0686 | Y21: 5.6568 | Z21: 4.4274 | AA21: -37.83 | AB21: -0.0686 | AC21: -2.0284 | AD21: -0.2148 | AE21: 0.0121 | AF21: 0 | AG21: 0
A22: AUR | B22: 36.09 | C22: 0 | G22: -0.005 | H22: 0 | I22: 0.0121 | J22: -0.0006 | V22: 0.59 | W22: -1.24 | X22: 0 | Y22: 0.0145 | Z22: 0.0104 | AA22: -1.24 | AB22: 0 | AC22: -0.005 | AD22: -0.0006 | AF22: 0 | AG22: 0
A23: AUGe | B23: 26.36 | C23: 0.019 | G23: -0.005 | H23: 0 | I23: 0.0121 | J23: -0.0006 | V23: 1.21 | W23: -0.9 | X23: -0.0007 | Y23: 0.0112 | Z23: 0.0084 | AA23: -0.9 | AB23: -0.0007 | AC23: -0.005 | AD23: -0.0006 | AF23: 0 | AG23: 0
A24: AUGd | B24: 146.47 | C24: 3.3806 | G24: -0.6907 | H24: -1.202 | I24: 0.0121 | J24: -0.2164 | V24: 9.21 | W24: -5.02 | X24: -0.1051 | Y24: 3.8921 | Z24: 2.8993 | AA24: -5.02 | AB24: -0.1051 | AC24: -1.8927 | AD24: -0.2164 | AE24: 0.0121 | AF24: 0 | AG24: 0
A25: AR | B25: 43.81 | C25: 0 | G25: -0.0049 | H25: 0 | I25: 0.0121 | J25: -0.0006 | V25: 0.72 | W25: -1.5 | X25: 0 | Y25: 0.0139 | Z25: 0.01 | AA25: -1.5 | AB25: 0 | AC25: -0.0049 | AD25: -0.0006 | AF25: 0 | AG25: 0
A26: AGSe | B26: 39.96 | C26: 0.0236 | G26: -0.0049 | H26: 0 | I26: 0.0121 | J26: -0.0006 | V26: 1.55 | W26: -1.37 | X26: -0.0008 | Y26: 0.011 | Z26: 0.0083 | AA26: -1.37 | AB26: -0.0008 | AC26: -0.0049 | AD26: -0.0006 | AF26: 0 | AG26: 0
A27: AGSd | B27: 170.26 | C27: 5.431 | G27: -0.5644 | H27: -1.2177 | I27: 0.0121 | J27: -0.2167 | V27: 17.15 | W27: -5.84 | X27: -0.1775 | Y27: 3.417 | Z27: 2.6092 | AA27: -5.84 | AB27: -0.1775 | AC27: -1.7821 | AD27: -0.2167 | AE27: 0.0121 | AF27: 0 | AG27: 0
A28: AUR-WHSI | B28: 36.09 | C28: 0 | G28: -0.005 | H28: 0 | I28: 0.0121 | J28: -0.0006 | V28: 0.59 | W28: -1.24 | X28: 0 | Y28: 0.0145 | Z28: 0.0104 | AA28: -1.24 | AB28: 0 | AC28: -0.005 | AD28: -0.0006 | AF28: 0 | AG28: 0
A29: AUGe-WHSI | B29: 26.36 | C29: 0.019 | G29: -0.005 | H29: 0 | I29: 0.0121 | J29: -0.0006 | V29: 1.21 | W29: -0.9 | X29: -0.0007 | Y29: 0.0112 | Z29: 0.0084 | AA29: -0.9 | AB29: -0.0007 | AC29: -0.005 | AD29: -0.0006 | AF29: 0 | AG29: 0
A30: AUGd-WHSI | B30: 146.47 | C30: 3.3806 | G30: -0.6907 | H30: -1.202 | I30: 0.0121 | J30: -0.2164 | V30: 9.21 | W30: -5.02 | X30: -0.1051 | Y30: 3.8921 | Z30: 2.8993 | AA30: -5.02 | AB30: -0.1051 | AC30: -1.8927 | AD30: -0.2164 | AE30: 0.0121 | AF30: 0 | AG30: 0
A31: ST-WHSI | B31: 1241.87 | C31: 1.8196 | G31: -0.5838 | H31: -1.4446 | I31: 0.0121 | J31: -0.2148 | V31: 108.76 | W31: -37.83 | X31: -0.0686 | Y31: 5.6568 | Z31: 4.4274 | AA31: -37.83 | AB31: -0.0686 | AC31: -2.0284 | AD31: -0.2148 | AE31: 0.0121 | AF31: 0 | AG31: 0
A32: St Lgt-WHSI | B32: 3.42 | C32: 0.1297 | G32: -0.0049 | H32: 0 | I32: 0.0121 | J32: -0.0006 | V32: 2.62 | W32: -0.12 | X32: -0.0044 | Y32: 0.0076 | Z32: 0.0058 | AA32: -0.12 | AB32: -0.0044 | AC32: -0.0049 | AD32: -0.0006 | AF32: 0 | AG32: 0
A33: USL-WHSI | B33: 38.29 | C33: 0.0395 | G33: -0.0047 | H33: 0 | I33: 0.0121 | J33: -0.0006 | V33: 0.93 | W33: -1.31 | X33: -0.0014 | Y33: 0.0087 | Z33: 0.0064 | AA33: -1.31 | AB33: -0.0014 | AC33: -0.0047 | AD33: -0.0006 | AF33: 0 | AG33: 0
A34: AR-NPDI | B34: 43.81 | C34: 0 | G34: -0.0049 | H34: 0 | I34: 0.0121 | J34: -0.0006 | V34: 0.72 | W34: -1.5 | X34: 0 | Y34: 0.0139 | Z34: 0.01 | AA34: -1.5 | AB34: 0 | AC34: -0.0049 | AD34: -0.0006 | AF34: 0 | AG34: 0
A35: AGSe-NPDI | B35: 39.96 | C35: 0.0236 | G35: -0.0049 | H35: 0 | I35: 0.0121 | J35: -0.0006 | V35: 1.55 | W35: -1.37 | X35: -0.0008 | Y35: 0.011 | Z35: 0.0083 | AA35: -1.37 | AB35: -0.0008 | AC35: -0.0049 | AD35: -0.0006 | AF35: 0 | AG35: 0
A36: AGSd-NPDI | B36: 170.26 | C36: 5.431 | G36: -0.5644 | H36: -1.2177 | I36: 0.0121 | J36: -0.2167 | V36: 17.15 | W36: -5.84 | X36: -0.1775 | Y36: 3.417 | Z36: 2.6092 | AA36: -5.84 | AB36: -0.1775 | AC36: -1.7821 | AD36: -0.2167 | AE36: 0.0121 | AF36: 0 | AG36: 0
A37: St Lgt-NPDI | B37: 3.42 | C37: 0.1297 | G37: -0.0049 | H37: 0 | I37: 0.0121 | J37: -0.0006 | V37: 2.62 | W37: -0.12 | X37: -0.0044 | Y37: 0.0076 | Z37: 0.0058 | AA37: -0.12 | AB37: -0.0044 | AC37: -0.0049 | AD37: -0.0006 | AF37: 0 | AG37: 0
A38: Sen Lgt-NPDI | B38: 3.51 | C38: 0.2002 | G38: -0.005 | H38: 0 | I38: 0.0121 | J38: -0.0006 | V38: 0.22 | W38: -0.12 | X38: -0.0069 | Y38: 0.0076 | Z38: 0.0058 | AA38: -0.12 | AB38: -0.0069 | AC38: -0.005 | AD38: -0.0006 | AF38: 0 | AG38: 0
A39: USL-NPDI | B39: 38.29 | C39: 0.0395 | G39: -0.0047 | H39: 0 | I39: 0.0121 | J39: -0.0006 | V39: 0.93 | W39: -1.31 | X39: -0.0014 | Y39: 0.0087 | Z39: 0.0064 | AA39: -1.31 | AB39: -0.0014 | AC39: -0.0047 | AD39: -0.0006 | AF39: 0 | AG39: 0
A40: AR-HCHI | B40: 43.81 | C40: 0 | G40: -0.0049 | H40: 0 | I40: 0.0121 | J40: -0.0006 | V40: 0.72 | W40: -1.5 | X40: 0 | Y40: 0.0139 | Z40: 0.01 | AA40: -1.5 | AB40: 0 | AC40: -0.0049 | AD40: -0.0006 | AF40: 0 | AG40: 0
A41: AGSe-HCHI | B41: 39.96 | C41: 0.0236 | G41: -0.0049 | H41: 0 | I41: 0.0121 | J41: -0.0006 | V41: 1.55 | W41: -1.37 | X41: -0.0008 | Y41: 0.011 | Z41: 0.0083 | AA41: -1.37 | AB41: -0.0008 | AC41: -0.0049 | AD41: -0.0006 | AF41: 0 | AG41: 0
A42: AGSd-HCHI | B42: 170.26 | C42: 5.431 | G42: -0.5644 | H42: -1.2177 | I42: 0.0121 | J42: -0.2167 | V42: 17.15 | W42: -5.84 | X42: -0.1775 | Y42: 3.417 | Z42: 2.6092 | AA42: -5.84 | AB42: -0.1775 | AC42: -1.7821 | AD42: -0.2167 | AE42: 0.0121 | AF42: 0 | AG42: 0
A43: St Lgt-HCHI | B43: 3.42 | C43: 0.1297 | G43: -0.0049 | H43: 0 | I43: 0.0121 | J43: -0.0006 | V43: 2.62 | W43: -0.12 | X43: -0.0044 | Y43: 0.0076 | Z43: 0.0058 | AA43: -0.12 | AB43: -0.0044 | AC43: -0.0049 | AD43: -0.0006 | AF43: 0 | AG43: 0
A44: Sen Lgt-HCHI | B44: 3.51 | C44: 0.2002 | G44: -0.005 | H44: 0 | I44: 0.0121 | J44: -0.0006 | V44: 0.22 | W44: -0.12 | X44: -0.0069 | Y44: 0.0076 | Z44: 0.0058 | AA44: -0.12 | AB44: -0.0069 | AC44: -0.005 | AD44: -0.0006 | AF44: 0 | AG44: 0
A45: USL-HCHI | B45: 38.29 | C45: 0.0395 | G45: -0.0047 | H45: 0 | I45: 0.0121 | J45: -0.0006 | V45: 0.93 | W45: -1.31 | X45: -0.0014 | Y45: 0.0087 | Z45: 0.0064 | AA45: -1.31 | AB45: -0.0014 | AC45: -0.0047 | AD45: -0.0006 | AF45: 0 | AG45: 0
A46: R1-CPUC | B46: 74.62 | C46: 0 | K46: 0.0003 | M46: 0.0112 | V46: 1.23 | W46: 0 | X46: 0 | Y46: 0.0131 | Z46: 0.0094 | AA46: 0 | AB46: 0 | AC46: 0.0003 | AD46: 0 | AF46: 0 | AG46: 0
A47: GSe-CPUC | B47: 32.78 | C47: 0.0816 | K47: 0.0005 | M47: 0.0112 | V47: 2.96 | W47: 0 | X47: 0 | Y47: 0.0104 | Z47: 0.008 | AA47: 0 | AB47: 0 | AC47: 0.0005 | AD47: 0 | AF47: 0 | AG47: 0
A48: GSd-CPUC | B48: 105.55 | C48: 22.5201 | K48: 0.5419 | M48: 0.0112 | V48: 40.23 | W48: 0 | X48: 0 | Y48: 3.3593 | Z48: 2.5541 | AA48: 0 | AB48: 0 | AC48: 0.5419 | AD48: 0 | AE48: 0.0112 | AF48: 0 | AG48: 0
A49: USL-CPUC | B49: 38.29 | C49: 0.0395 | K49: 0.0004 | M49: 0 | V49: 0.93 | W49: 0 | X49: 0 | Y49: 0.0087 | Z49: 0.0064 | AA49: 0 | AB49: 0 | AC49: 0.0004 | AD49: 0 | AF49: 0 | AG49: 0
A50: Sen Lgt-CPUC | B50: 3.51 | C50: 0.2002 | K50: 0.0004 | M50: 0.0112 | V50: 0.22 | W50: 0 | X50: 0 | Y50: 0.0076 | Z50: 0.0058 | AA50: 0 | AB50: 0 | AC50: 0.0004 | AD50: 0 | AF50: 0 | AG50: 0
A51: St Lgt-CPUC | B51: 3.42 | C51: 0.1297 | K51: 0.0009 | M51: 0 | V51: 2.62 | W51: 0 | X51: 0 | Y51: 0.0076 | Z51: 0.0058 | AA51: 0 | AB51: 0 | AC51: 0.0009 | AD51: 0 | AF51: 0 | AG51: 0

Sheet Data Billing Quantities (hidden)
A1: Rate Class-Specific Billing Quantities (Applied to Current and Proposed Bill)
E3: Consumption (kWh) | I3: Peak (kW) | M3: TOU Split
A4: Rate Class | B4: Loss Factor | C4: Charge Determinant | D4: Commodity Threshold | E4: Low kWh | F4: Typical kWh | G4: Average kWh | H4: High kWh | I4: Low kW | J4: Typical kW | K4: Average kW | L4: High kW | M4: TOU-Off Peak | N4: TOU-Mid Peak | O4: TOU-On Peak | P4: Acquired Street Light Service Charge
A5: UR | B5: 1.057 | C5: kWh | D5: 600 | E5: 340 | F5: 750 | G5: 690 | H5: 1260 | M5: 0.64 | N5: 0.18 | O5: 0.18
A6: R1 | B6: 1.076 | C6: kWh | D6: 600 | E6: 370 | F6: 750 | G6: 784 | H6: 1650 | M6: =M$5 -> 0.64 | N6: =N$5 -> 0.18 | O6: =O$5 -> 0.18
A7: R2 | B7: 1.105 | C7: kWh | D7: 600 | E7: 440 | F7: 750 | G7: 978 | H7: 2110 | M7: =M$5 -> 0.64 | N7: 0.18 | O7: 0.18
A8: Seasonal | B8: 1.104 | C8: kWh | D8: 600 | E8: 40 | G8: 369 | H8: 1040 | M8: 0.64 | N8: 0.18 | O8: 0.18
A9: Seas-UR | B9: =B5 -> 1.057 | C9: =C5 -> kWh | D9: 600 | E9: =E8 -> 40 | G9: =G8 -> 369 | H9: =H8 -> 1040 | M9: 0.64 | N9: 0.18 | O9: 0.18
A10: Seas-R1 | B10: =B6 -> 1.076 | C10: =C6 -> kWh | D10: 600 | E10: =E8 -> 40 | G10: =G8 -> 369 | H10: =H8 -> 1040 | M10: 0.64 | N10: 0.18 | O10: 0.18
A11: Seas-R2 | B11: =B7 -> 1.105 | C11: =C7 -> kWh | D11: 600 | E11: =E8 -> 40 | G11: =G8 -> 369 | H11: =H8 -> 1040 | M11: 0.64 | N11: 0.18 | O11: 0.18
A12: GSe | B12: 1.096 | C12: kWh | D12: 750 | E12: 60 | F12: 2000 | G12: 1887 | H12: 5570 | M12: 0.64 | N12: 0.18 | O12: 0.18
A13: UGe | B13: 1.067 | C13: kWh | D13: 750 | E13: 180 | F13: 2000 | G13: 2494 | H13: 6930 | M13: 0.64 | N13: 0.18 | O13: 0.18
A14: St Lgt | B14: 1.092 | C14: kWh | D14: 750 | E14: 30 | G14: 1274 | H14: 2310 | M14: 0.64 | N14: 0.18 | O14: 0.18
A15: Sen Lgt | B15: 1.092 | C15: kWh | D15: 750 | E15: 20 | G15: 49 | H15: 80 | M15: 0.64 | N15: 0.18 | O15: 0.18
A16: USL | B16: 1.092 | C16: kWh | D16: 750 | E16: 100 | G16: 477 | H16: 550 | M16: 0.64 | N16: 0.18 | O16: 0.18
A17: GSd | B17: 1.061 | C17: kW | D17: 0 | E17: 9310 | G17: 34334 | H17: 75790 | I17: 55 | K17: 110 | L17: 250
A18: UGd | B18: 1.05 | C18: kW | D18: 0 | E18: 13900 | G18: 42592 | H18: 97610 | I18: 55 | K18: 111 | L18: 280
A19: Dgen | B19: 1.061 | C19: kW | D19: 0 | E19: 10 | G19: 1709 | H19: 8490 | I19: 0.02941666667 | K19: 12 | L19: 45
A20: ST | B20: 1.034 | C20: kW | D20: 0 | E20: 88780 | G20: 1373443 | H20: 2641420 | I20: 500 | K20: 2808 | L20: 13730
A21: WHSI_RES | B21: 1.0431 | C21: kWh | D21: 600 | E21: 310 | F21: 750 | G21: 636 | H21: 1160 | M21: =M$5 -> 0.64 | N21: 0.18 | O21: 0.18
A22: WHSI_GS<50 | B22: 1.0431 | C22: kWh | D22: 750 | E22: 190 | F22: 2000 | G22: 2471 | H22: 7240 | M22: 0.64 | N22: 0.18 | O22: 0.18
A23: WHSI_GS 50-999 | B23: 1.0431 | C23: kW | E23: 9370 | G23: 47636 | H23: 137890 | I23: 50 | K23: 134 | L23: 340
A24: WHSI_GS >1,000kW | B24: 1.0326 | C24: kW | G24: 895853 | K24: 3301 | M24: =M$5 -> 0.64 | N24: 0.18 | O24: 0.18
A25: WHSI_St Lgt | B25: 1.0431 | C25: kW | D25: 750 | G25: 37079 | K25: 104 | M25: 0.64 | N25: 0.18 | O25: 0.18 | P25: 1
A26: WHSI_USL | B26: 1.0431 | C26: kWh | D26: 750 | G26: 1349 | M26: =M$5 -> 0.64 | N26: 0.18 | O26: 0.18
A27: NPDI_RES | B27: 1.0564 | C27: kWh | D27: 600 | E27: 290 | F27: 750 | G27: 692 | H27: 1230 | M27: 0.64 | N27: 0.18 | O27: 0.18
A28: NPDI_GS<50 | B28: 1.0564 | C28: kWh | D28: 750 | E28: 110 | F28: 2000 | G28: 2377 | H28: 6410 | M28: 0.64 | N28: 0.18 | O28: 0.18
A29: NPDI_GS >50 | B29: 1.0464 | C29: kW | E29: 13020 | G29: 70294 | H29: 129420 | I29: 55 | K29: 181 | L29: 300
A30: NPDI_St Lgt | B30: 1.0564 | C30: kW | D30: 750 | G30: 11389 | K30: 39 | M30: =M$5 -> 0.64 | N30: 0.18 | O30: 0.18 | P30: 1
A31: NPDI_Sen Lgt | B31: 1.0564 | C31: kW | D31: 750 | G31: 108 | K31: 0.3368027211 | M31: 0.64 | N31: 0.18 | O31: 0.18
A32: NPDI_USL | B32: 1.0564 | C32: kWh | D32: 750 | G32: 904 | M32: =M$5 -> 0.64 | N32: 0.18 | O32: 0.18
A33: HCHI_RES | B33: 1.0655 | C33: kWh | D33: 600 | E33: 250 | F33: 750 | G33: 742 | H33: 1410 | M33: 0.64 | N33: 0.18 | O33: 0.18
A34: HCHI_GS<50 | B34: 1.0655 | C34: kWh | D34: 750 | E34: 90 | F34: 2000 | G34: 2261 | H34: 5430 | M34: 0.64 | N34: 0.18 | O34: 0.18
A35: HCHI_GS >50 | B35: 1.0548 | C35: kW | E35: 10880 | G35: 57529 | H35: 135160 | I35: 55 | K35: 175 | L35: 375
A36: HCHI_St Lgt | B36: 1.0655 | C36: kW | D36: 750 | G36: 31001 | K36: 85 | M36: 0.64 | N36: 0.18 | O36: 0.18 | P36: 1
A37: HCHI_Sen Lgt | B37: 1.0655 | C37: kW | D37: 750 | G37: 61 | K37: 0.1956473214 | M37: 0.64 | N37: 0.18 | O37: 0.18
A38: HCHI_USL | B38: 1.0655 | C38: kWh | D38: 750 | G38: 471 | M38: =M$5 -> 0.64 | N38: 0.18 | O38: 0.18
A39: AUR | B39: 1.043 | C39: kWh | D39: 600 | E39: 310 | F39: 750 | G39: 636 | H39: 1160 | M39: 0.64 | N39: 0.18 | O39: 0.18
A40: AUGe | B40: =B39 -> 1.043 | C40: kWh | D40: 750 | E40: 190 | F40: 2000 | G40: 2471 | H40: 7240 | M40: 0.64 | N40: 0.18 | O40: 0.18
A41: AUGd | B41: 1.033 | C41: kW | E41: 9370 | G41: 47636 | H41: 137890 | I41: 50 | K41: 134 | L41: 340
A42: AR | B42: 1.064 | C42: kWh | D42: 600 | F42: 750 | M42: =M$5 -> 0.64 | N42: 0.18 | O42: 0.18
A43: AGSe | B43: =B42 -> 1.064 | C43: kWh | D43: 750 | F43: 2000 | M43: 0.64 | N43: 0.18 | O43: 0.18
A44: AGSd | B44: 1.053 | C44: kW | E44: 12000 | G44: 64000 | H44: 132000 | I44: 55 | K44: 178 | L44: 340
A45: AUR-WHSI | B45: =B39 -> 1.043 | C45: kWh | D45: =D39 -> 600 | E45: 310 | F45: 750 | G45: 636 | H45: 1160 | M45: =M$5 -> 0.64 | N45: 0.18 | O45: 0.18
A46: AUGe-WHSI | B46: =B40 -> 1.043 | C46: kWh | D46: =D40 -> 750 | E46: 190 | F46: 2000 | G46: 2471 | H46: 7240 | M46: 0.64 | N46: 0.18 | O46: 0.18
A47: AUGd-WHSI | B47: =B41 -> 1.033 | C47: kW | E47: 9370 | G47: 47636 | H47: 137890 | I47: 50 | K47: 134 | L47: 340
A48: ST-WHSI | B48: =B20 -> 1.034 | C48: kW | G48: 895853 | K48: 3301
A49: St Lgt-WHSI | B49: =B14 -> 1.092 | C49: kWh | D49: =D14 -> 750 | G49: =G25 -> 37079 | K49: =K25 -> 104 | M49: =M$5 -> 0.64 | N49: 0.18 | O49: 0.18 | P49: =P25 -> 1
A50: USL-WHSI | B50: =B16 -> 1.092 | C50: kWh | D50: =D16 -> 750 | G50: =G26 -> 1349 | M50: =M$5 -> 0.64 | N50: 0.18 | O50: 0.18
A51: AR-NPDI | B51: =B42 -> 1.064 | C51: kWh | D51: =D42 -> 600 | E51: 290 | F51: 750 | G51: 692 | H51: 1230 | M51: 0.64 | N51: 0.18 | O51: 0.18
A52: AGSe-NPDI | B52: =B43 -> 1.064 | C52: kWh | D52: =D43 -> 750 | E52: 110 | F52: 2000 | G52: 2377 | H52: 6410 | M52: 0.64 | N52: 0.18 | O52: 0.18
A53: AGSd-NPDI | B53: =B44 -> 1.053 | C53: kW | D53: =D44 -> 0 | E53: 13020 | G53: 70294 | H53: 129420 | I53: 55 | K53: 181 | L53: 300
A54: St Lgt-NPDI | B54: =B14 -> 1.092 | C54: kWh | D54: =D14 -> 750 | G54: =G30 -> 11389 | K54: =K30 -> 39 | M54: =M$5 -> 0.64 | N54: 0.18 | O54: 0.18 | P54: =P30 -> 1
A55: Sen Lgt-NPDI | B55: =B15 -> 1.092 | C55: kWh | D55: =D15 -> 750 | G55: =G31 -> 108 | K55: =K31 -> 0.3368027211 | M55: =M$5 -> 0.64 | N55: 0.18 | O55: 0.18
A56: USL-NPDI | B56: =B16 -> 1.092 | C56: kWh | D56: =D16 -> 750 | G56: =G32 -> 904 | M56: =M$5 -> 0.64 | N56: 0.18 | O56: 0.18
A57: AR-HCHI | B57: =B51 -> 1.064 | C57: kWh | D57: 600 | E57: 250 | F57: 750 | G57: 742 | H57: 1410 | M57: 0.64 | N57: 0.18 | O57: 0.18
A58: AGSe-HCHI | B58: 1.064 | C58: kWh | D58: 750 | E58: 90 | F58: 2000 | G58: 2261 | H58: 5430 | M58: 0.64 | N58: 0.18 | O58: 0.18
A59: AGSd-HCHI | B59: 1.053 | C59: kW | D59: 0 | E59: 10880 | G59: 57529 | H59: 135160 | I59: 55 | K59: 175 | L59: 375
A60: St Lgt-HCHI | B60: 1.092 | C60: kWh | D60: 750 | G60: =G36 -> 31001 | K60: =K36 -> 85 | M60: 0.64 | N60: 0.18 | O60: 0.18 | P60: =P36 -> 1
A61: Sen Lgt-HCHI | B61: 1.092 | C61: kWh | D61: 750 | G61: =G37 -> 61 | K61: =K37 -> 0.1956473214 | M61: 0.64 | N61: 0.18 | O61: 0.18
A62: USL-HCHI | B62: 1.092 | C62: kWh | D62: 750 | G62: =G38 -> 471 | M62: 0.64 | N62: 0.18 | O62: 0.18
A63: R1-CPUC | B63: =B6 -> 1.076 | C63: kWh | D63: =D57 -> 600 | E63: 370 | F63: =F6 -> 750 | H63: 2100 | M63: 0.64 | N63: 0.18 | O63: 0.18
A64: GSe-CPUC | B64: =B12 -> 1.096 | C64: kWh | D64: =D58 -> 750 | E64: 100 | F64: =F12 -> 2000 | H64: 6600 | M64: 0.64 | N64: 0.18 | O64: 0.18
A65: GSd-CPUC | B65: =B17 -> 1.061 | C65: kW | D65: =D59 -> 0 | E65: 12900 | G65: 29000 | H65: 72900 | I65: 50 | K65: 90 | L65: 240
A66: USL-CPUC | B66: =B16 -> 1.092 | C66: kWh | D66: =D60 -> 750 | G66: 60
A67: Sen Lgt-CPUC | B67: =B15 -> 1.092 | C67: kWh | D67: =D61 -> 750 | G67: 220 | K67: 0.6 | P67: 1
A68: St Lgt-CPUC | B68: =B14 -> 1.092 | C68: kWh | D68: =D62 -> 750 | G68: 8300 | K68: 21 | P68: 1
A69: Sen Lgt-HONI | B69: =B15 -> 1.092 | C69: kWh | D69: 750 | G69: 220
A70: St Lgt-HONI | B70: =B16 -> 1.092 | C70: kWh | D70: 750 | G70: 8300

Sheet Data Pass Through (hidden)
A1: 3. Pass Through Charges
B2: Current Bill | C2: Proposed Bill
A3: Effective Date | B3: 2025-07-01 | C3: 2026-01-01 | D3: TOU % | E3: Notes
A4: RRRP Adjustment | B4: 60.5 | C4: 60.5
A5: RPP Tier 1 | B5: 0.12 | C5: =B5 -> 0.12 | E5: Effective Nov 1 2025
A6: RPP Tier 2 | B6: 0.142 | C6: 0.142 | E6: Effective Nov 1 2025
A7: Average IESO Wholesale Market Price | B7: 0.1596 | C7: 0.1596 | E7: Consistent with 2026 IRM Rate Generator
A8: TOU-Off Peak | B8: 0.098 | C8: 0.098 | D8: 0.64 | E8: Effective Nov 1 2025
A9: TOU-Mid Peak | B9: 0.157 | C9: 0.157 | D9: 0.18 | E9: Effective Nov 1 2025
A10: TOU-On Peak | B10: 0.203 | C10: 0.203 | D10: 0.18 | E10: Effective Nov 1 2025
A11: Wholesale Market Service Rate (WMS) – not including CBR | B11: 0.0041 | C11: 0.0041 | E11: Effective Jan 1 2025, 0.0045 WMSC broken up between WMSC and CBR
A12: Capacity Based Recovery (CBR) – Applicable for Class B Customers | B12: 0.0004 | C12: 0.0004 | E12: Effective Jan 1 2025, 0.0045 WMSC broken up between WMSC and CBR
A13: Rural Rate Protection Charge | B13: 0.0015 | C13: 0.0015 | E13: Effective Jan 1 2025
A14: Ontario Electricity Support Program Charge | B14: 0 | C14: =B14 -> 0 | E14: OESP charge removed for all rate classes effective May 1, 2017. ROW HIDDEN IN BILL IMPACT FILE
A15: Standard Supply Service – Administration Charge (if applicable) | B15: 0.25 | C15: 0.25
A16: DRP limit (applied when selected from Bill Impact Summary) | B16: 42.88 | C16: 42.88 | E16: DRP cap as of Jul 1, 2025
A17: Smart Meter Entity Charge (if applicable) | B17: 0.42 | C17: 0.42 | E17: Effective Jan 1 2023; only for metered energy-billed (UR, R1, R2, GSE, UGE, AUR, AUGE, AR, AGSE)
A18: Debt Retirement Charge (DRC) | B18: 0 | C18: 0 | E18: DRC removed from all rate classes Apr 1 2018 ROW HIDDEN IN BILL IMPACT FILE
A19: Ontario Electricity Rebate (OER) | B19: -0.235 | C19: =B19 -> -0.235 | E19: Effective Nov 1 2025
A21: Customer Attributes - Assumptions
A22: ST customers are assumed to be Non-WMP, Class A

Sheet Data BI Summary (hidden)
A1: Summary Column | B1: Sub-Total | E1: Total
B2: A | C2: B | D2: C | E2: Total Bill
A3: BI Template_Energy | B3: Sub-Total A (excluding pass through) | C3: Sub-Total B - Distribution (includes Sub-Total A) | D3: Sub-Total C - Delivery (including Sub-Total B) | E3: Total Bill on TOU
A4: BI Template_Demand | B4: Sub-Total A (excluding pass through) | C4: Sub-Total B - Distribution (includes Sub-Total A) | D4: Sub-Total C - Delivery (including Sub-Total B) | E4: Total Bill on Average IESO Wholesale Market Price
A5: BI Template_Unmtr | B5: Sub-Total A (excluding pass through) | C5: Sub-Total B - Distribution (includes Sub-Total A) | D5: Sub-Total C - Delivery (including Sub-Total B) | E5: Total Bill on Two-Tier RPP

Sheet Data BI List (hidden)
A1: Template Name | B1: Bill Impact Worksheet Name | C1: Bill Impact Header
A2: BI Template_Energy | B2: BI_UR_Typical | C2: Bill Impacts (Typical Consumption Level) - UR
A3: BI Template_Energy | B3: BI_R1_Typical (with DRP) | C3: Bill Impacts (Typical Consumption Level) - R1
A4: BI Template_Energy | B4: BI_R1_Typical (without DRP) | C4: Bill Impacts (Typical Consumption Level) - R1
A5: BI Template_Energy | B5: BI_R2_Typical (with DRP) | C5: Bill Impacts (Typical Consumption Level) - R2
A6: BI Template_Energy | B6: BI_R2_Typical (without DRP) | C6: Bill Impacts (Typical Consumption Level) - R2
A7: BI Template_Energy | B7: BI_Seas_UR_Avg | C7: Bill Impacts (Average Consumption Level) - Seas-UR
A8: BI Template_Energy | B8: BI_Seas_R1_Avg | C8: Bill Impacts (Average Consumption Level) - Seas-R1
A9: BI Template_Energy | B9: BI_Seas_R2_Avg | C9: Bill Impacts (Average Consumption Level) - Seas-R2
A10: BI Template_Energy | B10: BI_GSe_Typical | C10: Bill Impacts (Typical Consumption Level) - GSe
A11: BI Template_Energy | B11: BI_UGe_Typical | C11: Bill Impacts (Typical Consumption Level) - UGe
A12: BI Template_Demand | B12: BI_GSd_Avg | C12: Bill Impacts (Average Consumption Level) - GSd
A13: BI Template_Demand | B13: BI_UGd_Avg | C13: Bill Impacts (Average Consumption Level) - UGd
A14: BI Template_Unmtr | B14: BI_StLgt_Avg | C14: Bill Impacts (Average Consumption Level) - St Lgt
A15: BI Template_Unmtr | B15: BI_SenLgt_Avg | C15: Bill Impacts (Average Consumption Level) - Sen Lgt
A16: BI Template_Unmtr | B16: BI_USL_Avg | C16: Bill Impacts (Average Consumption Level) - USL
A17: BI Template_Demand | B17: BI_Dgen_Avg | C17: Bill Impacts (Average Consumption Level) - Dgen
A18: BI Template_Demand | B18: BI_ST_Avg | C18: Bill Impacts (Average Consumption Level) - ST
A19: BI Template_Energy | B19: BI_AUR_Typical | C19: Bill Impacts (Typical Consumption Level) - AUR
A20: BI Template_Energy | B20: BI_AUGe_Typical | C20: Bill Impacts (Typical Consumption Level) - AUGe
A21: BI Template_Demand | B21: BI_AUGd_Average | C21: Bill Impacts (Average Consumption Level) - AUGd
A22: BI Template_Energy | B22: BI_AR_Typical | C22: Bill Impacts (Typical Consumption Level) - AR
A23: BI Template_Energy | B23: BI_AGSe_Typical | C23: Bill Impacts (Typical Consumption Level) - AGSe
A24: BI Template_Demand | B24: BI_AGSd_Average | C24: Bill Impacts (Average Consumption Level) - AGSd
A25: BI Template_Energy | B25: BI_WHSI_AUR_Typical | C25: Bill Impacts (Typical Consumption Level) - AUR-WHSI
A26: BI Template_Energy | B26: BI_WHSI_AUGe_Typical | C26: Bill Impacts (Typical Consumption Level) - AUGe-WHSI
A27: BI Template_Demand | B27: BI_WHSI_AUGd_Avg | C27: Bill Impacts (Average Consumption Level) - AUGd-WHSI
A28: BI Template_Demand | B28: BI_WHSI_ST_Avg | C28: Bill Impacts (Average Consumption Level) - ST-WHSI
A29: BI Template_Energy | B29: BI_NPDI_AR_Typical | C29: Bill Impacts (Typical Consumption Level) - AR-NPDI
A30: BI Template_Energy | B30: BI_HCHI_AR_Typical | C30: Bill Impacts (Typical Consumption Level) - AR-HCHI
A31: BI Template_Energy | B31: BI_NPDI_AGSe_Typical | C31: Bill Impacts (Typical Consumption Level) - AGSe-NPDI
A32: BI Template_Energy | B32: BI_HCHI_AGSe_Typical | C32: Bill Impacts (Typical Consumption Level) - AGSe-HCHI
A33: BI Template_Demand | B33: BI_NPDI_AGSd_Avg | C33: Bill Impacts (Average Consumption Level) - AGSd-NPDI
A34: BI Template_Demand | B34: BI_HCHI_AGSd_Avg | C34: Bill Impacts (Average Consumption Level) - AGSd-HCHI
A35: BI Template_Unmtr | B35: BI_WHSI_USL_Avg | C35: Bill Impacts (Average Consumption Level) - USL-WHSI
A36: BI Template_Unmtr | B36: BI_NPDI_USL_Avg | C36: Bill Impacts (Average Consumption Level) - USL-NPDI
A37: BI Template_Unmtr | B37: BI_HCHI_USL_Avg | C37: Bill Impacts (Average Consumption Level) - USL-HCHI
A38: BI Template_Unmtr | B38: BI_WHSI_StLgt_Avg | C38: Bill Impacts (Average Consumption Level) - St Lgt-WHSI
A39: BI Template_Unmtr | B39: BI_NPDI_StLgt_Avg | C39: Bill Impacts (Average Consumption Level) - St Lgt-NPDI
A40: BI Template_Unmtr | B40: BI_HCHI_StLgt_Avg | C40: Bill Impacts (Average Consumption Level) - St Lgt-HCHI
A41: BI Template_Unmtr | B41: BI_NPDI_SenLgt_Avg | C41: Bill Impacts (Average Consumption Level) - Sen Lgt-NPDI
A42: BI Template_Unmtr | B42: BI_HCHI_SenLgt_Avg | C42: Bill Impacts (Average Consumption Level) - Sen Lgt-HCHI
A43: BI Template_Energy | B43: BI_CPUC_R1_Typical | C43: Bill Impacts (Typical Consumption Level) - R1-CPUC
A44: BI Template_Energy | B44: BI_CPUC_GSe_Typical | C44: Bill Impacts (Typical Consumption Level) - GSe-CPUC
A45: BI Template_Demand | B45: BI_CPUC_GSd_Avg | C45: Bill Impacts (Average Consumption Level) - GSd-CPUC
A46: BI Template_Unmtr | B46: BI_CPUC_USL_Avg | C46: Bill Impacts (Average Consumption Level) - USL-CPUC
A47: BI Template_Unmtr | B47: BI_CPUC_SenLgt_Avg | C47: Bill Impacts (Average Consumption Level) - Sen Lgt-CPUC
A48: BI Template_Unmtr | B48: BI_CPUC_StLgt_Avg | C48: Bill Impacts (Average Consumption Level) - St Lgt-CPUC

Sheet BI Template_Energy (hidden)
A1: Bill Impacts (Typical Consumption Level) - R1
A3: Rate Class | B3: =RIGHT(A1,LEN(A1)-FIND("- ",A1,1)-1) -> R1
A4: Monthly Consumption (kWh) | B4: =IF(COUNTIF(A1,"*Low*")>0,VLOOKUP(B3,'Data Billing Quantities'!$A:$Z,MATCH("Low kWh",'Data Billing Quantities'!4:4,0),FALSE),IF(COUNTIF(A1,"*Typical*")>0,VLOOKUP(B3,'Data Billing Quantities'!$A:$Z,MATCH("Typical kWh",'Data Billing Quantities'!4:4,0),FALSE),IF(COUNTIF(A1,"*Average*")>0,VLOOKUP(B3,'Data Billing Quantities'!$A:$Z,MATCH("Average kWh",'Data Billing Quantities'!4:4,0),FALSE),IF(COUNTIF(A1,"*High*")>0,VLOOKUP(B3,'Data Billing Quantities'!$A:$Z,MATCH("High kWh",'Data Billing Quantities'!4:4,0),FALSE),"error")))) -> 750
A5: Peak (kW) | B5: =IF(COUNTIF(A1,"*Low*")>0,VLOOKUP(B3,'Data Billing Quantities'!$A:$Z,MATCH("Low kW",'Data Billing Quantities'!4:4,0),FALSE),IF(COUNTIF(A1,"*Typical*")>0,VLOOKUP(B3,'Data Billing Quantities'!$A:$Z,MATCH("Typical kW",'Data Billing Quantities'!4:4,0),FALSE),IF(COUNTIF(A1,"*Average*")>0,VLOOKUP(B3,'Data Billing Quantities'!$A:$Z,MATCH("Average kW",'Data Billing Quantities'!4:4,0),FALSE),IF(COUNTIF(A1,"*High*")>0,VLOOKUP(B3,'Data Billing Quantities'!$A:$Z,MATCH("High kW",'Data Billing Quantities'!4:4,0),FALSE),"error")))) -> 0
A6: Loss factor | B6: =VLOOKUP(B3,'Data Billing Quantities'!A:D,MATCH(A6,'Data Billing Quantities'!4:4,0),FALSE) -> 1.076
A7: Charge determinant | B7: =VLOOKUP(B3,'Data Billing Quantities'!A:D,MATCH(A7,'Data Billing Quantities'!4:4,0),FALSE) -> kWh
B9: Current OEB-Approved | E9: Proposed | H9: Impact
B10: Rate ($) | C10: Volume | D10: Charge ($) | E10: Rate ($) | F10: Volume | G10: Charge ($) | H10: $ Change | I10: % Change
A11: Service Charge | B11: =VLOOKUP($B$3,'Data Current Rates'!$A:$AO,MATCH('BI Template_Energy'!$A11,CurrentHeader,0),FALSE) -> 71.05 | C11: 1 | D11: =B11*C11 -> 71.05 | E11: =VLOOKUP($B$3,'Data Proposed Rates'!$A:$AQ,MATCH('BI Template_Energy'!$A11,ProposedHeader,0),FALSE) -> 74.62 | F11: 1 | G11: =E11*F11 -> 74.62 | H11: =G11-D11 -> 3.57 | I11: =IF(ISERROR(H11/ABS(D11)),"N/A",(H11/ABS(D11))) -> 0.05024630542
A12: Distribution Volumetric Charge | B12: =VLOOKUP($B$3,'Data Current Rates'!$A:$AO,MATCH('BI Template_Energy'!$A12,CurrentHeader,0),FALSE) -> 0 | C12: =IF($B$7="kWh",$B$4,$B$5) -> 750 | D12: =B12*C12 -> 0 | E12: =VLOOKUP($B$3,'Data Proposed Rates'!$A:$AQ,MATCH('BI Template_Energy'!$A12,ProposedHeader,0),FALSE) -> 0 | F12: =IF($B$7="kWh",$B$4,$B$5) -> 750 | G12: 0 | H12: 0 | I12: N/A
A13: Z-Factor Fixed Rate Rider | E13: =VLOOKUP($B$3,'Data Proposed Rates'!$A:$AQ,MATCH('BI Template_Energy'!$A13,ProposedHeader,0),FALSE) -> 1.23 | F13: 1 | G13: =E13*F13 -> 1.23 | H13: =G13-D13 -> 1.23 | I13: =IF(ISERROR(H13/ABS(D13)),"N/A",(H13/ABS(D13))) -> N/A
A14: RRRP Adjustment | B14: =IF($B$3="R2",VLOOKUP(A14,'Data Pass Through'!$A4:$C19,3,0),0)*-1 -> 0 | C14: 1 | D14: =B14*C14 -> 0 | E14: =IF($B$3="R2",VLOOKUP(A14,'Data Pass Through'!$A4:$C19,3,0),0)*-1 -> 0 | F14: 1 | G14: 0 | H14: 0 | I14: N/A
A15: DRP Adjustment | D15: =IF(OR($B$3="R1",$B$3="R2",$B$3="R1-CPUC"),IF(SUM(D11:D14)>'Data Pass Through'!$B$16,-(SUM(D11:D14)-'Data Pass Through'!$B$16),0),0) -> -28.17 | G15: =IF(OR($B$3="R1",$B$3="R2",$B$3="R1-CPUC"),IF(SUM(G11:G14)>'Data Pass Through'!$B$16,-(SUM(G11:G14)-'Data Pass Through'!$B$16),0),0) -> -32.97 | H15: -4.8 | I15: -0.1703940362
A16: Group 2 Fixed Rate Rider | B16: =VLOOKUP($B$3,'Data Current Rates'!$A:$AO,MATCH('BI Template_Energy'!$A16,CurrentHeader,0),FALSE) -> -0.21 | C16: 1 | D16: =B16*C16 -> -0.21 | E16: =VLOOKUP($B$3,'Data Proposed Rates'!$A:$AQ,MATCH('BI Template_Energy'!$A16,ProposedHeader,0),FALSE) -> -2.56 | F16: 1 | G16: =E16*F16 -> -2.56 | H16: -2.35 | I16: -11.19047619
A17: Group 2 Volumetric Rate Rider | B17: =VLOOKUP($B$3,'Data Current Rates'!$A:$AO,MATCH('BI Template_Energy'!$A17,CurrentHeader,0),FALSE) -> 0 | C17: =IF($B$7="kWh",$B$4,$B$5) -> 750 | D17: =B17*C17 -> 0 | E17: =VLOOKUP($B$3,'Data Proposed Rates'!$A:$AQ,MATCH('BI Template_Energy'!$A17,ProposedHeader,0),FALSE) -> 0 | F17: =IF($B$7="kWh",$B$4,$B$5) -> 750 | G17: 0 | H17: =G17-D17 -> 0 | I17: =IF(ISERROR(H17/ABS(D17)),"N/A",(H17/ABS(D17))) -> N/A
A18: Sub-Total A (excluding pass through) | D18: =SUM(D11:D17) -> 42.67 | G18: =SUM(G11:G17) -> 40.32 | H18: -2.35 | I18: -0.05507382236
A19: Line Losses on Cost of Power | B19: =VLOOKUP($B$3,'Data Billing Quantities'!$A:$O,MATCH('BI Template_Energy'!$A34,'Data Billing Quantities'!$4:$4,0),FALSE)*$B34+VLOOKUP($B$3,'Data Billing Quantities'!$A:$O,MATCH('BI Template_Energy'!$A35,'Data Billing Quantities'!$4:$4,0),FALSE)*$B35+VLOOKUP($B$3,'Data Billing Quantities'!$A:$O,MATCH('BI Template_Energy'!$A36,'Data Billing Quantities'!$4:$4,0),FALSE)*$B36 -> 0.12752 | C19: =($B$6*$B$4)-$B$4 -> 57 | D19: =B19*C19 -> 7.26864 | E19: =VLOOKUP($B$3,'Data Billing Quantities'!$A:$O,MATCH('BI Template_Energy'!$A34,'Data Billing Quantities'!$4:$4,0),FALSE)*$B34+VLOOKUP($B$3,'Data Billing Quantities'!$A:$O,MATCH('BI Template_Energy'!$A35,'Data Billing Quantities'!$4:$4,0),FALSE)*$B35+VLOOKUP($B$3,'Data Billing Quantities'!$A:$O,MATCH('BI Template_Energy'!$A36,'Data Billing Quantities'!$4:$4,0),FALSE)*$B36 -> 0.12752 | F19: =($B$6*$B$4)-$B$4 -> 57 | G19: 7.26864 | H19: 0 | I19: 0
A20: Total Deferral/Variance Account Rate Rider | B20: =VLOOKUP($B$3,'Data Current Rates'!$A:$AO,MATCH('BI Template_Energy'!$A20,CurrentHeader,0),FALSE) -> -0.0037 | C20: =IF($B$7="kWh",$B$4,$B$5) -> 750 | D20: -2.775 | E20: =VLOOKUP($B$3,'Data Proposed Rates'!$A:$AQ,MATCH('BI Template_Energy'!$A20,ProposedHeader,0),FALSE) -> -0.0049 | F20: =IF($B$7="kWh",$B$4,$B$5) -> 750 | G20: -3.675 | H20: -0.9 | I20: -0.3243243243
A21: CBR Class B Rate Rider | B21: =VLOOKUP($B$3,'Data Current Rates'!$A:$AJ,MATCH('BI Template_Energy'!$A21,CurrentHeader,0),FALSE) -> 0.0001 | C21: =IF($B$7="kWh",$B$4,$B$5) -> 750 | D21: 0.075 | E21: =VLOOKUP($B$3,'Data Proposed Rates'!$A:$AQ,MATCH('BI Template_Energy'!$A21,ProposedHeader,0),FALSE) -> -0.0006 | F21: =IF($B$7="kWh",$B$4,$B$5) -> 750 | G21: -0.45 | H21: -0.525 | I21: -7
A22: GA Rate Rider | B22: =VLOOKUP($B$3,'Data Current Rates'!$A:$AJ,MATCH('BI Template_Energy'!$A22,CurrentHeader,0),FALSE) -> 0 | C22: 750 | D22: 0 | E22: =VLOOKUP($B$3,'Data Proposed Rates'!$A:$AQ,MATCH('BI Template_Energy'!$A22,ProposedHeader,0),FALSE) -> 0 | F22: 750 | G22: 0 | H22: 0 | I22: N/A
A23: Smart Meter Entity Charge (if applicable) | B23: =VLOOKUP($A23,'Data Pass Through'!$A:$D,2,FALSE) -> 0.42 | C23: 1 | D23: 0.42 | E23: =VLOOKUP($A23,'Data Pass Through'!$A:$D,2,FALSE) -> 0.42 | F23: 1 | G23: 0.42 | H23: 0 | I23: 0
A24: Additional Fixed Rate Rider | B24: =VLOOKUP($B$3,'Data Current Rates'!$A:$AJ,MATCH('BI Template_Energy'!$A24,CurrentHeader,0),FALSE) -> 0 | C24: 1 | D24: 0 | E24: =VLOOKUP($B$3,'Data Proposed Rates'!$A:$AQ,MATCH('BI Template_Energy'!$A24,ProposedHeader,0),FALSE) -> 0 | F24: 1 | G24: 0 | H24: 0 | I24: N/A
A25: Additional Volumetric Rate Rider | B25: =VLOOKUP($B$3,'Data Current Rates'!$A:$AJ,MATCH('BI Template_Energy'!$A25,CurrentHeader,0),FALSE) -> 0 | C25: =IF($B$7="kWh",$B$4,$B$5) -> 750 | D25: 0 | E25: =VLOOKUP($B$3,'Data Proposed Rates'!$A:$AQ,MATCH('BI Template_Energy'!$A25,ProposedHeader,0),FALSE) -> 0 | F25: =IF($B$7="kWh",$B$4,$B$5) -> 750 | G25: 0 | H25: 0 | I25: N/A
A26: Sub-Total B - Distribution (includes Sub-Total A) | D26: =SUM(INDIRECT("D18:D"&ROW()-1)) -> 47.65864 | G26: =SUM(INDIRECT("G18:G"&ROW()-1)) -> 43.88364 | H26: -3.775 | I26: -0.07920914235
A27: Retail Transmission Rate – Network Service Rate | B27: =VLOOKUP($B$3,'Data Current Rates'!$A:$AJ,MATCH('BI Template_Energy'!$A27,CurrentHeader,0),FALSE) -> 0.0128 | C27: =IF($B$7="kWh",$B$4*$B$6,$B$5) -> 807 | D27: =B27*C27 -> 10.3296 | E27: =VLOOKUP($B$3,'Data Proposed Rates'!$A:$AQ,MATCH('BI Template_Energy'!$A27,ProposedHeader,0),FALSE) -> 0.0131 | F27: =IF($B$7="kWh",$B$4*$B$6,$B$5) -> 807 | G27: 10.5717 | H27: 0.2421 | I27: 0.0234375
A28: Retail Transmission Rate – Line and Transformation Connection Service Rate | B28: =VLOOKUP($B$3,'Data Current Rates'!$A:$AJ,MATCH('BI Template_Energy'!$A28,CurrentHeader,0),FALSE) -> 0.0092 | C28: =IF($B$7="kWh",$B$4*$B$6,$B$5) -> 807 | D28: 7.4244 | E28: =VLOOKUP($B$3,'Data Proposed Rates'!$A:$AQ,MATCH('BI Template_Energy'!$A28,ProposedHeader,0),FALSE) -> 0.0094 | F28: =IF($B$7="kWh",$B$4*$B$6,$B$5) -> 807 | G28: 7.5858 | H28: 0.1614 | I28: 0.02173913043
A29: Sub-Total C - Delivery (including Sub-Total B) | D29: =SUM(D26:D28) -> 65.41264 | G29: =SUM(G26:G28) -> 62.04114 | H29: -3.3715 | I29: -0.05154202613
A30: Wholesale Market Service Rate (WMS) – not including CBR | B30: =VLOOKUP($A30,'Data Pass Through'!$A:$D,2,FALSE) -> 0.0041 | C30: =$B$4*$B$6 -> 807 | D30: =B30*C30 -> 3.3087 | E30: =VLOOKUP($A30,'Data Pass Through'!$A:$D,3,FALSE) -> 0.0041 | F30: =$B$4*$B$6 -> 807 | G30: 3.3087 | H30: 0 | I30: 0
A31: Capacity Based Recovery (CBR) – Applicable for Class B Customers | B31: =VLOOKUP($A31,'Data Pass Through'!$A:$D,2,FALSE) -> 0.0004 | C31: =$B$4*$B$6 -> 807 | D31: 0.3228 | E31: =VLOOKUP($A31,'Data Pass Through'!$A:$D,3,FALSE) -> 0.0004 | F31: =$B$4*$B$6 -> 807 | G31: 0.3228 | H31: 0 | I31: 0
A32: Rural Rate Protection Charge | B32: =VLOOKUP($A32,'Data Pass Through'!$A:$D,2,FALSE) -> 0.0015 | C32: =$B$4*$B$6 -> 807 | D32: 1.2105 | E32: =VLOOKUP($A32,'Data Pass Through'!$A:$D,3,FALSE) -> 0.0015 | F32: =$B$4*$B$6 -> 807 | G32: 1.2105 | H32: 0 | I32: 0
A33: Standard Supply Service – Administration Charge (if applicable) | B33: =VLOOKUP($A33,'Data Pass Through'!$A:$D,2,FALSE) -> 0.25 | C33: 1 | D33: 0.25 | E33: =VLOOKUP($A33,'Data Pass Through'!$A:$D,3,FALSE) -> 0.25 | F33: 1 | G33: 0.25 | H33: 0 | I33: 0
A34: TOU-Off Peak | B34: =VLOOKUP($A34,'Data Pass Through'!$A:$D,2,FALSE) -> 0.098 | C34: =B$4*VLOOKUP($B$3,'Data Billing Quantities'!$A:$O,MATCH($A34,'Data Billing Quantities'!$4:$4,0),FALSE) -> 480 | D34: 47.04 | E34: =VLOOKUP($A34,'Data Pass Through'!$A:$D,3,FALSE) -> 0.098 | F34: =B$4*VLOOKUP($B$3,'Data Billing Quantities'!$A:$O,MATCH($A34,'Data Billing Quantities'!$4:$4,0),FALSE) -> 480 | G34: =E34*F34 -> 47.04 | H34: 0 | I34: 0
A35: TOU-Mid Peak | B35: =VLOOKUP($A35,'Data Pass Through'!$A:$D,2,FALSE) -> 0.157 | C35: =B$4*VLOOKUP($B$3,'Data Billing Quantities'!$A:$O,MATCH($A35,'Data Billing Quantities'!$4:$4,0),FALSE) -> 135 | D35: 21.195 | E35: =VLOOKUP($A35,'Data Pass Through'!$A:$D,3,FALSE) -> 0.157 | F35: =B$4*VLOOKUP($B$3,'Data Billing Quantities'!$A:$O,MATCH($A35,'Data Billing Quantities'!$4:$4,0),FALSE) -> 135 | G35: =E35*F35 -> 21.195 | H35: 0 | I35: 0
A36: TOU-On Peak | B36: =VLOOKUP($A36,'Data Pass Through'!$A:$D,2,FALSE) -> 0.203 | C36: =B$4*VLOOKUP($B$3,'Data Billing Quantities'!$A:$O,MATCH($A36,'Data Billing Quantities'!$4:$4,0),FALSE) -> 135 | D36: 27.405 | E36: =VLOOKUP($A36,'Data Pass Through'!$A:$D,3,FALSE) -> 0.203 | F36: =B$4*VLOOKUP($B$3,'Data Billing Quantities'!$A:$O,MATCH($A36,'Data Billing Quantities'!$4:$4,0),FALSE) -> 135 | G36: =E36*F36 -> 27.405 | H36: 0 | I36: 0
A37: Total Bill on TOU (before Taxes) | D37: =SUM(D29:D36) -> 166.14464 | G37: =SUM(G29:G36) -> 162.77314 | H37: -3.3715 | I37: -0.02029255954
A38: HST | B38: 0.13 | D38: =D37*B38 -> 21.5988032 | E38: =B38 -> 0.13 | G38: =G37*E38 -> 21.1605082 | H38: -0.438295 | I38: -0.02029255954
A39: Ontario Electricity Rebate (OER) | B39: =IF(($B$4*12)<250000,VLOOKUP($A39,'Data Pass Through'!$A$4:$C$19,2,0),0) -> -0.235 | D39: =D37*B39 -> -39.0439904 | E39: =IF(($B$4*12)<250000,VLOOKUP($A39,'Data Pass Through'!$A$4:$C$19,3,0),0) -> -0.235 | G39: =G37*E39 -> -38.2516879 | H39: 0.7923025 | I39: 0.02029255954
A40: Total Bill on TOU | D40: =SUM(D37:D39) -> 148.6994528 | G40: =SUM(G37:G39) -> 145.6819603 | H40: -3.0174925 | I40: -0.02029255954
A41: * Distribution rate protection applies to R1 and R2 customers

Sheet BI Template_Demand (hidden)
A1: Bill Impacts (Average Consumption Level) - ST
A3: Rate Class | B3: =RIGHT(A1,LEN(A1)-FIND("- ",A1,1)-1) -> ST
A4: Monthly Consumption (kWh) | B4: =IF(COUNTIF(A1,"*Low*")>0,VLOOKUP(B3,'Data Billing Quantities'!$A:$Z,MATCH("Low kWh",'Data Billing Quantities'!4:4,0),FALSE),IF(COUNTIF(A1,"*Typical*")>0,VLOOKUP(B3,'Data Billing Quantities'!$A:$Z,MATCH("Typical kWh",'Data Billing Quantities'!4:4,0),FALSE),IF(COUNTIF(A1,"*Average*")>0,VLOOKUP(B3,'Data Billing Quantities'!$A:$Z,MATCH("Average kWh",'Data Billing Quantities'!4:4,0),FALSE),IF(COUNTIF(A1,"*High*")>0,VLOOKUP(B3,'Data Billing Quantities'!$A:$Z,MATCH("High kWh",'Data Billing Quantities'!4:4,0),FALSE),"error")))) -> 1373443
A5: Peak (kW) | B5: =IF(COUNTIF(A1,"*Low*")>0,VLOOKUP(B3,'Data Billing Quantities'!$A:$Z,MATCH("Low kW",'Data Billing Quantities'!4:4,0),FALSE),IF(COUNTIF(A1,"*Typical*")>0,VLOOKUP(B3,'Data Billing Quantities'!$A:$Z,MATCH("Typical kW",'Data Billing Quantities'!4:4,0),FALSE),IF(COUNTIF(A1,"*Average*")>0,VLOOKUP(B3,'Data Billing Quantities'!$A:$Z,MATCH("Average kW",'Data Billing Quantities'!4:4,0),FALSE),IF(COUNTIF(A1,"*High*")>0,VLOOKUP(B3,'Data Billing Quantities'!$A:$Z,MATCH("High kW",'Data Billing Quantities'!4:4,0),FALSE),"error")))) -> 2808
A6: Loss factor | B6: =VLOOKUP(B3,'Data Billing Quantities'!A:D,MATCH(A6,'Data Billing Quantities'!4:4,0),FALSE) -> 1.034
A7: Charge determinant | B7: =VLOOKUP(B3,'Data Billing Quantities'!A:D,MATCH(A7,'Data Billing Quantities'!4:4,0),FALSE) -> kW
B9: Current OEB-Approved | E9: Proposed | H9: Impact
B10: Rate | C10: Volume | D10: Charge | E10: Rate | F10: Volume | G10: Charge | H10: $ Change | I10: % Change
B11: ($) | D11: ($) | E11: ($) | G11: ($)
A12: Service Charge | B12: =VLOOKUP($B$3,'Data Current Rates'!$A:$AO,MATCH('BI Template_Demand'!$A12,CurrentHeader,0),FALSE) -> 1241.87 | C12: 1 | D12: =C12*B12 -> 1241.87 | E12: =VLOOKUP($B$3,'Data Proposed Rates'!$A:$AQ,MATCH('BI Template_Demand'!$A12,ProposedHeader,0),FALSE) -> 1241.87 | F12: 1 | G12: =F12*E12 -> 1241.87 | H12: =G12-D12 -> 0 | I12: =IF(ISERROR(H12/ABS(D12)),"N/A",(H12/ABS(D12))) -> 0
A13: Distribution Volumetric Charge | B13: =VLOOKUP($B$3,'Data Current Rates'!$A:$AO,MATCH('BI Template_Demand'!$A13,CurrentHeader,0),FALSE) -> 1.7096 | C13: =IF($B$7="kWh",$B$4,$B$5) -> 2808 | D13: =C13*B13 -> 4800.5568 | E13: =VLOOKUP($B$3,'Data Proposed Rates'!$A:$AQ,MATCH('BI Template_Demand'!$A13,ProposedHeader,0),FALSE) -> 1.8196 | F13: =IF($B$7="kWh",$B$4,$B$5) -> 2808 | G13: =F13*E13 -> 5109.4368 | H13: 308.88 | I13: 0.06434253627
A14: Z-Factor Fixed Rate Rider | E14: =VLOOKUP($B$3,'Data Proposed Rates'!$A:$AQ,MATCH('BI Template_Demand'!$A14,ProposedHeader,0),FALSE) -> 108.76 | F14: 1 | G14: =F14*E14 -> 108.76 | H14: 108.76 | I14: =IF(ISERROR(H14/ABS(D14)),"N/A",(H14/ABS(D14))) -> N/A
A15: Group 2 Fixed Rate Rider | B15: =VLOOKUP($B$3,'Data Current Rates'!$A:$AO,MATCH('BI Template_Demand'!$A15,CurrentHeader,0),FALSE) -> 0 | C15: 1 | D15: =C15*B15 -> 0 | E15: =VLOOKUP($B$3,'Data Proposed Rates'!$A:$AQ,MATCH('BI Template_Demand'!$A15,ProposedHeader,0),FALSE) -> -37.83 | F15: 1 | G15: =F15*E15 -> -37.83 | H15: -37.83 | I15: N/A
A16: Group 2 Volumetric Rate Rider | B16: =VLOOKUP($B$3,'Data Current Rates'!$A:$AO,MATCH('BI Template_Demand'!$A16,CurrentHeader,0),FALSE) -> -0.0072 | C16: =IF($B$7="kWh",$B$4,$B$5) -> 2808 | D16: -20.2176 | E16: =VLOOKUP($B$3,'Data Proposed Rates'!$A:$AQ,MATCH('BI Template_Demand'!$A16,ProposedHeader,0),FALSE) -> -0.0686 | F16: =IF($B$7="kWh",$B$4,$B$5) -> 2808 | G16: -192.6288 | H16: -172.4112 | I16: -8.527777778
A17: Sub-Total A (excluding pass through) | D17: =SUM(D12:D16) -> 6022.2092 | G17: =SUM(G12:G16) -> 6229.608 | H17: 207.3988 | I17: 0.0344389896
A18: Line Losses on Cost of Power | B18: 0 | C18: =IF(B$18=0,0,B$4*B$6-B$4) -> 0 | D18: =C18*B18 -> 0 | E18: 0 | F18: =IF(E$18=0,0,E$4*E$6-E$4) -> 0 | G18: 0 | H18: =G18-D18 -> 0 | I18: N/A
A19: Total Deferral/Variance Account Rate Rider | B19: =VLOOKUP($B$3,'Data Current Rates'!$A:$AO,MATCH('BI Template_Demand'!$A19,CurrentHeader,0),FALSE) -> -1.7218 | C19: =IF($B$7="kWh",$B$4,$B$5) -> 2808 | D19: -4834.8144 | E19: =VLOOKUP($B$3,'Data Proposed Rates'!$A:$AQ,MATCH('BI Template_Demand'!$A19,ProposedHeader,0),FALSE) -> -2.0284 | F19: =IF($B$7="kWh",$B$4,$B$5) -> 2808 | G19: -5695.7472 | H19: -860.9328 | I19: -0.1780694622
A20: CBR Class B Rate Rider | B20: =VLOOKUP($B$3,'Data Current Rates'!$A:$AO,MATCH('BI Template_Demand'!$A20,CurrentHeader,0),FALSE) -> 0.0122 | C20: =IF($B$7="kWh",$B$4,$B$5) -> 2808 | D20: =C20*B20 -> 34.2576 | E20: =VLOOKUP($B$3,'Data Proposed Rates'!$A:$AQ,MATCH('BI Template_Demand'!$A20,ProposedHeader,0),FALSE) -> -0.2148 | F20: =IF($B$7="kWh",$B$4,$B$5) -> 2808 | G20: =F20*E20 -> -603.1584 | H20: -637.416 | I20: -18.60655738
A21: GA Rate Rider | B21: =VLOOKUP($B$3,'Data Current Rates'!$A:$AO,MATCH('BI Template_Demand'!$A21,CurrentHeader,0),FALSE) -> -0.0009 | C21: =$B$4 -> 1373443 | D21: =C21*B21 -> -1236.0987 | E21: =VLOOKUP($B$3,'Data Proposed Rates'!$A:$AQ,MATCH('BI Template_Demand'!$A21,ProposedHeader,0),FALSE) -> 0.0121 | F21: =$B$4 -> 1373443 | G21: 16618.6603 | H21: 17854.759 | I21: 14.44444444
A22: Additional Fixed Rate Rider | B22: =VLOOKUP($B$3,'Data Current Rates'!$A:$AO,MATCH('BI Template_Demand'!$A22,CurrentHeader,0),FALSE) -> 0 | C22: 1 | D22: 0 | E22: =VLOOKUP($B$3,'Data Proposed Rates'!$A:$AQ,MATCH('BI Template_Demand'!$A22,ProposedHeader,0),FALSE) -> 0 | F22: 1 | G22: =F22*E22 -> 0 | H22: =G22-D22 -> 0 | I22: N/A
A23: Additional Volumetric Rate Rider | B23: =VLOOKUP($B$3,'Data Current Rates'!$A:$AO,MATCH('BI Template_Demand'!$A23,CurrentHeader,0),FALSE) -> 0 | C23: =IF($B$7="kWh",$B$4,$B$5) -> 2808 | D23: =C23*B23 -> 0 | E23: =VLOOKUP($B$3,'Data Proposed Rates'!$A:$AQ,MATCH('BI Template_Demand'!$A23,ProposedHeader,0),FALSE) -> 0 | F23: =IF($B$7="kWh",$B$4,$B$5) -> 2808 | G23: =F23*E23 -> 0 | H23: 0 | I23: N/A
A24: Sub-Total B - Distribution (includes Sub-Total A) | D24: =SUM(INDIRECT("D17:D"&ROW()-1)) -> -14.4463 | G24: =SUM(INDIRECT("G17:G"&ROW()-1)) -> 16549.3627 | H24: 16563.809 | I24: 1146.577947
A25: Retail Transmission Rate – Network Service Rate | B25: =VLOOKUP($B$3,'Data Current Rates'!$A:$AO,MATCH('BI Template_Demand'!$A25,CurrentHeader,0),FALSE) -> 5.5092 | C25: =IF($B$7="kWh",$B$4*$B$6,$B$5) -> 2808 | D25: =C25*B25 -> 15469.8336 | E25: =VLOOKUP($B$3,'Data Proposed Rates'!$A:$AQ,MATCH('BI Template_Demand'!$A25,ProposedHeader,0),FALSE) -> 5.6568 | F25: =IF($B$7="kWh",$B$4*$B$6,$B$5) -> 2808 | G25: =F25*E25 -> 15884.2944 | H25: 414.4608 | I25: 0.02679154868
A26: Retail Transmission Rate – Line and Transformation Connection Service Rate | B26: =VLOOKUP($B$3,'Data Current Rates'!$A:$AO,MATCH('BI Template_Demand'!$A26,CurrentHeader,0),FALSE) -> 4.3196 | C26: =IF($B$7="kWh",$B$4*$B$6,$B$5) -> 2808 | D26: =C26*B26 -> 12129.4368 | E26: =VLOOKUP($B$3,'Data Proposed Rates'!$A:$AQ,MATCH('BI Template_Demand'!$A26,ProposedHeader,0),FALSE) -> 4.4274 | F26: =IF($B$7="kWh",$B$4*$B$6,$B$5) -> 2808 | G26: =F26*E26 -> 12432.1392 | H26: 302.7024 | I26: 0.02495601445
A27: Sub-Total C - Delivery (including Sub-Total B) | D27: =SUM(D24:D26) -> 27584.8241 | G27: =SUM(G24:G26) -> 44865.7963 | H27: 17280.9722 | I27: 0.6264666448
A28: Wholesale Market Service Rate (WMS) – not including CBR | B28: =VLOOKUP($A28,'Data Pass Through'!$A:$D,2,FALSE) -> 0.0041 | C28: =$B$4*$B$6 -> 1420140.062 | D28: =C28*B28 -> 5822.574254 | E28: =VLOOKUP($A28,'Data Pass Through'!$A:$D,3,FALSE) -> 0.0041 | F28: =$B$4*$B$6 -> 1420140.062 | G28: =F28*E28 -> 5822.574254 | H28: 0 | I28: 0
A29: Capacity Based Recovery (CBR) – Applicable for Class B Customers | B29: =VLOOKUP($A29,'Data Pass Through'!$A:$D,2,FALSE) -> 0.0004 | C29: =$B$4*$B$6 -> 1420140.062 | D29: 568.0560248 | E29: =VLOOKUP($A29,'Data Pass Through'!$A:$D,3,FALSE) -> 0.0004 | F29: 1420140.062 | G29: 568.0560248 | H29: 0 | I29: 0
A30: Rural Rate Protection Charge | B30: =VLOOKUP($A30,'Data Pass Through'!$A:$D,2,FALSE) -> 0.0015 | C30: 1420140.062 | D30: 2130.210093 | E30: =VLOOKUP($A30,'Data Pass Through'!$A:$D,3,FALSE) -> 0.0015 | F30: 1420140.062 | G30: 2130.210093 | H30: 0 | I30: 0
A31: Standard Supply Service – Administration Charge (if applicable) | B31: =VLOOKUP($A31,'Data Pass Through'!$A:$D,2,FALSE) -> 0.25 | C31: 1 | D31: 0.25 | E31: =VLOOKUP($A31,'Data Pass Through'!$A:$D,3,FALSE) -> 0.25 | F31: 1 | G31: 0.25 | H31: 0 | I31: 0
A32: Average IESO Wholesale Market Price | B32: =VLOOKUP(A32,'Data Pass Through'!A4:C19,2,0) -> 0.1596 | C32: =$B$4*$B$6 -> 1420140.062 | D32: =C32*B32 -> 226654.3539 | E32: =VLOOKUP($A32,'Data Pass Through'!$A:$D,3,FALSE) -> 0.1596 | F32: =$B$4*$B$6 -> 1420140.062 | G32: 226654.3539 | H32: =G32-D32 -> 0 | I32: 0
A33: Total Bill on Average IESO Wholesale Market Price (before Taxes) | D33: =SUM(D27:D32) -> 262760.2684 | G33: =SUM(G27:G32) -> 280041.2406 | H33: =G33-D33 -> 17280.9722 | I33: 0.0657670671
A34: HST | B34: 0.13 | D34: =D33*B34 -> 34158.83489 | E34: 0.13 | G34: =G33*E34 -> 36405.36127 | H34: =G34-D34 -> 2246.526386 | I34: 0.0657670671
A35: Ontario Electricity Rebate (OER) | B35: =IF(($B$4*12)<250000,VLOOKUP(A35,'Data Pass Through'!$A$4:$C$19,2,0),0) -> 0 | D35: =D33*B35 -> 0 | E35: =IF(($B$4*12)<250000,VLOOKUP(A35,'Data Pass Through'!$A$4:$C$19,3,0),0) -> 0 | G35: =G33*E35 -> 0 | H35: =G35-D35 -> 0 | I35: N/A
A36: Total Bill on Average IESO Wholesale Market Price | D36: =SUM(D33:D35) -> 296919.1033 | G36: =SUM(G33:G35) -> 316446.6018 | H36: =G36-D36 -> 19527.49859 | I36: 0.0657670671

Sheet BI Template_Unmtr (hidden)
A1: Bill Impacts (Average Consumption Level) - St Lgt
A3: Rate Class | B3: =RIGHT(A1,LEN(A1)-FIND("- ",A1,1)-1) -> St Lgt
A4: Monthly Consumption (kWh) | B4: =IF(COUNTIF(A1,"*Low*")>0,VLOOKUP(B3,'Data Billing Quantities'!$A:$Z,MATCH("Low kWh",'Data Billing Quantities'!4:4,0),FALSE),IF(COUNTIF(A1,"*Typical*")>0,VLOOKUP(B3,'Data Billing Quantities'!$A:$Z,MATCH("Typical kWh",'Data Billing Quantities'!4:4,0),FALSE),IF(COUNTIF(A1,"*Average*")>0,VLOOKUP(B3,'Data Billing Quantities'!$A:$Z,MATCH("Average kWh",'Data Billing Quantities'!4:4,0),FALSE),IF(COUNTIF(A1,"*High*")>0,VLOOKUP(B3,'Data Billing Quantities'!$A:$Z,MATCH("High kWh",'Data Billing Quantities'!4:4,0),FALSE),"error")))) -> 1274
A5: Peak (kW) | B5: =IF(COUNTIF(A1,"*Low*")>0,VLOOKUP(B3,'Data Billing Quantities'!$A:$Z,MATCH("Low kW",'Data Billing Quantities'!4:4,0),FALSE),IF(COUNTIF(A1,"*Typical*")>0,VLOOKUP(B3,'Data Billing Quantities'!$A:$Z,MATCH("Typical kW",'Data Billing Quantities'!4:4,0),FALSE),IF(COUNTIF(A1,"*Average*")>0,VLOOKUP(B3,'Data Billing Quantities'!$A:$Z,MATCH("Average kW",'Data Billing Quantities'!4:4,0),FALSE),IF(COUNTIF(A1,"*High*")>0,VLOOKUP(B3,'Data Billing Quantities'!$A:$Z,MATCH("High kW",'Data Billing Quantities'!4:4,0),FALSE),"error")))) -> 0
A6: Loss factor | B6: =VLOOKUP(B3,'Data Billing Quantities'!A:D,MATCH(A6,'Data Billing Quantities'!4:4,0),FALSE) -> 1.092
A7: Charge determinant | B7: =VLOOKUP(B3,'Data Billing Quantities'!A:D,MATCH(A7,'Data Billing Quantities'!4:4,0),FALSE) -> kWh
B9: Current OEB-Approved | E9: Proposed | H9: Impact
B10: Rate ($) | C10: Volume | D10: Charge ($) | E10: Rate ($) | F10: Volume | G10: Charge ($) | H10: $ Change | I10: % Change
A11: Service Charge | B11: =VLOOKUP($B$3,'Data Current Rates'!$A:$AO,MATCH('BI Template_Unmtr'!$A11,CurrentHeader,0),FALSE) -> 3.31 | C11: 1 | D11: =B11*C11 -> 3.31 | E11: =VLOOKUP($B$3,'Data Proposed Rates'!$A:$AQ,MATCH('BI Template_Unmtr'!$A11,ProposedHeader,0),FALSE) -> 3.42 | F11: 1 | G11: =E11*F11 -> 3.42 | H11: =G11-D11 -> 0.11 | I11: =IF(ISERROR(H11/ABS(D11)),"N/A",(H11/ABS(D11))) -> 0.0332326284
A12: Distribution Volumetric Charge | B12: =VLOOKUP($B$3,'Data Current Rates'!$A:$AO,MATCH('BI Template_Unmtr'!$A12,CurrentHeader,0),FALSE) -> 0.1235 | C12: =IF($B$7="kWh",$B$4,$B$5) -> 1274 | D12: =B12*C12 -> 157.339 | E12: =VLOOKUP($B$3,'Data Proposed Rates'!$A:$AQ,MATCH('BI Template_Unmtr'!$A12,ProposedHeader,0),FALSE) -> 0.1297 | F12: =IF($B$7="kWh",$B$4,$B$5) -> 1274 | G12: 165.2378 | H12: 7.8988 | I12: 0.05020242915
A13: Z-Factor Fixed Rate Rider | E13: =VLOOKUP($B$3,'Data Proposed Rates'!$A:$AQ,MATCH('BI Template_Unmtr'!$A13,ProposedHeader,0),FALSE) -> 2.62 | F13: 1 | G13: 2.62 | H13: 2.62 | I13: N/A
A14: Group 2 Fixed Rate Rider | B14: =VLOOKUP($B$3,'Data Current Rates'!$A:$AO,MATCH('BI Template_Unmtr'!$A14,CurrentHeader,0),FALSE) -> 0 | C14: 1 | D14: =B14*C14 -> 0 | E14: =VLOOKUP($B$3,'Data Proposed Rates'!$A:$AQ,MATCH('BI Template_Unmtr'!$A14,ProposedHeader,0),FALSE) -> -0.12 | F14: 1 | G14: =E14*F14 -> -0.12 | H14: -0.12 | I14: N/A
A15: Group 2 Volumetric Rate Rider | B15: =VLOOKUP($B$3,'Data Current Rates'!$A:$AO,MATCH('BI Template_Unmtr'!$A15,CurrentHeader,0),FALSE) -> -0.0004 | C15: =IF($B$7="kWh",$B$4,$B$5) -> 1274 | D15: =B15*C15 -> -0.5096 | E15: =VLOOKUP($B$3,'Data Proposed Rates'!$A:$AQ,MATCH('BI Template_Unmtr'!$A15,ProposedHeader,0),FALSE) -> -0.0044 | F15: =IF($B$7="kWh",$B$4,$B$5) -> 1274 | G15: -5.6056 | H15: -5.096 | I15: -10
A16: Sub-Total A (excluding pass through) | D16: =SUM(D11:D15) -> 160.1394 | G16: =SUM(G11:G15) -> 165.5522 | H16: 5.4128 | I16: 0.03380055127
A17: Line Losses on Cost of Power | B17: =IF($B$4*12>=150000,0,IF($B$4>=750,$B32,$B31)) -> 0.142 | C17: =IF($B17=0,0,$B4*$B6-$B4) -> 117.208 | D17: =B17*C17 -> 16.643536 | E17: =IF($B$4*12>=150000,0,IF($B$4>=750,$E32,$E31)) -> 0.142 | F17: =IF($B17=0,0,$B4*$B6-$B4) -> 117.208 | G17: 16.643536 | H17: 0 | I17: 0
A18: Total Deferral/Variance Account Rate Rider | B18: =VLOOKUP($B$3,'Data Current Rates'!$A:$AO,MATCH('BI Template_Unmtr'!$A18,CurrentHeader,0),FALSE) -> -0.0036 | C18: =IF($B$7="kWh",$B$4,$B$5) -> 1274 | D18: -4.5864 | E18: =VLOOKUP($B$3,'Data Proposed Rates'!$A:$AQ,MATCH('BI Template_Unmtr'!$A18,ProposedHeader,0),FALSE) -> -0.0049 | F18: =IF($B$7="kWh",$B$4,$B$5) -> 1274 | G18: -6.2426 | H18: -1.6562 | I18: -0.3611111111
A19: CBR Class B Rate Rider | B19: =VLOOKUP($B$3,'Data Current Rates'!$A:$AO,MATCH('BI Template_Unmtr'!$A19,CurrentHeader,0),FALSE) -> 0.0001 | C19: =IF($B$7="kWh",$B$4,$B$5) -> 1274 | D19: 0.1274 | E19: =VLOOKUP($B$3,'Data Proposed Rates'!$A:$AQ,MATCH('BI Template_Unmtr'!$A19,ProposedHeader,0),FALSE) -> -0.0006 | F19: =IF($B$7="kWh",$B$4,$B$5) -> 1274 | G19: -0.7644 | H19: -0.8918 | I19: -7
A20: GA Rate Rider | B20: =VLOOKUP($B$3,'Data Current Rates'!$A:$AO,MATCH('BI Template_Unmtr'!$A20,CurrentHeader,0),FALSE) -> 0 | C20: =IF($B$7="kWh",$B$4,$B$5) -> 1274 | D20: 0 | E20: =VLOOKUP($B$3,'Data Proposed Rates'!$A:$AQ,MATCH('BI Template_Unmtr'!$A20,ProposedHeader,0),FALSE) -> 0 | F20: =IF($B$7="kWh",$B$4,$B$5) -> 1274 | G20: 0 | H20: 0 | I20: N/A
A21: Additional Fixed Rate Rider | B21: =VLOOKUP($B$3,'Data Current Rates'!$A:$AO,MATCH('BI Template_Unmtr'!$A21,CurrentHeader,0),FALSE) -> 0 | C21: 1 | D21: 0 | E21: =VLOOKUP($B$3,'Data Proposed Rates'!$A:$AQ,MATCH('BI Template_Unmtr'!$A21,ProposedHeader,0),FALSE) -> 0 | F21: 1 | G21: 0 | H21: 0 | I21: N/A
A22: Additional Volumetric Rate Rider | B22: =VLOOKUP($B$3,'Data Current Rates'!$A:$AO,MATCH('BI Template_Unmtr'!$A22,CurrentHeader,0),FALSE) -> 0 | C22: =IF($B$7="kWh",$B$4,$B$5) -> 1274 | D22: 0 | E22: =VLOOKUP($B$3,'Data Proposed Rates'!$A:$AQ,MATCH('BI Template_Unmtr'!$A22,ProposedHeader,0),FALSE) -> 0 | F22: =IF($B$7="kWh",$B$4,$B$5) -> 1274 | G22: 0 | H22: 0 | I22: N/A
A23: Sub-Total B - Distribution (includes Sub-Total A) | D23: =SUM(INDIRECT("D16:D"&ROW()-1)) -> 172.323936 | G23: =SUM(INDIRECT("G16:G"&ROW()-1)) -> 175.188736 | H23: 2.8648 | I23: 0.01662450421
A24: Retail Transmission Rate – Network Service Rate | B24: =VLOOKUP($B$3,'Data Current Rates'!$A:$AO,MATCH('BI Template_Unmtr'!$A24,CurrentHeader,0),FALSE) -> 0.0074 | C24: =IF($B$7="kWh",$B$4*$B$6,$B$5) -> 1391.208 | D24: =B24*C24 -> 10.2949392 | E24: =VLOOKUP($B$3,'Data Proposed Rates'!$A:$AQ,MATCH('BI Template_Unmtr'!$A24,ProposedHeader,0),FALSE) -> 0.0076 | F24: =IF($B$7="kWh",$B$4*$B$6,$B$5) -> 1391.208 | G24: 10.5731808 | H24: 0.2782416 | I24: 0.02702702703
A25: Retail Transmission Rate – Line and Transformation Connection Service Rate | B25: =VLOOKUP($B$3,'Data Current Rates'!$A:$AO,MATCH('BI Template_Unmtr'!$A25,CurrentHeader,0),FALSE) -> 0.0057 | C25: =IF($B$7="kWh",$B$4*$B$6,$B$5) -> 1391.208 | D25: 7.9298856 | E25: =VLOOKUP($B$3,'Data Proposed Rates'!$A:$AQ,MATCH('BI Template_Unmtr'!$A25,ProposedHeader,0),FALSE) -> 0.0058 | F25: =IF($B$7="kWh",$B$4*$B$6,$B$5) -> 1391.208 | G25: 8.0690064 | H25: 0.1391208 | I25: 0.01754385965
A26: Sub-Total C - Delivery (including Sub-Total B) | D26: =SUM(D23:D25) -> 190.5487608 | G26: =SUM(G23:G25) -> 193.8309232 | H26: 3.2821624 | I26: 0.01722479005
A27: Wholesale Market Service Rate (WMS) – not including CBR | B27: =VLOOKUP($A27,'Data Pass Through'!$A:$D,2,FALSE) -> 0.0041 | C27: =$B$4*$B$6 -> 1391.208 | D27: =B27*C27 -> 5.7039528 | E27: =VLOOKUP($A27,'Data Pass Through'!$A:$D,3,FALSE) -> 0.0041 | F27: =$B$4*$B$6 -> 1391.208 | G27: 5.7039528 | H27: 0 | I27: 0
A28: Capacity Based Recovery (CBR) – Applicable for Class B Customers | B28: =VLOOKUP($A28,'Data Pass Through'!$A:$D,2,FALSE) -> 0.0004 | C28: =$B$4*$B$6 -> 1391.208 | D28: 0.5564832 | E28: =VLOOKUP($A28,'Data Pass Through'!$A:$D,3,FALSE) -> 0.0004 | F28: =$B$4*$B$6 -> 1391.208 | G28: 0.5564832 | H28: 0 | I28: 0
A29: Rural Rate Protection Charge | B29: =VLOOKUP($A29,'Data Pass Through'!$A:$D,2,FALSE) -> 0.0015 | C29: =$B$4*$B$6 -> 1391.208 | D29: 2.086812 | E29: =VLOOKUP($A29,'Data Pass Through'!$A:$D,3,FALSE) -> 0.0015 | F29: =$B$4*$B$6 -> 1391.208 | G29: 2.086812 | H29: 0 | I29: 0
A30: Standard Supply Service – Administration Charge (if applicable) | B30: =VLOOKUP($A30,'Data Pass Through'!$A:$D,2,FALSE) -> 0.25 | C30: 1 | D30: 0.25 | E30: =VLOOKUP($A30,'Data Pass Through'!$A:$D,3,FALSE) -> 0.25 | F30: 1 | G30: 0.25 | H30: 0 | I30: 0
A31: RPP Tier 1 | B31: =VLOOKUP($A31,'Data Pass Through'!$A:$D,2,FALSE) -> 0.12 | C31: =IF(($B4*12>=150000),750,IF($B4>=750,750,$B4)) -> 750 | D31: 90 | E31: =VLOOKUP($A31,'Data Pass Through'!$A:$D,3,FALSE) -> 0.12 | F31: =IF(($B4*12>=150000),750,IF($B4>=750,750,$B4)) -> 750 | G31: 90 | H31: 0 | I31: 0
A32: RPP Tier 2 | B32: =VLOOKUP($A32,'Data Pass Through'!$A:$D,2,FALSE) -> 0.142 | C32: =IF(($B4*12>=150000),($B4*$B6)-750,IF($B4>=750,($B4-750),0)) -> 524 | D32: 74.408 | E32: =VLOOKUP($A32,'Data Pass Through'!$A:$D,3,FALSE) -> 0.142 | F32: =IF(($B4*12>=150000),($B4*$B6)-750,IF($B4>=750,($B4-750),0)) -> 524 | G32: 74.408 | H32: =G32-D32 -> 0 | I32: =IF(ISERROR(H32/ABS(D32)),"N/A",(H32/ABS(D32))) -> 0
A33: Total Bill on Two-Tier RPP (before Taxes) | D33: =SUM(D26:D32) -> 363.5540088 | G33: =SUM(G26:G32) -> 366.8361712 | H33: 3.2821624 | I33: 0.009027991222
A34: HST | B34: 0.13 | D34: =D33*B34 -> 47.26202114 | E34: =B34 -> 0.13 | G34: =G33*E34 -> 47.68870226 | H34: 0.426681112 | I34: 0.009027991222
A35: Ontario Electricity Rebate (OER) | B35: =IF(($B$4*12)<250000,VLOOKUP(A35,'Data Pass Through'!$A$4:$C$19,2,0),0) -> -0.235 | D35: =D33*B35 -> -85.43519207 | E35: =IF(($B$4*12)<250000,VLOOKUP($A35,'Data Pass Through'!$A$4:$C$19,3,0),0) -> -0.235 | G35: =G33*E35 -> -86.20650023 | H35: -0.771308164 | I35: -0.009027991222
A36: Total Bill on Two-Tier RPP | D36: =SUM(D33:D35) -> 325.3808379 | G36: =SUM(G33:G35) -> 328.3183732 | H36: 2.937535348 | I36: 0.009027991222
A37: * Distribution rate protection applies to R1 and R2 customers

Sheet Bill Impact Summary
A1: Rate Class | B1: Consumption Level | C1: Monthly Consumption (kWh) | D1: Monthly Peak (kW) | E1: BI Worksheet | F1: Template | G1: Sub-Total | M1: Total
G2: A | I2: B | K2: C | M2: Total Bill
G3: $ | H3: % | I3: $ | J3: % | K3: $ | L3: % | M3: $ | N3: %
A4: UR | B4: Typical | C4: =VLOOKUP(A4,'Data Billing Quantities'!A:P,MATCH(B4&" kWh",'Data Billing Quantities'!$4:$4,0),FALSE) -> 750 | E4: BI_UR_Typical | F4: BI Template_Energy | G4: =VLOOKUP(VLOOKUP($F4,'Data BI Summary'!$A:$P,MATCH($G$2,'Data BI Summary'!$2:$2,0),FALSE),INDIRECT("'"&$E4&"'!"&"$A:$K"),8,FALSE) -> 1.42 | H4: =VLOOKUP(VLOOKUP($F4,'Data BI Summary'!$A:$P,MATCH($G$2,'Data BI Summary'!$2:$2,0),FALSE),INDIRECT("'"&$E4&"'!"&"$A:$K"),9,FALSE) -> 0.03421686747 | I4: =VLOOKUP(VLOOKUP($F4,'Data BI Summary'!$A:$P,MATCH($I$2,'Data BI Summary'!$2:$2,0),FALSE),INDIRECT("'"&$E4&"'!"&"$A:$K"),8,FALSE) -> 0.145 | J4: =VLOOKUP(VLOOKUP($F4,'Data BI Summary'!$A:$P,MATCH($I$2,'Data BI Summary'!$2:$2,0),FALSE),INDIRECT("'"&$E4&"'!"&"$A:$K"),9,FALSE) -> 0.003251377687 | K4: =VLOOKUP(VLOOKUP($F4,'Data BI Summary'!$A:$P,MATCH($K$2,'Data BI Summary'!$2:$2,0),FALSE),INDIRECT("'"&$E4&"'!"&"$A:$K"),8,FALSE) -> 0.62065 | L4: =VLOOKUP(VLOOKUP($F4,'Data BI Summary'!$A:$P,MATCH($K$2,'Data BI Summary'!$2:$2,0),FALSE),INDIRECT("'"&$E4&"'!"&"$A:$K"),9,FALSE) -> 0.009816356709 | M4: =VLOOKUP(VLOOKUP($F4,'Data BI Summary'!$A:$P,MATCH($M$2,'Data BI Summary'!$2:$2,0),FALSE),INDIRECT("'"&$E4&"'!"&"$A:$K"),8,FALSE) -> 0.55548175 | N4: =VLOOKUP(VLOOKUP($F4,'Data BI Summary'!$A:$P,MATCH($M$2,'Data BI Summary'!$2:$2,0),FALSE),INDIRECT("'"&$E4&"'!"&"$A:$K"),9,FALSE) -> 0.003787393262
A5: R1 (with DRP) | B5: Typical | C5: =VLOOKUP("R1",'Data Billing Quantities'!A:P,MATCH(B5&" kWh",'Data Billing Quantities'!$4:$4,0),FALSE) -> 750 | E5: BI_R1_Typical (with DRP) | F5: BI Template_Energy | G5: =VLOOKUP(VLOOKUP($F5,'Data BI Summary'!$A:$P,MATCH($G$2,'Data BI Summary'!$2:$2,0),FALSE),INDIRECT("'"&$E5&"'!"&"$A:$K"),8,FALSE) -> -2.35 | H5: =VLOOKUP(VLOOKUP($F5,'Data BI Summary'!$A:$P,MATCH($G$2,'Data BI Summary'!$2:$2,0),FALSE),INDIRECT("'"&$E5&"'!"&"$A:$K"),9,FALSE) -> -0.05507382236 | I5: =VLOOKUP(VLOOKUP($F5,'Data BI Summary'!$A:$P,MATCH($I$2,'Data BI Summary'!$2:$2,0),FALSE),INDIRECT("'"&$E5&"'!"&"$A:$K"),8,FALSE) -> -3.775 | J5: =VLOOKUP(VLOOKUP($F5,'Data BI Summary'!$A:$P,MATCH($I$2,'Data BI Summary'!$2:$2,0),FALSE),INDIRECT("'"&$E5&"'!"&"$A:$K"),9,FALSE) -> -0.07920914235 | K5: =VLOOKUP(VLOOKUP($F5,'Data BI Summary'!$A:$P,MATCH($K$2,'Data BI Summary'!$2:$2,0),FALSE),INDIRECT("'"&$E5&"'!"&"$A:$K"),8,FALSE) -> -3.3715 | L5: =VLOOKUP(VLOOKUP($F5,'Data BI Summary'!$A:$P,MATCH($K$2,'Data BI Summary'!$2:$2,0),FALSE),INDIRECT("'"&$E5&"'!"&"$A:$K"),9,FALSE) -> -0.05154202613 | M5: =VLOOKUP(VLOOKUP($F5,'Data BI Summary'!$A:$P,MATCH($M$2,'Data BI Summary'!$2:$2,0),FALSE),INDIRECT("'"&$E5&"'!"&"$A:$K"),8,FALSE) -> -3.0174925 | N5: =VLOOKUP(VLOOKUP($F5,'Data BI Summary'!$A:$P,MATCH($M$2,'Data BI Summary'!$2:$2,0),FALSE),INDIRECT("'"&$E5&"'!"&"$A:$K"),9,FALSE) -> -0.02029255954
A6: R1 (without DRP) | B6: Typical | C6: =VLOOKUP("R1",'Data Billing Quantities'!A:P,MATCH(B6&" kWh",'Data Billing Quantities'!$4:$4,0),FALSE) -> 750 | E6: BI_R1_Typical (without DRP) | F6: BI Template_Energy | G6: =VLOOKUP(VLOOKUP($F6,'Data BI Summary'!$A:$P,MATCH($G$2,'Data BI Summary'!$2:$2,0),FALSE),INDIRECT("'"&$E6&"'!"&"$A:$K"),8,FALSE) -> 2.45 | H6: =VLOOKUP(VLOOKUP($F6,'Data BI Summary'!$A:$P,MATCH($G$2,'Data BI Summary'!$2:$2,0),FALSE),INDIRECT("'"&$E6&"'!"&"$A:$K"),9,FALSE) -> 0.03458498024 | I6: =VLOOKUP(VLOOKUP($F6,'Data BI Summary'!$A:$P,MATCH($I$2,'Data BI Summary'!$2:$2,0),FALSE),INDIRECT("'"&$E6&"'!"&"$A:$K"),8,FALSE) -> 1.025 | J6: =VLOOKUP(VLOOKUP($F6,'Data BI Summary'!$A:$P,MATCH($I$2,'Data BI Summary'!$2:$2,0),FALSE),INDIRECT("'"&$E6&"'!"&"$A:$K"),9,FALSE) -> 0.0135173201 | K6: =VLOOKUP(VLOOKUP($F6,'Data BI Summary'!$A:$P,MATCH($K$2,'Data BI Summary'!$2:$2,0),FALSE),INDIRECT("'"&$E6&"'!"&"$A:$K"),8,FALSE) -> 1.4285 | L6: =VLOOKUP(VLOOKUP($F6,'Data BI Summary'!$A:$P,MATCH($K$2,'Data BI Summary'!$2:$2,0),FALSE),INDIRECT("'"&$E6&"'!"&"$A:$K"),9,FALSE) -> 0.01526458326 | M6: =VLOOKUP(VLOOKUP($F6,'Data BI Summary'!$A:$P,MATCH($M$2,'Data BI Summary'!$2:$2,0),FALSE),INDIRECT("'"&$E6&"'!"&"$A:$K"),8,FALSE) -> 1.2785075 | N6: =VLOOKUP(VLOOKUP($F6,'Data BI Summary'!$A:$P,MATCH($M$2,'Data BI Summary'!$2:$2,0),FALSE),INDIRECT("'"&$E6&"'!"&"$A:$K"),9,FALSE) -> 0.007351479024
A7: R2 (with DRP) | B7: Typical | C7: =VLOOKUP("R2",'Data Billing Quantities'!A:P,MATCH(B7&" kWh",'Data Billing Quantities'!$4:$4,0),FALSE) -> 750 | E7: BI_R2_Typical (with DRP) | F7: BI Template_Energy | G7: =VLOOKUP(VLOOKUP($F7,'Data BI Summary'!$A:$P,MATCH($G$2,'Data BI Summary'!$2:$2,0),FALSE),INDIRECT("'"&$E7&"'!"&"$A:$K"),8,FALSE) -> -4.74 | H7: =VLOOKUP(VLOOKUP($F7,'Data BI Summary'!$A:$P,MATCH($G$2,'Data BI Summary'!$2:$2,0),FALSE),INDIRECT("'"&$E7&"'!"&"$A:$K"),9,FALSE) -> -0.1116870877 | I7: =VLOOKUP(VLOOKUP($F7,'Data BI Summary'!$A:$P,MATCH($I$2,'Data BI Summary'!$2:$2,0),FALSE),INDIRECT("'"&$E7&"'!"&"$A:$K"),8,FALSE) -> -6.165 | J7: =VLOOKUP(VLOOKUP($F7,'Data BI Summary'!$A:$P,MATCH($I$2,'Data BI Summary'!$2:$2,0),FALSE),INDIRECT("'"&$E7&"'!"&"$A:$K"),9,FALSE) -> -0.1228033831 | K7: =VLOOKUP(VLOOKUP($F7,'Data BI Summary'!$A:$P,MATCH($K$2,'Data BI Summary'!$2:$2,0),FALSE),INDIRECT("'"&$E7&"'!"&"$A:$K"),8,FALSE) -> -5.750625 | L7: =VLOOKUP(VLOOKUP($F7,'Data BI Summary'!$A:$P,MATCH($K$2,'Data BI Summary'!$2:$2,0),FALSE),INDIRECT("'"&$E7&"'!"&"$A:$K"),9,FALSE) -> -0.0856911995 | M7: =VLOOKUP(VLOOKUP($F7,'Data BI Summary'!$A:$P,MATCH($M$2,'Data BI Summary'!$2:$2,0),FALSE),INDIRECT("'"&$E7&"'!"&"$A:$K"),8,FALSE) -> -5.146809375 | N7: =VLOOKUP(VLOOKUP($F7,'Data BI Summary'!$A:$P,MATCH($M$2,'Data BI Summary'!$2:$2,0),FALSE),INDIRECT("'"&$E7&"'!"&"$A:$K"),9,FALSE) -> -0.03423577971
A8: R2 (without DRP) | B8: Typical | C8: =VLOOKUP("R2",'Data Billing Quantities'!A:P,MATCH(B8&" kWh",'Data Billing Quantities'!$4:$4,0),FALSE) -> 750 | E8: BI_R2_Typical (without DRP) | F8: BI Template_Energy | G8: =VLOOKUP(VLOOKUP($F8,'Data BI Summary'!$A:$P,MATCH($G$2,'Data BI Summary'!$2:$2,0),FALSE),INDIRECT("'"&$E8&"'!"&"$A:$K"),8,FALSE) -> 4.63 | H8: =VLOOKUP(VLOOKUP($F8,'Data BI Summary'!$A:$P,MATCH($G$2,'Data BI Summary'!$2:$2,0),FALSE),INDIRECT("'"&$E8&"'!"&"$A:$K"),9,FALSE) -> 0.05027417341 | I8: =VLOOKUP(VLOOKUP($F8,'Data BI Summary'!$A:$P,MATCH($I$2,'Data BI Summary'!$2:$2,0),FALSE),INDIRECT("'"&$E8&"'!"&"$A:$K"),8,FALSE) -> 3.205 | J8: =VLOOKUP(VLOOKUP($F8,'Data BI Summary'!$A:$P,MATCH($I$2,'Data BI Summary'!$2:$2,0),FALSE),INDIRECT("'"&$E8&"'!"&"$A:$K"),9,FALSE) -> 0.03209583285 | K8: =VLOOKUP(VLOOKUP($F8,'Data BI Summary'!$A:$P,MATCH($K$2,'Data BI Summary'!$2:$2,0),FALSE),INDIRECT("'"&$E8&"'!"&"$A:$K"),8,FALSE) -> 3.619375 | L8: =VLOOKUP(VLOOKUP($F8,'Data BI Summary'!$A:$P,MATCH($K$2,'Data BI Summary'!$2:$2,0),FALSE),INDIRECT("'"&$E8&"'!"&"$A:$K"),9,FALSE) -> 0.03099743328 | M8: =VLOOKUP(VLOOKUP($F8,'Data BI Summary'!$A:$P,MATCH($M$2,'Data BI Summary'!$2:$2,0),FALSE),INDIRECT("'"&$E8&"'!"&"$A:$K"),8,FALSE) -> 3.239340625 | N8: =VLOOKUP(VLOOKUP($F8,'Data BI Summary'!$A:$P,MATCH($M$2,'Data BI Summary'!$2:$2,0),FALSE),INDIRECT("'"&$E8&"'!"&"$A:$K"),9,FALSE) -> 0.0166311547
A9: Seasonal-UR | B9: Average | C9: =VLOOKUP("Seasonal",'Data Billing Quantities'!A:P,MATCH(B9&" kWh",'Data Billing Quantities'!$4:$4,0),FALSE) -> 369 | E9: BI_Seas_UR_Avg | F9: BI Template_Energy | G9: =VLOOKUP(VLOOKUP($F9,'Data BI Summary'!$A:$P,MATCH($G$2,'Data BI Summary'!$2:$2,0),FALSE),INDIRECT("'"&$E9&"'!"&"$A:$K"),8,FALSE) -> 1.42 | H9: =VLOOKUP(VLOOKUP($F9,'Data BI Summary'!$A:$P,MATCH($G$2,'Data BI Summary'!$2:$2,0),FALSE),INDIRECT("'"&$E9&"'!"&"$A:$K"),9,FALSE) -> 0.03421686747 | I9: =VLOOKUP(VLOOKUP($F9,'Data BI Summary'!$A:$P,MATCH($I$2,'Data BI Summary'!$2:$2,0),FALSE),INDIRECT("'"&$E9&"'!"&"$A:$K"),8,FALSE) -> 0.7927 | J9: =VLOOKUP(VLOOKUP($F9,'Data BI Summary'!$A:$P,MATCH($I$2,'Data BI Summary'!$2:$2,0),FALSE),INDIRECT("'"&$E9&"'!"&"$A:$K"),9,FALSE) -> 0.01833390731 | K9: =VLOOKUP(VLOOKUP($F9,'Data BI Summary'!$A:$P,MATCH($K$2,'Data BI Summary'!$2:$2,0),FALSE),INDIRECT("'"&$E9&"'!"&"$A:$K"),8,FALSE) -> 1.0267198 | L9: =VLOOKUP(VLOOKUP($F9,'Data BI Summary'!$A:$P,MATCH($K$2,'Data BI Summary'!$2:$2,0),FALSE),INDIRECT("'"&$E9&"'!"&"$A:$K"),9,FALSE) -> 0.01959291578 | M9: =VLOOKUP(VLOOKUP($F9,'Data BI Summary'!$A:$P,MATCH($M$2,'Data BI Summary'!$2:$2,0),FALSE),INDIRECT("'"&$E9&"'!"&"$A:$K"),8,FALSE) -> 0.918914221 | N9: =VLOOKUP(VLOOKUP($F9,'Data BI Summary'!$A:$P,MATCH($M$2,'Data BI Summary'!$2:$2,0),FALSE),INDIRECT("'"&$E9&"'!"&"$A:$K"),9,FALSE) -> 0.01006117712
A10: Seasonal-R1 | B10: Average | C10: =VLOOKUP("Seasonal",'Data Billing Quantities'!A:P,MATCH(B10&" kWh",'Data Billing Quantities'!$4:$4,0),FALSE) -> 369 | E10: BI_Seas_R1_Avg | F10: BI Template_Energy | G10: =VLOOKUP(VLOOKUP($F10,'Data BI Summary'!$A:$P,MATCH($G$2,'Data BI Summary'!$2:$2,0),FALSE),INDIRECT("'"&$E10&"'!"&"$A:$K"),8,FALSE) -> 2.45 | H10: =VLOOKUP(VLOOKUP($F10,'Data BI Summary'!$A:$P,MATCH($G$2,'Data BI Summary'!$2:$2,0),FALSE),INDIRECT("'"&$E10&"'!"&"$A:$K"),9,FALSE) -> 0.03458498024 | I10: =VLOOKUP(VLOOKUP($F10,'Data BI Summary'!$A:$P,MATCH($I$2,'Data BI Summary'!$2:$2,0),FALSE),INDIRECT("'"&$E10&"'!"&"$A:$K"),8,FALSE) -> 1.7489 | J10: =VLOOKUP(VLOOKUP($F10,'Data BI Summary'!$A:$P,MATCH($I$2,'Data BI Summary'!$2:$2,0),FALSE),INDIRECT("'"&$E10&"'!"&"$A:$K"),9,FALSE) -> 0.02379204238 | K10: =VLOOKUP(VLOOKUP($F10,'Data BI Summary'!$A:$P,MATCH($K$2,'Data BI Summary'!$2:$2,0),FALSE),INDIRECT("'"&$E10&"'!"&"$A:$K"),8,FALSE) -> 1.947422 | L10: =VLOOKUP(VLOOKUP($F10,'Data BI Summary'!$A:$P,MATCH($K$2,'Data BI Summary'!$2:$2,0),FALSE),INDIRECT("'"&$E10&"'!"&"$A:$K"),9,FALSE) -> 0.02367895363 | M10: =VLOOKUP(VLOOKUP($F10,'Data BI Summary'!$A:$P,MATCH($M$2,'Data BI Summary'!$2:$2,0),FALSE),INDIRECT("'"&$E10&"'!"&"$A:$K"),8,FALSE) -> 1.74294269 | N10: =VLOOKUP(VLOOKUP($F10,'Data BI Summary'!$A:$P,MATCH($M$2,'Data BI Summary'!$2:$2,0),FALSE),INDIRECT("'"&$E10&"'!"&"$A:$K"),9,FALSE) -> 0.01476103789
A11: Seasonal-R2 | B11: Average | C11: =VLOOKUP("Seasonal",'Data Billing Quantities'!A:P,MATCH(B11&" kWh",'Data Billing Quantities'!$4:$4,0),FALSE) -> 369 | E11: BI_Seas_R2_Avg | F11: BI Template_Energy | G11: =VLOOKUP(VLOOKUP($F11,'Data BI Summary'!$A:$P,MATCH($G$2,'Data BI Summary'!$2:$2,0),FALSE),INDIRECT("'"&$E11&"'!"&"$A:$K"),8,FALSE) -> 7.3924 | H11: =VLOOKUP(VLOOKUP($F11,'Data BI Summary'!$A:$P,MATCH($G$2,'Data BI Summary'!$2:$2,0),FALSE),INDIRECT("'"&$E11&"'!"&"$A:$K"),9,FALSE) -> 0.08529866186 | I11: =VLOOKUP(VLOOKUP($F11,'Data BI Summary'!$A:$P,MATCH($I$2,'Data BI Summary'!$2:$2,0),FALSE),INDIRECT("'"&$E11&"'!"&"$A:$K"),8,FALSE) -> 6.6913 | J11: =VLOOKUP(VLOOKUP($F11,'Data BI Summary'!$A:$P,MATCH($I$2,'Data BI Summary'!$2:$2,0),FALSE),INDIRECT("'"&$E11&"'!"&"$A:$K"),9,FALSE) -> 0.07377620694 | K11: =VLOOKUP(VLOOKUP($F11,'Data BI Summary'!$A:$P,MATCH($K$2,'Data BI Summary'!$2:$2,0),FALSE),INDIRECT("'"&$E11&"'!"&"$A:$K"),8,FALSE) -> 6.8951725 | L11: =VLOOKUP(VLOOKUP($F11,'Data BI Summary'!$A:$P,MATCH($K$2,'Data BI Summary'!$2:$2,0),FALSE),INDIRECT("'"&$E11&"'!"&"$A:$K"),9,FALSE) -> 0.06963747277 | M11: =VLOOKUP(VLOOKUP($F11,'Data BI Summary'!$A:$P,MATCH($M$2,'Data BI Summary'!$2:$2,0),FALSE),INDIRECT("'"&$E11&"'!"&"$A:$K"),8,FALSE) -> 6.171179387 | N11: =VLOOKUP(VLOOKUP($F11,'Data BI Summary'!$A:$P,MATCH($M$2,'Data BI Summary'!$2:$2,0),FALSE),INDIRECT("'"&$E11&"'!"&"$A:$K"),9,FALSE) -> 0.04634892522
A12: GSe | B12: Typical | C12: =VLOOKUP(A12,'Data Billing Quantities'!A:P,MATCH(B12&" kWh",'Data Billing Quantities'!$4:$4,0),FALSE) -> 2000 | E12: BI_GSe_Typical | F12: BI Template_Energy | G12: =VLOOKUP(VLOOKUP($F12,'Data BI Summary'!$A:$P,MATCH($G$2,'Data BI Summary'!$2:$2,0),FALSE),INDIRECT("'"&$E12&"'!"&"$A:$K"),8,FALSE) -> 6.44 | H12: =VLOOKUP(VLOOKUP($F12,'Data BI Summary'!$A:$P,MATCH($G$2,'Data BI Summary'!$2:$2,0),FALSE),INDIRECT("'"&$E12&"'!"&"$A:$K"),9,FALSE) -> 0.03466465712 | I12: =VLOOKUP(VLOOKUP($F12,'Data BI Summary'!$A:$P,MATCH($I$2,'Data BI Summary'!$2:$2,0),FALSE),INDIRECT("'"&$E12&"'!"&"$A:$K"),8,FALSE) -> 2.64 | J12: =VLOOKUP(VLOOKUP($F12,'Data BI Summary'!$A:$P,MATCH($I$2,'Data BI Summary'!$2:$2,0),FALSE),INDIRECT("'"&$E12&"'!"&"$A:$K"),9,FALSE) -> 0.01296126389 | K12: =VLOOKUP(VLOOKUP($F12,'Data BI Summary'!$A:$P,MATCH($K$2,'Data BI Summary'!$2:$2,0),FALSE),INDIRECT("'"&$E12&"'!"&"$A:$K"),8,FALSE) -> 3.736 | L12: =VLOOKUP(VLOOKUP($F12,'Data BI Summary'!$A:$P,MATCH($K$2,'Data BI Summary'!$2:$2,0),FALSE),INDIRECT("'"&$E12&"'!"&"$A:$K"),9,FALSE) -> 0.0153795083 | M12: =VLOOKUP(VLOOKUP($F12,'Data BI Summary'!$A:$P,MATCH($M$2,'Data BI Summary'!$2:$2,0),FALSE),INDIRECT("'"&$E12&"'!"&"$A:$K"),8,FALSE) -> 3.34372 | N12: =VLOOKUP(VLOOKUP($F12,'Data BI Summary'!$A:$P,MATCH($M$2,'Data BI Summary'!$2:$2,0),FALSE),INDIRECT("'"&$E12&"'!"&"$A:$K"),9,FALSE) -> 0.007305969791
A13: UGe | B13: Typical | C13: =VLOOKUP(A13,'Data Billing Quantities'!A:P,MATCH(B13&" kWh",'Data Billing Quantities'!$4:$4,0),FALSE) -> 2000 | E13: BI_UGe_Typical | F13: BI Template_Energy | G13: =VLOOKUP(VLOOKUP($F13,'Data BI Summary'!$A:$P,MATCH($G$2,'Data BI Summary'!$2:$2,0),FALSE),INDIRECT("'"&$E13&"'!"&"$A:$K"),8,FALSE) -> 3.3 | H13: =VLOOKUP(VLOOKUP($F13,'Data BI Summary'!$A:$P,MATCH($G$2,'Data BI Summary'!$2:$2,0),FALSE),INDIRECT("'"&$E13&"'!"&"$A:$K"),9,FALSE) -> 0.03322928205 | I13: =VLOOKUP(VLOOKUP($F13,'Data BI Summary'!$A:$P,MATCH($I$2,'Data BI Summary'!$2:$2,0),FALSE),INDIRECT("'"&$E13&"'!"&"$A:$K"),8,FALSE) -> -0.5 | J13: =VLOOKUP(VLOOKUP($F13,'Data BI Summary'!$A:$P,MATCH($I$2,'Data BI Summary'!$2:$2,0),FALSE),INDIRECT("'"&$E13&"'!"&"$A:$K"),9,FALSE) -> -0.004553000938 | K13: =VLOOKUP(VLOOKUP($F13,'Data BI Summary'!$A:$P,MATCH($K$2,'Data BI Summary'!$2:$2,0),FALSE),INDIRECT("'"&$E13&"'!"&"$A:$K"),8,FALSE) -> 0.567 | L13: =VLOOKUP(VLOOKUP($F13,'Data BI Summary'!$A:$P,MATCH($K$2,'Data BI Summary'!$2:$2,0),FALSE),INDIRECT("'"&$E13&"'!"&"$A:$K"),9,FALSE) -> 0.003765513317 | M13: =VLOOKUP(VLOOKUP($F13,'Data BI Summary'!$A:$P,MATCH($M$2,'Data BI Summary'!$2:$2,0),FALSE),INDIRECT("'"&$E13&"'!"&"$A:$K"),8,FALSE) -> 0.507465 | N13: =VLOOKUP(VLOOKUP($F13,'Data BI Summary'!$A:$P,MATCH($M$2,'Data BI Summary'!$2:$2,0),FALSE),INDIRECT("'"&$E13&"'!"&"$A:$K"),9,FALSE) -> 0.001354285087
A14: GSd | B14: Average | C14: =VLOOKUP(A14,'Data Billing Quantities'!A:P,MATCH(B14&" kWh",'Data Billing Quantities'!$4:$4,0),FALSE) -> 34334 | D14: =VLOOKUP(A14,'Data Billing Quantities'!A:P,MATCH(B14&" kW",'Data Billing Quantities'!$4:$4,0),FALSE) -> 110 | E14: BI_GSd_Avg | F14: BI Template_Demand | G14: =VLOOKUP(VLOOKUP($F14,'Data BI Summary'!$A:$P,MATCH($G$2,'Data BI Summary'!$2:$2,0),FALSE),INDIRECT("'"&$E14&"'!"&"$A:$K"),8,FALSE) -> 83.261 | H14: =VLOOKUP(VLOOKUP($F14,'Data BI Summary'!$A:$P,MATCH($G$2,'Data BI Summary'!$2:$2,0),FALSE),INDIRECT("'"&$E14&"'!"&"$A:$K"),9,FALSE) -> 0.03396194399 | I14: =VLOOKUP(VLOOKUP($F14,'Data BI Summary'!$A:$P,MATCH($I$2,'Data BI Summary'!$2:$2,0),FALSE),INDIRECT("'"&$E14&"'!"&"$A:$K"),8,FALSE) -> 458.059 | J14: =VLOOKUP(VLOOKUP($F14,'Data BI Summary'!$A:$P,MATCH($I$2,'Data BI Summary'!$2:$2,0),FALSE),INDIRECT("'"&$E14&"'!"&"$A:$K"),9,FALSE) -> 0.1989739479 | K14: =VLOOKUP(VLOOKUP($F14,'Data BI Summary'!$A:$P,MATCH($K$2,'Data BI Summary'!$2:$2,0),FALSE),INDIRECT("'"&$E14&"'!"&"$A:$K"),8,FALSE) -> 474.526 | L14: =VLOOKUP(VLOOKUP($F14,'Data BI Summary'!$A:$P,MATCH($K$2,'Data BI Summary'!$2:$2,0),FALSE),INDIRECT("'"&$E14&"'!"&"$A:$K"),9,FALSE) -> 0.1616171098 | M14: =VLOOKUP(VLOOKUP($F14,'Data BI Summary'!$A:$P,MATCH($M$2,'Data BI Summary'!$2:$2,0),FALSE),INDIRECT("'"&$E14&"'!"&"$A:$K"),8,FALSE) -> 536.21438 | N14: =VLOOKUP(VLOOKUP($F14,'Data BI Summary'!$A:$P,MATCH($M$2,'Data BI Summary'!$2:$2,0),FALSE),INDIRECT("'"&$E14&"'!"&"$A:$K"),9,FALSE) -> 0.05290793074
A15: UGd | B15: Average | C15: =VLOOKUP(A15,'Data Billing Quantities'!A:P,MATCH(B15&" kWh",'Data Billing Quantities'!$4:$4,0),FALSE) -> 42592 | D15: =VLOOKUP(A15,'Data Billing Quantities'!A:P,MATCH(B15&" kW",'Data Billing Quantities'!$4:$4,0),FALSE) -> 111 | E15: BI_UGd_Avg | F15: BI Template_Demand | G15: =VLOOKUP(VLOOKUP($F15,'Data BI Summary'!$A:$P,MATCH($G$2,'Data BI Summary'!$2:$2,0),FALSE),INDIRECT("'"&$E15&"'!"&"$A:$K"),8,FALSE) -> 49.9465 | H15: =VLOOKUP(VLOOKUP($F15,'Data BI Summary'!$A:$P,MATCH($G$2,'Data BI Summary'!$2:$2,0),FALSE),INDIRECT("'"&$E15&"'!"&"$A:$K"),9,FALSE) -> 0.03391228155 | I15: =VLOOKUP(VLOOKUP($F15,'Data BI Summary'!$A:$P,MATCH($I$2,'Data BI Summary'!$2:$2,0),FALSE),INDIRECT("'"&$E15&"'!"&"$A:$K"),8,FALSE) -> 515.8082 | J15: =VLOOKUP(VLOOKUP($F15,'Data BI Summary'!$A:$P,MATCH($I$2,'Data BI Summary'!$2:$2,0),FALSE),INDIRECT("'"&$E15&"'!"&"$A:$K"),9,FALSE) -> 0.4008675949 | K15: =VLOOKUP(VLOOKUP($F15,'Data BI Summary'!$A:$P,MATCH($K$2,'Data BI Summary'!$2:$2,0),FALSE),INDIRECT("'"&$E15&"'!"&"$A:$K"),8,FALSE) -> 536.9204 | L15: =VLOOKUP(VLOOKUP($F15,'Data BI Summary'!$A:$P,MATCH($K$2,'Data BI Summary'!$2:$2,0),FALSE),INDIRECT("'"&$E15&"'!"&"$A:$K"),9,FALSE) -> 0.2558692454 | M15: =VLOOKUP(VLOOKUP($F15,'Data BI Summary'!$A:$P,MATCH($M$2,'Data BI Summary'!$2:$2,0),FALSE),INDIRECT("'"&$E15&"'!"&"$A:$K"),8,FALSE) -> 606.720052 | N15: =VLOOKUP(VLOOKUP($F15,'Data BI Summary'!$A:$P,MATCH($M$2,'Data BI Summary'!$2:$2,0),FALSE),INDIRECT("'"&$E15&"'!"&"$A:$K"),9,FALSE) -> 0.05649079712
A16: St Lgt | B16: Average | C16: =VLOOKUP(A16,'Data Billing Quantities'!A:P,MATCH(B16&" kWh",'Data Billing Quantities'!$4:$4,0),FALSE) -> 1274 | E16: BI_StLgt_Avg | F16: BI Template_Unmtr | G16: =VLOOKUP(VLOOKUP($F16,'Data BI Summary'!$A:$P,MATCH($G$2,'Data BI Summary'!$2:$2,0),FALSE),INDIRECT("'"&$E16&"'!"&"$A:$K"),8,FALSE) -> 5.4128 | H16: =VLOOKUP(VLOOKUP($F16,'Data BI Summary'!$A:$P,MATCH($G$2,'Data BI Summary'!$2:$2,0),FALSE),INDIRECT("'"&$E16&"'!"&"$A:$K"),9,FALSE) -> 0.03380055127 | I16: =VLOOKUP(VLOOKUP($F16,'Data BI Summary'!$A:$P,MATCH($I$2,'Data BI Summary'!$2:$2,0),FALSE),INDIRECT("'"&$E16&"'!"&"$A:$K"),8,FALSE) -> 2.8648 | J16: =VLOOKUP(VLOOKUP($F16,'Data BI Summary'!$A:$P,MATCH($I$2,'Data BI Summary'!$2:$2,0),FALSE),INDIRECT("'"&$E16&"'!"&"$A:$K"),9,FALSE) -> 0.01662450421 | K16: =VLOOKUP(VLOOKUP($F16,'Data BI Summary'!$A:$P,MATCH($K$2,'Data BI Summary'!$2:$2,0),FALSE),INDIRECT("'"&$E16&"'!"&"$A:$K"),8,FALSE) -> 3.2821624 | L16: =VLOOKUP(VLOOKUP($F16,'Data BI Summary'!$A:$P,MATCH($K$2,'Data BI Summary'!$2:$2,0),FALSE),INDIRECT("'"&$E16&"'!"&"$A:$K"),9,FALSE) -> 0.01722479005 | M16: =VLOOKUP(VLOOKUP($F16,'Data BI Summary'!$A:$P,MATCH($M$2,'Data BI Summary'!$2:$2,0),FALSE),INDIRECT("'"&$E16&"'!"&"$A:$K"),8,FALSE) -> 2.937535348 | N16: =VLOOKUP(VLOOKUP($F16,'Data BI Summary'!$A:$P,MATCH($M$2,'Data BI Summary'!$2:$2,0),FALSE),INDIRECT("'"&$E16&"'!"&"$A:$K"),9,FALSE) -> 0.009027991222
A17: Sen Lgt | B17: Average | C17: =VLOOKUP(A17,'Data Billing Quantities'!A:P,MATCH(B17&" kWh",'Data Billing Quantities'!$4:$4,0),FALSE) -> 49 | E17: BI_SenLgt_Avg | F17: BI Template_Unmtr | G17: =VLOOKUP(VLOOKUP($F17,'Data BI Summary'!$A:$P,MATCH($G$2,'Data BI Summary'!$2:$2,0),FALSE),INDIRECT("'"&$E17&"'!"&"$A:$K"),8,FALSE) -> 0.4213 | H17: =VLOOKUP(VLOOKUP($F17,'Data BI Summary'!$A:$P,MATCH($G$2,'Data BI Summary'!$2:$2,0),FALSE),INDIRECT("'"&$E17&"'!"&"$A:$K"),9,FALSE) -> 0.03327698967 | I17: =VLOOKUP(VLOOKUP($F17,'Data BI Summary'!$A:$P,MATCH($I$2,'Data BI Summary'!$2:$2,0),FALSE),INDIRECT("'"&$E17&"'!"&"$A:$K"),8,FALSE) -> 0.3184 | J17: =VLOOKUP(VLOOKUP($F17,'Data BI Summary'!$A:$P,MATCH($I$2,'Data BI Summary'!$2:$2,0),FALSE),INDIRECT("'"&$E17&"'!"&"$A:$K"),9,FALSE) -> 0.02443617967 | K17: =VLOOKUP(VLOOKUP($F17,'Data BI Summary'!$A:$P,MATCH($K$2,'Data BI Summary'!$2:$2,0),FALSE),INDIRECT("'"&$E17&"'!"&"$A:$K"),8,FALSE) -> 0.3344524 | L17: =VLOOKUP(VLOOKUP($F17,'Data BI Summary'!$A:$P,MATCH($K$2,'Data BI Summary'!$2:$2,0),FALSE),INDIRECT("'"&$E17&"'!"&"$A:$K"),9,FALSE) -> 0.02435779703 | M17: =VLOOKUP(VLOOKUP($F17,'Data BI Summary'!$A:$P,MATCH($M$2,'Data BI Summary'!$2:$2,0),FALSE),INDIRECT("'"&$E17&"'!"&"$A:$K"),8,FALSE) -> 0.299334898 | N17: =VLOOKUP(VLOOKUP($F17,'Data BI Summary'!$A:$P,MATCH($M$2,'Data BI Summary'!$2:$2,0),FALSE),INDIRECT("'"&$E17&"'!"&"$A:$K"),9,FALSE) -> 0.01657192913
A18: USL | B18: Average | C18: =VLOOKUP(A18,'Data Billing Quantities'!A:P,MATCH(B18&" kWh",'Data Billing Quantities'!$4:$4,0),FALSE) -> 477 | E18: BI_USL_Avg | F18: BI Template_Unmtr | G18: =VLOOKUP(VLOOKUP($F18,'Data BI Summary'!$A:$P,MATCH($G$2,'Data BI Summary'!$2:$2,0),FALSE),INDIRECT("'"&$E18&"'!"&"$A:$K"),8,FALSE) -> 1.8619 | H18: =VLOOKUP(VLOOKUP($F18,'Data BI Summary'!$A:$P,MATCH($G$2,'Data BI Summary'!$2:$2,0),FALSE),INDIRECT("'"&$E18&"'!"&"$A:$K"),9,FALSE) -> 0.03433858706 | I18: =VLOOKUP(VLOOKUP($F18,'Data BI Summary'!$A:$P,MATCH($I$2,'Data BI Summary'!$2:$2,0),FALSE),INDIRECT("'"&$E18&"'!"&"$A:$K"),8,FALSE) -> 1.0033 | J18: =VLOOKUP(VLOOKUP($F18,'Data BI Summary'!$A:$P,MATCH($I$2,'Data BI Summary'!$2:$2,0),FALSE),INDIRECT("'"&$E18&"'!"&"$A:$K"),9,FALSE) -> 0.01735261348 | K18: =VLOOKUP(VLOOKUP($F18,'Data BI Summary'!$A:$P,MATCH($K$2,'Data BI Summary'!$2:$2,0),FALSE),INDIRECT("'"&$E18&"'!"&"$A:$K"),8,FALSE) -> 1.2116536 | L18: =VLOOKUP(VLOOKUP($F18,'Data BI Summary'!$A:$P,MATCH($K$2,'Data BI Summary'!$2:$2,0),FALSE),INDIRECT("'"&$E18&"'!"&"$A:$K"),9,FALSE) -> 0.01850548552 | M18: =VLOOKUP(VLOOKUP($F18,'Data BI Summary'!$A:$P,MATCH($M$2,'Data BI Summary'!$2:$2,0),FALSE),INDIRECT("'"&$E18&"'!"&"$A:$K"),8,FALSE) -> 1.084429972 | N18: =VLOOKUP(VLOOKUP($F18,'Data BI Summary'!$A:$P,MATCH($M$2,'Data BI Summary'!$2:$2,0),FALSE),INDIRECT("'"&$E18&"'!"&"$A:$K"),9,FALSE) -> 0.009609382799
A19: DGen | B19: Average | C19: =VLOOKUP(A19,'Data Billing Quantities'!A:P,MATCH(B19&" kWh",'Data Billing Quantities'!$4:$4,0),FALSE) -> 1709 | D19: =VLOOKUP(A19,'Data Billing Quantities'!A:P,MATCH(B19&" kW",'Data Billing Quantities'!$4:$4,0),FALSE) -> 12 | E19: BI_Dgen_Avg | F19: BI Template_Demand | G19: =VLOOKUP(VLOOKUP($F19,'Data BI Summary'!$A:$P,MATCH($G$2,'Data BI Summary'!$2:$2,0),FALSE),INDIRECT("'"&$E19&"'!"&"$A:$K"),8,FALSE) -> 13.276 | H19: =VLOOKUP(VLOOKUP($F19,'Data BI Summary'!$A:$P,MATCH($G$2,'Data BI Summary'!$2:$2,0),FALSE),INDIRECT("'"&$E19&"'!"&"$A:$K"),9,FALSE) -> 0.03612422641 | I19: =VLOOKUP(VLOOKUP($F19,'Data BI Summary'!$A:$P,MATCH($I$2,'Data BI Summary'!$2:$2,0),FALSE),INDIRECT("'"&$E19&"'!"&"$A:$K"),8,FALSE) -> 31.7022 | J19: =VLOOKUP(VLOOKUP($F19,'Data BI Summary'!$A:$P,MATCH($I$2,'Data BI Summary'!$2:$2,0),FALSE),INDIRECT("'"&$E19&"'!"&"$A:$K"),9,FALSE) -> 0.08808537631 | K19: =VLOOKUP(VLOOKUP($F19,'Data BI Summary'!$A:$P,MATCH($K$2,'Data BI Summary'!$2:$2,0),FALSE),INDIRECT("'"&$E19&"'!"&"$A:$K"),8,FALSE) -> 32.5986 | L19: =VLOOKUP(VLOOKUP($F19,'Data BI Summary'!$A:$P,MATCH($K$2,'Data BI Summary'!$2:$2,0),FALSE),INDIRECT("'"&$E19&"'!"&"$A:$K"),9,FALSE) -> 0.08267866015 | M19: =VLOOKUP(VLOOKUP($F19,'Data BI Summary'!$A:$P,MATCH($M$2,'Data BI Summary'!$2:$2,0),FALSE),INDIRECT("'"&$E19&"'!"&"$A:$K"),8,FALSE) -> 29.175747 | N19: =VLOOKUP(VLOOKUP($F19,'Data BI Summary'!$A:$P,MATCH($M$2,'Data BI Summary'!$2:$2,0),FALSE),INDIRECT("'"&$E19&"'!"&"$A:$K"),9,FALSE) -> 0.0469176423
A20: ST | B20: Average | C20: =VLOOKUP(A20,'Data Billing Quantities'!A:P,MATCH(B20&" kWh",'Data Billing Quantities'!$4:$4,0),FALSE) -> 1373443 | D20: =VLOOKUP(A20,'Data Billing Quantities'!A:P,MATCH(B20&" kW",'Data Billing Quantities'!$4:$4,0),FALSE) -> 2808 | E20: BI_ST_Avg | F20: BI Template_Demand | G20: =VLOOKUP(VLOOKUP($F20,'Data BI Summary'!$A:$P,MATCH($G$2,'Data BI Summary'!$2:$2,0),FALSE),INDIRECT("'"&$E20&"'!"&"$A:$K"),8,FALSE) -> 207.3988 | H20: =VLOOKUP(VLOOKUP($F20,'Data BI Summary'!$A:$P,MATCH($G$2,'Data BI Summary'!$2:$2,0),FALSE),INDIRECT("'"&$E20&"'!"&"$A:$K"),9,FALSE) -> 0.0344389896 | I20: =VLOOKUP(VLOOKUP($F20,'Data BI Summary'!$A:$P,MATCH($I$2,'Data BI Summary'!$2:$2,0),FALSE),INDIRECT("'"&$E20&"'!"&"$A:$K"),8,FALSE) -> 16563.809 | J20: =VLOOKUP(VLOOKUP($F20,'Data BI Summary'!$A:$P,MATCH($I$2,'Data BI Summary'!$2:$2,0),FALSE),INDIRECT("'"&$E20&"'!"&"$A:$K"),9,FALSE) -> 1146.577947 | K20: =VLOOKUP(VLOOKUP($F20,'Data BI Summary'!$A:$P,MATCH($K$2,'Data BI Summary'!$2:$2,0),FALSE),INDIRECT("'"&$E20&"'!"&"$A:$K"),8,FALSE) -> 17280.9722 | L20: =VLOOKUP(VLOOKUP($F20,'Data BI Summary'!$A:$P,MATCH($K$2,'Data BI Summary'!$2:$2,0),FALSE),INDIRECT("'"&$E20&"'!"&"$A:$K"),9,FALSE) -> 0.6264666448 | M20: =VLOOKUP(VLOOKUP($F20,'Data BI Summary'!$A:$P,MATCH($M$2,'Data BI Summary'!$2:$2,0),FALSE),INDIRECT("'"&$E20&"'!"&"$A:$K"),8,FALSE) -> 19527.49859 | N20: =VLOOKUP(VLOOKUP($F20,'Data BI Summary'!$A:$P,MATCH($M$2,'Data BI Summary'!$2:$2,0),FALSE),INDIRECT("'"&$E20&"'!"&"$A:$K"),9,FALSE) -> 0.0657670671

Sheet Bill Impact Summary_Acq
A1: Rate Class | B1: Consumption Level | C1: Monthly Consumption (kWh) | D1: Monthly Peak (kW) | E1: BI Worksheet | F1: Template | G1: Sub-Total | M1: Total
G2: A | I2: B | K2: C | M2: Total Bill
G3: $ | H3: % | I3: $ | J3: % | K3: $ | L3: % | M3: $ | N3: %
A4: WHSI to HONI
A5: AUR-WHSI | B5: Typical | C5: =VLOOKUP(A$5,'Data Billing Quantities'!A:P,MATCH($B5&" kWh",'Data Billing Quantities'!$4:$4,0),FALSE) -> 750 | E5: BI_WHSI_AUR_Typical | F5: BI Template_Energy | G5: =VLOOKUP(VLOOKUP($F5,'Data BI Summary'!$A:$P,MATCH($G$2,'Data BI Summary'!$2:$2,0),FALSE),INDIRECT("'"&$E5&"'!"&"$A:$K"),8,FALSE) -> 1.48 | H5: =VLOOKUP(VLOOKUP($F5,'Data BI Summary'!$A:$P,MATCH($G$2,'Data BI Summary'!$2:$2,0),FALSE),INDIRECT("'"&$E5&"'!"&"$A:$K"),9,FALSE) -> 0.04358068316 | I5: =VLOOKUP(VLOOKUP($F5,'Data BI Summary'!$A:$P,MATCH($I$2,'Data BI Summary'!$2:$2,0),FALSE),INDIRECT("'"&$E5&"'!"&"$A:$K"),8,FALSE) -> 0.205 | J5: =VLOOKUP(VLOOKUP($F5,'Data BI Summary'!$A:$P,MATCH($I$2,'Data BI Summary'!$2:$2,0),FALSE),INDIRECT("'"&$E5&"'!"&"$A:$K"),9,FALSE) -> 0.00576368552 | K5: =VLOOKUP(VLOOKUP($F5,'Data BI Summary'!$A:$P,MATCH($K$2,'Data BI Summary'!$2:$2,0),FALSE),INDIRECT("'"&$E5&"'!"&"$A:$K"),8,FALSE) -> 0.752575 | L5: =VLOOKUP(VLOOKUP($F5,'Data BI Summary'!$A:$P,MATCH($K$2,'Data BI Summary'!$2:$2,0),FALSE),INDIRECT("'"&$E5&"'!"&"$A:$K"),9,FALSE) -> 0.01380922996 | M5: =VLOOKUP(VLOOKUP($F5,'Data BI Summary'!$A:$P,MATCH($M$2,'Data BI Summary'!$2:$2,0),FALSE),INDIRECT("'"&$E5&"'!"&"$A:$K"),8,FALSE) -> 0.673554625 | N5: =VLOOKUP(VLOOKUP($F5,'Data BI Summary'!$A:$P,MATCH($M$2,'Data BI Summary'!$2:$2,0),FALSE),INDIRECT("'"&$E5&"'!"&"$A:$K"),9,FALSE) -> 0.004852771901
A6: AUGe-WHSI | B6: Typical | C6: =VLOOKUP(A$6,'Data Billing Quantities'!A:P,MATCH($B6&" kWh",'Data Billing Quantities'!$4:$4,0),FALSE) -> 2000 | E6: BI_WHSI_AUGe_Typical | F6: BI Template_Energy | G6: =VLOOKUP(VLOOKUP($F6,'Data BI Summary'!$A:$P,MATCH($G$2,'Data BI Summary'!$2:$2,0),FALSE),INDIRECT("'"&$E6&"'!"&"$A:$K"),8,FALSE) -> 2.31 | H6: =VLOOKUP(VLOOKUP($F6,'Data BI Summary'!$A:$P,MATCH($G$2,'Data BI Summary'!$2:$2,0),FALSE),INDIRECT("'"&$E6&"'!"&"$A:$K"),9,FALSE) -> 0.03789370079 | I6: =VLOOKUP(VLOOKUP($F6,'Data BI Summary'!$A:$P,MATCH($I$2,'Data BI Summary'!$2:$2,0),FALSE),INDIRECT("'"&$E6&"'!"&"$A:$K"),8,FALSE) -> -1.49 | J6: =VLOOKUP(VLOOKUP($F6,'Data BI Summary'!$A:$P,MATCH($I$2,'Data BI Summary'!$2:$2,0),FALSE),INDIRECT("'"&$E6&"'!"&"$A:$K"),9,FALSE) -> -0.02294188221 | K6: =VLOOKUP(VLOOKUP($F6,'Data BI Summary'!$A:$P,MATCH($K$2,'Data BI Summary'!$2:$2,0),FALSE),INDIRECT("'"&$E6&"'!"&"$A:$K"),8,FALSE) -> -0.447 | L6: =VLOOKUP(VLOOKUP($F6,'Data BI Summary'!$A:$P,MATCH($K$2,'Data BI Summary'!$2:$2,0),FALSE),INDIRECT("'"&$E6&"'!"&"$A:$K"),9,FALSE) -> -0.004265701886 | M6: =VLOOKUP(VLOOKUP($F6,'Data BI Summary'!$A:$P,MATCH($M$2,'Data BI Summary'!$2:$2,0),FALSE),INDIRECT("'"&$E6&"'!"&"$A:$K"),8,FALSE) -> -0.400065 | N6: =VLOOKUP(VLOOKUP($F6,'Data BI Summary'!$A:$P,MATCH($M$2,'Data BI Summary'!$2:$2,0),FALSE),INDIRECT("'"&$E6&"'!"&"$A:$K"),9,FALSE) -> -0.001199693007
A7: AUGd-WHSI | B7: Average | C7: =VLOOKUP(A7,'Data Billing Quantities'!A:P,MATCH($B7&" kWh",'Data Billing Quantities'!$4:$4,0),FALSE) -> 47636 | D7: =VLOOKUP(A7,'Data Billing Quantities'!A:P,MATCH(B7&" kW",'Data Billing Quantities'!$4:$4,0),FALSE) -> 134 | E7: BI_WHSI_AUGd_Avg | F7: BI Template_Demand | G7: =VLOOKUP(VLOOKUP($F7,'Data BI Summary'!$A:$P,MATCH($G$2,'Data BI Summary'!$2:$2,0),FALSE),INDIRECT("'"&$E7&"'!"&"$A:$K"),8,FALSE) -> 22.012 | H7: =VLOOKUP(VLOOKUP($F7,'Data BI Summary'!$A:$P,MATCH($G$2,'Data BI Summary'!$2:$2,0),FALSE),INDIRECT("'"&$E7&"'!"&"$A:$K"),9,FALSE) -> 0.03878322307 | I7: =VLOOKUP(VLOOKUP($F7,'Data BI Summary'!$A:$P,MATCH($I$2,'Data BI Summary'!$2:$2,0),FALSE),INDIRECT("'"&$E7&"'!"&"$A:$K"),8,FALSE) -> 517.8526 | J7: =VLOOKUP(VLOOKUP($F7,'Data BI Summary'!$A:$P,MATCH($I$2,'Data BI Summary'!$2:$2,0),FALSE),INDIRECT("'"&$E7&"'!"&"$A:$K"),9,FALSE) -> 1.416831053 | K7: =VLOOKUP(VLOOKUP($F7,'Data BI Summary'!$A:$P,MATCH($K$2,'Data BI Summary'!$2:$2,0),FALSE),INDIRECT("'"&$E7&"'!"&"$A:$K"),8,FALSE) -> 540.9006 | L7: =VLOOKUP(VLOOKUP($F7,'Data BI Summary'!$A:$P,MATCH($K$2,'Data BI Summary'!$2:$2,0),FALSE),INDIRECT("'"&$E7&"'!"&"$A:$K"),9,FALSE) -> 0.4318566975 | M7: =VLOOKUP(VLOOKUP($F7,'Data BI Summary'!$A:$P,MATCH($M$2,'Data BI Summary'!$2:$2,0),FALSE),INDIRECT("'"&$E7&"'!"&"$A:$K"),8,FALSE) -> 611.217678 | N7: =VLOOKUP(VLOOKUP($F7,'Data BI Summary'!$A:$P,MATCH($M$2,'Data BI Summary'!$2:$2,0),FALSE),INDIRECT("'"&$E7&"'!"&"$A:$K"),9,FALSE) -> 0.05753286696
A8: St Lgt-WHSI | B8: Average | C8: =VLOOKUP(A8,'Data Billing Quantities'!A:P,MATCH($B8&" kWh",'Data Billing Quantities'!$4:$4,0),FALSE) -> 37079 | D8: =VLOOKUP(A$8,'Data Billing Quantities'!A:P,MATCH(B8&" kW",'Data Billing Quantities'!$4:$4,0),FALSE) -> 104 | E8: BI_WHSI_StLgt_Avg | F8: BI Template_Unmtr | G8: =VLOOKUP(VLOOKUP($F8,'Data BI Summary'!$A:$P,MATCH($G$2,'Data BI Summary'!$2:$2,0),FALSE),INDIRECT("'"&$E8&"'!"&"$A:$K"),8,FALSE) -> 117.5549 | H8: =VLOOKUP(VLOOKUP($F8,'Data BI Summary'!$A:$P,MATCH($G$2,'Data BI Summary'!$2:$2,0),FALSE),INDIRECT("'"&$E8&"'!"&"$A:$K"),9,FALSE) -> 0.02592533488 | I8: =VLOOKUP(VLOOKUP($F8,'Data BI Summary'!$A:$P,MATCH($I$2,'Data BI Summary'!$2:$2,0),FALSE),INDIRECT("'"&$E8&"'!"&"$A:$K"),8,FALSE) -> 39.689 | J8: =VLOOKUP(VLOOKUP($F8,'Data BI Summary'!$A:$P,MATCH($I$2,'Data BI Summary'!$2:$2,0),FALSE),INDIRECT("'"&$E8&"'!"&"$A:$K"),9,FALSE) -> 0.009003253684 | K8: =VLOOKUP(VLOOKUP($F8,'Data BI Summary'!$A:$P,MATCH($K$2,'Data BI Summary'!$2:$2,0),FALSE),INDIRECT("'"&$E8&"'!"&"$A:$K"),8,FALSE) -> 51.8360804 | L8: =VLOOKUP(VLOOKUP($F8,'Data BI Summary'!$A:$P,MATCH($K$2,'Data BI Summary'!$2:$2,0),FALSE),INDIRECT("'"&$E8&"'!"&"$A:$K"),9,FALSE) -> 0.01049585812 | M8: =VLOOKUP(VLOOKUP($F8,'Data BI Summary'!$A:$P,MATCH($M$2,'Data BI Summary'!$2:$2,0),FALSE),INDIRECT("'"&$E8&"'!"&"$A:$K"),8,FALSE) -> 58.57477085 | N8: =VLOOKUP(VLOOKUP($F8,'Data BI Summary'!$A:$P,MATCH($M$2,'Data BI Summary'!$2:$2,0),FALSE),INDIRECT("'"&$E8&"'!"&"$A:$K"),9,FALSE) -> 0.004749056381
A9: USL-WHSI | B9: Average | C9: =VLOOKUP(A9,'Data Billing Quantities'!A:P,MATCH($B9&" kWh",'Data Billing Quantities'!$4:$4,0),FALSE) -> 1349 | E9: BI_WHSI_USL_Avg | F9: BI Template_Unmtr | G9: =VLOOKUP(VLOOKUP($F9,'Data BI Summary'!$A:$P,MATCH($G$2,'Data BI Summary'!$2:$2,0),FALSE),INDIRECT("'"&$E9&"'!"&"$A:$K"),8,FALSE) -> 5.9603 | H9: =VLOOKUP(VLOOKUP($F9,'Data BI Summary'!$A:$P,MATCH($G$2,'Data BI Summary'!$2:$2,0),FALSE),INDIRECT("'"&$E9&"'!"&"$A:$K"),9,FALSE) -> 0.07151221526 | I9: =VLOOKUP(VLOOKUP($F9,'Data BI Summary'!$A:$P,MATCH($I$2,'Data BI Summary'!$2:$2,0),FALSE),INDIRECT("'"&$E9&"'!"&"$A:$K"),8,FALSE) -> 3.8019 | J9: =VLOOKUP(VLOOKUP($F9,'Data BI Summary'!$A:$P,MATCH($I$2,'Data BI Summary'!$2:$2,0),FALSE),INDIRECT("'"&$E9&"'!"&"$A:$K"),9,FALSE) -> 0.03961194031 | K9: =VLOOKUP(VLOOKUP($F9,'Data BI Summary'!$A:$P,MATCH($K$2,'Data BI Summary'!$2:$2,0),FALSE),INDIRECT("'"&$E9&"'!"&"$A:$K"),8,FALSE) -> 4.3911432 | L9: =VLOOKUP(VLOOKUP($F9,'Data BI Summary'!$A:$P,MATCH($K$2,'Data BI Summary'!$2:$2,0),FALSE),INDIRECT("'"&$E9&"'!"&"$A:$K"),9,FALSE) -> 0.03732907535 | M9: =VLOOKUP(VLOOKUP($F9,'Data BI Summary'!$A:$P,MATCH($M$2,'Data BI Summary'!$2:$2,0),FALSE),INDIRECT("'"&$E9&"'!"&"$A:$K"),8,FALSE) -> 3.930073164 | N9: =VLOOKUP(VLOOKUP($F9,'Data BI Summary'!$A:$P,MATCH($M$2,'Data BI Summary'!$2:$2,0),FALSE),INDIRECT("'"&$E9&"'!"&"$A:$K"),9,FALSE) -> 0.01455081057
A10: ST-WHSI | B10: Average | C10: =VLOOKUP(A10,'Data Billing Quantities'!A:P,MATCH($B10&" kWh",'Data Billing Quantities'!$4:$4,0),FALSE) -> 895853 | D10: =VLOOKUP(A$10,'Data Billing Quantities'!A:P,MATCH(B10&" kW",'Data Billing Quantities'!$4:$4,0),FALSE) -> 3301 | E10: BI_WHSI_ST_Avg | F10: BI Template_Demand | G10: =VLOOKUP(VLOOKUP($F10,'Data BI Summary'!$A:$P,MATCH($G$2,'Data BI Summary'!$2:$2,0),FALSE),INDIRECT("'"&$E10&"'!"&"$A:$K"),8,FALSE) -> 352.1752 | H10: =VLOOKUP(VLOOKUP($F10,'Data BI Summary'!$A:$P,MATCH($G$2,'Data BI Summary'!$2:$2,0),FALSE),INDIRECT("'"&$E10&"'!"&"$A:$K"),9,FALSE) -> 0.05224627477 | I10: =VLOOKUP(VLOOKUP($F10,'Data BI Summary'!$A:$P,MATCH($I$2,'Data BI Summary'!$2:$2,0),FALSE),INDIRECT("'"&$E10&"'!"&"$A:$K"),8,FALSE) -> 10145.4129 | J10: =VLOOKUP(VLOOKUP($F10,'Data BI Summary'!$A:$P,MATCH($I$2,'Data BI Summary'!$2:$2,0),FALSE),INDIRECT("'"&$E10&"'!"&"$A:$K"),9,FALSE) -> 26.52699289 | K10: =VLOOKUP(VLOOKUP($F10,'Data BI Summary'!$A:$P,MATCH($K$2,'Data BI Summary'!$2:$2,0),FALSE),INDIRECT("'"&$E10&"'!"&"$A:$K"),8,FALSE) -> 10988.4883 | L10: =VLOOKUP(VLOOKUP($F10,'Data BI Summary'!$A:$P,MATCH($K$2,'Data BI Summary'!$2:$2,0),FALSE),INDIRECT("'"&$E10&"'!"&"$A:$K"),9,FALSE) -> 0.3347360256 | M10: =VLOOKUP(VLOOKUP($F10,'Data BI Summary'!$A:$P,MATCH($M$2,'Data BI Summary'!$2:$2,0),FALSE),INDIRECT("'"&$E10&"'!"&"$A:$K"),8,FALSE) -> 12416.99178 | N10: =VLOOKUP(VLOOKUP($F10,'Data BI Summary'!$A:$P,MATCH($M$2,'Data BI Summary'!$2:$2,0),FALSE),INDIRECT("'"&$E10&"'!"&"$A:$K"),9,FALSE) -> 0.05900656513
A11: NPDI to HONI
A12: AR-NPDI | B12: Typical | C12: =VLOOKUP(A12,'Data Billing Quantities'!A:P,MATCH($B12&" kWh",'Data Billing Quantities'!$4:$4,0),FALSE) -> 750 | E12: BI_NPDI_AR_Typical | F12: BI Template_Energy | G12: =VLOOKUP(VLOOKUP($F12,'Data BI Summary'!$A:$P,MATCH($G$2,'Data BI Summary'!$2:$2,0),FALSE),INDIRECT("'"&$E12&"'!"&"$A:$K"),8,FALSE) -> 1.75 | H12: =VLOOKUP(VLOOKUP($F12,'Data BI Summary'!$A:$P,MATCH($G$2,'Data BI Summary'!$2:$2,0),FALSE),INDIRECT("'"&$E12&"'!"&"$A:$K"),9,FALSE) -> 0.04239341085 | I12: =VLOOKUP(VLOOKUP($F12,'Data BI Summary'!$A:$P,MATCH($I$2,'Data BI Summary'!$2:$2,0),FALSE),INDIRECT("'"&$E12&"'!"&"$A:$K"),8,FALSE) -> 0.475 | J12: =VLOOKUP(VLOOKUP($F12,'Data BI Summary'!$A:$P,MATCH($I$2,'Data BI Summary'!$2:$2,0),FALSE),INDIRECT("'"&$E12&"'!"&"$A:$K"),9,FALSE) -> 0.01056237181 | K12: =VLOOKUP(VLOOKUP($F12,'Data BI Summary'!$A:$P,MATCH($K$2,'Data BI Summary'!$2:$2,0),FALSE),INDIRECT("'"&$E12&"'!"&"$A:$K"),8,FALSE) -> 0.9538 | L12: =VLOOKUP(VLOOKUP($F12,'Data BI Summary'!$A:$P,MATCH($K$2,'Data BI Summary'!$2:$2,0),FALSE),INDIRECT("'"&$E12&"'!"&"$A:$K"),9,FALSE) -> 0.01500526396 | M12: =VLOOKUP(VLOOKUP($F12,'Data BI Summary'!$A:$P,MATCH($M$2,'Data BI Summary'!$2:$2,0),FALSE),INDIRECT("'"&$E12&"'!"&"$A:$K"),8,FALSE) -> 0.853651 | N12: =VLOOKUP(VLOOKUP($F12,'Data BI Summary'!$A:$P,MATCH($M$2,'Data BI Summary'!$2:$2,0),FALSE),INDIRECT("'"&$E12&"'!"&"$A:$K"),9,FALSE) -> 0.005807271644
A13: AGSe-NPDI | B13: Typical | C13: =VLOOKUP(A13,'Data Billing Quantities'!A:P,MATCH($B13&" kWh",'Data Billing Quantities'!$4:$4,0),FALSE) -> 2000 | E13: BI_NPDI_AGSe_Typical | F13: BI Template_Energy | G13: =VLOOKUP(VLOOKUP($F13,'Data BI Summary'!$A:$P,MATCH($G$2,'Data BI Summary'!$2:$2,0),FALSE),INDIRECT("'"&$E13&"'!"&"$A:$K"),8,FALSE) -> 3.38 | H13: =VLOOKUP(VLOOKUP($F13,'Data BI Summary'!$A:$P,MATCH($G$2,'Data BI Summary'!$2:$2,0),FALSE),INDIRECT("'"&$E13&"'!"&"$A:$K"),9,FALSE) -> 0.04103933949 | I13: =VLOOKUP(VLOOKUP($F13,'Data BI Summary'!$A:$P,MATCH($I$2,'Data BI Summary'!$2:$2,0),FALSE),INDIRECT("'"&$E13&"'!"&"$A:$K"),8,FALSE) -> -0.42 | J13: =VLOOKUP(VLOOKUP($F13,'Data BI Summary'!$A:$P,MATCH($I$2,'Data BI Summary'!$2:$2,0),FALSE),INDIRECT("'"&$E13&"'!"&"$A:$K"),9,FALSE) -> -0.004570057678 | K13: =VLOOKUP(VLOOKUP($F13,'Data BI Summary'!$A:$P,MATCH($K$2,'Data BI Summary'!$2:$2,0),FALSE),INDIRECT("'"&$E13&"'!"&"$A:$K"),8,FALSE) -> 0.644 | L13: =VLOOKUP(VLOOKUP($F13,'Data BI Summary'!$A:$P,MATCH($K$2,'Data BI Summary'!$2:$2,0),FALSE),INDIRECT("'"&$E13&"'!"&"$A:$K"),9,FALSE) -> 0.004882155086 | M13: =VLOOKUP(VLOOKUP($F13,'Data BI Summary'!$A:$P,MATCH($M$2,'Data BI Summary'!$2:$2,0),FALSE),INDIRECT("'"&$E13&"'!"&"$A:$K"),8,FALSE) -> 0.57638 | N13: =VLOOKUP(VLOOKUP($F13,'Data BI Summary'!$A:$P,MATCH($M$2,'Data BI Summary'!$2:$2,0),FALSE),INDIRECT("'"&$E13&"'!"&"$A:$K"),9,FALSE) -> 0.001610132997
A14: AGSd-NPDI | B14: Average | C14: =VLOOKUP(A14,'Data Billing Quantities'!A:P,MATCH($B14&" kWh",'Data Billing Quantities'!$4:$4,0),FALSE) -> 70294 | D14: =VLOOKUP(A14,'Data Billing Quantities'!A:P,MATCH(B14&" kW",'Data Billing Quantities'!$4:$4,0),FALSE) -> 181 | E14: BI_NPDI_AGSd_Avg | F14: BI Template_Demand | G14: =VLOOKUP(VLOOKUP($F14,'Data BI Summary'!$A:$P,MATCH($G$2,'Data BI Summary'!$2:$2,0),FALSE),INDIRECT("'"&$E14&"'!"&"$A:$K"),8,FALSE) -> 43.9443 | H14: =VLOOKUP(VLOOKUP($F14,'Data BI Summary'!$A:$P,MATCH($G$2,'Data BI Summary'!$2:$2,0),FALSE),INDIRECT("'"&$E14&"'!"&"$A:$K"),9,FALSE) -> 0.04037108736 | I14: =VLOOKUP(VLOOKUP($F14,'Data BI Summary'!$A:$P,MATCH($I$2,'Data BI Summary'!$2:$2,0),FALSE),INDIRECT("'"&$E14&"'!"&"$A:$K"),8,FALSE) -> 812.7672 | J14: =VLOOKUP(VLOOKUP($F14,'Data BI Summary'!$A:$P,MATCH($I$2,'Data BI Summary'!$2:$2,0),FALSE),INDIRECT("'"&$E14&"'!"&"$A:$K"),9,FALSE) -> 1.005326541 | K14: =VLOOKUP(VLOOKUP($F14,'Data BI Summary'!$A:$P,MATCH($K$2,'Data BI Summary'!$2:$2,0),FALSE),INDIRECT("'"&$E14&"'!"&"$A:$K"),8,FALSE) -> 840.4059 | L14: =VLOOKUP(VLOOKUP($F14,'Data BI Summary'!$A:$P,MATCH($K$2,'Data BI Summary'!$2:$2,0),FALSE),INDIRECT("'"&$E14&"'!"&"$A:$K"),9,FALSE) -> 0.4490392636 | M14: =VLOOKUP(VLOOKUP($F14,'Data BI Summary'!$A:$P,MATCH($M$2,'Data BI Summary'!$2:$2,0),FALSE),INDIRECT("'"&$E14&"'!"&"$A:$K"),8,FALSE) -> 949.658667 | N14: =VLOOKUP(VLOOKUP($F14,'Data BI Summary'!$A:$P,MATCH($M$2,'Data BI Summary'!$2:$2,0),FALSE),INDIRECT("'"&$E14&"'!"&"$A:$K"),9,FALSE) -> 0.05947899409
A15: St Lgt-NPDI | B15: Average | C15: =VLOOKUP(A$15,'Data Billing Quantities'!A:P,MATCH($B15&" kWh",'Data Billing Quantities'!$4:$4,0),FALSE) -> 11389 | D15: =VLOOKUP(A$15,'Data Billing Quantities'!A:P,MATCH(B15&" kW",'Data Billing Quantities'!$4:$4,0),FALSE) -> 39 | E15: BI_NPDI_StLgt_Avg | F15: BI Template_Unmtr | G15: =VLOOKUP(VLOOKUP($F15,'Data BI Summary'!$A:$P,MATCH($G$2,'Data BI Summary'!$2:$2,0),FALSE),INDIRECT("'"&$E15&"'!"&"$A:$K"),8,FALSE) -> 35.6381 | H15: =VLOOKUP(VLOOKUP($F15,'Data BI Summary'!$A:$P,MATCH($G$2,'Data BI Summary'!$2:$2,0),FALSE),INDIRECT("'"&$E15&"'!"&"$A:$K"),9,FALSE) -> 0.02550454311 | I15: =VLOOKUP(VLOOKUP($F15,'Data BI Summary'!$A:$P,MATCH($I$2,'Data BI Summary'!$2:$2,0),FALSE),INDIRECT("'"&$E15&"'!"&"$A:$K"),8,FALSE) -> 17.4157 | J15: =VLOOKUP(VLOOKUP($F15,'Data BI Summary'!$A:$P,MATCH($I$2,'Data BI Summary'!$2:$2,0),FALSE),INDIRECT("'"&$E15&"'!"&"$A:$K"),9,FALSE) -> 0.01159738176 | K15: =VLOOKUP(VLOOKUP($F15,'Data BI Summary'!$A:$P,MATCH($K$2,'Data BI Summary'!$2:$2,0),FALSE),INDIRECT("'"&$E15&"'!"&"$A:$K"),8,FALSE) -> 21.1467364 | L15: =VLOOKUP(VLOOKUP($F15,'Data BI Summary'!$A:$P,MATCH($K$2,'Data BI Summary'!$2:$2,0),FALSE),INDIRECT("'"&$E15&"'!"&"$A:$K"),9,FALSE) -> 0.01270368527 | M15: =VLOOKUP(VLOOKUP($F15,'Data BI Summary'!$A:$P,MATCH($M$2,'Data BI Summary'!$2:$2,0),FALSE),INDIRECT("'"&$E15&"'!"&"$A:$K"),8,FALSE) -> 18.92632908 | N15: =VLOOKUP(VLOOKUP($F15,'Data BI Summary'!$A:$P,MATCH($M$2,'Data BI Summary'!$2:$2,0),FALSE),INDIRECT("'"&$E15&"'!"&"$A:$K"),9,FALSE) -> 0.006330935421
A16: Sen Lgt-NPDI | B16: Average | C16: =VLOOKUP(A$16,'Data Billing Quantities'!A:P,MATCH($B16&" kWh",'Data Billing Quantities'!$4:$4,0),FALSE) -> 108 | D16: =VLOOKUP(A$16,'Data Billing Quantities'!A:P,MATCH(B16&" kW",'Data Billing Quantities'!$4:$4,0),FALSE) -> 0.3368027211 | E16: BI_NPDI_SenLgt_Avg | F16: BI Template_Unmtr | G16: =VLOOKUP(VLOOKUP($F16,'Data BI Summary'!$A:$P,MATCH($G$2,'Data BI Summary'!$2:$2,0),FALSE),INDIRECT("'"&$E16&"'!"&"$A:$K"),8,FALSE) -> 0.78 | H16: =VLOOKUP(VLOOKUP($F16,'Data BI Summary'!$A:$P,MATCH($G$2,'Data BI Summary'!$2:$2,0),FALSE),INDIRECT("'"&$E16&"'!"&"$A:$K"),9,FALSE) -> 0.03290250734 | I16: =VLOOKUP(VLOOKUP($F16,'Data BI Summary'!$A:$P,MATCH($I$2,'Data BI Summary'!$2:$2,0),FALSE),INDIRECT("'"&$E16&"'!"&"$A:$K"),8,FALSE) -> 0.6072 | J16: =VLOOKUP(VLOOKUP($F16,'Data BI Summary'!$A:$P,MATCH($I$2,'Data BI Summary'!$2:$2,0),FALSE),INDIRECT("'"&$E16&"'!"&"$A:$K"),9,FALSE) -> 0.02481738459 | K16: =VLOOKUP(VLOOKUP($F16,'Data BI Summary'!$A:$P,MATCH($K$2,'Data BI Summary'!$2:$2,0),FALSE),INDIRECT("'"&$E16&"'!"&"$A:$K"),8,FALSE) -> 0.6425808 | L16: =VLOOKUP(VLOOKUP($F16,'Data BI Summary'!$A:$P,MATCH($K$2,'Data BI Summary'!$2:$2,0),FALSE),INDIRECT("'"&$E16&"'!"&"$A:$K"),9,FALSE) -> 0.02470354704 | M16: =VLOOKUP(VLOOKUP($F16,'Data BI Summary'!$A:$P,MATCH($M$2,'Data BI Summary'!$2:$2,0),FALSE),INDIRECT("'"&$E16&"'!"&"$A:$K"),8,FALSE) -> 0.575109816 | N16: =VLOOKUP(VLOOKUP($F16,'Data BI Summary'!$A:$P,MATCH($M$2,'Data BI Summary'!$2:$2,0),FALSE),INDIRECT("'"&$E16&"'!"&"$A:$K"),9,FALSE) -> 0.01609296528
A17: USL-NPDI | B17: Average | C17: =VLOOKUP(A$17,'Data Billing Quantities'!A:P,MATCH($B17&" kWh",'Data Billing Quantities'!$4:$4,0),FALSE) -> 904 | E17: BI_NPDI_USL_Avg | F17: BI Template_Unmtr | G17: =VLOOKUP(VLOOKUP($F17,'Data BI Summary'!$A:$P,MATCH($G$2,'Data BI Summary'!$2:$2,0),FALSE),INDIRECT("'"&$E17&"'!"&"$A:$K"),8,FALSE) -> 4.3208 | H17: =VLOOKUP(VLOOKUP($F17,'Data BI Summary'!$A:$P,MATCH($G$2,'Data BI Summary'!$2:$2,0),FALSE),INDIRECT("'"&$E17&"'!"&"$A:$K"),9,FALSE) -> 0.06351166223 | I17: =VLOOKUP(VLOOKUP($F17,'Data BI Summary'!$A:$P,MATCH($I$2,'Data BI Summary'!$2:$2,0),FALSE),INDIRECT("'"&$E17&"'!"&"$A:$K"),8,FALSE) -> 3.3264 | J17: =VLOOKUP(VLOOKUP($F17,'Data BI Summary'!$A:$P,MATCH($I$2,'Data BI Summary'!$2:$2,0),FALSE),INDIRECT("'"&$E17&"'!"&"$A:$K"),9,FALSE) -> 0.04374271875 | K17: =VLOOKUP(VLOOKUP($F17,'Data BI Summary'!$A:$P,MATCH($K$2,'Data BI Summary'!$2:$2,0),FALSE),INDIRECT("'"&$E17&"'!"&"$A:$K"),8,FALSE) -> 3.7212672 | L17: =VLOOKUP(VLOOKUP($F17,'Data BI Summary'!$A:$P,MATCH($K$2,'Data BI Summary'!$2:$2,0),FALSE),INDIRECT("'"&$E17&"'!"&"$A:$K"),9,FALSE) -> 0.04109353492 | M17: =VLOOKUP(VLOOKUP($F17,'Data BI Summary'!$A:$P,MATCH($M$2,'Data BI Summary'!$2:$2,0),FALSE),INDIRECT("'"&$E17&"'!"&"$A:$K"),8,FALSE) -> 3.330534144 | N17: =VLOOKUP(VLOOKUP($F17,'Data BI Summary'!$A:$P,MATCH($M$2,'Data BI Summary'!$2:$2,0),FALSE),INDIRECT("'"&$E17&"'!"&"$A:$K"),9,FALSE) -> 0.01783950201
A18: HCHI to HONI
A19: AR-HCHI | B19: Typical | C19: =VLOOKUP(A19,'Data Billing Quantities'!A:P,MATCH($B19&" kWh",'Data Billing Quantities'!$4:$4,0),FALSE) -> 750 | E19: BI_HCHI_AR_Typical | F19: BI Template_Energy | G19: =VLOOKUP(VLOOKUP($F19,'Data BI Summary'!$A:$P,MATCH($G$2,'Data BI Summary'!$2:$2,0),FALSE),INDIRECT("'"&$E19&"'!"&"$A:$K"),8,FALSE) -> 1.78 | H19: =VLOOKUP(VLOOKUP($F19,'Data BI Summary'!$A:$P,MATCH($G$2,'Data BI Summary'!$2:$2,0),FALSE),INDIRECT("'"&$E19&"'!"&"$A:$K"),9,FALSE) -> 0.04315151515 | I19: =VLOOKUP(VLOOKUP($F19,'Data BI Summary'!$A:$P,MATCH($I$2,'Data BI Summary'!$2:$2,0),FALSE),INDIRECT("'"&$E19&"'!"&"$A:$K"),8,FALSE) -> 0.43 | J19: =VLOOKUP(VLOOKUP($F19,'Data BI Summary'!$A:$P,MATCH($I$2,'Data BI Summary'!$2:$2,0),FALSE),INDIRECT("'"&$E19&"'!"&"$A:$K"),9,FALSE) -> 0.00955216772 | K19: =VLOOKUP(VLOOKUP($F19,'Data BI Summary'!$A:$P,MATCH($K$2,'Data BI Summary'!$2:$2,0),FALSE),INDIRECT("'"&$E19&"'!"&"$A:$K"),8,FALSE) -> 0.9088 | L19: =VLOOKUP(VLOOKUP($F19,'Data BI Summary'!$A:$P,MATCH($K$2,'Data BI Summary'!$2:$2,0),FALSE),INDIRECT("'"&$E19&"'!"&"$A:$K"),9,FALSE) -> 0.01428720553 | M19: =VLOOKUP(VLOOKUP($F19,'Data BI Summary'!$A:$P,MATCH($M$2,'Data BI Summary'!$2:$2,0),FALSE),INDIRECT("'"&$E19&"'!"&"$A:$K"),8,FALSE) -> 0.813376 | N19: =VLOOKUP(VLOOKUP($F19,'Data BI Summary'!$A:$P,MATCH($M$2,'Data BI Summary'!$2:$2,0),FALSE),INDIRECT("'"&$E19&"'!"&"$A:$K"),9,FALSE) -> 0.005531770673
A20: AGSe-HCHI | B20: Typical | C20: =VLOOKUP(A20,'Data Billing Quantities'!A:P,MATCH($B20&" kWh",'Data Billing Quantities'!$4:$4,0),FALSE) -> 2000 | E20: BI_HCHI_AGSe_Typical | F20: BI Template_Energy | G20: =VLOOKUP(VLOOKUP($F20,'Data BI Summary'!$A:$P,MATCH($G$2,'Data BI Summary'!$2:$2,0),FALSE),INDIRECT("'"&$E20&"'!"&"$A:$K"),8,FALSE) -> 3.38 | H20: =VLOOKUP(VLOOKUP($F20,'Data BI Summary'!$A:$P,MATCH($G$2,'Data BI Summary'!$2:$2,0),FALSE),INDIRECT("'"&$E20&"'!"&"$A:$K"),9,FALSE) -> 0.04103933949 | I20: =VLOOKUP(VLOOKUP($F20,'Data BI Summary'!$A:$P,MATCH($I$2,'Data BI Summary'!$2:$2,0),FALSE),INDIRECT("'"&$E20&"'!"&"$A:$K"),8,FALSE) -> -0.62 | J20: =VLOOKUP(VLOOKUP($F20,'Data BI Summary'!$A:$P,MATCH($I$2,'Data BI Summary'!$2:$2,0),FALSE),INDIRECT("'"&$E20&"'!"&"$A:$K"),9,FALSE) -> -0.006731626135 | K20: =VLOOKUP(VLOOKUP($F20,'Data BI Summary'!$A:$P,MATCH($K$2,'Data BI Summary'!$2:$2,0),FALSE),INDIRECT("'"&$E20&"'!"&"$A:$K"),8,FALSE) -> 0.444 | L20: =VLOOKUP(VLOOKUP($F20,'Data BI Summary'!$A:$P,MATCH($K$2,'Data BI Summary'!$2:$2,0),FALSE),INDIRECT("'"&$E20&"'!"&"$A:$K"),9,FALSE) -> 0.003360862125 | M20: =VLOOKUP(VLOOKUP($F20,'Data BI Summary'!$A:$P,MATCH($M$2,'Data BI Summary'!$2:$2,0),FALSE),INDIRECT("'"&$E20&"'!"&"$A:$K"),8,FALSE) -> 0.39738 | N20: =VLOOKUP(VLOOKUP($F20,'Data BI Summary'!$A:$P,MATCH($M$2,'Data BI Summary'!$2:$2,0),FALSE),INDIRECT("'"&$E20&"'!"&"$A:$K"),9,FALSE) -> 0.001109536879
A21: AGSd-HCHI | B21: Average | C21: =VLOOKUP(A21,'Data Billing Quantities'!A:P,MATCH($B21&" kWh",'Data Billing Quantities'!$4:$4,0),FALSE) -> 57529 | D21: =VLOOKUP(A21,'Data Billing Quantities'!A:P,MATCH(B21&" kW",'Data Billing Quantities'!$4:$4,0),FALSE) -> 175 | E21: BI_HCHI_AGSd_Avg | F21: BI Template_Demand | G21: =VLOOKUP(VLOOKUP($F21,'Data BI Summary'!$A:$P,MATCH($G$2,'Data BI Summary'!$2:$2,0),FALSE),INDIRECT("'"&$E21&"'!"&"$A:$K"),8,FALSE) -> 42.6 | H21: =VLOOKUP(VLOOKUP($F21,'Data BI Summary'!$A:$P,MATCH($G$2,'Data BI Summary'!$2:$2,0),FALSE),INDIRECT("'"&$E21&"'!"&"$A:$K"),9,FALSE) -> 0.0402520002 | I21: =VLOOKUP(VLOOKUP($F21,'Data BI Summary'!$A:$P,MATCH($I$2,'Data BI Summary'!$2:$2,0),FALSE),INDIRECT("'"&$E21&"'!"&"$A:$K"),8,FALSE) -> 656.007 | J21: =VLOOKUP(VLOOKUP($F21,'Data BI Summary'!$A:$P,MATCH($I$2,'Data BI Summary'!$2:$2,0),FALSE),INDIRECT("'"&$E21&"'!"&"$A:$K"),9,FALSE) -> 0.8290910277 | K21: =VLOOKUP(VLOOKUP($F21,'Data BI Summary'!$A:$P,MATCH($K$2,'Data BI Summary'!$2:$2,0),FALSE),INDIRECT("'"&$E21&"'!"&"$A:$K"),8,FALSE) -> 682.7295 | L21: =VLOOKUP(VLOOKUP($F21,'Data BI Summary'!$A:$P,MATCH($K$2,'Data BI Summary'!$2:$2,0),FALSE),INDIRECT("'"&$E21&"'!"&"$A:$K"),9,FALSE) -> 0.3753119195 | M21: =VLOOKUP(VLOOKUP($F21,'Data BI Summary'!$A:$P,MATCH($M$2,'Data BI Summary'!$2:$2,0),FALSE),INDIRECT("'"&$E21&"'!"&"$A:$K"),8,FALSE) -> 771.484335 | N21: =VLOOKUP(VLOOKUP($F21,'Data BI Summary'!$A:$P,MATCH($M$2,'Data BI Summary'!$2:$2,0),FALSE),INDIRECT("'"&$E21&"'!"&"$A:$K"),9,FALSE) -> 0.05760909308
A22: St Lgt-HCHI | B22: Average | C22: =VLOOKUP(A$22,'Data Billing Quantities'!A:P,MATCH($B22&" kWh",'Data Billing Quantities'!$4:$4,0),FALSE) -> 31001 | D22: =VLOOKUP(A$22,'Data Billing Quantities'!A:P,MATCH(B22&" kW",'Data Billing Quantities'!$4:$4,0),FALSE) -> 85 | E22: BI_HCHI_StLgt_Avg | F22: BI Template_Unmtr | G22: =VLOOKUP(VLOOKUP($F22,'Data BI Summary'!$A:$P,MATCH($G$2,'Data BI Summary'!$2:$2,0),FALSE),INDIRECT("'"&$E22&"'!"&"$A:$K"),8,FALSE) -> 145.2146 | H22: =VLOOKUP(VLOOKUP($F22,'Data BI Summary'!$A:$P,MATCH($G$2,'Data BI Summary'!$2:$2,0),FALSE),INDIRECT("'"&$E22&"'!"&"$A:$K"),9,FALSE) -> 0.03877424091 | I22: =VLOOKUP(VLOOKUP($F22,'Data BI Summary'!$A:$P,MATCH($I$2,'Data BI Summary'!$2:$2,0),FALSE),INDIRECT("'"&$E22&"'!"&"$A:$K"),8,FALSE) -> 83.2126 | J22: =VLOOKUP(VLOOKUP($F22,'Data BI Summary'!$A:$P,MATCH($I$2,'Data BI Summary'!$2:$2,0),FALSE),INDIRECT("'"&$E22&"'!"&"$A:$K"),9,FALSE) -> 0.02288180653 | K22: =VLOOKUP(VLOOKUP($F22,'Data BI Summary'!$A:$P,MATCH($K$2,'Data BI Summary'!$2:$2,0),FALSE),INDIRECT("'"&$E22&"'!"&"$A:$K"),8,FALSE) -> 93.3685276 | L22: =VLOOKUP(VLOOKUP($F22,'Data BI Summary'!$A:$P,MATCH($K$2,'Data BI Summary'!$2:$2,0),FALSE),INDIRECT("'"&$E22&"'!"&"$A:$K"),9,FALSE) -> 0.02288386699 | M22: =VLOOKUP(VLOOKUP($F22,'Data BI Summary'!$A:$P,MATCH($M$2,'Data BI Summary'!$2:$2,0),FALSE),INDIRECT("'"&$E22&"'!"&"$A:$K"),8,FALSE) -> 105.5064362 | N22: =VLOOKUP(VLOOKUP($F22,'Data BI Summary'!$A:$P,MATCH($M$2,'Data BI Summary'!$2:$2,0),FALSE),INDIRECT("'"&$E22&"'!"&"$A:$K"),9,FALSE) -> 0.01028955174
A23: Sen Lgt-HCHI | B23: Average | C23: =VLOOKUP(A$23,'Data Billing Quantities'!A:P,MATCH($B23&" kWh",'Data Billing Quantities'!$4:$4,0),FALSE) -> 61 | D23: =VLOOKUP(A$23,'Data Billing Quantities'!A:P,MATCH(B23&" kW",'Data Billing Quantities'!$4:$4,0),FALSE) -> 0.1956473214 | E23: BI_HCHI_SenLgt_Avg | F23: BI Template_Unmtr | G23: =VLOOKUP(VLOOKUP($F23,'Data BI Summary'!$A:$P,MATCH($G$2,'Data BI Summary'!$2:$2,0),FALSE),INDIRECT("'"&$E23&"'!"&"$A:$K"),8,FALSE) -> 0.7707 | H23: =VLOOKUP(VLOOKUP($F23,'Data BI Summary'!$A:$P,MATCH($G$2,'Data BI Summary'!$2:$2,0),FALSE),INDIRECT("'"&$E23&"'!"&"$A:$K"),9,FALSE) -> 0.05267726546 | I23: =VLOOKUP(VLOOKUP($F23,'Data BI Summary'!$A:$P,MATCH($I$2,'Data BI Summary'!$2:$2,0),FALSE),INDIRECT("'"&$E23&"'!"&"$A:$K"),8,FALSE) -> 0.6426 | J23: =VLOOKUP(VLOOKUP($F23,'Data BI Summary'!$A:$P,MATCH($I$2,'Data BI Summary'!$2:$2,0),FALSE),INDIRECT("'"&$E23&"'!"&"$A:$K"),9,FALSE) -> 0.0425829692 | K23: =VLOOKUP(VLOOKUP($F23,'Data BI Summary'!$A:$P,MATCH($K$2,'Data BI Summary'!$2:$2,0),FALSE),INDIRECT("'"&$E23&"'!"&"$A:$K"),8,FALSE) -> 0.6625836 | L23: =VLOOKUP(VLOOKUP($F23,'Data BI Summary'!$A:$P,MATCH($K$2,'Data BI Summary'!$2:$2,0),FALSE),INDIRECT("'"&$E23&"'!"&"$A:$K"),9,FALSE) -> 0.04150705225 | M23: =VLOOKUP(VLOOKUP($F23,'Data BI Summary'!$A:$P,MATCH($M$2,'Data BI Summary'!$2:$2,0),FALSE),INDIRECT("'"&$E23&"'!"&"$A:$K"),8,FALSE) -> 0.593012322 | N23: =VLOOKUP(VLOOKUP($F23,'Data BI Summary'!$A:$P,MATCH($M$2,'Data BI Summary'!$2:$2,0),FALSE),INDIRECT("'"&$E23&"'!"&"$A:$K"),9,FALSE) -> 0.02768513469
A24: USL-HCHI | B24: Average | C24: =VLOOKUP(A$24,'Data Billing Quantities'!A:P,MATCH($B24&" kWh",'Data Billing Quantities'!$4:$4,0),FALSE) -> 471 | E24: BI_HCHI_USL_Avg | F24: BI Template_Unmtr | G24: =VLOOKUP(VLOOKUP($F24,'Data BI Summary'!$A:$P,MATCH($G$2,'Data BI Summary'!$2:$2,0),FALSE),INDIRECT("'"&$E24&"'!"&"$A:$K"),8,FALSE) -> 2.0221 | H24: =VLOOKUP(VLOOKUP($F24,'Data BI Summary'!$A:$P,MATCH($G$2,'Data BI Summary'!$2:$2,0),FALSE),INDIRECT("'"&$E24&"'!"&"$A:$K"),9,FALSE) -> 0.03756246169 | I24: =VLOOKUP(VLOOKUP($F24,'Data BI Summary'!$A:$P,MATCH($I$2,'Data BI Summary'!$2:$2,0),FALSE),INDIRECT("'"&$E24&"'!"&"$A:$K"),8,FALSE) -> 1.1743 | J24: =VLOOKUP(VLOOKUP($F24,'Data BI Summary'!$A:$P,MATCH($I$2,'Data BI Summary'!$2:$2,0),FALSE),INDIRECT("'"&$E24&"'!"&"$A:$K"),9,FALSE) -> 0.02046377113 | K24: =VLOOKUP(VLOOKUP($F24,'Data BI Summary'!$A:$P,MATCH($K$2,'Data BI Summary'!$2:$2,0),FALSE),INDIRECT("'"&$E24&"'!"&"$A:$K"),8,FALSE) -> 1.3800328 | L24: =VLOOKUP(VLOOKUP($F24,'Data BI Summary'!$A:$P,MATCH($K$2,'Data BI Summary'!$2:$2,0),FALSE),INDIRECT("'"&$E24&"'!"&"$A:$K"),9,FALSE) -> 0.02124924731 | M24: =VLOOKUP(VLOOKUP($F24,'Data BI Summary'!$A:$P,MATCH($M$2,'Data BI Summary'!$2:$2,0),FALSE),INDIRECT("'"&$E24&"'!"&"$A:$K"),8,FALSE) -> 1.235129356 | N24: =VLOOKUP(VLOOKUP($F24,'Data BI Summary'!$A:$P,MATCH($M$2,'Data BI Summary'!$2:$2,0),FALSE),INDIRECT("'"&$E24&"'!"&"$A:$K"),9,FALSE) -> 0.01105786542
A25: CPUC to HONI
A26: R1-CPUC | B26: Typical | C26: =VLOOKUP(A26,'Data Billing Quantities'!A:P,MATCH($B26&" kWh",'Data Billing Quantities'!$4:$4,0),FALSE) -> 750 | E26: BI_CPUC_R1_Typical | F26: BI Template_Energy | G26: =VLOOKUP(VLOOKUP($F26,'Data BI Summary'!$A:$P,MATCH($G$2,'Data BI Summary'!$2:$2,0),FALSE),INDIRECT("'"&$E26&"'!"&"$A:$K"),8,FALSE) -> 0 | H26: =VLOOKUP(VLOOKUP($F26,'Data BI Summary'!$A:$P,MATCH($G$2,'Data BI Summary'!$2:$2,0),FALSE),INDIRECT("'"&$E26&"'!"&"$A:$K"),9,FALSE) -> 0 | I26: =VLOOKUP(VLOOKUP($F26,'Data BI Summary'!$A:$P,MATCH($I$2,'Data BI Summary'!$2:$2,0),FALSE),INDIRECT("'"&$E26&"'!"&"$A:$K"),8,FALSE) -> 0.225 | J26: =VLOOKUP(VLOOKUP($F26,'Data BI Summary'!$A:$P,MATCH($I$2,'Data BI Summary'!$2:$2,0),FALSE),INDIRECT("'"&$E26&"'!"&"$A:$K"),9,FALSE) -> 0.004449397888 | K26: =VLOOKUP(VLOOKUP($F26,'Data BI Summary'!$A:$P,MATCH($K$2,'Data BI Summary'!$2:$2,0),FALSE),INDIRECT("'"&$E26&"'!"&"$A:$K"),8,FALSE) -> 0.6285 | L26: =VLOOKUP(VLOOKUP($F26,'Data BI Summary'!$A:$P,MATCH($K$2,'Data BI Summary'!$2:$2,0),FALSE),INDIRECT("'"&$E26&"'!"&"$A:$K"),9,FALSE) -> 0.009199000507 | M26: =VLOOKUP(VLOOKUP($F26,'Data BI Summary'!$A:$P,MATCH($M$2,'Data BI Summary'!$2:$2,0),FALSE),INDIRECT("'"&$E26&"'!"&"$A:$K"),8,FALSE) -> 0.5625075 | N26: =VLOOKUP(VLOOKUP($F26,'Data BI Summary'!$A:$P,MATCH($M$2,'Data BI Summary'!$2:$2,0),FALSE),INDIRECT("'"&$E26&"'!"&"$A:$K"),9,FALSE) -> 0.003717732918
A27: GSe-CPUC | B27: Typical | C27: =VLOOKUP(A27,'Data Billing Quantities'!A:P,MATCH($B27&" kWh",'Data Billing Quantities'!$4:$4,0),FALSE) -> 2000 | E27: BI_CPUC_GSe_Typical | F27: BI Template_Energy | G27: =VLOOKUP(VLOOKUP($F27,'Data BI Summary'!$A:$P,MATCH($G$2,'Data BI Summary'!$2:$2,0),FALSE),INDIRECT("'"&$E27&"'!"&"$A:$K"),8,FALSE) -> 12.56 | H27: =VLOOKUP(VLOOKUP($F27,'Data BI Summary'!$A:$P,MATCH($G$2,'Data BI Summary'!$2:$2,0),FALSE),INDIRECT("'"&$E27&"'!"&"$A:$K"),9,FALSE) -> 0.06738920485 | I27: =VLOOKUP(VLOOKUP($F27,'Data BI Summary'!$A:$P,MATCH($I$2,'Data BI Summary'!$2:$2,0),FALSE),INDIRECT("'"&$E27&"'!"&"$A:$K"),8,FALSE) -> 13.56 | J27: =VLOOKUP(VLOOKUP($F27,'Data BI Summary'!$A:$P,MATCH($I$2,'Data BI Summary'!$2:$2,0),FALSE),INDIRECT("'"&$E27&"'!"&"$A:$K"),9,FALSE) -> 0.06417906831 | K27: =VLOOKUP(VLOOKUP($F27,'Data BI Summary'!$A:$P,MATCH($K$2,'Data BI Summary'!$2:$2,0),FALSE),INDIRECT("'"&$E27&"'!"&"$A:$K"),8,FALSE) -> 14.656 | L27: =VLOOKUP(VLOOKUP($F27,'Data BI Summary'!$A:$P,MATCH($K$2,'Data BI Summary'!$2:$2,0),FALSE),INDIRECT("'"&$E27&"'!"&"$A:$K"),9,FALSE) -> 0.05850216573 | M27: =VLOOKUP(VLOOKUP($F27,'Data BI Summary'!$A:$P,MATCH($M$2,'Data BI Summary'!$2:$2,0),FALSE),INDIRECT("'"&$E27&"'!"&"$A:$K"),8,FALSE) -> 13.11712 | N27: =VLOOKUP(VLOOKUP($F27,'Data BI Summary'!$A:$P,MATCH($M$2,'Data BI Summary'!$2:$2,0),FALSE),INDIRECT("'"&$E27&"'!"&"$A:$K"),9,FALSE) -> 0.02824095392
A28: GSd-CPUC | B28: Average | C28: =VLOOKUP(A28,'Data Billing Quantities'!A:P,MATCH($B28&" kWh",'Data Billing Quantities'!$4:$4,0),FALSE) -> 29000 | D28: =VLOOKUP(A28,'Data Billing Quantities'!A:P,MATCH(B28&" kW",'Data Billing Quantities'!$4:$4,0),FALSE) -> 90 | E28: BI_CPUC_GSd_Avg | F28: BI Template_Demand | G28: =VLOOKUP(VLOOKUP($F28,'Data BI Summary'!$A:$P,MATCH($G$2,'Data BI Summary'!$2:$2,0),FALSE),INDIRECT("'"&$E28&"'!"&"$A:$K"),8,FALSE) -> 141.156 | H28: =VLOOKUP(VLOOKUP($F28,'Data BI Summary'!$A:$P,MATCH($G$2,'Data BI Summary'!$2:$2,0),FALSE),INDIRECT("'"&$E28&"'!"&"$A:$K"),9,FALSE) -> 0.06948592447 | I28: =VLOOKUP(VLOOKUP($F28,'Data BI Summary'!$A:$P,MATCH($I$2,'Data BI Summary'!$2:$2,0),FALSE),INDIRECT("'"&$E28&"'!"&"$A:$K"),8,FALSE) -> 514.727 | J28: =VLOOKUP(VLOOKUP($F28,'Data BI Summary'!$A:$P,MATCH($I$2,'Data BI Summary'!$2:$2,0),FALSE),INDIRECT("'"&$E28&"'!"&"$A:$K"),9,FALSE) -> 0.2533812338 | K28: =VLOOKUP(VLOOKUP($F28,'Data BI Summary'!$A:$P,MATCH($K$2,'Data BI Summary'!$2:$2,0),FALSE),INDIRECT("'"&$E28&"'!"&"$A:$K"),8,FALSE) -> 528.2 | L28: =VLOOKUP(VLOOKUP($F28,'Data BI Summary'!$A:$P,MATCH($K$2,'Data BI Summary'!$2:$2,0),FALSE),INDIRECT("'"&$E28&"'!"&"$A:$K"),9,FALSE) -> 0.2071237716 | M28: =VLOOKUP(VLOOKUP($F28,'Data BI Summary'!$A:$P,MATCH($M$2,'Data BI Summary'!$2:$2,0),FALSE),INDIRECT("'"&$E28&"'!"&"$A:$K"),8,FALSE) -> 596.866 | N28: =VLOOKUP(VLOOKUP($F28,'Data BI Summary'!$A:$P,MATCH($M$2,'Data BI Summary'!$2:$2,0),FALSE),INDIRECT("'"&$E28&"'!"&"$A:$K"),9,FALSE) -> 0.06908401967
A29: St Lgt-CPUC | B29: Average | C29: =VLOOKUP(A$30,'Data Billing Quantities'!A:P,MATCH($B29&" kWh",'Data Billing Quantities'!$4:$4,0),FALSE) -> 220 | D29: =VLOOKUP(A$29,'Data Billing Quantities'!A:P,MATCH(B29&" kW",'Data Billing Quantities'!$4:$4,0),FALSE) -> 21 | E29: BI_CPUC_StLgt_Avg | F29: BI Template_Unmtr | G29: =VLOOKUP(VLOOKUP($F29,'Data BI Summary'!$A:$P,MATCH($G$2,'Data BI Summary'!$2:$2,0),FALSE),INDIRECT("'"&$E29&"'!"&"$A:$K"),8,FALSE) -> 54.19 | H29: =VLOOKUP(VLOOKUP($F29,'Data BI Summary'!$A:$P,MATCH($G$2,'Data BI Summary'!$2:$2,0),FALSE),INDIRECT("'"&$E29&"'!"&"$A:$K"),9,FALSE) -> 0.05269555409 | I29: =VLOOKUP(VLOOKUP($F29,'Data BI Summary'!$A:$P,MATCH($I$2,'Data BI Summary'!$2:$2,0),FALSE),INDIRECT("'"&$E29&"'!"&"$A:$K"),8,FALSE) -> 61.66 | J29: =VLOOKUP(VLOOKUP($F29,'Data BI Summary'!$A:$P,MATCH($I$2,'Data BI Summary'!$2:$2,0),FALSE),INDIRECT("'"&$E29&"'!"&"$A:$K"),9,FALSE) -> 0.05424039173 | K29: =VLOOKUP(VLOOKUP($F29,'Data BI Summary'!$A:$P,MATCH($K$2,'Data BI Summary'!$2:$2,0),FALSE),INDIRECT("'"&$E29&"'!"&"$A:$K"),8,FALSE) -> 64.37908 | L29: =VLOOKUP(VLOOKUP($F29,'Data BI Summary'!$A:$P,MATCH($K$2,'Data BI Summary'!$2:$2,0),FALSE),INDIRECT("'"&$E29&"'!"&"$A:$K"),9,FALSE) -> 0.05127664747 | M29: =VLOOKUP(VLOOKUP($F29,'Data BI Summary'!$A:$P,MATCH($M$2,'Data BI Summary'!$2:$2,0),FALSE),INDIRECT("'"&$E29&"'!"&"$A:$K"),8,FALSE) -> 57.6192766 | N29: =VLOOKUP(VLOOKUP($F29,'Data BI Summary'!$A:$P,MATCH($M$2,'Data BI Summary'!$2:$2,0),FALSE),INDIRECT("'"&$E29&"'!"&"$A:$K"),9,FALSE) -> 0.02604062081
A30: Sen Lgt-CPUC | B30: Average | C30: =VLOOKUP(A$29,'Data Billing Quantities'!A:P,MATCH($B30&" kWh",'Data Billing Quantities'!$4:$4,0),FALSE) -> 8300 | D30: =VLOOKUP(A$30,'Data Billing Quantities'!A:P,MATCH(B30&" kW",'Data Billing Quantities'!$4:$4,0),FALSE) -> 0.6 | E30: BI_CPUC_SenLgt_Avg | F30: BI Template_Unmtr | G30: =VLOOKUP(VLOOKUP($F30,'Data BI Summary'!$A:$P,MATCH($G$2,'Data BI Summary'!$2:$2,0),FALSE),INDIRECT("'"&$E30&"'!"&"$A:$K"),8,FALSE) -> 2.582 | H30: =VLOOKUP(VLOOKUP($F30,'Data BI Summary'!$A:$P,MATCH($G$2,'Data BI Summary'!$2:$2,0),FALSE),INDIRECT("'"&$E30&"'!"&"$A:$K"),9,FALSE) -> 0.05713400602 | I30: =VLOOKUP(VLOOKUP($F30,'Data BI Summary'!$A:$P,MATCH($I$2,'Data BI Summary'!$2:$2,0),FALSE),INDIRECT("'"&$E30&"'!"&"$A:$K"),8,FALSE) -> 2.67 | J30: =VLOOKUP(VLOOKUP($F30,'Data BI Summary'!$A:$P,MATCH($I$2,'Data BI Summary'!$2:$2,0),FALSE),INDIRECT("'"&$E30&"'!"&"$A:$K"),9,FALSE) -> 0.0560679367 | K30: =VLOOKUP(VLOOKUP($F30,'Data BI Summary'!$A:$P,MATCH($K$2,'Data BI Summary'!$2:$2,0),FALSE),INDIRECT("'"&$E30&"'!"&"$A:$K"),8,FALSE) -> 2.742072 | L30: =VLOOKUP(VLOOKUP($F30,'Data BI Summary'!$A:$P,MATCH($K$2,'Data BI Summary'!$2:$2,0),FALSE),INDIRECT("'"&$E30&"'!"&"$A:$K"),9,FALSE) -> 0.05401187805 | M30: =VLOOKUP(VLOOKUP($F30,'Data BI Summary'!$A:$P,MATCH($M$2,'Data BI Summary'!$2:$2,0),FALSE),INDIRECT("'"&$E30&"'!"&"$A:$K"),8,FALSE) -> 2.45415444 | N30: =VLOOKUP(VLOOKUP($F30,'Data BI Summary'!$A:$P,MATCH($M$2,'Data BI Summary'!$2:$2,0),FALSE),INDIRECT("'"&$E30&"'!"&"$A:$K"),9,FALSE) -> 0.03477166395
A31: USL-CPUC | B31: Average | C31: =VLOOKUP(A$31,'Data Billing Quantities'!A:P,MATCH($B31&" kWh",'Data Billing Quantities'!$4:$4,0),FALSE) -> 60 | E31: BI_CPUC_USL_Avg | F31: BI Template_Unmtr | G31: =VLOOKUP(VLOOKUP($F31,'Data BI Summary'!$A:$P,MATCH($G$2,'Data BI Summary'!$2:$2,0),FALSE),INDIRECT("'"&$E31&"'!"&"$A:$K"),8,FALSE) -> 1.278 | H31: =VLOOKUP(VLOOKUP($F31,'Data BI Summary'!$A:$P,MATCH($G$2,'Data BI Summary'!$2:$2,0),FALSE),INDIRECT("'"&$E31&"'!"&"$A:$K"),9,FALSE) -> 0.03170271879 | I31: =VLOOKUP(VLOOKUP($F31,'Data BI Summary'!$A:$P,MATCH($I$2,'Data BI Summary'!$2:$2,0),FALSE),INDIRECT("'"&$E31&"'!"&"$A:$K"),8,FALSE) -> 1.302 | J31: =VLOOKUP(VLOOKUP($F31,'Data BI Summary'!$A:$P,MATCH($I$2,'Data BI Summary'!$2:$2,0),FALSE),INDIRECT("'"&$E31&"'!"&"$A:$K"),9,FALSE) -> 0.03177593815 | K31: =VLOOKUP(VLOOKUP($F31,'Data BI Summary'!$A:$P,MATCH($K$2,'Data BI Summary'!$2:$2,0),FALSE),INDIRECT("'"&$E31&"'!"&"$A:$K"),8,FALSE) -> 1.328208 | L31: =VLOOKUP(VLOOKUP($F31,'Data BI Summary'!$A:$P,MATCH($K$2,'Data BI Summary'!$2:$2,0),FALSE),INDIRECT("'"&$E31&"'!"&"$A:$K"),9,FALSE) -> 0.03167109643 | M31: =VLOOKUP(VLOOKUP($F31,'Data BI Summary'!$A:$P,MATCH($M$2,'Data BI Summary'!$2:$2,0),FALSE),INDIRECT("'"&$E31&"'!"&"$A:$K"),8,FALSE) -> 1.18874616 | N31: =VLOOKUP(VLOOKUP($F31,'Data BI Summary'!$A:$P,MATCH($M$2,'Data BI Summary'!$2:$2,0),FALSE),INDIRECT("'"&$E31&"'!"&"$A:$K"),9,FALSE) -> 0.02668120297

Sheet BI_UR_Typical
A1: Bill Impacts (Typical Consumption Level) - UR
A3: Rate Class | B3: =RIGHT(A1,LEN(A1)-FIND("- ",A1,1)-1) -> UR
A4: Monthly Consumption (kWh) | B4: =IF(COUNTIF(A1,"*Low*")>0,VLOOKUP(B3,'Data Billing Quantities'!$A:$Z,MATCH("Low kWh",'Data Billing Quantities'!4:4,0),FALSE),IF(COUNTIF(A1,"*Typical*")>0,VLOOKUP(B3,'Data Billing Quantities'!$A:$Z,MATCH("Typical kWh",'Data Billing Quantities'!4:4,0),FALSE),IF(COUNTIF(A1,"*Average*")>0,VLOOKUP(B3,'Data Billing Quantities'!$A:$Z,MATCH("Average kWh",'Data Billing Quantities'!4:4,0),FALSE),IF(COUNTIF(A1,"*High*")>0,VLOOKUP(B3,'Data Billing Quantities'!$A:$Z,MATCH("High kWh",'Data Billing Quantities'!4:4,0),FALSE),"error")))) -> 750
A5: Peak (kW) | B5: =IF(COUNTIF(A1,"*Low*")>0,VLOOKUP(B3,'Data Billing Quantities'!$A:$Z,MATCH("Low kW",'Data Billing Quantities'!4:4,0),FALSE),IF(COUNTIF(A1,"*Typical*")>0,VLOOKUP(B3,'Data Billing Quantities'!$A:$Z,MATCH("Typical kW",'Data Billing Quantities'!4:4,0),FALSE),IF(COUNTIF(A1,"*Average*")>0,VLOOKUP(B3,'Data Billing Quantities'!$A:$Z,MATCH("Average kW",'Data Billing Quantities'!4:4,0),FALSE),IF(COUNTIF(A1,"*High*")>0,VLOOKUP(B3,'Data Billing Quantities'!$A:$Z,MATCH("High kW",'Data Billing Quantities'!4:4,0),FALSE),"error")))) -> 0
A6: Loss factor | B6: =VLOOKUP(B3,'Data Billing Quantities'!A:D,MATCH(A6,'Data Billing Quantities'!4:4,0),FALSE) -> 1.057
A7: Charge determinant | B7: =VLOOKUP(B3,'Data Billing Quantities'!A:D,MATCH(A7,'Data Billing Quantities'!4:4,0),FALSE) -> kWh
B9: Current OEB-Approved | E9: Proposed | H9: Impact
B10: Rate ($) | C10: Volume | D10: Charge ($) | E10: Rate ($) | F10: Volume | G10: Charge ($) | H10: $ Change | I10: % Change
A11: Service Charge | B11: =VLOOKUP($B$3,'Data Current Rates'!$A:$AO,MATCH(BI_UR_Typical!$A11,CurrentHeader,0),FALSE) -> 41.61 | C11: 1 | D11: =B11*C11 -> 41.61 | E11: =VLOOKUP($B$3,'Data Proposed Rates'!$A:$AQ,MATCH(BI_UR_Typical!$A11,ProposedHeader,0),FALSE) -> 43.7 | F11: 1 | G11: =E11*F11 -> 43.7 | H11: =G11-D11 -> 2.09 | I11: =IF(ISERROR(H11/ABS(D11)),"N/A",(H11/ABS(D11))) -> 0.0502283105
A12: Distribution Volumetric Charge | B12: =VLOOKUP($B$3,'Data Current Rates'!$A:$AO,MATCH(BI_UR_Typical!$A12,CurrentHeader,0),FALSE) -> 0 | C12: =IF($B$7="kWh",$B$4,$B$5) -> 750 | D12: =B12*C12 -> 0 | E12: =VLOOKUP($B$3,'Data Proposed Rates'!$A:$AQ,MATCH(BI_UR_Typical!$A12,ProposedHeader,0),FALSE) -> 0 | F12: =IF($B$7="kWh",$B$4,$B$5) -> 750 | G12: 0 | H12: 0 | I12: N/A
A13: Z-Factor Fixed Rate Rider | E13: =VLOOKUP($B$3,'Data Proposed Rates'!$A:$AQ,MATCH(BI_UR_Typical!$A13,ProposedHeader,0),FALSE) -> 0.72 | F13: 1 | G13: 0.72 | H13: 0.72 | I13: N/A
A14: RRRP Adjustment | B14: =IF($B$3="R2",VLOOKUP(A14,'Data Pass Through'!$A4:$C19,3,0),0)*-1 -> 0 | C14: 1 | D14: =B14*C14 -> 0 | E14: =IF($B$3="R2",VLOOKUP(A14,'Data Pass Through'!$A4:$C19,3,0),0)*-1 -> 0 | F14: 1 | G14: 0 | H14: 0 | I14: N/A
A15: DRP Adjustment | D15: =IF(OR($B$3="R1",$B$3="R2",$B$3="R1-CPUC"),IF(SUM(D11:D14)>'Data Pass Through'!$B$16,-(SUM(D11:D14)-'Data Pass Through'!$B$16),0),0) -> 0 | G15: =IF(OR($B$3="R1",$B$3="R2",$B$3="R1-CPUC"),IF(SUM(G11:G14)>'Data Pass Through'!$B$16,-(SUM(G11:G14)-'Data Pass Through'!$B$16),0),0) -> 0 | H15: 0 | I15: N/A
A16: Group 2 Fixed Rate Rider | B16: =VLOOKUP($B$3,'Data Current Rates'!$A:$AO,MATCH(BI_UR_Typical!$A16,CurrentHeader,0),FALSE) -> -0.11 | C16: 1 | D16: =B16*C16 -> -0.11 | E16: =VLOOKUP($B$3,'Data Proposed Rates'!$A:$AQ,MATCH(BI_UR_Typical!$A16,ProposedHeader,0),FALSE) -> -1.5 | F16: 1 | G16: =E16*F16 -> -1.5 | H16: -1.39 | I16: -12.63636364
A17: Group 2 Volumetric Rate Rider | B17: =VLOOKUP($B$3,'Data Current Rates'!$A:$AO,MATCH(BI_UR_Typical!$A17,CurrentHeader,0),FALSE) -> 0 | C17: =IF($B$7="kWh",$B$4,$B$5) -> 750 | D17: =B17*C17 -> 0 | E17: =VLOOKUP($B$3,'Data Proposed Rates'!$A:$AQ,MATCH(BI_UR_Typical!$A17,ProposedHeader,0),FALSE) -> 0 | F17: =IF($B$7="kWh",$B$4,$B$5) -> 750 | G17: 0 | H17: =G17-D17 -> 0 | I17: =IF(ISERROR(H17/ABS(D17)),"N/A",(H17/ABS(D17))) -> N/A
A18: Sub-Total A (excluding pass through) | D18: =SUM(D11:D17) -> 41.5 | G18: =SUM(G11:G17) -> 42.92 | H18: 1.42 | I18: 0.03421686747
A19: Line Losses on Cost of Power | B19: =VLOOKUP($B$3,'Data Billing Quantities'!$A:$O,MATCH(BI_UR_Typical!$A34,'Data Billing Quantities'!$4:$4,0),FALSE)*$B34+VLOOKUP($B$3,'Data Billing Quantities'!$A:$O,MATCH(BI_UR_Typical!$A35,'Data Billing Quantities'!$4:$4,0),FALSE)*$B35+VLOOKUP($B$3,'Data Billing Quantities'!$A:$O,MATCH(BI_UR_Typical!$A36,'Data Billing Quantities'!$4:$4,0),FALSE)*$B36 -> 0.12752 | C19: =($B$6*$B$4)-$B$4 -> 42.75 | D19: =B19*C19 -> 5.45148 | E19: =VLOOKUP($B$3,'Data Billing Quantities'!$A:$O,MATCH(BI_UR_Typical!$A34,'Data Billing Quantities'!$4:$4,0),FALSE)*$B34+VLOOKUP($B$3,'Data Billing Quantities'!$A:$O,MATCH(BI_UR_Typical!$A35,'Data Billing Quantities'!$4:$4,0),FALSE)*$B35+VLOOKUP($B$3,'Data Billing Quantities'!$A:$O,MATCH(BI_UR_Typical!$A36,'Data Billing Quantities'!$4:$4,0),FALSE)*$B36 -> 0.12752 | F19: =($B$6*$B$4)-$B$4 -> 42.75 | G19: 5.45148 | H19: 0 | I19: 0
A20: Total Deferral/Variance Account Rate Rider | B20: =VLOOKUP($B$3,'Data Current Rates'!$A:$AO,MATCH(BI_UR_Typical!$A20,CurrentHeader,0),FALSE) -> -0.0038 | C20: =IF($B$7="kWh",$B$4,$B$5) -> 750 | D20: -2.85 | E20: =VLOOKUP($B$3,'Data Proposed Rates'!$A:$AQ,MATCH(BI_UR_Typical!$A20,ProposedHeader,0),FALSE) -> -0.0048 | F20: =IF($B$7="kWh",$B$4,$B$5) -> 750 | G20: -3.6 | H20: -0.75 | I20: -0.2631578947
A21: CBR Class B Rate Rider | B21: =VLOOKUP($B$3,'Data Current Rates'!$A:$AJ,MATCH(BI_UR_Typical!$A21,CurrentHeader,0),FALSE) -> 0.0001 | C21: =IF($B$7="kWh",$B$4,$B$5) -> 750 | D21: 0.075 | E21: =VLOOKUP($B$3,'Data Proposed Rates'!$A:$AQ,MATCH(BI_UR_Typical!$A21,ProposedHeader,0),FALSE) -> -0.0006 | F21: =IF($B$7="kWh",$B$4,$B$5) -> 750 | G21: -0.45 | H21: -0.525 | I21: -7
A22: GA Rate Rider | B22: =VLOOKUP($B$3,'Data Current Rates'!$A:$AJ,MATCH(BI_UR_Typical!$A22,CurrentHeader,0),FALSE) -> 0 | C22: 750 | D22: 0 | E22: =VLOOKUP($B$3,'Data Proposed Rates'!$A:$AQ,MATCH(BI_UR_Typical!$A22,ProposedHeader,0),FALSE) -> 0 | F22: 750 | G22: 0 | H22: 0 | I22: N/A
A23: Smart Meter Entity Charge (if applicable) | B23: =VLOOKUP($A23,'Data Pass Through'!$A:$D,2,FALSE) -> 0.42 | C23: 1 | D23: 0.42 | E23: =VLOOKUP($A23,'Data Pass Through'!$A:$D,2,FALSE) -> 0.42 | F23: 1 | G23: 0.42 | H23: 0 | I23: 0
A24: Additional Fixed Rate Rider | B24: =VLOOKUP($B$3,'Data Current Rates'!$A:$AJ,MATCH(BI_UR_Typical!$A24,CurrentHeader,0),FALSE) -> 0 | C24: 1 | D24: 0 | E24: =VLOOKUP($B$3,'Data Proposed Rates'!$A:$AQ,MATCH(BI_UR_Typical!$A24,ProposedHeader,0),FALSE) -> 0 | F24: 1 | G24: 0 | H24: 0 | I24: N/A
A25: Additional Volumetric Rate Rider | B25: =VLOOKUP($B$3,'Data Current Rates'!$A:$AJ,MATCH(BI_UR_Typical!$A25,CurrentHeader,0),FALSE) -> 0 | C25: =IF($B$7="kWh",$B$4,$B$5) -> 750 | D25: 0 | E25: =VLOOKUP($B$3,'Data Proposed Rates'!$A:$AQ,MATCH(BI_UR_Typical!$A25,ProposedHeader,0),FALSE) -> 0 | F25: =IF($B$7="kWh",$B$4,$B$5) -> 750 | G25: 0 | H25: 0 | I25: N/A
A26: Sub-Total B - Distribution (includes Sub-Total A) | D26: =SUM(INDIRECT("D18:D"&ROW()-1)) -> 44.59648 | G26: =SUM(INDIRECT("G18:G"&ROW()-1)) -> 44.74148 | H26: 0.145 | I26: 0.003251377687
A27: Retail Transmission Rate – Network Service Rate | B27: =VLOOKUP($B$3,'Data Current Rates'!$A:$AJ,MATCH(BI_UR_Typical!$A27,CurrentHeader,0),FALSE) -> 0.0137 | C27: =IF($B$7="kWh",$B$4*$B$6,$B$5) -> 792.75 | D27: =B27*C27 -> 10.860675 | E27: =VLOOKUP($B$3,'Data Proposed Rates'!$A:$AQ,MATCH(BI_UR_Typical!$A27,ProposedHeader,0),FALSE) -> 0.0141 | F27: =IF($B$7="kWh",$B$4*$B$6,$B$5) -> 792.75 | G27: 11.177775 | H27: 0.3171 | I27: 0.02919708029
A28: Retail Transmission Rate – Line and Transformation Connection Service Rate | B28: =VLOOKUP($B$3,'Data Current Rates'!$A:$AJ,MATCH(BI_UR_Typical!$A28,CurrentHeader,0),FALSE) -> 0.0098 | C28: =IF($B$7="kWh",$B$4*$B$6,$B$5) -> 792.75 | D28: 7.76895 | E28: =VLOOKUP($B$3,'Data Proposed Rates'!$A:$AQ,MATCH(BI_UR_Typical!$A28,ProposedHeader,0),FALSE) -> 0.01 | F28: =IF($B$7="kWh",$B$4*$B$6,$B$5) -> 792.75 | G28: 7.9275 | H28: 0.15855 | I28: 0.02040816327
A29: Sub-Total C - Delivery (including Sub-Total B) | D29: =SUM(D26:D28) -> 63.226105 | G29: =SUM(G26:G28) -> 63.846755 | H29: 0.62065 | I29: 0.009816356709
A30: Wholesale Market Service Rate (WMS) – not including CBR | B30: =VLOOKUP($A30,'Data Pass Through'!$A:$D,2,FALSE) -> 0.0041 | C30: =$B$4*$B$6 -> 792.75 | D30: =B30*C30 -> 3.250275 | E30: =VLOOKUP($A30,'Data Pass Through'!$A:$D,3,FALSE) -> 0.0041 | F30: =$B$4*$B$6 -> 792.75 | G30: 3.250275 | H30: 0 | I30: 0
A31: Capacity Based Recovery (CBR) – Applicable for Class B Customers | B31: =VLOOKUP($A31,'Data Pass Through'!$A:$D,2,FALSE) -> 0.0004 | C31: =$B$4*$B$6 -> 792.75 | D31: 0.3171 | E31: =VLOOKUP($A31,'Data Pass Through'!$A:$D,3,FALSE) -> 0.0004 | F31: =$B$4*$B$6 -> 792.75 | G31: 0.3171 | H31: 0 | I31: 0
A32: Rural Rate Protection Charge | B32: =VLOOKUP($A32,'Data Pass Through'!$A:$D,2,FALSE) -> 0.0015 | C32: =$B$4*$B$6 -> 792.75 | D32: 1.189125 | E32: =VLOOKUP($A32,'Data Pass Through'!$A:$D,3,FALSE) -> 0.0015 | F32: =$B$4*$B$6 -> 792.75 | G32: 1.189125 | H32: 0 | I32: 0
A33: Standard Supply Service – Administration Charge (if applicable) | B33: =VLOOKUP($A33,'Data Pass Through'!$A:$D,2,FALSE) -> 0.25 | C33: 1 | D33: 0.25 | E33: =VLOOKUP($A33,'Data Pass Through'!$A:$D,3,FALSE) -> 0.25 | F33: 1 | G33: 0.25 | H33: 0 | I33: 0
A34: TOU-Off Peak | B34: =VLOOKUP($A34,'Data Pass Through'!$A:$D,2,FALSE) -> 0.098 | C34: =B$4*VLOOKUP($B$3,'Data Billing Quantities'!$A:$O,MATCH($A34,'Data Billing Quantities'!$4:$4,0),FALSE) -> 480 | D34: 47.04 | E34: =VLOOKUP($A34,'Data Pass Through'!$A:$D,3,FALSE) -> 0.098 | F34: =B$4*VLOOKUP($B$3,'Data Billing Quantities'!$A:$O,MATCH($A34,'Data Billing Quantities'!$4:$4,0),FALSE) -> 480 | G34: =E34*F34 -> 47.04 | H34: 0 | I34: 0
A35: TOU-Mid Peak | B35: =VLOOKUP($A35,'Data Pass Through'!$A:$D,2,FALSE) -> 0.157 | C35: =B$4*VLOOKUP($B$3,'Data Billing Quantities'!$A:$O,MATCH($A35,'Data Billing Quantities'!$4:$4,0),FALSE) -> 135 | D35: 21.195 | E35: =VLOOKUP($A35,'Data Pass Through'!$A:$D,3,FALSE) -> 0.157 | F35: =B$4*VLOOKUP($B$3,'Data Billing Quantities'!$A:$O,MATCH($A35,'Data Billing Quantities'!$4:$4,0),FALSE) -> 135 | G35: =E35*F35 -> 21.195 | H35: 0 | I35: 0
A36: TOU-On Peak | B36: =VLOOKUP($A36,'Data Pass Through'!$A:$D,2,FALSE) -> 0.203 | C36: =B$4*VLOOKUP($B$3,'Data Billing Quantities'!$A:$O,MATCH($A36,'Data Billing Quantities'!$4:$4,0),FALSE) -> 135 | D36: 27.405 | E36: =VLOOKUP($A36,'Data Pass Through'!$A:$D,3,FALSE) -> 0.203 | F36: =B$4*VLOOKUP($B$3,'Data Billing Quantities'!$A:$O,MATCH($A36,'Data Billing Quantities'!$4:$4,0),FALSE) -> 135 | G36: =E36*F36 -> 27.405 | H36: 0 | I36: 0
A37: Total Bill on TOU (before Taxes) | D37: =SUM(D29:D36) -> 163.872605 | G37: =SUM(G29:G36) -> 164.493255 | H37: 0.62065 | I37: 0.003787393262
A38: HST | B38: 0.13 | D38: =D37*B38 -> 21.30343865 | E38: =B38 -> 0.13 | G38: =G37*E38 -> 21.38412315 | H38: 0.0806845 | I38: 0.003787393262
A39: Ontario Electricity Rebate (OER) | B39: =IF(($B$4*12)<250000,VLOOKUP($A39,'Data Pass Through'!$A$4:$C$19,2,0),0) -> -0.235 | D39: =D37*B39 -> -38.51006217 | E39: =IF(($B$4*12)<250000,VLOOKUP($A39,'Data Pass Through'!$A$4:$C$19,3,0),0) -> -0.235 | G39: =G37*E39 -> -38.65591492 | H39: -0.14585275 | I39: -0.003787393262
A40: Total Bill on TOU | D40: =SUM(D37:D39) -> 146.6659815 | G40: =SUM(G37:G39) -> 147.2214632 | H40: 0.55548175 | I40: 0.003787393262
A41: * Distribution rate protection applies to R1 and R2 customers

Sheet BI_R1_Typical (with DRP)
A1: Bill Impacts (Typical Consumption Level) - R1
A3: Rate Class | B3: =RIGHT(A1,LEN(A1)-FIND("- ",A1,1)-1) -> R1
A4: Monthly Consumption (kWh) | B4: =IF(COUNTIF(A1,"*Low*")>0,VLOOKUP(B3,'Data Billing Quantities'!$A:$Z,MATCH("Low kWh",'Data Billing Quantities'!4:4,0),FALSE),IF(COUNTIF(A1,"*Typical*")>0,VLOOKUP(B3,'Data Billing Quantities'!$A:$Z,MATCH("Typical kWh",'Data Billing Quantities'!4:4,0),FALSE),IF(COUNTIF(A1,"*Average*")>0,VLOOKUP(B3,'Data Billing Quantities'!$A:$Z,MATCH("Average kWh",'Data Billing Quantities'!4:4,0),FALSE),IF(COUNTIF(A1,"*High*")>0,VLOOKUP(B3,'Data Billing Quantities'!$A:$Z,MATCH("High kWh",'Data Billing Quantities'!4:4,0),FALSE),"error")))) -> 750
A5: Peak (kW) | B5: =IF(COUNTIF(A1,"*Low*")>0,VLOOKUP(B3,'Data Billing Quantities'!$A:$Z,MATCH("Low kW",'Data Billing Quantities'!4:4,0),FALSE),IF(COUNTIF(A1,"*Typical*")>0,VLOOKUP(B3,'Data Billing Quantities'!$A:$Z,MATCH("Typical kW",'Data Billing Quantities'!4:4,0),FALSE),IF(COUNTIF(A1,"*Average*")>0,VLOOKUP(B3,'Data Billing Quantities'!$A:$Z,MATCH("Average kW",'Data Billing Quantities'!4:4,0),FALSE),IF(COUNTIF(A1,"*High*")>0,VLOOKUP(B3,'Data Billing Quantities'!$A:$Z,MATCH("High kW",'Data Billing Quantities'!4:4,0),FALSE),"error")))) -> 0
A6: Loss factor | B6: =VLOOKUP(B3,'Data Billing Quantities'!A:D,MATCH(A6,'Data Billing Quantities'!4:4,0),FALSE) -> 1.076
A7: Charge determinant | B7: =VLOOKUP(B3,'Data Billing Quantities'!A:D,MATCH(A7,'Data Billing Quantities'!4:4,0),FALSE) -> kWh
B9: Current OEB-Approved | E9: Proposed | H9: Impact
B10: Rate ($) | C10: Volume | D10: Charge ($) | E10: Rate ($) | F10: Volume | G10: Charge ($) | H10: $ Change | I10: % Change
A11: Service Charge | B11: =VLOOKUP($B$3,'Data Current Rates'!$A:$AO,MATCH('BI_R1_Typical (with DRP)'!$A11,CurrentHeader,0),FALSE) -> 71.05 | C11: 1 | D11: =B11*C11 -> 71.05 | E11: =VLOOKUP($B$3,'Data Proposed Rates'!$A:$AQ,MATCH('BI_R1_Typical (with DRP)'!$A11,ProposedHeader,0),FALSE) -> 74.62 | F11: 1 | G11: =E11*F11 -> 74.62 | H11: =G11-D11 -> 3.57 | I11: =IF(ISERROR(H11/ABS(D11)),"N/A",(H11/ABS(D11))) -> 0.05024630542
A12: Distribution Volumetric Charge | B12: =VLOOKUP($B$3,'Data Current Rates'!$A:$AO,MATCH('BI_R1_Typical (with DRP)'!$A12,CurrentHeader,0),FALSE) -> 0 | C12: =IF($B$7="kWh",$B$4,$B$5) -> 750 | D12: =B12*C12 -> 0 | E12: =VLOOKUP($B$3,'Data Proposed Rates'!$A:$AQ,MATCH('BI_R1_Typical (with DRP)'!$A12,ProposedHeader,0),FALSE) -> 0 | F12: =IF($B$7="kWh",$B$4,$B$5) -> 750 | G12: 0 | H12: 0 | I12: N/A
A13: Z-Factor Fixed Rate Rider | E13: =VLOOKUP($B$3,'Data Proposed Rates'!$A:$AQ,MATCH('BI_R1_Typical (with DRP)'!$A13,ProposedHeader,0),FALSE) -> 1.23 | F13: 1 | G13: 1.23 | H13: 1.23 | I13: N/A
A14: RRRP Adjustment | B14: =IF($B$3="R2",VLOOKUP(A14,'Data Pass Through'!$A4:$C19,3,0),0)*-1 -> 0 | C14: 1 | D14: =B14*C14 -> 0 | E14: =IF($B$3="R2",VLOOKUP(A14,'Data Pass Through'!$A4:$C19,3,0),0)*-1 -> 0 | F14: 1 | G14: 0 | H14: 0 | I14: N/A
A15: DRP Adjustment | D15: =IF(OR($B$3="R1",$B$3="R2",$B$3="R1-CPUC"),IF(SUM(D11:D14)>'Data Pass Through'!$B$16,-(SUM(D11:D14)-'Data Pass Through'!$B$16),0),0) -> -28.17 | G15: =IF(OR($B$3="R1",$B$3="R2",$B$3="R1-CPUC"),IF(SUM(G11:G14)>'Data Pass Through'!$B$16,-(SUM(G11:G14)-'Data Pass Through'!$B$16),0),0) -> -32.97 | H15: -4.8 | I15: -0.1703940362
A16: Group 2 Fixed Rate Rider | B16: =VLOOKUP($B$3,'Data Current Rates'!$A:$AO,MATCH('BI_R1_Typical (with DRP)'!$A16,CurrentHeader,0),FALSE) -> -0.21 | C16: 1 | D16: =B16*C16 -> -0.21 | E16: =VLOOKUP($B$3,'Data Proposed Rates'!$A:$AQ,MATCH('BI_R1_Typical (with DRP)'!$A16,ProposedHeader,0),FALSE) -> -2.56 | F16: 1 | G16: =E16*F16 -> -2.56 | H16: -2.35 | I16: -11.19047619
A17: Group 2 Volumetric Rate Rider | B17: =VLOOKUP($B$3,'Data Current Rates'!$A:$AO,MATCH('BI_R1_Typical (with DRP)'!$A17,CurrentHeader,0),FALSE) -> 0 | C17: =IF($B$7="kWh",$B$4,$B$5) -> 750 | D17: =B17*C17 -> 0 | E17: =VLOOKUP($B$3,'Data Proposed Rates'!$A:$AQ,MATCH('BI_R1_Typical (with DRP)'!$A17,ProposedHeader,0),FALSE) -> 0 | F17: =IF($B$7="kWh",$B$4,$B$5) -> 750 | G17: 0 | H17: =G17-D17 -> 0 | I17: =IF(ISERROR(H17/ABS(D17)),"N/A",(H17/ABS(D17))) -> N/A
A18: Sub-Total A (excluding pass through) | D18: =SUM(D11:D17) -> 42.67 | G18: =SUM(G11:G17) -> 40.32 | H18: -2.35 | I18: -0.05507382236
A19: Line Losses on Cost of Power | B19: =VLOOKUP($B$3,'Data Billing Quantities'!$A:$O,MATCH('BI_R1_Typical (with DRP)'!$A34,'Data Billing Quantities'!$4:$4,0),FALSE)*$B34+VLOOKUP($B$3,'Data Billing Quantities'!$A:$O,MATCH('BI_R1_Typical (with DRP)'!$A35,'Data Billing Quantities'!$4:$4,0),FALSE)*$B35+VLOOKUP($B$3,'Data Billing Quantities'!$A:$O,MATCH('BI_R1_Typical (with DRP)'!$A36,'Data Billing Quantities'!$4:$4,0),FALSE)*$B36 -> 0.12752 | C19: =($B$6*$B$4)-$B$4 -> 57 | D19: =B19*C19 -> 7.26864 | E19: =VLOOKUP($B$3,'Data Billing Quantities'!$A:$O,MATCH('BI_R1_Typical (with DRP)'!$A34,'Data Billing Quantities'!$4:$4,0),FALSE)*$B34+VLOOKUP($B$3,'Data Billing Quantities'!$A:$O,MATCH('BI_R1_Typical (with DRP)'!$A35,'Data Billing Quantities'!$4:$4,0),FALSE)*$B35+VLOOKUP($B$3,'Data Billing Quantities'!$A:$O,MATCH('BI_R1_Typical (with DRP)'!$A36,'Data Billing Quantities'!$4:$4,0),FALSE)*$B36 -> 0.12752 | F19: =($B$6*$B$4)-$B$4 -> 57 | G19: 7.26864 | H19: 0 | I19: 0
A20: Total Deferral/Variance Account Rate Rider | B20: =VLOOKUP($B$3,'Data Current Rates'!$A:$AO,MATCH('BI_R1_Typical (with DRP)'!$A20,CurrentHeader,0),FALSE) -> -0.0037 | C20: =IF($B$7="kWh",$B$4,$B$5) -> 750 | D20: -2.775 | E20: =VLOOKUP($B$3,'Data Proposed Rates'!$A:$AQ,MATCH('BI_R1_Typical (with DRP)'!$A20,ProposedHeader,0),FALSE) -> -0.0049 | F20: =IF($B$7="kWh",$B$4,$B$5) -> 750 | G20: -3.675 | H20: -0.9 | I20: -0.3243243243
A21: CBR Class B Rate Rider | B21: =VLOOKUP($B$3,'Data Current Rates'!$A:$AJ,MATCH('BI_R1_Typical (with DRP)'!$A21,CurrentHeader,0),FALSE) -> 0.0001 | C21: =IF($B$7="kWh",$B$4,$B$5) -> 750 | D21: 0.075 | E21: =VLOOKUP($B$3,'Data Proposed Rates'!$A:$AQ,MATCH('BI_R1_Typical (with DRP)'!$A21,ProposedHeader,0),FALSE) -> -0.0006 | F21: =IF($B$7="kWh",$B$4,$B$5) -> 750 | G21: -0.45 | H21: -0.525 | I21: -7
A22: GA Rate Rider | B22: =VLOOKUP($B$3,'Data Current Rates'!$A:$AJ,MATCH('BI_R1_Typical (with DRP)'!$A22,CurrentHeader,0),FALSE) -> 0 | C22: 750 | D22: 0 | E22: =VLOOKUP($B$3,'Data Proposed Rates'!$A:$AQ,MATCH('BI_R1_Typical (with DRP)'!$A22,ProposedHeader,0),FALSE) -> 0 | F22: 750 | G22: 0 | H22: 0 | I22: N/A
A23: Smart Meter Entity Charge (if applicable) | B23: =VLOOKUP($A23,'Data Pass Through'!$A:$D,2,FALSE) -> 0.42 | C23: 1 | D23: 0.42 | E23: =VLOOKUP($A23,'Data Pass Through'!$A:$D,2,FALSE) -> 0.42 | F23: 1 | G23: 0.42 | H23: 0 | I23: 0
A24: Additional Fixed Rate Rider | B24: =VLOOKUP($B$3,'Data Current Rates'!$A:$AJ,MATCH('BI_R1_Typical (with DRP)'!$A24,CurrentHeader,0),FALSE) -> 0 | C24: 1 | D24: 0 | E24: =VLOOKUP($B$3,'Data Proposed Rates'!$A:$AQ,MATCH('BI_R1_Typical (with DRP)'!$A24,ProposedHeader,0),FALSE) -> 0 | F24: 1 | G24: 0 | H24: 0 | I24: N/A
A25: Additional Volumetric Rate Rider | B25: =VLOOKUP($B$3,'Data Current Rates'!$A:$AJ,MATCH('BI_R1_Typical (with DRP)'!$A25,CurrentHeader,0),FALSE) -> 0 | C25: =IF($B$7="kWh",$B$4,$B$5) -> 750 | D25: 0 | E25: =VLOOKUP($B$3,'Data Proposed Rates'!$A:$AQ,MATCH('BI_R1_Typical (with DRP)'!$A25,ProposedHeader,0),FALSE) -> 0 | F25: =IF($B$7="kWh",$B$4,$B$5) -> 750 | G25: 0 | H25: 0 | I25: N/A
A26: Sub-Total B - Distribution (includes Sub-Total A) | D26: =SUM(INDIRECT("D18:D"&ROW()-1)) -> 47.65864 | G26: =SUM(INDIRECT("G18:G"&ROW()-1)) -> 43.88364 | H26: -3.775 | I26: -0.07920914235
A27: Retail Transmission Rate – Network Service Rate | B27: =VLOOKUP($B$3,'Data Current Rates'!$A:$AJ,MATCH('BI_R1_Typical (with DRP)'!$A27,CurrentHeader,0),FALSE) -> 0.0128 | C27: =IF($B$7="kWh",$B$4*$B$6,$B$5) -> 807 | D27: =B27*C27 -> 10.3296 | E27: =VLOOKUP($B$3,'Data Proposed Rates'!$A:$AQ,MATCH('BI_R1_Typical (with DRP)'!$A27,ProposedHeader,0),FALSE) -> 0.0131 | F27: =IF($B$7="kWh",$B$4*$B$6,$B$5) -> 807 | G27: 10.5717 | H27: 0.2421 | I27: 0.0234375
A28: Retail Transmission Rate – Line and Transformation Connection Service Rate | B28: =VLOOKUP($B$3,'Data Current Rates'!$A:$AJ,MATCH('BI_R1_Typical (with DRP)'!$A28,CurrentHeader,0),FALSE) -> 0.0092 | C28: =IF($B$7="kWh",$B$4*$B$6,$B$5) -> 807 | D28: 7.4244 | E28: =VLOOKUP($B$3,'Data Proposed Rates'!$A:$AQ,MATCH('BI_R1_Typical (with DRP)'!$A28,ProposedHeader,0),FALSE) -> 0.0094 | F28: =IF($B$7="kWh",$B$4*$B$6,$B$5) -> 807 | G28: 7.5858 | H28: 0.1614 | I28: 0.02173913043
A29: Sub-Total C - Delivery (including Sub-Total B) | D29: =SUM(D26:D28) -> 65.41264 | G29: =SUM(G26:G28) -> 62.04114 | H29: -3.3715 | I29: -0.05154202613
A30: Wholesale Market Service Rate (WMS) – not including CBR | B30: =VLOOKUP($A30,'Data Pass Through'!$A:$D,2,FALSE) -> 0.0041 | C30: =$B$4*$B$6 -> 807 | D30: =B30*C30 -> 3.3087 | E30: =VLOOKUP($A30,'Data Pass Through'!$A:$D,3,FALSE) -> 0.0041 | F30: =$B$4*$B$6 -> 807 | G30: 3.3087 | H30: 0 | I30: 0
A31: Capacity Based Recovery (CBR) – Applicable for Class B Customers | B31: =VLOOKUP($A31,'Data Pass Through'!$A:$D,2,FALSE) -> 0.0004 | C31: =$B$4*$B$6 -> 807 | D31: 0.3228 | E31: =VLOOKUP($A31,'Data Pass Through'!$A:$D,3,FALSE) -> 0.0004 | F31: =$B$4*$B$6 -> 807 | G31: 0.3228 | H31: 0 | I31: 0
A32: Rural Rate Protection Charge | B32: =VLOOKUP($A32,'Data Pass Through'!$A:$D,2,FALSE) -> 0.0015 | C32: =$B$4*$B$6 -> 807 | D32: 1.2105 | E32: =VLOOKUP($A32,'Data Pass Through'!$A:$D,3,FALSE) -> 0.0015 | F32: =$B$4*$B$6 -> 807 | G32: 1.2105 | H32: 0 | I32: 0
A33: Standard Supply Service – Administration Charge (if applicable) | B33: =VLOOKUP($A33,'Data Pass Through'!$A:$D,2,FALSE) -> 0.25 | C33: 1 | D33: 0.25 | E33: =VLOOKUP($A33,'Data Pass Through'!$A:$D,3,FALSE) -> 0.25 | F33: 1 | G33: 0.25 | H33: 0 | I33: 0
A34: TOU-Off Peak | B34: =VLOOKUP($A34,'Data Pass Through'!$A:$D,2,FALSE) -> 0.098 | C34: =B$4*VLOOKUP($B$3,'Data Billing Quantities'!$A:$O,MATCH($A34,'Data Billing Quantities'!$4:$4,0),FALSE) -> 480 | D34: 47.04 | E34: =VLOOKUP($A34,'Data Pass Through'!$A:$D,3,FALSE) -> 0.098 | F34: =B$4*VLOOKUP($B$3,'Data Billing Quantities'!$A:$O,MATCH($A34,'Data Billing Quantities'!$4:$4,0),FALSE) -> 480 | G34: =E34*F34 -> 47.04 | H34: 0 | I34: 0
A35: TOU-Mid Peak | B35: =VLOOKUP($A35,'Data Pass Through'!$A:$D,2,FALSE) -> 0.157 | C35: =B$4*VLOOKUP($B$3,'Data Billing Quantities'!$A:$O,MATCH($A35,'Data Billing Quantities'!$4:$4,0),FALSE) -> 135 | D35: 21.195 | E35: =VLOOKUP($A35,'Data Pass Through'!$A:$D,3,FALSE) -> 0.157 | F35: =B$4*VLOOKUP($B$3,'Data Billing Quantities'!$A:$O,MATCH($A35,'Data Billing Quantities'!$4:$4,0),FALSE) -> 135 | G35: =E35*F35 -> 21.195 | H35: 0 | I35: 0
A36: TOU-On Peak | B36: =VLOOKUP($A36,'Data Pass Through'!$A:$D,2,FALSE) -> 0.203 | C36: =B$4*VLOOKUP($B$3,'Data Billing Quantities'!$A:$O,MATCH($A36,'Data Billing Quantities'!$4:$4,0),FALSE) -> 135 | D36: 27.405 | E36: =VLOOKUP($A36,'Data Pass Through'!$A:$D,3,FALSE) -> 0.203 | F36: =B$4*VLOOKUP($B$3,'Data Billing Quantities'!$A:$O,MATCH($A36,'Data Billing Quantities'!$4:$4,0),FALSE) -> 135 | G36: =E36*F36 -> 27.405 | H36: 0 | I36: 0
A37: Total Bill on TOU (before Taxes) | D37: =SUM(D29:D36) -> 166.14464 | G37: =SUM(G29:G36) -> 162.77314 | H37: -3.3715 | I37: -0.02029255954
A38: HST | B38: 0.13 | D38: =D37*B38 -> 21.5988032 | E38: =B38 -> 0.13 | G38: =G37*E38 -> 21.1605082 | H38: -0.438295 | I38: -0.02029255954
A39: Ontario Electricity Rebate (OER) | B39: =IF(($B$4*12)<250000,VLOOKUP($A39,'Data Pass Through'!$A$4:$C$19,2,0),0) -> -0.235 | D39: =D37*B39 -> -39.0439904 | E39: =IF(($B$4*12)<250000,VLOOKUP($A39,'Data Pass Through'!$A$4:$C$19,3,0),0) -> -0.235 | G39: =G37*E39 -> -38.2516879 | H39: 0.7923025 | I39: 0.02029255954
A40: Total Bill on TOU | D40: =SUM(D37:D39) -> 148.6994528 | G40: =SUM(G37:G39) -> 145.6819603 | H40: -3.0174925 | I40: -0.02029255954
A41: * Distribution rate protection applies to R1 and R2 customers

Sheet BI_R1_Typical (without DRP)
A1: Bill Impacts (Typical Consumption Level) - R1
A3: Rate Class | B3: =RIGHT(A1,LEN(A1)-FIND("- ",A1,1)-1) -> R1
A4: Monthly Consumption (kWh) | B4: =IF(COUNTIF(A1,"*Low*")>0,VLOOKUP(B3,'Data Billing Quantities'!$A:$Z,MATCH("Low kWh",'Data Billing Quantities'!4:4,0),FALSE),IF(COUNTIF(A1,"*Typical*")>0,VLOOKUP(B3,'Data Billing Quantities'!$A:$Z,MATCH("Typical kWh",'Data Billing Quantities'!4:4,0),FALSE),IF(COUNTIF(A1,"*Average*")>0,VLOOKUP(B3,'Data Billing Quantities'!$A:$Z,MATCH("Average kWh",'Data Billing Quantities'!4:4,0),FALSE),IF(COUNTIF(A1,"*High*")>0,VLOOKUP(B3,'Data Billing Quantities'!$A:$Z,MATCH("High kWh",'Data Billing Quantities'!4:4,0),FALSE),"error")))) -> 750
A5: Peak (kW) | B5: =IF(COUNTIF(A1,"*Low*")>0,VLOOKUP(B3,'Data Billing Quantities'!$A:$Z,MATCH("Low kW",'Data Billing Quantities'!4:4,0),FALSE),IF(COUNTIF(A1,"*Typical*")>0,VLOOKUP(B3,'Data Billing Quantities'!$A:$Z,MATCH("Typical kW",'Data Billing Quantities'!4:4,0),FALSE),IF(COUNTIF(A1,"*Average*")>0,VLOOKUP(B3,'Data Billing Quantities'!$A:$Z,MATCH("Average kW",'Data Billing Quantities'!4:4,0),FALSE),IF(COUNTIF(A1,"*High*")>0,VLOOKUP(B3,'Data Billing Quantities'!$A:$Z,MATCH("High kW",'Data Billing Quantities'!4:4,0),FALSE),"error")))) -> 0
A6: Loss factor | B6: =VLOOKUP(B3,'Data Billing Quantities'!A:D,MATCH(A6,'Data Billing Quantities'!4:4,0),FALSE) -> 1.076
A7: Charge determinant | B7: =VLOOKUP(B3,'Data Billing Quantities'!A:D,MATCH(A7,'Data Billing Quantities'!4:4,0),FALSE) -> kWh
B9: Current OEB-Approved | E9: Proposed | H9: Impact
B10: Rate ($) | C10: Volume | D10: Charge ($) | E10: Rate ($) | F10: Volume | G10: Charge ($) | H10: $ Change | I10: % Change
A11: Service Charge | B11: =VLOOKUP($B$3,'Data Current Rates'!$A:$AO,MATCH('BI_R1_Typical (without DRP)'!$A11,CurrentHeader,0),FALSE) -> 71.05 | C11: 1 | D11: =B11*C11 -> 71.05 | E11: =VLOOKUP($B$3,'Data Proposed Rates'!$A:$AQ,MATCH('BI_R1_Typical (without DRP)'!$A11,ProposedHeader,0),FALSE) -> 74.62 | F11: 1 | G11: =E11*F11 -> 74.62 | H11: =G11-D11 -> 3.57 | I11: =IF(ISERROR(H11/ABS(D11)),"N/A",(H11/ABS(D11))) -> 0.05024630542
A12: Distribution Volumetric Charge | B12: =VLOOKUP($B$3,'Data Current Rates'!$A:$AO,MATCH('BI_R1_Typical (without DRP)'!$A12,CurrentHeader,0),FALSE) -> 0 | C12: =IF($B$7="kWh",$B$4,$B$5) -> 750 | D12: =B12*C12 -> 0 | E12: =VLOOKUP($B$3,'Data Proposed Rates'!$A:$AQ,MATCH('BI_R1_Typical (without DRP)'!$A12,ProposedHeader,0),FALSE) -> 0 | F12: =IF($B$7="kWh",$B$4,$B$5) -> 750 | G12: 0 | H12: 0 | I12: N/A
A13: Z-Factor Fixed Rate Rider | E13: =VLOOKUP($B$3,'Data Proposed Rates'!$A:$AQ,MATCH('BI_R1_Typical (without DRP)'!$A13,ProposedHeader,0),FALSE) -> 1.23 | F13: 1 | G13: 1.23 | H13: 1.23 | I13: N/A
A14: RRRP Adjustment | B14: =IF($B$3="R2",VLOOKUP(A14,'Data Pass Through'!$A4:$C19,3,0),0)*-1 -> 0 | C14: 1 | D14: =B14*C14 -> 0 | E14: =IF($B$3="R2",VLOOKUP(A14,'Data Pass Through'!$A4:$C19,3,0),0)*-1 -> 0 | F14: 1 | G14: 0 | H14: 0 | I14: N/A
A15: DRP Adjustment | D15: 0 | G15: 0 | H15: 0 | I15: N/A
A16: Group 2 Fixed Rate Rider | B16: =VLOOKUP($B$3,'Data Current Rates'!$A:$AO,MATCH('BI_R1_Typical (without DRP)'!$A16,CurrentHeader,0),FALSE) -> -0.21 | C16: 1 | D16: =B16*C16 -> -0.21 | E16: =VLOOKUP($B$3,'Data Proposed Rates'!$A:$AQ,MATCH('BI_R1_Typical (without DRP)'!$A16,ProposedHeader,0),FALSE) -> -2.56 | F16: 1 | G16: =E16*F16 -> -2.56 | H16: -2.35 | I16: -11.19047619
A17: Group 2 Volumetric Rate Rider | B17: =VLOOKUP($B$3,'Data Current Rates'!$A:$AO,MATCH('BI_R1_Typical (without DRP)'!$A17,CurrentHeader,0),FALSE) -> 0 | C17: =IF($B$7="kWh",$B$4,$B$5) -> 750 | D17: =B17*C17 -> 0 | E17: =VLOOKUP($B$3,'Data Proposed Rates'!$A:$AQ,MATCH('BI_R1_Typical (without DRP)'!$A17,ProposedHeader,0),FALSE) -> 0 | F17: =IF($B$7="kWh",$B$4,$B$5) -> 750 | G17: 0 | H17: =G17-D17 -> 0 | I17: =IF(ISERROR(H17/ABS(D17)),"N/A",(H17/ABS(D17))) -> N/A
A18: Sub-Total A (excluding pass through) | D18: =SUM(D11:D17) -> 70.84 | G18: =SUM(G11:G17) -> 73.29 | H18: 2.45 | I18: 0.03458498024
A19: Line Losses on Cost of Power | B19: =VLOOKUP($B$3,'Data Billing Quantities'!$A:$O,MATCH('BI_R1_Typical (without DRP)'!$A34,'Data Billing Quantities'!$4:$4,0),FALSE)*$B34+VLOOKUP($B$3,'Data Billing Quantities'!$A:$O,MATCH('BI_R1_Typical (without DRP)'!$A35,'Data Billing Quantities'!$4:$4,0),FALSE)*$B35+VLOOKUP($B$3,'Data Billing Quantities'!$A:$O,MATCH('BI_R1_Typical (without DRP)'!$A36,'Data Billing Quantities'!$4:$4,0),FALSE)*$B36 -> 0.12752 | C19: =($B$6*$B$4)-$B$4 -> 57 | D19: =B19*C19 -> 7.26864 | E19: =VLOOKUP($B$3,'Data Billing Quantities'!$A:$O,MATCH('BI_R1_Typical (without DRP)'!$A34,'Data Billing Quantities'!$4:$4,0),FALSE)*$B34+VLOOKUP($B$3,'Data Billing Quantities'!$A:$O,MATCH('BI_R1_Typical (without DRP)'!$A35,'Data Billing Quantities'!$4:$4,0),FALSE)*$B35+VLOOKUP($B$3,'Data Billing Quantities'!$A:$O,MATCH('BI_R1_Typical (without DRP)'!$A36,'Data Billing Quantities'!$4:$4,0),FALSE)*$B36 -> 0.12752 | F19: =($B$6*$B$4)-$B$4 -> 57 | G19: 7.26864 | H19: 0 | I19: 0
A20: Total Deferral/Variance Account Rate Rider | B20: =VLOOKUP($B$3,'Data Current Rates'!$A:$AO,MATCH('BI_R1_Typical (without DRP)'!$A20,CurrentHeader,0),FALSE) -> -0.0037 | C20: =IF($B$7="kWh",$B$4,$B$5) -> 750 | D20: -2.775 | E20: =VLOOKUP($B$3,'Data Proposed Rates'!$A:$AQ,MATCH('BI_R1_Typical (without DRP)'!$A20,ProposedHeader,0),FALSE) -> -0.0049 | F20: =IF($B$7="kWh",$B$4,$B$5) -> 750 | G20: -3.675 | H20: -0.9 | I20: -0.3243243243
A21: CBR Class B Rate Rider | B21: =VLOOKUP($B$3,'Data Current Rates'!$A:$AJ,MATCH('BI_R1_Typical (without DRP)'!$A21,CurrentHeader,0),FALSE) -> 0.0001 | C21: =IF($B$7="kWh",$B$4,$B$5) -> 750 | D21: 0.075 | E21: =VLOOKUP($B$3,'Data Proposed Rates'!$A:$AQ,MATCH('BI_R1_Typical (without DRP)'!$A21,ProposedHeader,0),FALSE) -> -0.0006 | F21: =IF($B$7="kWh",$B$4,$B$5) -> 750 | G21: -0.45 | H21: -0.525 | I21: -7
A22: GA Rate Rider | B22: =VLOOKUP($B$3,'Data Current Rates'!$A:$AJ,MATCH('BI_R1_Typical (without DRP)'!$A22,CurrentHeader,0),FALSE) -> 0 | C22: 750 | D22: 0 | E22: =VLOOKUP($B$3,'Data Proposed Rates'!$A:$AQ,MATCH('BI_R1_Typical (without DRP)'!$A22,ProposedHeader,0),FALSE) -> 0 | F22: 750 | G22: 0 | H22: 0 | I22: N/A
A23: Smart Meter Entity Charge (if applicable) | B23: =VLOOKUP($A23,'Data Pass Through'!$A:$D,2,FALSE) -> 0.42 | C23: 1 | D23: 0.42 | E23: =VLOOKUP($A23,'Data Pass Through'!$A:$D,2,FALSE) -> 0.42 | F23: 1 | G23: 0.42 | H23: 0 | I23: 0
A24: Additional Fixed Rate Rider | B24: =VLOOKUP($B$3,'Data Current Rates'!$A:$AJ,MATCH('BI_R1_Typical (without DRP)'!$A24,CurrentHeader,0),FALSE) -> 0 | C24: 1 | D24: 0 | E24: =VLOOKUP($B$3,'Data Proposed Rates'!$A:$AQ,MATCH('BI_R1_Typical (without DRP)'!$A24,ProposedHeader,0),FALSE) -> 0 | F24: 1 | G24: 0 | H24: 0 | I24: N/A
A25: Additional Volumetric Rate Rider | B25: =VLOOKUP($B$3,'Data Current Rates'!$A:$AJ,MATCH('BI_R1_Typical (without DRP)'!$A25,CurrentHeader,0),FALSE) -> 0 | C25: =IF($B$7="kWh",$B$4,$B$5) -> 750 | D25: 0 | E25: =VLOOKUP($B$3,'Data Proposed Rates'!$A:$AQ,MATCH('BI_R1_Typical (without DRP)'!$A25,ProposedHeader,0),FALSE) -> 0 | F25: =IF($B$7="kWh",$B$4,$B$5) -> 750 | G25: 0 | H25: 0 | I25: N/A
A26: Sub-Total B - Distribution (includes Sub-Total A) | D26: =SUM(INDIRECT("D18:D"&ROW()-1)) -> 75.82864 | G26: =SUM(INDIRECT("G18:G"&ROW()-1)) -> 76.85364 | H26: 1.025 | I26: 0.0135173201
A27: Retail Transmission Rate – Network Service Rate | B27: =VLOOKUP($B$3,'Data Current Rates'!$A:$AJ,MATCH('BI_R1_Typical (without DRP)'!$A27,CurrentHeader,0),FALSE) -> 0.0128 | C27: =IF($B$7="kWh",$B$4*$B$6,$B$5) -> 807 | D27: =B27*C27 -> 10.3296 | E27: =VLOOKUP($B$3,'Data Proposed Rates'!$A:$AQ,MATCH('BI_R1_Typical (without DRP)'!$A27,ProposedHeader,0),FALSE) -> 0.0131 | F27: =IF($B$7="kWh",$B$4*$B$6,$B$5) -> 807 | G27: 10.5717 | H27: 0.2421 | I27: 0.0234375
A28: Retail Transmission Rate – Line and Transformation Connection Service Rate | B28: =VLOOKUP($B$3,'Data Current Rates'!$A:$AJ,MATCH('BI_R1_Typical (without DRP)'!$A28,CurrentHeader,0),FALSE) -> 0.0092 | C28: =IF($B$7="kWh",$B$4*$B$6,$B$5) -> 807 | D28: 7.4244 | E28: =VLOOKUP($B$3,'Data Proposed Rates'!$A:$AQ,MATCH('BI_R1_Typical (without DRP)'!$A28,ProposedHeader,0),FALSE) -> 0.0094 | F28: =IF($B$7="kWh",$B$4*$B$6,$B$5) -> 807 | G28: 7.5858 | H28: 0.1614 | I28: 0.02173913043
A29: Sub-Total C - Delivery (including Sub-Total B) | D29: =SUM(D26:D28) -> 93.58264 | G29: =SUM(G26:G28) -> 95.01114 | H29: 1.4285 | I29: 0.01526458326
A30: Wholesale Market Service Rate (WMS) – not including CBR | B30: =VLOOKUP($A30,'Data Pass Through'!$A:$D,2,FALSE) -> 0.0041 | C30: =$B$4*$B$6 -> 807 | D30: =B30*C30 -> 3.3087 | E30: =VLOOKUP($A30,'Data Pass Through'!$A:$D,3,FALSE) -> 0.0041 | F30: =$B$4*$B$6 -> 807 | G30: 3.3087 | H30: 0 | I30: 0
A31: Capacity Based Recovery (CBR) – Applicable for Class B Customers | B31: =VLOOKUP($A31,'Data Pass Through'!$A:$D,2,FALSE) -> 0.0004 | C31: =$B$4*$B$6 -> 807 | D31: 0.3228 | E31: =VLOOKUP($A31,'Data Pass Through'!$A:$D,3,FALSE) -> 0.0004 | F31: =$B$4*$B$6 -> 807 | G31: 0.3228 | H31: 0 | I31: 0
A32: Rural Rate Protection Charge | B32: =VLOOKUP($A32,'Data Pass Through'!$A:$D,2,FALSE) -> 0.0015 | C32: =$B$4*$B$6 -> 807 | D32: 1.2105 | E32: =VLOOKUP($A32,'Data Pass Through'!$A:$D,3,FALSE) -> 0.0015 | F32: =$B$4*$B$6 -> 807 | G32: 1.2105 | H32: 0 | I32: 0
A33: Standard Supply Service – Administration Charge (if applicable) | B33: =VLOOKUP($A33,'Data Pass Through'!$A:$D,2,FALSE) -> 0.25 | C33: 1 | D33: 0.25 | E33: =VLOOKUP($A33,'Data Pass Through'!$A:$D,3,FALSE) -> 0.25 | F33: 1 | G33: 0.25 | H33: 0 | I33: 0
A34: TOU-Off Peak | B34: =VLOOKUP($A34,'Data Pass Through'!$A:$D,2,FALSE) -> 0.098 | C34: =B$4*VLOOKUP($B$3,'Data Billing Quantities'!$A:$O,MATCH($A34,'Data Billing Quantities'!$4:$4,0),FALSE) -> 480 | D34: 47.04 | E34: =VLOOKUP($A34,'Data Pass Through'!$A:$D,3,FALSE) -> 0.098 | F34: =B$4*VLOOKUP($B$3,'Data Billing Quantities'!$A:$O,MATCH($A34,'Data Billing Quantities'!$4:$4,0),FALSE) -> 480 | G34: =E34*F34 -> 47.04 | H34: 0 | I34: 0
A35: TOU-Mid Peak | B35: =VLOOKUP($A35,'Data Pass Through'!$A:$D,2,FALSE) -> 0.157 | C35: =B$4*VLOOKUP($B$3,'Data Billing Quantities'!$A:$O,MATCH($A35,'Data Billing Quantities'!$4:$4,0),FALSE) -> 135 | D35: 21.195 | E35: =VLOOKUP($A35,'Data Pass Through'!$A:$D,3,FALSE) -> 0.157 | F35: =B$4*VLOOKUP($B$3,'Data Billing Quantities'!$A:$O,MATCH($A35,'Data Billing Quantities'!$4:$4,0),FALSE) -> 135 | G35: =E35*F35 -> 21.195 | H35: 0 | I35: 0
A36: TOU-On Peak | B36: =VLOOKUP($A36,'Data Pass Through'!$A:$D,2,FALSE) -> 0.203 | C36: =B$4*VLOOKUP($B$3,'Data Billing Quantities'!$A:$O,MATCH($A36,'Data Billing Quantities'!$4:$4,0),FALSE) -> 135 | D36: 27.405 | E36: =VLOOKUP($A36,'Data Pass Through'!$A:$D,3,FALSE) -> 0.203 | F36: =B$4*VLOOKUP($B$3,'Data Billing Quantities'!$A:$O,MATCH($A36,'Data Billing Quantities'!$4:$4,0),FALSE) -> 135 | G36: =E36*F36 -> 27.405 | H36: 0 | I36: 0
A37: Total Bill on TOU (before Taxes) | D37: =SUM(D29:D36) -> 194.31464 | G37: =SUM(G29:G36) -> 195.74314 | H37: 1.4285 | I37: 0.007351479024
A38: HST | B38: 0.13 | D38: =D37*B38 -> 25.2609032 | E38: =B38 -> 0.13 | G38: =G37*E38 -> 25.4466082 | H38: 0.185705 | I38: 0.007351479024
A39: Ontario Electricity Rebate (OER) | B39: =IF(($B$4*12)<250000,VLOOKUP($A39,'Data Pass Through'!$A$4:$C$19,2,0),0) -> -0.235 | D39: =D37*B39 -> -45.6639404 | E39: =IF(($B$4*12)<250000,VLOOKUP($A39,'Data Pass Through'!$A$4:$C$19,3,0),0) -> -0.235 | G39: =G37*E39 -> -45.9996379 | H39: -0.3356975 | I39: -0.007351479024
A40: Total Bill on TOU | D40: =SUM(D37:D39) -> 173.9116028 | G40: =SUM(G37:G39) -> 175.1901103 | H40: 1.2785075 | I40: 0.007351479024
A41: * Distribution rate protection applies to R1 and R2 customers

Sheet BI_R2_Typical (with DRP)
A1: Bill Impacts (Typical Consumption Level) - R2
A3: Rate Class | B3: =RIGHT(A1,LEN(A1)-FIND("- ",A1,1)-1) -> R2
A4: Monthly Consumption (kWh) | B4: =IF(COUNTIF(A1,"*Low*")>0,VLOOKUP(B3,'Data Billing Quantities'!$A:$Z,MATCH("Low kWh",'Data Billing Quantities'!4:4,0),FALSE),IF(COUNTIF(A1,"*Typical*")>0,VLOOKUP(B3,'Data Billing Quantities'!$A:$Z,MATCH("Typical kWh",'Data Billing Quantities'!4:4,0),FALSE),IF(COUNTIF(A1,"*Average*")>0,VLOOKUP(B3,'Data Billing Quantities'!$A:$Z,MATCH("Average kWh",'Data Billing Quantities'!4:4,0),FALSE),IF(COUNTIF(A1,"*High*")>0,VLOOKUP(B3,'Data Billing Quantities'!$A:$Z,MATCH("High kWh",'Data Billing Quantities'!4:4,0),FALSE),"error")))) -> 750
A5: Peak (kW) | B5: =IF(COUNTIF(A1,"*Low*")>0,VLOOKUP(B3,'Data Billing Quantities'!$A:$Z,MATCH("Low kW",'Data Billing Quantities'!4:4,0),FALSE),IF(COUNTIF(A1,"*Typical*")>0,VLOOKUP(B3,'Data Billing Quantities'!$A:$Z,MATCH("Typical kW",'Data Billing Quantities'!4:4,0),FALSE),IF(COUNTIF(A1,"*Average*")>0,VLOOKUP(B3,'Data Billing Quantities'!$A:$Z,MATCH("Average kW",'Data Billing Quantities'!4:4,0),FALSE),IF(COUNTIF(A1,"*High*")>0,VLOOKUP(B3,'Data Billing Quantities'!$A:$Z,MATCH("High kW",'Data Billing Quantities'!4:4,0),FALSE),"error")))) -> 0
A6: Loss factor | B6: =VLOOKUP(B3,'Data Billing Quantities'!A:D,MATCH(A6,'Data Billing Quantities'!4:4,0),FALSE) -> 1.105
A7: Charge determinant | B7: =VLOOKUP(B3,'Data Billing Quantities'!A:D,MATCH(A7,'Data Billing Quantities'!4:4,0),FALSE) -> kWh
B9: Current OEB-Approved | E9: Proposed | H9: Impact
B10: Rate ($) | C10: Volume | D10: Charge ($) | E10: Rate ($) | F10: Volume | G10: Charge ($) | H10: $ Change | I10: % Change
A11: Service Charge | B11: =VLOOKUP($B$3,'Data Current Rates'!$A:$AO,MATCH('BI_R2_Typical (with DRP)'!$A11,CurrentHeader,0),FALSE) -> 143.96 | C11: 1 | D11: =B11*C11 -> 143.96 | E11: =VLOOKUP($B$3,'Data Proposed Rates'!$A:$AQ,MATCH('BI_R2_Typical (with DRP)'!$A11,ProposedHeader,0),FALSE) -> 151.14 | F11: 1 | G11: =E11*F11 -> 151.14 | H11: =G11-D11 -> 7.18 | I11: =IF(ISERROR(H11/ABS(D11)),"N/A",(H11/ABS(D11))) -> 0.04987496527
A12: Distribution Volumetric Charge | B12: =VLOOKUP($B$3,'Data Current Rates'!$A:$AO,MATCH('BI_R2_Typical (with DRP)'!$A12,CurrentHeader,0),FALSE) -> 0.0121 | C12: =IF($B$7="kWh",$B$4,$B$5) -> 750 | D12: =B12*C12 -> 9.075 | E12: =VLOOKUP($B$3,'Data Proposed Rates'!$A:$AQ,MATCH('BI_R2_Typical (with DRP)'!$A12,ProposedHeader,0),FALSE) -> 0.0117 | F12: =IF($B$7="kWh",$B$4,$B$5) -> 750 | G12: 8.775 | H12: -0.3 | I12: -0.03305785124
A13: Z-Factor Fixed Rate Rider | E13: =VLOOKUP($B$3,'Data Proposed Rates'!$A:$AQ,MATCH('BI_R2_Typical (with DRP)'!$A13,ProposedHeader,0),FALSE) -> 2.49 | F13: 1 | G13: 2.49 | H13: 2.49 | I13: N/A
A14: RRRP Adjustment | B14: =IF($B$3="R2",VLOOKUP(A14,'Data Pass Through'!$A4:$C19,3,0),0)*-1 -> -60.5 | C14: 1 | D14: =B14*C14 -> -60.5 | E14: =IF($B$3="R2",VLOOKUP(A14,'Data Pass Through'!$A4:$C19,3,0),0)*-1 -> -60.5 | F14: 1 | G14: -60.5 | H14: 0 | I14: 0
A15: DRP Adjustment | D15: =IF(OR($B$3="R1",$B$3="R2",$B$3="R1-CPUC"),IF(SUM(D11:D14)>'Data Pass Through'!$B$16,-(SUM(D11:D14)-'Data Pass Through'!$B$16),0),0) -> -49.655 | G15: =IF(OR($B$3="R1",$B$3="R2",$B$3="R1-CPUC"),IF(SUM(G11:G14)>'Data Pass Through'!$B$16,-(SUM(G11:G14)-'Data Pass Through'!$B$16),0),0) -> -59.025 | H15: -9.37 | I15: -0.1887020441
A16: Group 2 Fixed Rate Rider | B16: =VLOOKUP($B$3,'Data Current Rates'!$A:$AO,MATCH('BI_R2_Typical (with DRP)'!$A16,CurrentHeader,0),FALSE) -> -0.44 | C16: 1 | D16: =B16*C16 -> -0.44 | E16: =VLOOKUP($B$3,'Data Proposed Rates'!$A:$AQ,MATCH('BI_R2_Typical (with DRP)'!$A16,ProposedHeader,0),FALSE) -> -5.18 | F16: 1 | G16: =E16*F16 -> -5.18 | H16: -4.74 | I16: -10.77272727
A17: Group 2 Volumetric Rate Rider | B17: =VLOOKUP($B$3,'Data Current Rates'!$A:$AO,MATCH('BI_R2_Typical (with DRP)'!$A17,CurrentHeader,0),FALSE) -> 0 | C17: =IF($B$7="kWh",$B$4,$B$5) -> 750 | D17: =B17*C17 -> 0 | E17: =VLOOKUP($B$3,'Data Proposed Rates'!$A:$AQ,MATCH('BI_R2_Typical (with DRP)'!$A17,ProposedHeader,0),FALSE) -> 0 | F17: =IF($B$7="kWh",$B$4,$B$5) -> 750 | G17: 0 | H17: =G17-D17 -> 0 | I17: =IF(ISERROR(H17/ABS(D17)),"N/A",(H17/ABS(D17))) -> N/A
A18: Sub-Total A (excluding pass through) | D18: =SUM(D11:D17) -> 42.44 | G18: =SUM(G11:G17) -> 37.7 | H18: -4.74 | I18: -0.1116870877
A19: Line Losses on Cost of Power | B19: =VLOOKUP($B$3,'Data Billing Quantities'!$A:$O,MATCH('BI_R2_Typical (with DRP)'!$A34,'Data Billing Quantities'!$4:$4,0),FALSE)*$B34+VLOOKUP($B$3,'Data Billing Quantities'!$A:$O,MATCH('BI_R2_Typical (with DRP)'!$A35,'Data Billing Quantities'!$4:$4,0),FALSE)*$B35+VLOOKUP($B$3,'Data Billing Quantities'!$A:$O,MATCH('BI_R2_Typical (with DRP)'!$A36,'Data Billing Quantities'!$4:$4,0),FALSE)*$B36 -> 0.12752 | C19: =($B$6*$B$4)-$B$4 -> 78.75 | D19: =B19*C19 -> 10.0422 | E19: =VLOOKUP($B$3,'Data Billing Quantities'!$A:$O,MATCH('BI_R2_Typical (with DRP)'!$A34,'Data Billing Quantities'!$4:$4,0),FALSE)*$B34+VLOOKUP($B$3,'Data Billing Quantities'!$A:$O,MATCH('BI_R2_Typical (with DRP)'!$A35,'Data Billing Quantities'!$4:$4,0),FALSE)*$B35+VLOOKUP($B$3,'Data Billing Quantities'!$A:$O,MATCH('BI_R2_Typical (with DRP)'!$A36,'Data Billing Quantities'!$4:$4,0),FALSE)*$B36 -> 0.12752 | F19: =($B$6*$B$4)-$B$4 -> 78.75 | G19: 10.0422 | H19: 0 | I19: 0
A20: Total Deferral/Variance Account Rate Rider | B20: =VLOOKUP($B$3,'Data Current Rates'!$A:$AO,MATCH('BI_R2_Typical (with DRP)'!$A20,CurrentHeader,0),FALSE) -> -0.0037 | C20: =IF($B$7="kWh",$B$4,$B$5) -> 750 | D20: -2.775 | E20: =VLOOKUP($B$3,'Data Proposed Rates'!$A:$AQ,MATCH('BI_R2_Typical (with DRP)'!$A20,ProposedHeader,0),FALSE) -> -0.0049 | F20: =IF($B$7="kWh",$B$4,$B$5) -> 750 | G20: -3.675 | H20: -0.9 | I20: -0.3243243243
A21: CBR Class B Rate Rider | B21: =VLOOKUP($B$3,'Data Current Rates'!$A:$AJ,MATCH('BI_R2_Typical (with DRP)'!$A21,CurrentHeader,0),FALSE) -> 0.0001 | C21: =IF($B$7="kWh",$B$4,$B$5) -> 750 | D21: 0.075 | E21: =VLOOKUP($B$3,'Data Proposed Rates'!$A:$AQ,MATCH('BI_R2_Typical (with DRP)'!$A21,ProposedHeader,0),FALSE) -> -0.0006 | F21: =IF($B$7="kWh",$B$4,$B$5) -> 750 | G21: -0.45 | H21: -0.525 | I21: -7
A22: GA Rate Rider | B22: =VLOOKUP($B$3,'Data Current Rates'!$A:$AJ,MATCH('BI_R2_Typical (with DRP)'!$A22,CurrentHeader,0),FALSE) -> 0 | C22: 750 | D22: 0 | E22: =VLOOKUP($B$3,'Data Proposed Rates'!$A:$AQ,MATCH('BI_R2_Typical (with DRP)'!$A22,ProposedHeader,0),FALSE) -> 0 | F22: 750 | G22: 0 | H22: 0 | I22: N/A
A23: Smart Meter Entity Charge (if applicable) | B23: =VLOOKUP($A23,'Data Pass Through'!$A:$D,2,FALSE) -> 0.42 | C23: 1 | D23: 0.42 | E23: =VLOOKUP($A23,'Data Pass Through'!$A:$D,2,FALSE) -> 0.42 | F23: 1 | G23: 0.42 | H23: 0 | I23: 0
A24: Additional Fixed Rate Rider | B24: =VLOOKUP($B$3,'Data Current Rates'!$A:$AJ,MATCH('BI_R2_Typical (with DRP)'!$A24,CurrentHeader,0),FALSE) -> 0 | C24: 1 | D24: 0 | E24: =VLOOKUP($B$3,'Data Proposed Rates'!$A:$AQ,MATCH('BI_R2_Typical (with DRP)'!$A24,ProposedHeader,0),FALSE) -> 0 | F24: 1 | G24: 0 | H24: 0 | I24: N/A
A25: Additional Volumetric Rate Rider | B25: =VLOOKUP($B$3,'Data Current Rates'!$A:$AJ,MATCH('BI_R2_Typical (with DRP)'!$A25,CurrentHeader,0),FALSE) -> 0 | C25: =IF($B$7="kWh",$B$4,$B$5) -> 750 | D25: 0 | E25: =VLOOKUP($B$3,'Data Proposed Rates'!$A:$AQ,MATCH('BI_R2_Typical (with DRP)'!$A25,ProposedHeader,0),FALSE) -> 0 | F25: =IF($B$7="kWh",$B$4,$B$5) -> 750 | G25: 0 | H25: 0 | I25: N/A
A26: Sub-Total B - Distribution (includes Sub-Total A) | D26: =SUM(INDIRECT("D18:D"&ROW()-1)) -> 50.2022 | G26: =SUM(INDIRECT("G18:G"&ROW()-1)) -> 44.0372 | H26: -6.165 | I26: -0.1228033831
A27: Retail Transmission Rate – Network Service Rate | B27: =VLOOKUP($B$3,'Data Current Rates'!$A:$AJ,MATCH('BI_R2_Typical (with DRP)'!$A27,CurrentHeader,0),FALSE) -> 0.0118 | C27: =IF($B$7="kWh",$B$4*$B$6,$B$5) -> 828.75 | D27: =B27*C27 -> 9.77925 | E27: =VLOOKUP($B$3,'Data Proposed Rates'!$A:$AQ,MATCH('BI_R2_Typical (with DRP)'!$A27,ProposedHeader,0),FALSE) -> 0.0121 | F27: =IF($B$7="kWh",$B$4*$B$6,$B$5) -> 828.75 | G27: 10.027875 | H27: 0.248625 | I27: 0.02542372881
A28: Retail Transmission Rate – Line and Transformation Connection Service Rate | B28: =VLOOKUP($B$3,'Data Current Rates'!$A:$AJ,MATCH('BI_R2_Typical (with DRP)'!$A28,CurrentHeader,0),FALSE) -> 0.0086 | C28: =IF($B$7="kWh",$B$4*$B$6,$B$5) -> 828.75 | D28: 7.12725 | E28: =VLOOKUP($B$3,'Data Proposed Rates'!$A:$AQ,MATCH('BI_R2_Typical (with DRP)'!$A28,ProposedHeader,0),FALSE) -> 0.0088 | F28: =IF($B$7="kWh",$B$4*$B$6,$B$5) -> 828.75 | G28: 7.293 | H28: 0.16575 | I28: 0.02325581395
A29: Sub-Total C - Delivery (including Sub-Total B) | D29: =SUM(D26:D28) -> 67.1087 | G29: =SUM(G26:G28) -> 61.358075 | H29: -5.750625 | I29: -0.0856911995
A30: Wholesale Market Service Rate (WMS) – not including CBR | B30: =VLOOKUP($A30,'Data Pass Through'!$A:$D,2,FALSE) -> 0.0041 | C30: =$B$4*$B$6 -> 828.75 | D30: =B30*C30 -> 3.397875 | E30: =VLOOKUP($A30,'Data Pass Through'!$A:$D,3,FALSE) -> 0.0041 | F30: =$B$4*$B$6 -> 828.75 | G30: 3.397875 | H30: 0 | I30: 0
A31: Capacity Based Recovery (CBR) – Applicable for Class B Customers | B31: =VLOOKUP($A31,'Data Pass Through'!$A:$D,2,FALSE) -> 0.0004 | C31: =$B$4*$B$6 -> 828.75 | D31: 0.3315 | E31: =VLOOKUP($A31,'Data Pass Through'!$A:$D,3,FALSE) -> 0.0004 | F31: =$B$4*$B$6 -> 828.75 | G31: 0.3315 | H31: 0 | I31: 0
A32: Rural Rate Protection Charge | B32: =VLOOKUP($A32,'Data Pass Through'!$A:$D,2,FALSE) -> 0.0015 | C32: =$B$4*$B$6 -> 828.75 | D32: 1.243125 | E32: =VLOOKUP($A32,'Data Pass Through'!$A:$D,3,FALSE) -> 0.0015 | F32: =$B$4*$B$6 -> 828.75 | G32: 1.243125 | H32: 0 | I32: 0
A33: Standard Supply Service – Administration Charge (if applicable) | B33: =VLOOKUP($A33,'Data Pass Through'!$A:$D,2,FALSE) -> 0.25 | C33: 1 | D33: 0.25 | E33: =VLOOKUP($A33,'Data Pass Through'!$A:$D,3,FALSE) -> 0.25 | F33: 1 | G33: 0.25 | H33: 0 | I33: 0
A34: TOU-Off Peak | B34: =VLOOKUP($A34,'Data Pass Through'!$A:$D,2,FALSE) -> 0.098 | C34: =B$4*VLOOKUP($B$3,'Data Billing Quantities'!$A:$O,MATCH($A34,'Data Billing Quantities'!$4:$4,0),FALSE) -> 480 | D34: 47.04 | E34: =VLOOKUP($A34,'Data Pass Through'!$A:$D,3,FALSE) -> 0.098 | F34: =B$4*VLOOKUP($B$3,'Data Billing Quantities'!$A:$O,MATCH($A34,'Data Billing Quantities'!$4:$4,0),FALSE) -> 480 | G34: =E34*F34 -> 47.04 | H34: 0 | I34: 0
A35: TOU-Mid Peak | B35: =VLOOKUP($A35,'Data Pass Through'!$A:$D,2,FALSE) -> 0.157 | C35: =B$4*VLOOKUP($B$3,'Data Billing Quantities'!$A:$O,MATCH($A35,'Data Billing Quantities'!$4:$4,0),FALSE) -> 135 | D35: 21.195 | E35: =VLOOKUP($A35,'Data Pass Through'!$A:$D,3,FALSE) -> 0.157 | F35: =B$4*VLOOKUP($B$3,'Data Billing Quantities'!$A:$O,MATCH($A35,'Data Billing Quantities'!$4:$4,0),FALSE) -> 135 | G35: =E35*F35 -> 21.195 | H35: 0 | I35: 0
A36: TOU-On Peak | B36: =VLOOKUP($A36,'Data Pass Through'!$A:$D,2,FALSE) -> 0.203 | C36: =B$4*VLOOKUP($B$3,'Data Billing Quantities'!$A:$O,MATCH($A36,'Data Billing Quantities'!$4:$4,0),FALSE) -> 135 | D36: 27.405 | E36: =VLOOKUP($A36,'Data Pass Through'!$A:$D,3,FALSE) -> 0.203 | F36: =B$4*VLOOKUP($B$3,'Data Billing Quantities'!$A:$O,MATCH($A36,'Data Billing Quantities'!$4:$4,0),FALSE) -> 135 | G36: =E36*F36 -> 27.405 | H36: 0 | I36: 0
A37: Total Bill on TOU (before Taxes) | D37: =SUM(D29:D36) -> 167.9712 | G37: =SUM(G29:G36) -> 162.220575 | H37: -5.750625 | I37: -0.03423577971
A38: HST | B38: 0.13 | D38: =D37*B38 -> 21.836256 | E38: =B38 -> 0.13 | G38: =G37*E38 -> 21.08867475 | H38: -0.74758125 | I38: -0.03423577971
A39: Ontario Electricity Rebate (OER) | B39: =IF(($B$4*12)<250000,VLOOKUP($A39,'Data Pass Through'!$A$4:$C$19,2,0),0) -> -0.235 | D39: =D37*B39 -> -39.473232 | E39: =IF(($B$4*12)<250000,VLOOKUP($A39,'Data Pass Through'!$A$4:$C$19,3,0),0) -> -0.235 | G39: =G37*E39 -> -38.12183513 | H39: 1.351396875 | I39: 0.03423577971
A40: Total Bill on TOU | D40: =SUM(D37:D39) -> 150.334224 | G40: =SUM(G37:G39) -> 145.1874146 | H40: -5.146809375 | I40: -0.03423577971
A41: * Distribution rate protection applies to R1 and R2 customers

Sheet BI_R2_Typical (without DRP)
A1: Bill Impacts (Typical Consumption Level) - R2
A3: Rate Class | B3: =RIGHT(A1,LEN(A1)-FIND("- ",A1,1)-1) -> R2
A4: Monthly Consumption (kWh) | B4: =IF(COUNTIF(A1,"*Low*")>0,VLOOKUP(B3,'Data Billing Quantities'!$A:$Z,MATCH("Low kWh",'Data Billing Quantities'!4:4,0),FALSE),IF(COUNTIF(A1,"*Typical*")>0,VLOOKUP(B3,'Data Billing Quantities'!$A:$Z,MATCH("Typical kWh",'Data Billing Quantities'!4:4,0),FALSE),IF(COUNTIF(A1,"*Average*")>0,VLOOKUP(B3,'Data Billing Quantities'!$A:$Z,MATCH("Average kWh",'Data Billing Quantities'!4:4,0),FALSE),IF(COUNTIF(A1,"*High*")>0,VLOOKUP(B3,'Data Billing Quantities'!$A:$Z,MATCH("High kWh",'Data Billing Quantities'!4:4,0),FALSE),"error")))) -> 750
A5: Peak (kW) | B5: =IF(COUNTIF(A1,"*Low*")>0,VLOOKUP(B3,'Data Billing Quantities'!$A:$Z,MATCH("Low kW",'Data Billing Quantities'!4:4,0),FALSE),IF(COUNTIF(A1,"*Typical*")>0,VLOOKUP(B3,'Data Billing Quantities'!$A:$Z,MATCH("Typical kW",'Data Billing Quantities'!4:4,0),FALSE),IF(COUNTIF(A1,"*Average*")>0,VLOOKUP(B3,'Data Billing Quantities'!$A:$Z,MATCH("Average kW",'Data Billing Quantities'!4:4,0),FALSE),IF(COUNTIF(A1,"*High*")>0,VLOOKUP(B3,'Data Billing Quantities'!$A:$Z,MATCH("High kW",'Data Billing Quantities'!4:4,0),FALSE),"error")))) -> 0
A6: Loss factor | B6: =VLOOKUP(B3,'Data Billing Quantities'!A:D,MATCH(A6,'Data Billing Quantities'!4:4,0),FALSE) -> 1.105
A7: Charge determinant | B7: =VLOOKUP(B3,'Data Billing Quantities'!A:D,MATCH(A7,'Data Billing Quantities'!4:4,0),FALSE) -> kWh
B9: Current OEB-Approved | E9: Proposed | H9: Impact
B10: Rate ($) | C10: Volume | D10: Charge ($) | E10: Rate ($) | F10: Volume | G10: Charge ($) | H10: $ Change | I10: % Change
A11: Service Charge | B11: =VLOOKUP($B$3,'Data Current Rates'!$A:$AO,MATCH('BI_R2_Typical (without DRP)'!$A11,CurrentHeader,0),FALSE) -> 143.96 | C11: 1 | D11: =B11*C11 -> 143.96 | E11: =VLOOKUP($B$3,'Data Proposed Rates'!$A:$AQ,MATCH('BI_R2_Typical (without DRP)'!$A11,ProposedHeader,0),FALSE) -> 151.14 | F11: 1 | G11: =E11*F11 -> 151.14 | H11: =G11-D11 -> 7.18 | I11: =IF(ISERROR(H11/ABS(D11)),"N/A",(H11/ABS(D11))) -> 0.04987496527
A12: Distribution Volumetric Charge | B12: =VLOOKUP($B$3,'Data Current Rates'!$A:$AO,MATCH('BI_R2_Typical (without DRP)'!$A12,CurrentHeader,0),FALSE) -> 0.0121 | C12: =IF($B$7="kWh",$B$4,$B$5) -> 750 | D12: =B12*C12 -> 9.075 | E12: =VLOOKUP($B$3,'Data Proposed Rates'!$A:$AQ,MATCH('BI_R2_Typical (without DRP)'!$A12,ProposedHeader,0),FALSE) -> 0.0117 | F12: =IF($B$7="kWh",$B$4,$B$5) -> 750 | G12: 8.775 | H12: -0.3 | I12: -0.03305785124
A13: Z-Factor Fixed Rate Rider | E13: =VLOOKUP($B$3,'Data Proposed Rates'!$A:$AQ,MATCH('BI_R2_Typical (without DRP)'!$A13,ProposedHeader,0),FALSE) -> 2.49 | F13: 1 | G13: 2.49 | H13: 2.49 | I13: N/A
A14: RRRP Adjustment | B14: =IF($B$3="R2",VLOOKUP(A14,'Data Pass Through'!$A4:$C19,3,0),0)*-1 -> -60.5 | C14: 1 | D14: =B14*C14 -> -60.5 | E14: =IF($B$3="R2",VLOOKUP(A14,'Data Pass Through'!$A4:$C19,3,0),0)*-1 -> -60.5 | F14: 1 | G14: -60.5 | H14: 0 | I14: 0
A15: DRP Adjustment | D15: 0 | G15: 0 | H15: 0 | I15: N/A
A16: Group 2 Fixed Rate Rider | B16: =VLOOKUP($B$3,'Data Current Rates'!$A:$AO,MATCH('BI_R2_Typical (without DRP)'!$A16,CurrentHeader,0),FALSE) -> -0.44 | C16: 1 | D16: =B16*C16 -> -0.44 | E16: =VLOOKUP($B$3,'Data Proposed Rates'!$A:$AQ,MATCH('BI_R2_Typical (without DRP)'!$A16,ProposedHeader,0),FALSE) -> -5.18 | F16: 1 | G16: =E16*F16 -> -5.18 | H16: -4.74 | I16: -10.77272727
A17: Group 2 Volumetric Rate Rider | B17: =VLOOKUP($B$3,'Data Current Rates'!$A:$AO,MATCH('BI_R2_Typical (without DRP)'!$A17,CurrentHeader,0),FALSE) -> 0 | C17: =IF($B$7="kWh",$B$4,$B$5) -> 750 | D17: =B17*C17 -> 0 | E17: =VLOOKUP($B$3,'Data Proposed Rates'!$A:$AQ,MATCH('BI_R2_Typical (without DRP)'!$A17,ProposedHeader,0),FALSE) -> 0 | F17: =IF($B$7="kWh",$B$4,$B$5) -> 750 | G17: 0 | H17: =G17-D17 -> 0 | I17: =IF(ISERROR(H17/ABS(D17)),"N/A",(H17/ABS(D17))) -> N/A
A18: Sub-Total A (excluding pass through) | D18: =SUM(D11:D17) -> 92.095 | G18: =SUM(G11:G17) -> 96.725 | H18: 4.63 | I18: 0.05027417341
A19: Line Losses on Cost of Power | B19: =VLOOKUP($B$3,'Data Billing Quantities'!$A:$O,MATCH('BI_R2_Typical (without DRP)'!$A34,'Data Billing Quantities'!$4:$4,0),FALSE)*$B34+VLOOKUP($B$3,'Data Billing Quantities'!$A:$O,MATCH('BI_R2_Typical (without DRP)'!$A35,'Data Billing Quantities'!$4:$4,0),FALSE)*$B35+VLOOKUP($B$3,'Data Billing Quantities'!$A:$O,MATCH('BI_R2_Typical (without DRP)'!$A36,'Data Billing Quantities'!$4:$4,0),FALSE)*$B36 -> 0.12752 | C19: =($B$6*$B$4)-$B$4 -> 78.75 | D19: =B19*C19 -> 10.0422 | E19: =VLOOKUP($B$3,'Data Billing Quantities'!$A:$O,MATCH('BI_R2_Typical (without DRP)'!$A34,'Data Billing Quantities'!$4:$4,0),FALSE)*$B34+VLOOKUP($B$3,'Data Billing Quantities'!$A:$O,MATCH('BI_R2_Typical (without DRP)'!$A35,'Data Billing Quantities'!$4:$4,0),FALSE)*$B35+VLOOKUP($B$3,'Data Billing Quantities'!$A:$O,MATCH('BI_R2_Typical (without DRP)'!$A36,'Data Billing Quantities'!$4:$4,0),FALSE)*$B36 -> 0.12752 | F19: =($B$6*$B$4)-$B$4 -> 78.75 | G19: 10.0422 | H19: 0 | I19: 0
A20: Total Deferral/Variance Account Rate Rider | B20: =VLOOKUP($B$3,'Data Current Rates'!$A:$AO,MATCH('BI_R2_Typical (without DRP)'!$A20,CurrentHeader,0),FALSE) -> -0.0037 | C20: =IF($B$7="kWh",$B$4,$B$5) -> 750 | D20: -2.775 | E20: =VLOOKUP($B$3,'Data Proposed Rates'!$A:$AQ,MATCH('BI_R2_Typical (without DRP)'!$A20,ProposedHeader,0),FALSE) -> -0.0049 | F20: =IF($B$7="kWh",$B$4,$B$5) -> 750 | G20: -3.675 | H20: -0.9 | I20: -0.3243243243
A21: CBR Class B Rate Rider | B21: =VLOOKUP($B$3,'Data Current Rates'!$A:$AJ,MATCH('BI_R2_Typical (without DRP)'!$A21,CurrentHeader,0),FALSE) -> 0.0001 | C21: =IF($B$7="kWh",$B$4,$B$5) -> 750 | D21: 0.075 | E21: =VLOOKUP($B$3,'Data Proposed Rates'!$A:$AQ,MATCH('BI_R2_Typical (without DRP)'!$A21,ProposedHeader,0),FALSE) -> -0.0006 | F21: =IF($B$7="kWh",$B$4,$B$5) -> 750 | G21: -0.45 | H21: -0.525 | I21: -7
A22: GA Rate Rider | B22: =VLOOKUP($B$3,'Data Current Rates'!$A:$AJ,MATCH('BI_R2_Typical (without DRP)'!$A22,CurrentHeader,0),FALSE) -> 0 | C22: 750 | D22: 0 | E22: =VLOOKUP($B$3,'Data Proposed Rates'!$A:$AQ,MATCH('BI_R2_Typical (without DRP)'!$A22,ProposedHeader,0),FALSE) -> 0 | F22: 750 | G22: 0 | H22: 0 | I22: N/A
A23: Smart Meter Entity Charge (if applicable) | B23: =VLOOKUP($A23,'Data Pass Through'!$A:$D,2,FALSE) -> 0.42 | C23: 1 | D23: 0.42 | E23: =VLOOKUP($A23,'Data Pass Through'!$A:$D,2,FALSE) -> 0.42 | F23: 1 | G23: 0.42 | H23: 0 | I23: 0
A24: Additional Fixed Rate Rider | B24: =VLOOKUP($B$3,'Data Current Rates'!$A:$AJ,MATCH('BI_R2_Typical (without DRP)'!$A24,CurrentHeader,0),FALSE) -> 0 | C24: 1 | D24: 0 | E24: =VLOOKUP($B$3,'Data Proposed Rates'!$A:$AQ,MATCH('BI_R2_Typical (without DRP)'!$A24,ProposedHeader,0),FALSE) -> 0 | F24: 1 | G24: 0 | H24: 0 | I24: N/A
A25: Additional Volumetric Rate Rider | B25: =VLOOKUP($B$3,'Data Current Rates'!$A:$AJ,MATCH('BI_R2_Typical (without DRP)'!$A25,CurrentHeader,0),FALSE) -> 0 | C25: =IF($B$7="kWh",$B$4,$B$5) -> 750 | D25: 0 | E25: =VLOOKUP($B$3,'Data Proposed Rates'!$A:$AQ,MATCH('BI_R2_Typical (without DRP)'!$A25,ProposedHeader,0),FALSE) -> 0 | F25: =IF($B$7="kWh",$B$4,$B$5) -> 750 | G25: 0 | H25: 0 | I25: N/A
A26: Sub-Total B - Distribution (includes Sub-Total A) | D26: =SUM(INDIRECT("D18:D"&ROW()-1)) -> 99.8572 | G26: =SUM(INDIRECT("G18:G"&ROW()-1)) -> 103.0622 | H26: 3.205 | I26: 0.03209583285
A27: Retail Transmission Rate – Network Service Rate | B27: =VLOOKUP($B$3,'Data Current Rates'!$A:$AJ,MATCH('BI_R2_Typical (without DRP)'!$A27,CurrentHeader,0),FALSE) -> 0.0118 | C27: =IF($B$7="kWh",$B$4*$B$6,$B$5) -> 828.75 | D27: =B27*C27 -> 9.77925 | E27: =VLOOKUP($B$3,'Data Proposed Rates'!$A:$AQ,MATCH('BI_R2_Typical (without DRP)'!$A27,ProposedHeader,0),FALSE) -> 0.0121 | F27: =IF($B$7="kWh",$B$4*$B$6,$B$5) -> 828.75 | G27: 10.027875 | H27: 0.248625 | I27: 0.02542372881
A28: Retail Transmission Rate – Line and Transformation Connection Service Rate | B28: =VLOOKUP($B$3,'Data Current Rates'!$A:$AJ,MATCH('BI_R2_Typical (without DRP)'!$A28,CurrentHeader,0),FALSE) -> 0.0086 | C28: =IF($B$7="kWh",$B$4*$B$6,$B$5) -> 828.75 | D28: 7.12725 | E28: =VLOOKUP($B$3,'Data Proposed Rates'!$A:$AQ,MATCH('BI_R2_Typical (without DRP)'!$A28,ProposedHeader,0),FALSE) -> 0.0088 | F28: =IF($B$7="kWh",$B$4*$B$6,$B$5) -> 828.75 | G28: 7.293 | H28: 0.16575 | I28: 0.02325581395
A29: Sub-Total C - Delivery (including Sub-Total B) | D29: =SUM(D26:D28) -> 116.7637 | G29: =SUM(G26:G28) -> 120.383075 | H29: 3.619375 | I29: 0.03099743328
A30: Wholesale Market Service Rate (WMS) – not including CBR | B30: =VLOOKUP($A30,'Data Pass Through'!$A:$D,2,FALSE) -> 0.0041 | C30: =$B$4*$B$6 -> 828.75 | D30: =B30*C30 -> 3.397875 | E30: =VLOOKUP($A30,'Data Pass Through'!$A:$D,3,FALSE) -> 0.0041 | F30: =$B$4*$B$6 -> 828.75 | G30: 3.397875 | H30: 0 | I30: 0
A31: Capacity Based Recovery (CBR) – Applicable for Class B Customers | B31: =VLOOKUP($A31,'Data Pass Through'!$A:$D,2,FALSE) -> 0.0004 | C31: =$B$4*$B$6 -> 828.75 | D31: 0.3315 | E31: =VLOOKUP($A31,'Data Pass Through'!$A:$D,3,FALSE) -> 0.0004 | F31: =$B$4*$B$6 -> 828.75 | G31: 0.3315 | H31: 0 | I31: 0
A32: Rural Rate Protection Charge | B32: =VLOOKUP($A32,'Data Pass Through'!$A:$D,2,FALSE) -> 0.0015 | C32: =$B$4*$B$6 -> 828.75 | D32: 1.243125 | E32: =VLOOKUP($A32,'Data Pass Through'!$A:$D,3,FALSE) -> 0.0015 | F32: =$B$4*$B$6 -> 828.75 | G32: 1.243125 | H32: 0 | I32: 0
A33: Standard Supply Service – Administration Charge (if applicable) | B33: =VLOOKUP($A33,'Data Pass Through'!$A:$D,2,FALSE) -> 0.25 | C33: 1 | D33: 0.25 | E33: =VLOOKUP($A33,'Data Pass Through'!$A:$D,3,FALSE) -> 0.25 | F33: 1 | G33: 0.25 | H33: 0 | I33: 0
A34: TOU-Off Peak | B34: =VLOOKUP($A34,'Data Pass Through'!$A:$D,2,FALSE) -> 0.098 | C34: =B$4*VLOOKUP($B$3,'Data Billing Quantities'!$A:$O,MATCH($A34,'Data Billing Quantities'!$4:$4,0),FALSE) -> 480 | D34: 47.04 | E34: =VLOOKUP($A34,'Data Pass Through'!$A:$D,3,FALSE) -> 0.098 | F34: =B$4*VLOOKUP($B$3,'Data Billing Quantities'!$A:$O,MATCH($A34,'Data Billing Quantities'!$4:$4,0),FALSE) -> 480 | G34: =E34*F34 -> 47.04 | H34: 0 | I34: 0
A35: TOU-Mid Peak | B35: =VLOOKUP($A35,'Data Pass Through'!$A:$D,2,FALSE) -> 0.157 | C35: =B$4*VLOOKUP($B$3,'Data Billing Quantities'!$A:$O,MATCH($A35,'Data Billing Quantities'!$4:$4,0),FALSE) -> 135 | D35: 21.195 | E35: =VLOOKUP($A35,'Data Pass Through'!$A:$D,3,FALSE) -> 0.157 | F35: =B$4*VLOOKUP($B$3,'Data Billing Quantities'!$A:$O,MATCH($A35,'Data Billing Quantities'!$4:$4,0),FALSE) -> 135 | G35: =E35*F35 -> 21.195 | H35: 0 | I35: 0
A36: TOU-On Peak | B36: =VLOOKUP($A36,'Data Pass Through'!$A:$D,2,FALSE) -> 0.203 | C36: =B$4*VLOOKUP($B$3,'Data Billing Quantities'!$A:$O,MATCH($A36,'Data Billing Quantities'!$4:$4,0),FALSE) -> 135 | D36: 27.405 | E36: =VLOOKUP($A36,'Data Pass Through'!$A:$D,3,FALSE) -> 0.203 | F36: =B$4*VLOOKUP($B$3,'Data Billing Quantities'!$A:$O,MATCH($A36,'Data Billing Quantities'!$4:$4,0),FALSE) -> 135 | G36: =E36*F36 -> 27.405 | H36: 0 | I36: 0
A37: Total Bill on TOU (before Taxes) | D37: =SUM(D29:D36) -> 217.6262 | G37: =SUM(G29:G36) -> 221.245575 | H37: 3.619375 | I37: 0.0166311547
A38: HST | B38: 0.13 | D38: =D37*B38 -> 28.291406 | E38: =B38 -> 0.13 | G38: =G37*E38 -> 28.76192475 | H38: 0.47051875 | I38: 0.0166311547
A39: Ontario Electricity Rebate (OER) | B39: =IF(($B$4*12)<250000,VLOOKUP($A39,'Data Pass Through'!$A$4:$C$19,2,0),0) -> -0.235 | D39: =D37*B39 -> -51.142157 | E39: =IF(($B$4*12)<250000,VLOOKUP($A39,'Data Pass Through'!$A$4:$C$19,3,0),0) -> -0.235 | G39: =G37*E39 -> -51.99271012 | H39: -0.850553125 | I39: -0.0166311547
A40: Total Bill on TOU | D40: =SUM(D37:D39) -> 194.775449 | G40: =SUM(G37:G39) -> 198.0147896 | H40: 3.239340625 | I40: 0.0166311547
A41: * Distribution rate protection applies to R1 and R2 customers

Sheet BI_Seas_UR_Avg
A1: Bill Impacts (Average Consumption Level) - Seas-UR
A3: Rate Class | B3: =RIGHT(A1,LEN(A1)-FIND("- ",A1,1)-1) -> Seas-UR
A4: Monthly Consumption (kWh) | B4: =IF(COUNTIF(A1,"*Low*")>0,VLOOKUP(B3,'Data Billing Quantities'!$A:$Z,MATCH("Low kWh",'Data Billing Quantities'!4:4,0),FALSE),IF(COUNTIF(A1,"*Typical*")>0,VLOOKUP(B3,'Data Billing Quantities'!$A:$Z,MATCH("Typical kWh",'Data Billing Quantities'!4:4,0),FALSE),IF(COUNTIF(A1,"*Average*")>0,VLOOKUP(B3,'Data Billing Quantities'!$A:$Z,MATCH("Average kWh",'Data Billing Quantities'!4:4,0),FALSE),IF(COUNTIF(A1,"*High*")>0,VLOOKUP(B3,'Data Billing Quantities'!$A:$Z,MATCH("High kWh",'Data Billing Quantities'!4:4,0),FALSE),"error")))) -> 369
A5: Peak (kW) | B5: =IF(COUNTIF(A1,"*Low*")>0,VLOOKUP(B3,'Data Billing Quantities'!$A:$Z,MATCH("Low kW",'Data Billing Quantities'!4:4,0),FALSE),IF(COUNTIF(A1,"*Typical*")>0,VLOOKUP(B3,'Data Billing Quantities'!$A:$Z,MATCH("Typical kW",'Data Billing Quantities'!4:4,0),FALSE),IF(COUNTIF(A1,"*Average*")>0,VLOOKUP(B3,'Data Billing Quantities'!$A:$Z,MATCH("Average kW",'Data Billing Quantities'!4:4,0),FALSE),IF(COUNTIF(A1,"*High*")>0,VLOOKUP(B3,'Data Billing Quantities'!$A:$Z,MATCH("High kW",'Data Billing Quantities'!4:4,0),FALSE),"error")))) -> 0
A6: Loss factor | B6: =VLOOKUP(B3,'Data Billing Quantities'!A:D,MATCH(A6,'Data Billing Quantities'!4:4,0),FALSE) -> 1.057
A7: Charge determinant | B7: =VLOOKUP(B3,'Data Billing Quantities'!A:D,MATCH(A7,'Data Billing Quantities'!4:4,0),FALSE) -> kWh
B9: Current OEB-Approved | E9: Proposed | H9: Impact
B10: Rate ($) | C10: Volume | D10: Charge ($) | E10: Rate ($) | F10: Volume | G10: Charge ($) | H10: $ Change | I10: % Change
A11: Service Charge | B11: =VLOOKUP($B$3,'Data Current Rates'!$A:$AO,MATCH(BI_Seas_UR_Avg!$A11,CurrentHeader,0),FALSE) -> 41.61 | C11: 1 | D11: =B11*C11 -> 41.61 | E11: =VLOOKUP($B$3,'Data Proposed Rates'!$A:$AQ,MATCH(BI_Seas_UR_Avg!$A11,ProposedHeader,0),FALSE) -> 43.7 | F11: 1 | G11: =E11*F11 -> 43.7 | H11: =G11-D11 -> 2.09 | I11: =IF(ISERROR(H11/ABS(D11)),"N/A",(H11/ABS(D11))) -> 0.0502283105
A12: Distribution Volumetric Charge | B12: =VLOOKUP($B$3,'Data Current Rates'!$A:$AO,MATCH(BI_Seas_UR_Avg!$A12,CurrentHeader,0),FALSE) -> 0 | C12: =IF($B$7="kWh",$B$4,$B$5) -> 369 | D12: =B12*C12 -> 0 | E12: =VLOOKUP($B$3,'Data Proposed Rates'!$A:$AQ,MATCH(BI_Seas_UR_Avg!$A12,ProposedHeader,0),FALSE) -> 0 | F12: =IF($B$7="kWh",$B$4,$B$5) -> 369 | G12: 0 | H12: 0 | I12: N/A
A13: Z-Factor Fixed Rate Rider | E13: =VLOOKUP($B$3,'Data Proposed Rates'!$A:$AQ,MATCH(BI_Seas_UR_Avg!$A13,ProposedHeader,0),FALSE) -> 0.72 | F13: 1 | G13: 0.72 | H13: 0.72 | I13: N/A
A14: RRRP Adjustment | B14: =IF($B$3="R2",VLOOKUP(A14,'Data Pass Through'!$A4:$C19,3,0),0)*-1 -> 0 | C14: 1 | D14: =B14*C14 -> 0 | E14: =IF($B$3="R2",VLOOKUP(A14,'Data Pass Through'!$A4:$C19,3,0),0)*-1 -> 0 | F14: 1 | G14: 0 | H14: 0 | I14: N/A
A15: DRP Adjustment | D15: =IF(OR($B$3="R1",$B$3="R2",$B$3="R1-CPUC"),IF(SUM(D11:D14)>'Data Pass Through'!$B$16,-(SUM(D11:D14)-'Data Pass Through'!$B$16),0),0) -> 0 | G15: =IF(OR($B$3="R1",$B$3="R2",$B$3="R1-CPUC"),IF(SUM(G11:G14)>'Data Pass Through'!$B$16,-(SUM(G11:G14)-'Data Pass Through'!$B$16),0),0) -> 0 | H15: 0 | I15: N/A
A16: Group 2 Fixed Rate Rider | B16: =VLOOKUP($B$3,'Data Current Rates'!$A:$AO,MATCH(BI_Seas_UR_Avg!$A16,CurrentHeader,0),FALSE) -> -0.11 | C16: 1 | D16: =B16*C16 -> -0.11 | E16: =VLOOKUP($B$3,'Data Proposed Rates'!$A:$AQ,MATCH(BI_Seas_UR_Avg!$A16,ProposedHeader,0),FALSE) -> -1.5 | F16: 1 | G16: =E16*F16 -> -1.5 | H16: -1.39 | I16: -12.63636364
A17: Group 2 Volumetric Rate Rider | B17: =VLOOKUP($B$3,'Data Current Rates'!$A:$AO,MATCH(BI_Seas_UR_Avg!$A17,CurrentHeader,0),FALSE) -> 0 | C17: =IF($B$7="kWh",$B$4,$B$5) -> 369 | D17: =B17*C17 -> 0 | E17: =VLOOKUP($B$3,'Data Proposed Rates'!$A:$AQ,MATCH(BI_Seas_UR_Avg!$A17,ProposedHeader,0),FALSE) -> 0 | F17: =IF($B$7="kWh",$B$4,$B$5) -> 369 | G17: 0 | H17: =G17-D17 -> 0 | I17: =IF(ISERROR(H17/ABS(D17)),"N/A",(H17/ABS(D17))) -> N/A
A18: Sub-Total A (excluding pass through) | D18: =SUM(D11:D17) -> 41.5 | G18: =SUM(G11:G17) -> 42.92 | H18: 1.42 | I18: 0.03421686747
A19: Line Losses on Cost of Power | B19: =VLOOKUP($B$3,'Data Billing Quantities'!$A:$O,MATCH(BI_Seas_UR_Avg!$A34,'Data Billing Quantities'!$4:$4,0),FALSE)*$B34+VLOOKUP($B$3,'Data Billing Quantities'!$A:$O,MATCH(BI_Seas_UR_Avg!$A35,'Data Billing Quantities'!$4:$4,0),FALSE)*$B35+VLOOKUP($B$3,'Data Billing Quantities'!$A:$O,MATCH(BI_Seas_UR_Avg!$A36,'Data Billing Quantities'!$4:$4,0),FALSE)*$B36 -> 0.12752 | C19: =($B$6*$B$4)-$B$4 -> 21.033 | D19: =B19*C19 -> 2.68212816 | E19: =VLOOKUP($B$3,'Data Billing Quantities'!$A:$O,MATCH(BI_Seas_UR_Avg!$A34,'Data Billing Quantities'!$4:$4,0),FALSE)*$B34+VLOOKUP($B$3,'Data Billing Quantities'!$A:$O,MATCH(BI_Seas_UR_Avg!$A35,'Data Billing Quantities'!$4:$4,0),FALSE)*$B35+VLOOKUP($B$3,'Data Billing Quantities'!$A:$O,MATCH(BI_Seas_UR_Avg!$A36,'Data Billing Quantities'!$4:$4,0),FALSE)*$B36 -> 0.12752 | F19: =($B$6*$B$4)-$B$4 -> 21.033 | G19: 2.68212816 | H19: 0 | I19: 0
A20: Total Deferral/Variance Account Rate Rider | B20: =VLOOKUP($B$3,'Data Current Rates'!$A:$AO,MATCH(BI_Seas_UR_Avg!$A20,CurrentHeader,0),FALSE) -> -0.0038 | C20: =IF($B$7="kWh",$B$4,$B$5) -> 369 | D20: -1.4022 | E20: =VLOOKUP($B$3,'Data Proposed Rates'!$A:$AQ,MATCH(BI_Seas_UR_Avg!$A20,ProposedHeader,0),FALSE) -> -0.0048 | F20: =IF($B$7="kWh",$B$4,$B$5) -> 369 | G20: -1.7712 | H20: -0.369 | I20: -0.2631578947
A21: CBR Class B Rate Rider | B21: =VLOOKUP($B$3,'Data Current Rates'!$A:$AJ,MATCH(BI_Seas_UR_Avg!$A21,CurrentHeader,0),FALSE) -> 0.0001 | C21: =IF($B$7="kWh",$B$4,$B$5) -> 369 | D21: 0.0369 | E21: =VLOOKUP($B$3,'Data Proposed Rates'!$A:$AQ,MATCH(BI_Seas_UR_Avg!$A21,ProposedHeader,0),FALSE) -> -0.0006 | F21: =IF($B$7="kWh",$B$4,$B$5) -> 369 | G21: -0.2214 | H21: -0.2583 | I21: -7
A22: GA Rate Rider | B22: =VLOOKUP($B$3,'Data Current Rates'!$A:$AJ,MATCH(BI_Seas_UR_Avg!$A22,CurrentHeader,0),FALSE) -> 0 | C22: 369 | D22: 0 | E22: =VLOOKUP($B$3,'Data Proposed Rates'!$A:$AQ,MATCH(BI_Seas_UR_Avg!$A22,ProposedHeader,0),FALSE) -> 0 | F22: 369 | G22: 0 | H22: 0 | I22: N/A
A23: Smart Meter Entity Charge (if applicable) | B23: =VLOOKUP($A23,'Data Pass Through'!$A:$D,2,FALSE) -> 0.42 | C23: 1 | D23: 0.42 | E23: =VLOOKUP($A23,'Data Pass Through'!$A:$D,2,FALSE) -> 0.42 | F23: 1 | G23: 0.42 | H23: 0 | I23: 0
A24: Additional Fixed Rate Rider | B24: =VLOOKUP($B$3,'Data Current Rates'!$A:$AJ,MATCH(BI_Seas_UR_Avg!$A24,CurrentHeader,0),FALSE) -> 0 | C24: 1 | D24: 0 | E24: =VLOOKUP($B$3,'Data Proposed Rates'!$A:$AQ,MATCH(BI_Seas_UR_Avg!$A24,ProposedHeader,0),FALSE) -> 0 | F24: 1 | G24: 0 | H24: 0 | I24: N/A
A25: Additional Volumetric Rate Rider | B25: =VLOOKUP($B$3,'Data Current Rates'!$A:$AJ,MATCH(BI_Seas_UR_Avg!$A25,CurrentHeader,0),FALSE) -> 0 | C25: =IF($B$7="kWh",$B$4,$B$5) -> 369 | D25: 0 | E25: =VLOOKUP($B$3,'Data Proposed Rates'!$A:$AQ,MATCH(BI_Seas_UR_Avg!$A25,ProposedHeader,0),FALSE) -> 0 | F25: =IF($B$7="kWh",$B$4,$B$5) -> 369 | G25: 0 | H25: 0 | I25: N/A
A26: Sub-Total B - Distribution (includes Sub-Total A) | D26: =SUM(INDIRECT("D18:D"&ROW()-1)) -> 43.23682816 | G26: =SUM(INDIRECT("G18:G"&ROW()-1)) -> 44.02952816 | H26: 0.7927 | I26: 0.01833390731
A27: Retail Transmission Rate – Network Service Rate | B27: =VLOOKUP($B$3,'Data Current Rates'!$A:$AJ,MATCH(BI_Seas_UR_Avg!$A27,CurrentHeader,0),FALSE) -> 0.0137 | C27: =IF($B$7="kWh",$B$4*$B$6,$B$5) -> 390.033 | D27: =B27*C27 -> 5.3434521 | E27: =VLOOKUP($B$3,'Data Proposed Rates'!$A:$AQ,MATCH(BI_Seas_UR_Avg!$A27,ProposedHeader,0),FALSE) -> 0.0141 | F27: =IF($B$7="kWh",$B$4*$B$6,$B$5) -> 390.033 | G27: 5.4994653 | H27: 0.1560132 | I27: 0.02919708029
A28: Retail Transmission Rate – Line and Transformation Connection Service Rate | B28: =VLOOKUP($B$3,'Data Current Rates'!$A:$AJ,MATCH(BI_Seas_UR_Avg!$A28,CurrentHeader,0),FALSE) -> 0.0098 | C28: =IF($B$7="kWh",$B$4*$B$6,$B$5) -> 390.033 | D28: 3.8223234 | E28: =VLOOKUP($B$3,'Data Proposed Rates'!$A:$AQ,MATCH(BI_Seas_UR_Avg!$A28,ProposedHeader,0),FALSE) -> 0.01 | F28: =IF($B$7="kWh",$B$4*$B$6,$B$5) -> 390.033 | G28: 3.90033 | H28: 0.0780066 | I28: 0.02040816327
A29: Sub-Total C - Delivery (including Sub-Total B) | D29: =SUM(D26:D28) -> 52.40260366 | G29: =SUM(G26:G28) -> 53.42932346 | H29: 1.0267198 | I29: 0.01959291578
A30: Wholesale Market Service Rate (WMS) – not including CBR | B30: =VLOOKUP($A30,'Data Pass Through'!$A:$D,2,FALSE) -> 0.0041 | C30: =$B$4*$B$6 -> 390.033 | D30: =B30*C30 -> 1.5991353 | E30: =VLOOKUP($A30,'Data Pass Through'!$A:$D,3,FALSE) -> 0.0041 | F30: =$B$4*$B$6 -> 390.033 | G30: 1.5991353 | H30: 0 | I30: 0
A31: Capacity Based Recovery (CBR) – Applicable for Class B Customers | B31: =VLOOKUP($A31,'Data Pass Through'!$A:$D,2,FALSE) -> 0.0004 | C31: =$B$4*$B$6 -> 390.033 | D31: 0.1560132 | E31: =VLOOKUP($A31,'Data Pass Through'!$A:$D,3,FALSE) -> 0.0004 | F31: =$B$4*$B$6 -> 390.033 | G31: 0.1560132 | H31: 0 | I31: 0
A32: Rural Rate Protection Charge | B32: =VLOOKUP($A32,'Data Pass Through'!$A:$D,2,FALSE) -> 0.0015 | C32: =$B$4*$B$6 -> 390.033 | D32: 0.5850495 | E32: =VLOOKUP($A32,'Data Pass Through'!$A:$D,3,FALSE) -> 0.0015 | F32: =$B$4*$B$6 -> 390.033 | G32: 0.5850495 | H32: 0 | I32: 0
A33: Standard Supply Service – Administration Charge (if applicable) | B33: =VLOOKUP($A33,'Data Pass Through'!$A:$D,2,FALSE) -> 0.25 | C33: 1 | D33: 0.25 | E33: =VLOOKUP($A33,'Data Pass Through'!$A:$D,3,FALSE) -> 0.25 | F33: 1 | G33: 0.25 | H33: 0 | I33: 0
A34: TOU-Off Peak | B34: =VLOOKUP($A34,'Data Pass Through'!$A:$D,2,FALSE) -> 0.098 | C34: =B$4*VLOOKUP($B$3,'Data Billing Quantities'!$A:$O,MATCH($A34,'Data Billing Quantities'!$4:$4,0),FALSE) -> 236.16 | D34: 23.14368 | E34: =VLOOKUP($A34,'Data Pass Through'!$A:$D,3,FALSE) -> 0.098 | F34: =B$4*VLOOKUP($B$3,'Data Billing Quantities'!$A:$O,MATCH($A34,'Data Billing Quantities'!$4:$4,0),FALSE) -> 236.16 | G34: =E34*F34 -> 23.14368 | H34: 0 | I34: 0
A35: TOU-Mid Peak | B35: =VLOOKUP($A35,'Data Pass Through'!$A:$D,2,FALSE) -> 0.157 | C35: =B$4*VLOOKUP($B$3,'Data Billing Quantities'!$A:$O,MATCH($A35,'Data Billing Quantities'!$4:$4,0),FALSE) -> 66.42 | D35: 10.42794 | E35: =VLOOKUP($A35,'Data Pass Through'!$A:$D,3,FALSE) -> 0.157 | F35: =B$4*VLOOKUP($B$3,'Data Billing Quantities'!$A:$O,MATCH($A35,'Data Billing Quantities'!$4:$4,0),FALSE) -> 66.42 | G35: =E35*F35 -> 10.42794 | H35: 0 | I35: 0
A36: TOU-On Peak | B36: =VLOOKUP($A36,'Data Pass Through'!$A:$D,2,FALSE) -> 0.203 | C36: =B$4*VLOOKUP($B$3,'Data Billing Quantities'!$A:$O,MATCH($A36,'Data Billing Quantities'!$4:$4,0),FALSE) -> 66.42 | D36: 13.48326 | E36: =VLOOKUP($A36,'Data Pass Through'!$A:$D,3,FALSE) -> 0.203 | F36: =B$4*VLOOKUP($B$3,'Data Billing Quantities'!$A:$O,MATCH($A36,'Data Billing Quantities'!$4:$4,0),FALSE) -> 66.42 | G36: =E36*F36 -> 13.48326 | H36: 0 | I36: 0
A37: Total Bill on TOU (before Taxes) | D37: =SUM(D29:D36) -> 102.0476817 | G37: =SUM(G29:G36) -> 103.0744015 | H37: 1.0267198 | I37: 0.01006117712
A38: HST | B38: 0.13 | D38: =D37*B38 -> 13.26619862 | E38: =B38 -> 0.13 | G38: =G37*E38 -> 13.39967219 | H38: 0.133473574 | I38: 0.01006117712
A39: Ontario Electricity Rebate (OER) | B39: =IF(($B$4*12)<250000,VLOOKUP($A39,'Data Pass Through'!$A$4:$C$19,2,0),0) -> -0.235 | D39: =D37*B39 -> -23.98120519 | E39: =IF(($B$4*12)<250000,VLOOKUP($A39,'Data Pass Through'!$A$4:$C$19,3,0),0) -> -0.235 | G39: =G37*E39 -> -24.22248434 | H39: -0.241279153 | I39: -0.01006117712
A40: Total Bill on TOU | D40: =SUM(D37:D39) -> 91.33267509 | G40: =SUM(G37:G39) -> 92.25158931 | H40: 0.918914221 | I40: 0.01006117712
A41: * Distribution rate protection applies to R1 and R2 customers

Sheet BI_Seas_R1_Avg
A1: Bill Impacts (Average Consumption Level) - Seas-R1
A3: Rate Class | B3: =RIGHT(A1,LEN(A1)-FIND("- ",A1,1)-1) -> Seas-R1
A4: Monthly Consumption (kWh) | B4: =IF(COUNTIF(A1,"*Low*")>0,VLOOKUP(B3,'Data Billing Quantities'!$A:$Z,MATCH("Low kWh",'Data Billing Quantities'!4:4,0),FALSE),IF(COUNTIF(A1,"*Typical*")>0,VLOOKUP(B3,'Data Billing Quantities'!$A:$Z,MATCH("Typical kWh",'Data Billing Quantities'!4:4,0),FALSE),IF(COUNTIF(A1,"*Average*")>0,VLOOKUP(B3,'Data Billing Quantities'!$A:$Z,MATCH("Average kWh",'Data Billing Quantities'!4:4,0),FALSE),IF(COUNTIF(A1,"*High*")>0,VLOOKUP(B3,'Data Billing Quantities'!$A:$Z,MATCH("High kWh",'Data Billing Quantities'!4:4,0),FALSE),"error")))) -> 369
A5: Peak (kW) | B5: =IF(COUNTIF(A1,"*Low*")>0,VLOOKUP(B3,'Data Billing Quantities'!$A:$Z,MATCH("Low kW",'Data Billing Quantities'!4:4,0),FALSE),IF(COUNTIF(A1,"*Typical*")>0,VLOOKUP(B3,'Data Billing Quantities'!$A:$Z,MATCH("Typical kW",'Data Billing Quantities'!4:4,0),FALSE),IF(COUNTIF(A1,"*Average*")>0,VLOOKUP(B3,'Data Billing Quantities'!$A:$Z,MATCH("Average kW",'Data Billing Quantities'!4:4,0),FALSE),IF(COUNTIF(A1,"*High*")>0,VLOOKUP(B3,'Data Billing Quantities'!$A:$Z,MATCH("High kW",'Data Billing Quantities'!4:4,0),FALSE),"error")))) -> 0
A6: Loss factor | B6: =VLOOKUP(B3,'Data Billing Quantities'!A:D,MATCH(A6,'Data Billing Quantities'!4:4,0),FALSE) -> 1.076
A7: Charge determinant | B7: =VLOOKUP(B3,'Data Billing Quantities'!A:D,MATCH(A7,'Data Billing Quantities'!4:4,0),FALSE) -> kWh
B9: Current OEB-Approved | E9: Proposed | H9: Impact
B10: Rate ($) | C10: Volume | D10: Charge ($) | E10: Rate ($) | F10: Volume | G10: Charge ($) | H10: $ Change | I10: % Change
A11: Service Charge | B11: =VLOOKUP($B$3,'Data Current Rates'!$A:$AO,MATCH(BI_Seas_R1_Avg!$A11,CurrentHeader,0),FALSE) -> 71.05 | C11: 1 | D11: =B11*C11 -> 71.05 | E11: =VLOOKUP($B$3,'Data Proposed Rates'!$A:$AQ,MATCH(BI_Seas_R1_Avg!$A11,ProposedHeader,0),FALSE) -> 74.62 | F11: 1 | G11: =E11*F11 -> 74.62 | H11: =G11-D11 -> 3.57 | I11: =IF(ISERROR(H11/ABS(D11)),"N/A",(H11/ABS(D11))) -> 0.05024630542
A12: Distribution Volumetric Charge | B12: =VLOOKUP($B$3,'Data Current Rates'!$A:$AO,MATCH(BI_Seas_R1_Avg!$A12,CurrentHeader,0),FALSE) -> 0 | C12: =IF($B$7="kWh",$B$4,$B$5) -> 369 | D12: =B12*C12 -> 0 | E12: =VLOOKUP($B$3,'Data Proposed Rates'!$A:$AQ,MATCH(BI_Seas_R1_Avg!$A12,ProposedHeader,0),FALSE) -> 0 | F12: =IF($B$7="kWh",$B$4,$B$5) -> 369 | G12: 0 | H12: 0 | I12: N/A
A13: Z-Factor Fixed Rate Rider | E13: =VLOOKUP($B$3,'Data Proposed Rates'!$A:$AQ,MATCH(BI_Seas_R1_Avg!$A13,ProposedHeader,0),FALSE) -> 1.23 | F13: 1 | G13: 1.23 | H13: 1.23 | I13: N/A
A14: RRRP Adjustment | B14: =IF($B$3="R2",VLOOKUP(A14,'Data Pass Through'!$A4:$C19,3,0),0)*-1 -> 0 | C14: 1 | D14: =B14*C14 -> 0 | E14: =IF($B$3="R2",VLOOKUP(A14,'Data Pass Through'!$A4:$C19,3,0),0)*-1 -> 0 | F14: 1 | G14: 0 | H14: 0 | I14: N/A
A15: DRP Adjustment | D15: =IF(OR($B$3="R1",$B$3="R2",$B$3="R1-CPUC"),IF(SUM(D11:D14)>'Data Pass Through'!$B$16,-(SUM(D11:D14)-'Data Pass Through'!$B$16),0),0) -> 0 | G15: =IF(OR($B$3="R1",$B$3="R2",$B$3="R1-CPUC"),IF(SUM(G11:G14)>'Data Pass Through'!$B$16,-(SUM(G11:G14)-'Data Pass Through'!$B$16),0),0) -> 0 | H15: 0 | I15: N/A
A16: Group 2 Fixed Rate Rider | B16: =VLOOKUP($B$3,'Data Current Rates'!$A:$AO,MATCH(BI_Seas_R1_Avg!$A16,CurrentHeader,0),FALSE) -> -0.21 | C16: 1 | D16: =B16*C16 -> -0.21 | E16: =VLOOKUP($B$3,'Data Proposed Rates'!$A:$AQ,MATCH(BI_Seas_R1_Avg!$A16,ProposedHeader,0),FALSE) -> -2.56 | F16: 1 | G16: =E16*F16 -> -2.56 | H16: -2.35 | I16: -11.19047619
A17: Group 2 Volumetric Rate Rider | B17: =VLOOKUP($B$3,'Data Current Rates'!$A:$AO,MATCH(BI_Seas_R1_Avg!$A17,CurrentHeader,0),FALSE) -> 0 | C17: =IF($B$7="kWh",$B$4,$B$5) -> 369 | D17: =B17*C17 -> 0 | E17: =VLOOKUP($B$3,'Data Proposed Rates'!$A:$AQ,MATCH(BI_Seas_R1_Avg!$A17,ProposedHeader,0),FALSE) -> 0 | F17: =IF($B$7="kWh",$B$4,$B$5) -> 369 | G17: 0 | H17: =G17-D17 -> 0 | I17: =IF(ISERROR(H17/ABS(D17)),"N/A",(H17/ABS(D17))) -> N/A
A18: Sub-Total A (excluding pass through) | D18: =SUM(D11:D17) -> 70.84 | G18: =SUM(G11:G17) -> 73.29 | H18: 2.45 | I18: 0.03458498024
A19: Line Losses on Cost of Power | B19: =VLOOKUP($B$3,'Data Billing Quantities'!$A:$O,MATCH(BI_Seas_R1_Avg!$A34,'Data Billing Quantities'!$4:$4,0),FALSE)*$B34+VLOOKUP($B$3,'Data Billing Quantities'!$A:$O,MATCH(BI_Seas_R1_Avg!$A35,'Data Billing Quantities'!$4:$4,0),FALSE)*$B35+VLOOKUP($B$3,'Data Billing Quantities'!$A:$O,MATCH(BI_Seas_R1_Avg!$A36,'Data Billing Quantities'!$4:$4,0),FALSE)*$B36 -> 0.12752 | C19: =($B$6*$B$4)-$B$4 -> 28.044 | D19: =B19*C19 -> 3.57617088 | E19: =VLOOKUP($B$3,'Data Billing Quantities'!$A:$O,MATCH(BI_Seas_R1_Avg!$A34,'Data Billing Quantities'!$4:$4,0),FALSE)*$B34+VLOOKUP($B$3,'Data Billing Quantities'!$A:$O,MATCH(BI_Seas_R1_Avg!$A35,'Data Billing Quantities'!$4:$4,0),FALSE)*$B35+VLOOKUP($B$3,'Data Billing Quantities'!$A:$O,MATCH(BI_Seas_R1_Avg!$A36,'Data Billing Quantities'!$4:$4,0),FALSE)*$B36 -> 0.12752 | F19: =($B$6*$B$4)-$B$4 -> 28.044 | G19: 3.57617088 | H19: 0 | I19: 0
A20: Total Deferral/Variance Account Rate Rider | B20: =VLOOKUP($B$3,'Data Current Rates'!$A:$AO,MATCH(BI_Seas_R1_Avg!$A20,CurrentHeader,0),FALSE) -> -0.0037 | C20: =IF($B$7="kWh",$B$4,$B$5) -> 369 | D20: -1.3653 | E20: =VLOOKUP($B$3,'Data Proposed Rates'!$A:$AQ,MATCH(BI_Seas_R1_Avg!$A20,ProposedHeader,0),FALSE) -> -0.0049 | F20: =IF($B$7="kWh",$B$4,$B$5) -> 369 | G20: -1.8081 | H20: -0.4428 | I20: -0.3243243243
A21: CBR Class B Rate Rider | B21: =VLOOKUP($B$3,'Data Current Rates'!$A:$AJ,MATCH(BI_Seas_R1_Avg!$A21,CurrentHeader,0),FALSE) -> 0.0001 | C21: =IF($B$7="kWh",$B$4,$B$5) -> 369 | D21: 0.0369 | E21: =VLOOKUP($B$3,'Data Proposed Rates'!$A:$AQ,MATCH(BI_Seas_R1_Avg!$A21,ProposedHeader,0),FALSE) -> -0.0006 | F21: =IF($B$7="kWh",$B$4,$B$5) -> 369 | G21: -0.2214 | H21: -0.2583 | I21: -7
A22: GA Rate Rider | B22: =VLOOKUP($B$3,'Data Current Rates'!$A:$AJ,MATCH(BI_Seas_R1_Avg!$A22,CurrentHeader,0),FALSE) -> 0 | C22: 369 | D22: 0 | E22: =VLOOKUP($B$3,'Data Proposed Rates'!$A:$AQ,MATCH(BI_Seas_R1_Avg!$A22,ProposedHeader,0),FALSE) -> 0 | F22: 369 | G22: 0 | H22: 0 | I22: N/A
A23: Smart Meter Entity Charge (if applicable) | B23: =VLOOKUP($A23,'Data Pass Through'!$A:$D,2,FALSE) -> 0.42 | C23: 1 | D23: 0.42 | E23: =VLOOKUP($A23,'Data Pass Through'!$A:$D,2,FALSE) -> 0.42 | F23: 1 | G23: 0.42 | H23: 0 | I23: 0
A24: Additional Fixed Rate Rider | B24: =VLOOKUP($B$3,'Data Current Rates'!$A:$AJ,MATCH(BI_Seas_R1_Avg!$A24,CurrentHeader,0),FALSE) -> 0 | C24: 1 | D24: 0 | E24: =VLOOKUP($B$3,'Data Proposed Rates'!$A:$AQ,MATCH(BI_Seas_R1_Avg!$A24,ProposedHeader,0),FALSE) -> 0 | F24: 1 | G24: 0 | H24: 0 | I24: N/A
A25: Additional Volumetric Rate Rider | B25: =VLOOKUP($B$3,'Data Current Rates'!$A:$AJ,MATCH(BI_Seas_R1_Avg!$A25,CurrentHeader,0),FALSE) -> 0 | C25: =IF($B$7="kWh",$B$4,$B$5) -> 369 | D25: 0 | E25: =VLOOKUP($B$3,'Data Proposed Rates'!$A:$AQ,MATCH(BI_Seas_R1_Avg!$A25,ProposedHeader,0),FALSE) -> 0 | F25: =IF($B$7="kWh",$B$4,$B$5) -> 369 | G25: 0 | H25: 0 | I25: N/A
A26: Sub-Total B - Distribution (includes Sub-Total A) | D26: =SUM(INDIRECT("D18:D"&ROW()-1)) -> 73.50777088 | G26: =SUM(INDIRECT("G18:G"&ROW()-1)) -> 75.25667088 | H26: 1.7489 | I26: 0.02379204238
A27: Retail Transmission Rate – Network Service Rate | B27: =VLOOKUP($B$3,'Data Current Rates'!$A:$AJ,MATCH(BI_Seas_R1_Avg!$A27,CurrentHeader,0),FALSE) -> 0.0128 | C27: =IF($B$7="kWh",$B$4*$B$6,$B$5) -> 397.044 | D27: =B27*C27 -> 5.0821632 | E27: =VLOOKUP($B$3,'Data Proposed Rates'!$A:$AQ,MATCH(BI_Seas_R1_Avg!$A27,ProposedHeader,0),FALSE) -> 0.0131 | F27: =IF($B$7="kWh",$B$4*$B$6,$B$5) -> 397.044 | G27: 5.2012764 | H27: 0.1191132 | I27: 0.0234375
A28: Retail Transmission Rate – Line and Transformation Connection Service Rate | B28: =VLOOKUP($B$3,'Data Current Rates'!$A:$AJ,MATCH(BI_Seas_R1_Avg!$A28,CurrentHeader,0),FALSE) -> 0.0092 | C28: =IF($B$7="kWh",$B$4*$B$6,$B$5) -> 397.044 | D28: 3.6528048 | E28: =VLOOKUP($B$3,'Data Proposed Rates'!$A:$AQ,MATCH(BI_Seas_R1_Avg!$A28,ProposedHeader,0),FALSE) -> 0.0094 | F28: =IF($B$7="kWh",$B$4*$B$6,$B$5) -> 397.044 | G28: 3.7322136 | H28: 0.0794088 | I28: 0.02173913043
A29: Sub-Total C - Delivery (including Sub-Total B) | D29: =SUM(D26:D28) -> 82.24273888 | G29: =SUM(G26:G28) -> 84.19016088 | H29: 1.947422 | I29: 0.02367895363
A30: Wholesale Market Service Rate (WMS) – not including CBR | B30: =VLOOKUP($A30,'Data Pass Through'!$A:$D,2,FALSE) -> 0.0041 | C30: =$B$4*$B$6 -> 397.044 | D30: =B30*C30 -> 1.6278804 | E30: =VLOOKUP($A30,'Data Pass Through'!$A:$D,3,FALSE) -> 0.0041 | F30: =$B$4*$B$6 -> 397.044 | G30: 1.6278804 | H30: 0 | I30: 0
A31: Capacity Based Recovery (CBR) – Applicable for Class B Customers | B31: =VLOOKUP($A31,'Data Pass Through'!$A:$D,2,FALSE) -> 0.0004 | C31: =$B$4*$B$6 -> 397.044 | D31: 0.1588176 | E31: =VLOOKUP($A31,'Data Pass Through'!$A:$D,3,FALSE) -> 0.0004 | F31: =$B$4*$B$6 -> 397.044 | G31: 0.1588176 | H31: 0 | I31: 0
A32: Rural Rate Protection Charge | B32: =VLOOKUP($A32,'Data Pass Through'!$A:$D,2,FALSE) -> 0.0015 | C32: =$B$4*$B$6 -> 397.044 | D32: 0.595566 | E32: =VLOOKUP($A32,'Data Pass Through'!$A:$D,3,FALSE) -> 0.0015 | F32: =$B$4*$B$6 -> 397.044 | G32: 0.595566 | H32: 0 | I32: 0
A33: Standard Supply Service – Administration Charge (if applicable) | B33: =VLOOKUP($A33,'Data Pass Through'!$A:$D,2,FALSE) -> 0.25 | C33: 1 | D33: 0.25 | E33: =VLOOKUP($A33,'Data Pass Through'!$A:$D,3,FALSE) -> 0.25 | F33: 1 | G33: 0.25 | H33: 0 | I33: 0
A34: TOU-Off Peak | B34: =VLOOKUP($A34,'Data Pass Through'!$A:$D,2,FALSE) -> 0.098 | C34: =B$4*VLOOKUP($B$3,'Data Billing Quantities'!$A:$O,MATCH($A34,'Data Billing Quantities'!$4:$4,0),FALSE) -> 236.16 | D34: 23.14368 | E34: =VLOOKUP($A34,'Data Pass Through'!$A:$D,3,FALSE) -> 0.098 | F34: =B$4*VLOOKUP($B$3,'Data Billing Quantities'!$A:$O,MATCH($A34,'Data Billing Quantities'!$4:$4,0),FALSE) -> 236.16 | G34: =E34*F34 -> 23.14368 | H34: 0 | I34: 0
A35: TOU-Mid Peak | B35: =VLOOKUP($A35,'Data Pass Through'!$A:$D,2,FALSE) -> 0.157 | C35: =B$4*VLOOKUP($B$3,'Data Billing Quantities'!$A:$O,MATCH($A35,'Data Billing Quantities'!$4:$4,0),FALSE) -> 66.42 | D35: 10.42794 | E35: =VLOOKUP($A35,'Data Pass Through'!$A:$D,3,FALSE) -> 0.157 | F35: =B$4*VLOOKUP($B$3,'Data Billing Quantities'!$A:$O,MATCH($A35,'Data Billing Quantities'!$4:$4,0),FALSE) -> 66.42 | G35: =E35*F35 -> 10.42794 | H35: 0 | I35: 0
A36: TOU-On Peak | B36: =VLOOKUP($A36,'Data Pass Through'!$A:$D,2,FALSE) -> 0.203 | C36: =B$4*VLOOKUP($B$3,'Data Billing Quantities'!$A:$O,MATCH($A36,'Data Billing Quantities'!$4:$4,0),FALSE) -> 66.42 | D36: 13.48326 | E36: =VLOOKUP($A36,'Data Pass Through'!$A:$D,3,FALSE) -> 0.203 | F36: =B$4*VLOOKUP($B$3,'Data Billing Quantities'!$A:$O,MATCH($A36,'Data Billing Quantities'!$4:$4,0),FALSE) -> 66.42 | G36: =E36*F36 -> 13.48326 | H36: 0 | I36: 0
A37: Total Bill on TOU (before Taxes) | D37: =SUM(D29:D36) -> 131.9298829 | G37: =SUM(G29:G36) -> 133.8773049 | H37: 1.947422 | I37: 0.01476103789
A38: HST | B38: 0.13 | D38: =D37*B38 -> 17.15088477 | E38: =B38 -> 0.13 | G38: =G37*E38 -> 17.40404963 | H38: 0.25316486 | I38: 0.01476103789
A39: Ontario Electricity Rebate (OER) | B39: =IF(($B$4*12)<250000,VLOOKUP($A39,'Data Pass Through'!$A$4:$C$19,2,0),0) -> -0.235 | D39: =D37*B39 -> -31.00352248 | E39: =IF(($B$4*12)<250000,VLOOKUP($A39,'Data Pass Through'!$A$4:$C$19,3,0),0) -> -0.235 | G39: =G37*E39 -> -31.46116665 | H39: -0.45764417 | I39: -0.01476103789
A40: Total Bill on TOU | D40: =SUM(D37:D39) -> 118.0772452 | G40: =SUM(G37:G39) -> 119.8201879 | H40: 1.74294269 | I40: 0.01476103789
A41: * Distribution rate protection applies to R1 and R2 customers

Sheet BI_Seas_R2_Avg
A1: Bill Impacts (Average Consumption Level) - Seas-R2
A3: Rate Class | B3: =RIGHT(A1,LEN(A1)-FIND("- ",A1,1)-1) -> Seas-R2
A4: Monthly Consumption (kWh) | B4: =IF(COUNTIF(A1,"*Low*")>0,VLOOKUP(B3,'Data Billing Quantities'!$A:$Z,MATCH("Low kWh",'Data Billing Quantities'!4:4,0),FALSE),IF(COUNTIF(A1,"*Typical*")>0,VLOOKUP(B3,'Data Billing Quantities'!$A:$Z,MATCH("Typical kWh",'Data Billing Quantities'!4:4,0),FALSE),IF(COUNTIF(A1,"*Average*")>0,VLOOKUP(B3,'Data Billing Quantities'!$A:$Z,MATCH("Average kWh",'Data Billing Quantities'!4:4,0),FALSE),IF(COUNTIF(A1,"*High*")>0,VLOOKUP(B3,'Data Billing Quantities'!$A:$Z,MATCH("High kWh",'Data Billing Quantities'!4:4,0),FALSE),"error")))) -> 369
A5: Peak (kW) | B5: =IF(COUNTIF(A1,"*Low*")>0,VLOOKUP(B3,'Data Billing Quantities'!$A:$Z,MATCH("Low kW",'Data Billing Quantities'!4:4,0),FALSE),IF(COUNTIF(A1,"*Typical*")>0,VLOOKUP(B3,'Data Billing Quantities'!$A:$Z,MATCH("Typical kW",'Data Billing Quantities'!4:4,0),FALSE),IF(COUNTIF(A1,"*Average*")>0,VLOOKUP(B3,'Data Billing Quantities'!$A:$Z,MATCH("Average kW",'Data Billing Quantities'!4:4,0),FALSE),IF(COUNTIF(A1,"*High*")>0,VLOOKUP(B3,'Data Billing Quantities'!$A:$Z,MATCH("High kW",'Data Billing Quantities'!4:4,0),FALSE),"error")))) -> 0
A6: Loss factor | B6: =VLOOKUP(B3,'Data Billing Quantities'!A:D,MATCH(A6,'Data Billing Quantities'!4:4,0),FALSE) -> 1.105
A7: Charge determinant | B7: =VLOOKUP(B3,'Data Billing Quantities'!A:D,MATCH(A7,'Data Billing Quantities'!4:4,0),FALSE) -> kWh
B9: Current OEB-Approved | E9: Proposed | H9: Impact
B10: Rate ($) | C10: Volume | D10: Charge ($) | E10: Rate ($) | F10: Volume | G10: Charge ($) | H10: $ Change | I10: % Change
A11: Service Charge | B11: =VLOOKUP($B$3,'Data Current Rates'!$A:$AO,MATCH(BI_Seas_R2_Avg!$A11,CurrentHeader,0),FALSE) -> 82.64 | C11: 1 | D11: =B11*C11 -> 82.64 | E11: =VLOOKUP($B$3,'Data Proposed Rates'!$A:$AQ,MATCH(BI_Seas_R2_Avg!$A11,ProposedHeader,0),FALSE) -> 92.43 | F11: 1 | G11: =E11*F11 -> 92.43 | H11: =G11-D11 -> 9.79 | I11: =IF(ISERROR(H11/ABS(D11)),"N/A",(H11/ABS(D11))) -> 0.1184656341
A12: Distribution Volumetric Charge | B12: =VLOOKUP($B$3,'Data Current Rates'!$A:$AO,MATCH(BI_Seas_R2_Avg!$A12,CurrentHeader,0),FALSE) -> 0.0121 | C12: =IF($B$7="kWh",$B$4,$B$5) -> 369 | D12: =B12*C12 -> 4.4649 | E12: =VLOOKUP($B$3,'Data Proposed Rates'!$A:$AQ,MATCH(BI_Seas_R2_Avg!$A12,ProposedHeader,0),FALSE) -> 0.0117 | F12: =IF($B$7="kWh",$B$4,$B$5) -> 369 | G12: 4.3173 | H12: -0.1476 | I12: -0.03305785124
A13: Z-Factor Fixed Rate Rider | E13: =VLOOKUP($B$3,'Data Proposed Rates'!$A:$AQ,MATCH(BI_Seas_R2_Avg!$A13,ProposedHeader,0),FALSE) -> 2.49 | F13: 1 | G13: 2.49 | H13: 2.49 | I13: N/A
A14: RRRP Adjustment | B14: =IF($B$3="R2",VLOOKUP(A14,'Data Pass Through'!$A4:$C19,3,0),0)*-1 -> 0 | C14: 1 | D14: =B14*C14 -> 0 | E14: =IF($B$3="R2",VLOOKUP(A14,'Data Pass Through'!$A4:$C19,3,0),0)*-1 -> 0 | F14: 1 | G14: 0 | H14: 0 | I14: N/A
A15: DRP Adjustment | D15: =IF(OR($B$3="R1",$B$3="R2",$B$3="R1-CPUC"),IF(SUM(D11:D14)>'Data Pass Through'!$B$16,-(SUM(D11:D14)-'Data Pass Through'!$B$16),0),0) -> 0 | G15: =IF(OR($B$3="R1",$B$3="R2",$B$3="R1-CPUC"),IF(SUM(G11:G14)>'Data Pass Through'!$B$16,-(SUM(G11:G14)-'Data Pass Through'!$B$16),0),0) -> 0 | H15: 0 | I15: N/A
A16: Group 2 Fixed Rate Rider | B16: =VLOOKUP($B$3,'Data Current Rates'!$A:$AO,MATCH(BI_Seas_R2_Avg!$A16,CurrentHeader,0),FALSE) -> -0.44 | C16: 1 | D16: =B16*C16 -> -0.44 | E16: =VLOOKUP($B$3,'Data Proposed Rates'!$A:$AQ,MATCH(BI_Seas_R2_Avg!$A16,ProposedHeader,0),FALSE) -> -5.18 | F16: 1 | G16: =E16*F16 -> -5.18 | H16: -4.74 | I16: -10.77272727
A17: Group 2 Volumetric Rate Rider | B17: =VLOOKUP($B$3,'Data Current Rates'!$A:$AO,MATCH(BI_Seas_R2_Avg!$A17,CurrentHeader,0),FALSE) -> 0 | C17: =IF($B$7="kWh",$B$4,$B$5) -> 369 | D17: =B17*C17 -> 0 | E17: =VLOOKUP($B$3,'Data Proposed Rates'!$A:$AQ,MATCH(BI_Seas_R2_Avg!$A17,ProposedHeader,0),FALSE) -> 0 | F17: =IF($B$7="kWh",$B$4,$B$5) -> 369 | G17: 0 | H17: =G17-D17 -> 0 | I17: =IF(ISERROR(H17/ABS(D17)),"N/A",(H17/ABS(D17))) -> N/A
A18: Sub-Total A (excluding pass through) | D18: =SUM(D11:D17) -> 86.6649 | G18: =SUM(G11:G17) -> 94.0573 | H18: 7.3924 | I18: 0.08529866186
A19: Line Losses on Cost of Power | B19: =VLOOKUP($B$3,'Data Billing Quantities'!$A:$O,MATCH(BI_Seas_R2_Avg!$A34,'Data Billing Quantities'!$4:$4,0),FALSE)*$B34+VLOOKUP($B$3,'Data Billing Quantities'!$A:$O,MATCH(BI_Seas_R2_Avg!$A35,'Data Billing Quantities'!$4:$4,0),FALSE)*$B35+VLOOKUP($B$3,'Data Billing Quantities'!$A:$O,MATCH(BI_Seas_R2_Avg!$A36,'Data Billing Quantities'!$4:$4,0),FALSE)*$B36 -> 0.12752 | C19: =($B$6*$B$4)-$B$4 -> 38.745 | D19: =B19*C19 -> 4.9407624 | E19: =VLOOKUP($B$3,'Data Billing Quantities'!$A:$O,MATCH(BI_Seas_R2_Avg!$A34,'Data Billing Quantities'!$4:$4,0),FALSE)*$B34+VLOOKUP($B$3,'Data Billing Quantities'!$A:$O,MATCH(BI_Seas_R2_Avg!$A35,'Data Billing Quantities'!$4:$4,0),FALSE)*$B35+VLOOKUP($B$3,'Data Billing Quantities'!$A:$O,MATCH(BI_Seas_R2_Avg!$A36,'Data Billing Quantities'!$4:$4,0),FALSE)*$B36 -> 0.12752 | F19: =($B$6*$B$4)-$B$4 -> 38.745 | G19: 4.9407624 | H19: 0 | I19: 0
A20: Total Deferral/Variance Account Rate Rider | B20: =VLOOKUP($B$3,'Data Current Rates'!$A:$AO,MATCH(BI_Seas_R2_Avg!$A20,CurrentHeader,0),FALSE) -> -0.0037 | C20: =IF($B$7="kWh",$B$4,$B$5) -> 369 | D20: -1.3653 | E20: =VLOOKUP($B$3,'Data Proposed Rates'!$A:$AQ,MATCH(BI_Seas_R2_Avg!$A20,ProposedHeader,0),FALSE) -> -0.0049 | F20: =IF($B$7="kWh",$B$4,$B$5) -> 369 | G20: -1.8081 | H20: -0.4428 | I20: -0.3243243243
A21: CBR Class B Rate Rider | B21: =VLOOKUP($B$3,'Data Current Rates'!$A:$AJ,MATCH(BI_Seas_R2_Avg!$A21,CurrentHeader,0),FALSE) -> 0.0001 | C21: =IF($B$7="kWh",$B$4,$B$5) -> 369 | D21: 0.0369 | E21: =VLOOKUP($B$3,'Data Proposed Rates'!$A:$AQ,MATCH(BI_Seas_R2_Avg!$A21,ProposedHeader,0),FALSE) -> -0.0006 | F21: =IF($B$7="kWh",$B$4,$B$5) -> 369 | G21: -0.2214 | H21: -0.2583 | I21: -7
A22: GA Rate Rider | B22: =VLOOKUP($B$3,'Data Current Rates'!$A:$AJ,MATCH(BI_Seas_R2_Avg!$A22,CurrentHeader,0),FALSE) -> 0 | C22: 369 | D22: 0 | E22: =VLOOKUP($B$3,'Data Proposed Rates'!$A:$AQ,MATCH(BI_Seas_R2_Avg!$A22,ProposedHeader,0),FALSE) -> 0 | F22: 369 | G22: 0 | H22: 0 | I22: N/A
A23: Smart Meter Entity Charge (if applicable) | B23: =VLOOKUP($A23,'Data Pass Through'!$A:$D,2,FALSE) -> 0.42 | C23: 1 | D23: 0.42 | E23: =VLOOKUP($A23,'Data Pass Through'!$A:$D,2,FALSE) -> 0.42 | F23: 1 | G23: 0.42 | H23: 0 | I23: 0
A24: Additional Fixed Rate Rider | B24: =VLOOKUP($B$3,'Data Current Rates'!$A:$AJ,MATCH(BI_Seas_R2_Avg!$A24,CurrentHeader,0),FALSE) -> 0 | C24: 1 | D24: 0 | E24: =VLOOKUP($B$3,'Data Proposed Rates'!$A:$AQ,MATCH(BI_Seas_R2_Avg!$A24,ProposedHeader,0),FALSE) -> 0 | F24: 1 | G24: 0 | H24: 0 | I24: N/A
A25: Additional Volumetric Rate Rider | B25: =VLOOKUP($B$3,'Data Current Rates'!$A:$AJ,MATCH(BI_Seas_R2_Avg!$A25,CurrentHeader,0),FALSE) -> 0 | C25: =IF($B$7="kWh",$B$4,$B$5) -> 369 | D25: 0 | E25: =VLOOKUP($B$3,'Data Proposed Rates'!$A:$AQ,MATCH(BI_Seas_R2_Avg!$A25,ProposedHeader,0),FALSE) -> 0 | F25: =IF($B$7="kWh",$B$4,$B$5) -> 369 | G25: 0 | H25: 0 | I25: N/A
A26: Sub-Total B - Distribution (includes Sub-Total A) | D26: =SUM(INDIRECT("D18:D"&ROW()-1)) -> 90.6972624 | G26: =SUM(INDIRECT("G18:G"&ROW()-1)) -> 97.3885624 | H26: 6.6913 | I26: 0.07377620694
A27: Retail Transmission Rate – Network Service Rate | B27: =VLOOKUP($B$3,'Data Current Rates'!$A:$AJ,MATCH(BI_Seas_R2_Avg!$A27,CurrentHeader,0),FALSE) -> 0.0118 | C27: =IF($B$7="kWh",$B$4*$B$6,$B$5) -> 407.745 | D27: =B27*C27 -> 4.811391 | E27: =VLOOKUP($B$3,'Data Proposed Rates'!$A:$AQ,MATCH(BI_Seas_R2_Avg!$A27,ProposedHeader,0),FALSE) -> 0.0121 | F27: =IF($B$7="kWh",$B$4*$B$6,$B$5) -> 407.745 | G27: 4.9337145 | H27: 0.1223235 | I27: 0.02542372881
A28: Retail Transmission Rate – Line and Transformation Connection Service Rate | B28: =VLOOKUP($B$3,'Data Current Rates'!$A:$AJ,MATCH(BI_Seas_R2_Avg!$A28,CurrentHeader,0),FALSE) -> 0.0086 | C28: =IF($B$7="kWh",$B$4*$B$6,$B$5) -> 407.745 | D28: 3.506607 | E28: =VLOOKUP($B$3,'Data Proposed Rates'!$A:$AQ,MATCH(BI_Seas_R2_Avg!$A28,ProposedHeader,0),FALSE) -> 0.0088 | F28: =IF($B$7="kWh",$B$4*$B$6,$B$5) -> 407.745 | G28: 3.588156 | H28: 0.081549 | I28: 0.02325581395
A29: Sub-Total C - Delivery (including Sub-Total B) | D29: =SUM(D26:D28) -> 99.0152604 | G29: =SUM(G26:G28) -> 105.9104329 | H29: 6.8951725 | I29: 0.06963747277
A30: Wholesale Market Service Rate (WMS) – not including CBR | B30: =VLOOKUP($A30,'Data Pass Through'!$A:$D,2,FALSE) -> 0.0041 | C30: =$B$4*$B$6 -> 407.745 | D30: =B30*C30 -> 1.6717545 | E30: =VLOOKUP($A30,'Data Pass Through'!$A:$D,3,FALSE) -> 0.0041 | F30: =$B$4*$B$6 -> 407.745 | G30: 1.6717545 | H30: 0 | I30: 0
A31: Capacity Based Recovery (CBR) – Applicable for Class B Customers | B31: =VLOOKUP($A31,'Data Pass Through'!$A:$D,2,FALSE) -> 0.0004 | C31: =$B$4*$B$6 -> 407.745 | D31: 0.163098 | E31: =VLOOKUP($A31,'Data Pass Through'!$A:$D,3,FALSE) -> 0.0004 | F31: =$B$4*$B$6 -> 407.745 | G31: 0.163098 | H31: 0 | I31: 0
A32: Rural Rate Protection Charge | B32: =VLOOKUP($A32,'Data Pass Through'!$A:$D,2,FALSE) -> 0.0015 | C32: =$B$4*$B$6 -> 407.745 | D32: 0.6116175 | E32: =VLOOKUP($A32,'Data Pass Through'!$A:$D,3,FALSE) -> 0.0015 | F32: =$B$4*$B$6 -> 407.745 | G32: 0.6116175 | H32: 0 | I32: 0
A33: Standard Supply Service – Administration Charge (if applicable) | B33: =VLOOKUP($A33,'Data Pass Through'!$A:$D,2,FALSE) -> 0.25 | C33: 1 | D33: 0.25 | E33: =VLOOKUP($A33,'Data Pass Through'!$A:$D,3,FALSE) -> 0.25 | F33: 1 | G33: 0.25 | H33: 0 | I33: 0
A34: TOU-Off Peak | B34: =VLOOKUP($A34,'Data Pass Through'!$A:$D,2,FALSE) -> 0.098 | C34: =B$4*VLOOKUP($B$3,'Data Billing Quantities'!$A:$O,MATCH($A34,'Data Billing Quantities'!$4:$4,0),FALSE) -> 236.16 | D34: 23.14368 | E34: =VLOOKUP($A34,'Data Pass Through'!$A:$D,3,FALSE) -> 0.098 | F34: =B$4*VLOOKUP($B$3,'Data Billing Quantities'!$A:$O,MATCH($A34,'Data Billing Quantities'!$4:$4,0),FALSE) -> 236.16 | G34: =E34*F34 -> 23.14368 | H34: 0 | I34: 0
A35: TOU-Mid Peak | B35: =VLOOKUP($A35,'Data Pass Through'!$A:$D,2,FALSE) -> 0.157 | C35: =B$4*VLOOKUP($B$3,'Data Billing Quantities'!$A:$O,MATCH($A35,'Data Billing Quantities'!$4:$4,0),FALSE) -> 66.42 | D35: 10.42794 | E35: =VLOOKUP($A35,'Data Pass Through'!$A:$D,3,FALSE) -> 0.157 | F35: =B$4*VLOOKUP($B$3,'Data Billing Quantities'!$A:$O,MATCH($A35,'Data Billing Quantities'!$4:$4,0),FALSE) -> 66.42 | G35: =E35*F35 -> 10.42794 | H35: 0 | I35: 0
A36: TOU-On Peak | B36: =VLOOKUP($A36,'Data Pass Through'!$A:$D,2,FALSE) -> 0.203 | C36: =B$4*VLOOKUP($B$3,'Data Billing Quantities'!$A:$O,MATCH($A36,'Data Billing Quantities'!$4:$4,0),FALSE) -> 66.42 | D36: 13.48326 | E36: =VLOOKUP($A36,'Data Pass Through'!$A:$D,3,FALSE) -> 0.203 | F36: =B$4*VLOOKUP($B$3,'Data Billing Quantities'!$A:$O,MATCH($A36,'Data Billing Quantities'!$4:$4,0),FALSE) -> 66.42 | G36: =E36*F36 -> 13.48326 | H36: 0 | I36: 0
A37: Total Bill on TOU (before Taxes) | D37: =SUM(D29:D36) -> 148.7666104 | G37: =SUM(G29:G36) -> 155.6617829 | H37: 6.8951725 | I37: 0.04634892522
A38: HST | B38: 0.13 | D38: =D37*B38 -> 19.33965935 | E38: =B38 -> 0.13 | G38: =G37*E38 -> 20.23603178 | H38: 0.896372425 | I38: 0.04634892522
A39: Ontario Electricity Rebate (OER) | B39: =IF(($B$4*12)<250000,VLOOKUP($A39,'Data Pass Through'!$A$4:$C$19,2,0),0) -> -0.235 | D39: =D37*B39 -> -34.96015344 | E39: =IF(($B$4*12)<250000,VLOOKUP($A39,'Data Pass Through'!$A$4:$C$19,3,0),0) -> -0.235 | G39: =G37*E39 -> -36.58051898 | H39: -1.620365537 | I39: -0.04634892522
A40: Total Bill on TOU | D40: =SUM(D37:D39) -> 133.1461163 | G40: =SUM(G37:G39) -> 139.3172957 | H40: 6.171179387 | I40: 0.04634892522
A41: * Distribution rate protection applies to R1 and R2 customers

Sheet BI_GSe_Typical
A1: Bill Impacts (Typical Consumption Level) - GSe
A3: Rate Class | B3: =RIGHT(A1,LEN(A1)-FIND("- ",A1,1)-1) -> GSe
A4: Monthly Consumption (kWh) | B4: =IF(COUNTIF(A1,"*Low*")>0,VLOOKUP(B3,'Data Billing Quantities'!$A:$Z,MATCH("Low kWh",'Data Billing Quantities'!4:4,0),FALSE),IF(COUNTIF(A1,"*Typical*")>0,VLOOKUP(B3,'Data Billing Quantities'!$A:$Z,MATCH("Typical kWh",'Data Billing Quantities'!4:4,0),FALSE),IF(COUNTIF(A1,"*Average*")>0,VLOOKUP(B3,'Data Billing Quantities'!$A:$Z,MATCH("Average kWh",'Data Billing Quantities'!4:4,0),FALSE),IF(COUNTIF(A1,"*High*")>0,VLOOKUP(B3,'Data Billing Quantities'!$A:$Z,MATCH("High kWh",'Data Billing Quantities'!4:4,0),FALSE),"error")))) -> 2000
A5: Peak (kW) | B5: =IF(COUNTIF(A1,"*Low*")>0,VLOOKUP(B3,'Data Billing Quantities'!$A:$Z,MATCH("Low kW",'Data Billing Quantities'!4:4,0),FALSE),IF(COUNTIF(A1,"*Typical*")>0,VLOOKUP(B3,'Data Billing Quantities'!$A:$Z,MATCH("Typical kW",'Data Billing Quantities'!4:4,0),FALSE),IF(COUNTIF(A1,"*Average*")>0,VLOOKUP(B3,'Data Billing Quantities'!$A:$Z,MATCH("Average kW",'Data Billing Quantities'!4:4,0),FALSE),IF(COUNTIF(A1,"*High*")>0,VLOOKUP(B3,'Data Billing Quantities'!$A:$Z,MATCH("High kW",'Data Billing Quantities'!4:4,0),FALSE),"error")))) -> 0
A6: Loss factor | B6: =VLOOKUP(B3,'Data Billing Quantities'!A:D,MATCH(A6,'Data Billing Quantities'!4:4,0),FALSE) -> 1.096
A7: Charge determinant | B7: =VLOOKUP(B3,'Data Billing Quantities'!A:D,MATCH(A7,'Data Billing Quantities'!4:4,0),FALSE) -> kWh
B9: Current OEB-Approved | E9: Proposed | H9: Impact
B10: Rate ($) | C10: Volume | D10: Charge ($) | E10: Rate ($) | F10: Volume | G10: Charge ($) | H10: $ Change | I10: % Change
A11: Service Charge | B11: =VLOOKUP($B$3,'Data Current Rates'!$A:$AO,MATCH(BI_GSe_Typical!$A11,CurrentHeader,0),FALSE) -> 32.78 | C11: 1 | D11: =B11*C11 -> 32.78 | E11: =VLOOKUP($B$3,'Data Proposed Rates'!$A:$AQ,MATCH(BI_GSe_Typical!$A11,ProposedHeader,0),FALSE) -> 32.78 | F11: 1 | G11: =E11*F11 -> 32.78 | H11: =G11-D11 -> 0 | I11: =IF(ISERROR(H11/ABS(D11)),"N/A",(H11/ABS(D11))) -> 0
A12: Distribution Volumetric Charge | B12: =VLOOKUP($B$3,'Data Current Rates'!$A:$AO,MATCH(BI_GSe_Typical!$A12,CurrentHeader,0),FALSE) -> 0.0768 | C12: =IF($B$7="kWh",$B$4,$B$5) -> 2000 | D12: =B12*C12 -> 153.6 | E12: =VLOOKUP($B$3,'Data Proposed Rates'!$A:$AQ,MATCH(BI_GSe_Typical!$A12,ProposedHeader,0),FALSE) -> 0.0816 | F12: =IF($B$7="kWh",$B$4,$B$5) -> 2000 | G12: 163.2 | H12: 9.6 | I12: 0.0625
A13: Z-Factor Fixed Rate Rider | E13: =VLOOKUP($B$3,'Data Proposed Rates'!$A:$AQ,MATCH(BI_GSe_Typical!$A13,ProposedHeader,0),FALSE) -> 2.96 | F13: 1 | G13: 2.96 | H13: 2.96 | I13: N/A
A14: RRRP Adjustment | B14: =IF($B$3="R2",VLOOKUP(A14,'Data Pass Through'!$A4:$C19,3,0),0)*-1 -> 0 | C14: 1 | D14: =B14*C14 -> 0 | E14: =IF($B$3="R2",VLOOKUP(A14,'Data Pass Through'!$A4:$C19,3,0),0)*-1 -> 0 | F14: 1 | G14: 0 | H14: 0 | I14: N/A
A15: DRP Adjustment | D15: =IF(OR($B$3="R1",$B$3="R2",$B$3="R1-CPUC"),IF(SUM(D11:D14)>'Data Pass Through'!$B$16,-(SUM(D11:D14)-'Data Pass Through'!$B$16),0),0) -> 0 | G15: =IF(OR($B$3="R1",$B$3="R2",$B$3="R1-CPUC"),IF(SUM(G11:G14)>'Data Pass Through'!$B$16,-(SUM(G11:G14)-'Data Pass Through'!$B$16),0),0) -> 0 | H15: 0 | I15: N/A
A16: Group 2 Fixed Rate Rider | B16: =VLOOKUP($B$3,'Data Current Rates'!$A:$AO,MATCH(BI_GSe_Typical!$A16,CurrentHeader,0),FALSE) -> 0 | C16: 1 | D16: =B16*C16 -> 0 | E16: =VLOOKUP($B$3,'Data Proposed Rates'!$A:$AQ,MATCH(BI_GSe_Typical!$A16,ProposedHeader,0),FALSE) -> -1.12 | F16: 1 | G16: =E16*F16 -> -1.12 | H16: -1.12 | I16: N/A
A17: Group 2 Volumetric Rate Rider | B17: =VLOOKUP($B$3,'Data Current Rates'!$A:$AO,MATCH(BI_GSe_Typical!$A17,CurrentHeader,0),FALSE) -> -0.0003 | C17: =IF($B$7="kWh",$B$4,$B$5) -> 2000 | D17: =B17*C17 -> -0.6 | E17: =VLOOKUP($B$3,'Data Proposed Rates'!$A:$AQ,MATCH(BI_GSe_Typical!$A17,ProposedHeader,0),FALSE) -> -0.0028 | F17: =IF($B$7="kWh",$B$4,$B$5) -> 2000 | G17: -5.6 | H17: =G17-D17 -> -5 | I17: =IF(ISERROR(H17/ABS(D17)),"N/A",(H17/ABS(D17))) -> -8.333333333
A18: Sub-Total A (excluding pass through) | D18: =SUM(D11:D17) -> 185.78 | G18: =SUM(G11:G17) -> 192.22 | H18: 6.44 | I18: 0.03466465712
A19: Line Losses on Cost of Power | B19: =VLOOKUP($B$3,'Data Billing Quantities'!$A:$O,MATCH(BI_GSe_Typical!$A34,'Data Billing Quantities'!$4:$4,0),FALSE)*$B34+VLOOKUP($B$3,'Data Billing Quantities'!$A:$O,MATCH(BI_GSe_Typical!$A35,'Data Billing Quantities'!$4:$4,0),FALSE)*$B35+VLOOKUP($B$3,'Data Billing Quantities'!$A:$O,MATCH(BI_GSe_Typical!$A36,'Data Billing Quantities'!$4:$4,0),FALSE)*$B36 -> 0.12752 | C19: =($B$6*$B$4)-$B$4 -> 192 | D19: =B19*C19 -> 24.48384 | E19: =VLOOKUP($B$3,'Data Billing Quantities'!$A:$O,MATCH(BI_GSe_Typical!$A34,'Data Billing Quantities'!$4:$4,0),FALSE)*$B34+VLOOKUP($B$3,'Data Billing Quantities'!$A:$O,MATCH(BI_GSe_Typical!$A35,'Data Billing Quantities'!$4:$4,0),FALSE)*$B35+VLOOKUP($B$3,'Data Billing Quantities'!$A:$O,MATCH(BI_GSe_Typical!$A36,'Data Billing Quantities'!$4:$4,0),FALSE)*$B36 -> 0.12752 | F19: =($B$6*$B$4)-$B$4 -> 192 | G19: 24.48384 | H19: 0 | I19: 0
A20: Total Deferral/Variance Account Rate Rider | B20: =VLOOKUP($B$3,'Data Current Rates'!$A:$AO,MATCH(BI_GSe_Typical!$A20,CurrentHeader,0),FALSE) -> -0.0036 | C20: =IF($B$7="kWh",$B$4,$B$5) -> 2000 | D20: -7.2 | E20: =VLOOKUP($B$3,'Data Proposed Rates'!$A:$AQ,MATCH(BI_GSe_Typical!$A20,ProposedHeader,0),FALSE) -> -0.0048 | F20: =IF($B$7="kWh",$B$4,$B$5) -> 2000 | G20: -9.6 | H20: -2.4 | I20: -0.3333333333
A21: CBR Class B Rate Rider | B21: =VLOOKUP($B$3,'Data Current Rates'!$A:$AJ,MATCH(BI_GSe_Typical!$A21,CurrentHeader,0),FALSE) -> 0.0001 | C21: =IF($B$7="kWh",$B$4,$B$5) -> 2000 | D21: 0.2 | E21: =VLOOKUP($B$3,'Data Proposed Rates'!$A:$AQ,MATCH(BI_GSe_Typical!$A21,ProposedHeader,0),FALSE) -> -0.0006 | F21: =IF($B$7="kWh",$B$4,$B$5) -> 2000 | G21: -1.2 | H21: -1.4 | I21: -7
A22: GA Rate Rider | B22: =VLOOKUP($B$3,'Data Current Rates'!$A:$AJ,MATCH(BI_GSe_Typical!$A22,CurrentHeader,0),FALSE) -> 0 | C22: 2000 | D22: 0 | E22: =VLOOKUP($B$3,'Data Proposed Rates'!$A:$AQ,MATCH(BI_GSe_Typical!$A22,ProposedHeader,0),FALSE) -> 0 | F22: 2000 | G22: 0 | H22: 0 | I22: N/A
A23: Smart Meter Entity Charge (if applicable) | B23: =VLOOKUP($A23,'Data Pass Through'!$A:$D,2,FALSE) -> 0.42 | C23: 1 | D23: 0.42 | E23: =VLOOKUP($A23,'Data Pass Through'!$A:$D,2,FALSE) -> 0.42 | F23: 1 | G23: 0.42 | H23: 0 | I23: 0
A24: Additional Fixed Rate Rider | B24: =VLOOKUP($B$3,'Data Current Rates'!$A:$AJ,MATCH(BI_GSe_Typical!$A24,CurrentHeader,0),FALSE) -> 0 | C24: 1 | D24: 0 | E24: =VLOOKUP($B$3,'Data Proposed Rates'!$A:$AQ,MATCH(BI_GSe_Typical!$A24,ProposedHeader,0),FALSE) -> 0 | F24: 1 | G24: 0 | H24: 0 | I24: N/A
A25: Additional Volumetric Rate Rider | B25: =VLOOKUP($B$3,'Data Current Rates'!$A:$AJ,MATCH(BI_GSe_Typical!$A25,CurrentHeader,0),FALSE) -> 0 | C25: =IF($B$7="kWh",$B$4,$B$5) -> 2000 | D25: 0 | E25: =VLOOKUP($B$3,'Data Proposed Rates'!$A:$AQ,MATCH(BI_GSe_Typical!$A25,ProposedHeader,0),FALSE) -> 0 | F25: =IF($B$7="kWh",$B$4,$B$5) -> 2000 | G25: 0 | H25: 0 | I25: N/A
A26: Sub-Total B - Distribution (includes Sub-Total A) | D26: =SUM(INDIRECT("D18:D"&ROW()-1)) -> 203.68384 | G26: =SUM(INDIRECT("G18:G"&ROW()-1)) -> 206.32384 | H26: 2.64 | I26: 0.01296126389
A27: Retail Transmission Rate – Network Service Rate | B27: =VLOOKUP($B$3,'Data Current Rates'!$A:$AJ,MATCH(BI_GSe_Typical!$A27,CurrentHeader,0),FALSE) -> 0.0101 | C27: =IF($B$7="kWh",$B$4*$B$6,$B$5) -> 2192 | D27: =B27*C27 -> 22.1392 | E27: =VLOOKUP($B$3,'Data Proposed Rates'!$A:$AQ,MATCH(BI_GSe_Typical!$A27,ProposedHeader,0),FALSE) -> 0.0104 | F27: =IF($B$7="kWh",$B$4*$B$6,$B$5) -> 2192 | G27: 22.7968 | H27: 0.6576 | I27: 0.0297029703
A28: Retail Transmission Rate – Line and Transformation Connection Service Rate | B28: =VLOOKUP($B$3,'Data Current Rates'!$A:$AJ,MATCH(BI_GSe_Typical!$A28,CurrentHeader,0),FALSE) -> 0.0078 | C28: =IF($B$7="kWh",$B$4*$B$6,$B$5) -> 2192 | D28: 17.0976 | E28: =VLOOKUP($B$3,'Data Proposed Rates'!$A:$AQ,MATCH(BI_GSe_Typical!$A28,ProposedHeader,0),FALSE) -> 0.008 | F28: =IF($B$7="kWh",$B$4*$B$6,$B$5) -> 2192 | G28: 17.536 | H28: 0.4384 | I28: 0.02564102564
A29: Sub-Total C - Delivery (including Sub-Total B) | D29: =SUM(D26:D28) -> 242.92064 | G29: =SUM(G26:G28) -> 246.65664 | H29: 3.736 | I29: 0.0153795083
A30: Wholesale Market Service Rate (WMS) – not including CBR | B30: =VLOOKUP($A30,'Data Pass Through'!$A:$D,2,FALSE) -> 0.0041 | C30: =$B$4*$B$6 -> 2192 | D30: =B30*C30 -> 8.9872 | E30: =VLOOKUP($A30,'Data Pass Through'!$A:$D,3,FALSE) -> 0.0041 | F30: =$B$4*$B$6 -> 2192 | G30: 8.9872 | H30: 0 | I30: 0
A31: Capacity Based Recovery (CBR) – Applicable for Class B Customers | B31: =VLOOKUP($A31,'Data Pass Through'!$A:$D,2,FALSE) -> 0.0004 | C31: =$B$4*$B$6 -> 2192 | D31: 0.8768 | E31: =VLOOKUP($A31,'Data Pass Through'!$A:$D,3,FALSE) -> 0.0004 | F31: =$B$4*$B$6 -> 2192 | G31: 0.8768 | H31: 0 | I31: 0
A32: Rural Rate Protection Charge | B32: =VLOOKUP($A32,'Data Pass Through'!$A:$D,2,FALSE) -> 0.0015 | C32: =$B$4*$B$6 -> 2192 | D32: 3.288 | E32: =VLOOKUP($A32,'Data Pass Through'!$A:$D,3,FALSE) -> 0.0015 | F32: =$B$4*$B$6 -> 2192 | G32: 3.288 | H32: 0 | I32: 0
A33: Standard Supply Service – Administration Charge (if applicable) | B33: =VLOOKUP($A33,'Data Pass Through'!$A:$D,2,FALSE) -> 0.25 | C33: 1 | D33: 0.25 | E33: =VLOOKUP($A33,'Data Pass Through'!$A:$D,3,FALSE) -> 0.25 | F33: 1 | G33: 0.25 | H33: 0 | I33: 0
A34: TOU-Off Peak | B34: =VLOOKUP($A34,'Data Pass Through'!$A:$D,2,FALSE) -> 0.098 | C34: =B$4*VLOOKUP($B$3,'Data Billing Quantities'!$A:$O,MATCH($A34,'Data Billing Quantities'!$4:$4,0),FALSE) -> 1280 | D34: 125.44 | E34: =VLOOKUP($A34,'Data Pass Through'!$A:$D,3,FALSE) -> 0.098 | F34: =B$4*VLOOKUP($B$3,'Data Billing Quantities'!$A:$O,MATCH($A34,'Data Billing Quantities'!$4:$4,0),FALSE) -> 1280 | G34: =E34*F34 -> 125.44 | H34: 0 | I34: 0
A35: TOU-Mid Peak | B35: =VLOOKUP($A35,'Data Pass Through'!$A:$D,2,FALSE) -> 0.157 | C35: =B$4*VLOOKUP($B$3,'Data Billing Quantities'!$A:$O,MATCH($A35,'Data Billing Quantities'!$4:$4,0),FALSE) -> 360 | D35: 56.52 | E35: =VLOOKUP($A35,'Data Pass Through'!$A:$D,3,FALSE) -> 0.157 | F35: =B$4*VLOOKUP($B$3,'Data Billing Quantities'!$A:$O,MATCH($A35,'Data Billing Quantities'!$4:$4,0),FALSE) -> 360 | G35: =E35*F35 -> 56.52 | H35: 0 | I35: 0
A36: TOU-On Peak | B36: =VLOOKUP($A36,'Data Pass Through'!$A:$D,2,FALSE) -> 0.203 | C36: =B$4*VLOOKUP($B$3,'Data Billing Quantities'!$A:$O,MATCH($A36,'Data Billing Quantities'!$4:$4,0),FALSE) -> 360 | D36: 73.08 | E36: =VLOOKUP($A36,'Data Pass Through'!$A:$D,3,FALSE) -> 0.203 | F36: =B$4*VLOOKUP($B$3,'Data Billing Quantities'!$A:$O,MATCH($A36,'Data Billing Quantities'!$4:$4,0),FALSE) -> 360 | G36: =E36*F36 -> 73.08 | H36: 0 | I36: 0
A37: Total Bill on TOU (before Taxes) | D37: =SUM(D29:D36) -> 511.36264 | G37: =SUM(G29:G36) -> 515.09864 | H37: 3.736 | I37: 0.007305969791
A38: HST | B38: 0.13 | D38: =D37*B38 -> 66.4771432 | E38: =B38 -> 0.13 | G38: =G37*E38 -> 66.9628232 | H38: 0.48568 | I38: 0.007305969791
A39: Ontario Electricity Rebate (OER) | B39: =IF(($B$4*12)<250000,VLOOKUP($A39,'Data Pass Through'!$A$4:$C$19,2,0),0) -> -0.235 | D39: =D37*B39 -> -120.1702204 | E39: =IF(($B$4*12)<250000,VLOOKUP($A39,'Data Pass Through'!$A$4:$C$19,3,0),0) -> -0.235 | G39: =G37*E39 -> -121.0481804 | H39: -0.87796 | I39: -0.007305969791
A40: Total Bill on TOU | D40: =SUM(D37:D39) -> 457.6695628 | G40: =SUM(G37:G39) -> 461.0132828 | H40: 3.34372 | I40: 0.007305969791
A41: * Distribution rate protection applies to R1 and R2 customers

Sheet BI_UGe_Typical
A1: Bill Impacts (Typical Consumption Level) - UGe
A3: Rate Class | B3: =RIGHT(A1,LEN(A1)-FIND("- ",A1,1)-1) -> UGe
A4: Monthly Consumption (kWh) | B4: =IF(COUNTIF(A1,"*Low*")>0,VLOOKUP(B3,'Data Billing Quantities'!$A:$Z,MATCH("Low kWh",'Data Billing Quantities'!4:4,0),FALSE),IF(COUNTIF(A1,"*Typical*")>0,VLOOKUP(B3,'Data Billing Quantities'!$A:$Z,MATCH("Typical kWh",'Data Billing Quantities'!4:4,0),FALSE),IF(COUNTIF(A1,"*Average*")>0,VLOOKUP(B3,'Data Billing Quantities'!$A:$Z,MATCH("Average kWh",'Data Billing Quantities'!4:4,0),FALSE),IF(COUNTIF(A1,"*High*")>0,VLOOKUP(B3,'Data Billing Quantities'!$A:$Z,MATCH("High kWh",'Data Billing Quantities'!4:4,0),FALSE),"error")))) -> 2000
A5: Peak (kW) | B5: =IF(COUNTIF(A1,"*Low*")>0,VLOOKUP(B3,'Data Billing Quantities'!$A:$Z,MATCH("Low kW",'Data Billing Quantities'!4:4,0),FALSE),IF(COUNTIF(A1,"*Typical*")>0,VLOOKUP(B3,'Data Billing Quantities'!$A:$Z,MATCH("Typical kW",'Data Billing Quantities'!4:4,0),FALSE),IF(COUNTIF(A1,"*Average*")>0,VLOOKUP(B3,'Data Billing Quantities'!$A:$Z,MATCH("Average kW",'Data Billing Quantities'!4:4,0),FALSE),IF(COUNTIF(A1,"*High*")>0,VLOOKUP(B3,'Data Billing Quantities'!$A:$Z,MATCH("High kW",'Data Billing Quantities'!4:4,0),FALSE),"error")))) -> 0
A6: Loss factor | B6: =VLOOKUP(B3,'Data Billing Quantities'!A:D,MATCH(A6,'Data Billing Quantities'!4:4,0),FALSE) -> 1.067
A7: Charge determinant | B7: =VLOOKUP(B3,'Data Billing Quantities'!A:D,MATCH(A7,'Data Billing Quantities'!4:4,0),FALSE) -> kWh
B9: Current OEB-Approved | E9: Proposed | H9: Impact
B10: Rate ($) | C10: Volume | D10: Charge ($) | E10: Rate ($) | F10: Volume | G10: Charge ($) | H10: $ Change | I10: % Change
A11: Service Charge | B11: =VLOOKUP($B$3,'Data Current Rates'!$A:$AO,MATCH(BI_UGe_Typical!$A11,CurrentHeader,0),FALSE) -> 25.51 | C11: 1 | D11: =B11*C11 -> 25.51 | E11: =VLOOKUP($B$3,'Data Proposed Rates'!$A:$AQ,MATCH(BI_UGe_Typical!$A11,ProposedHeader,0),FALSE) -> 25.51 | F11: 1 | G11: =E11*F11 -> 25.51 | H11: =G11-D11 -> 0 | I11: =IF(ISERROR(H11/ABS(D11)),"N/A",(H11/ABS(D11))) -> 0
A12: Distribution Volumetric Charge | B12: =VLOOKUP($B$3,'Data Current Rates'!$A:$AO,MATCH(BI_UGe_Typical!$A12,CurrentHeader,0),FALSE) -> 0.037 | C12: =IF($B$7="kWh",$B$4,$B$5) -> 2000 | D12: =B12*C12 -> 74 | E12: =VLOOKUP($B$3,'Data Proposed Rates'!$A:$AQ,MATCH(BI_UGe_Typical!$A12,ProposedHeader,0),FALSE) -> 0.0394 | F12: =IF($B$7="kWh",$B$4,$B$5) -> 2000 | G12: 78.8 | H12: 4.8 | I12: 0.06486486486
A13: Z-Factor Fixed Rate Rider | E13: =VLOOKUP($B$3,'Data Proposed Rates'!$A:$AQ,MATCH(BI_UGe_Typical!$A13,ProposedHeader,0),FALSE) -> 1.97 | F13: 1 | G13: 1.97 | H13: 1.97 | I13: N/A
A14: RRRP Adjustment | B14: =IF($B$3="R2",VLOOKUP(A14,'Data Pass Through'!$A4:$C19,3,0),0)*-1 -> 0 | C14: 1 | D14: =B14*C14 -> 0 | E14: =IF($B$3="R2",VLOOKUP(A14,'Data Pass Through'!$A4:$C19,3,0),0)*-1 -> 0 | F14: 1 | G14: 0 | H14: 0 | I14: N/A
A15: DRP Adjustment | D15: =IF(OR($B$3="R1",$B$3="R2",$B$3="R1-CPUC"),IF(SUM(D11:D14)>'Data Pass Through'!$B$16,-(SUM(D11:D14)-'Data Pass Through'!$B$16),0),0) -> 0 | G15: =IF(OR($B$3="R1",$B$3="R2",$B$3="R1-CPUC"),IF(SUM(G11:G14)>'Data Pass Through'!$B$16,-(SUM(G11:G14)-'Data Pass Through'!$B$16),0),0) -> 0 | H15: 0 | I15: N/A
A16: Group 2 Fixed Rate Rider | B16: =VLOOKUP($B$3,'Data Current Rates'!$A:$AO,MATCH(BI_UGe_Typical!$A16,CurrentHeader,0),FALSE) -> 0 | C16: 1 | D16: =B16*C16 -> 0 | E16: =VLOOKUP($B$3,'Data Proposed Rates'!$A:$AQ,MATCH(BI_UGe_Typical!$A16,ProposedHeader,0),FALSE) -> -0.87 | F16: 1 | G16: =E16*F16 -> -0.87 | H16: -0.87 | I16: N/A
A17: Group 2 Volumetric Rate Rider | B17: =VLOOKUP($B$3,'Data Current Rates'!$A:$AO,MATCH(BI_UGe_Typical!$A17,CurrentHeader,0),FALSE) -> -0.0001 | C17: =IF($B$7="kWh",$B$4,$B$5) -> 2000 | D17: =B17*C17 -> -0.2 | E17: =VLOOKUP($B$3,'Data Proposed Rates'!$A:$AQ,MATCH(BI_UGe_Typical!$A17,ProposedHeader,0),FALSE) -> -0.0014 | F17: =IF($B$7="kWh",$B$4,$B$5) -> 2000 | G17: -2.8 | H17: =G17-D17 -> -2.6 | I17: =IF(ISERROR(H17/ABS(D17)),"N/A",(H17/ABS(D17))) -> -13
A18: Sub-Total A (excluding pass through) | D18: =SUM(D11:D17) -> 99.31 | G18: =SUM(G11:G17) -> 102.61 | H18: 3.3 | I18: 0.03322928205
A19: Line Losses on Cost of Power | B19: =VLOOKUP($B$3,'Data Billing Quantities'!$A:$O,MATCH(BI_UGe_Typical!$A34,'Data Billing Quantities'!$4:$4,0),FALSE)*$B34+VLOOKUP($B$3,'Data Billing Quantities'!$A:$O,MATCH(BI_UGe_Typical!$A35,'Data Billing Quantities'!$4:$4,0),FALSE)*$B35+VLOOKUP($B$3,'Data Billing Quantities'!$A:$O,MATCH(BI_UGe_Typical!$A36,'Data Billing Quantities'!$4:$4,0),FALSE)*$B36 -> 0.12752 | C19: =($B$6*$B$4)-$B$4 -> 134 | D19: =B19*C19 -> 17.08768 | E19: =VLOOKUP($B$3,'Data Billing Quantities'!$A:$O,MATCH(BI_UGe_Typical!$A34,'Data Billing Quantities'!$4:$4,0),FALSE)*$B34+VLOOKUP($B$3,'Data Billing Quantities'!$A:$O,MATCH(BI_UGe_Typical!$A35,'Data Billing Quantities'!$4:$4,0),FALSE)*$B35+VLOOKUP($B$3,'Data Billing Quantities'!$A:$O,MATCH(BI_UGe_Typical!$A36,'Data Billing Quantities'!$4:$4,0),FALSE)*$B36 -> 0.12752 | F19: =($B$6*$B$4)-$B$4 -> 134 | G19: 17.08768 | H19: 0 | I19: 0
A20: Total Deferral/Variance Account Rate Rider | B20: =VLOOKUP($B$3,'Data Current Rates'!$A:$AO,MATCH(BI_UGe_Typical!$A20,CurrentHeader,0),FALSE) -> -0.0036 | C20: =IF($B$7="kWh",$B$4,$B$5) -> 2000 | D20: -7.2 | E20: =VLOOKUP($B$3,'Data Proposed Rates'!$A:$AQ,MATCH(BI_UGe_Typical!$A20,ProposedHeader,0),FALSE) -> -0.0048 | F20: =IF($B$7="kWh",$B$4,$B$5) -> 2000 | G20: -9.6 | H20: -2.4 | I20: -0.3333333333
A21: CBR Class B Rate Rider | B21: =VLOOKUP($B$3,'Data Current Rates'!$A:$AJ,MATCH(BI_UGe_Typical!$A21,CurrentHeader,0),FALSE) -> 0.0001 | C21: =IF($B$7="kWh",$B$4,$B$5) -> 2000 | D21: 0.2 | E21: =VLOOKUP($B$3,'Data Proposed Rates'!$A:$AQ,MATCH(BI_UGe_Typical!$A21,ProposedHeader,0),FALSE) -> -0.0006 | F21: =IF($B$7="kWh",$B$4,$B$5) -> 2000 | G21: -1.2 | H21: -1.4 | I21: -7
A22: GA Rate Rider | B22: =VLOOKUP($B$3,'Data Current Rates'!$A:$AJ,MATCH(BI_UGe_Typical!$A22,CurrentHeader,0),FALSE) -> 0 | C22: 2000 | D22: 0 | E22: =VLOOKUP($B$3,'Data Proposed Rates'!$A:$AQ,MATCH(BI_UGe_Typical!$A22,ProposedHeader,0),FALSE) -> 0 | F22: 2000 | G22: 0 | H22: 0 | I22: N/A
A23: Smart Meter Entity Charge (if applicable) | B23: =VLOOKUP($A23,'Data Pass Through'!$A:$D,2,FALSE) -> 0.42 | C23: 1 | D23: 0.42 | E23: =VLOOKUP($A23,'Data Pass Through'!$A:$D,2,FALSE) -> 0.42 | F23: 1 | G23: 0.42 | H23: 0 | I23: 0
A24: Additional Fixed Rate Rider | B24: =VLOOKUP($B$3,'Data Current Rates'!$A:$AJ,MATCH(BI_UGe_Typical!$A24,CurrentHeader,0),FALSE) -> 0 | C24: 1 | D24: 0 | E24: =VLOOKUP($B$3,'Data Proposed Rates'!$A:$AQ,MATCH(BI_UGe_Typical!$A24,ProposedHeader,0),FALSE) -> 0 | F24: 1 | G24: 0 | H24: 0 | I24: N/A
A25: Additional Volumetric Rate Rider | B25: =VLOOKUP($B$3,'Data Current Rates'!$A:$AJ,MATCH(BI_UGe_Typical!$A25,CurrentHeader,0),FALSE) -> 0 | C25: =IF($B$7="kWh",$B$4,$B$5) -> 2000 | D25: 0 | E25: =VLOOKUP($B$3,'Data Proposed Rates'!$A:$AQ,MATCH(BI_UGe_Typical!$A25,ProposedHeader,0),FALSE) -> 0 | F25: =IF($B$7="kWh",$B$4,$B$5) -> 2000 | G25: 0 | H25: 0 | I25: N/A
A26: Sub-Total B - Distribution (includes Sub-Total A) | D26: =SUM(INDIRECT("D18:D"&ROW()-1)) -> 109.81768 | G26: =SUM(INDIRECT("G18:G"&ROW()-1)) -> 109.31768 | H26: -0.5 | I26: -0.004553000938
A27: Retail Transmission Rate – Network Service Rate | B27: =VLOOKUP($B$3,'Data Current Rates'!$A:$AJ,MATCH(BI_UGe_Typical!$A27,CurrentHeader,0),FALSE) -> 0.0108 | C27: =IF($B$7="kWh",$B$4*$B$6,$B$5) -> 2134 | D27: =B27*C27 -> 23.0472 | E27: =VLOOKUP($B$3,'Data Proposed Rates'!$A:$AQ,MATCH(BI_UGe_Typical!$A27,ProposedHeader,0),FALSE) -> 0.0111 | F27: =IF($B$7="kWh",$B$4*$B$6,$B$5) -> 2134 | G27: 23.6874 | H27: 0.6402 | I27: 0.02777777778
A28: Retail Transmission Rate – Line and Transformation Connection Service Rate | B28: =VLOOKUP($B$3,'Data Current Rates'!$A:$AJ,MATCH(BI_UGe_Typical!$A28,CurrentHeader,0),FALSE) -> 0.0083 | C28: =IF($B$7="kWh",$B$4*$B$6,$B$5) -> 2134 | D28: 17.7122 | E28: =VLOOKUP($B$3,'Data Proposed Rates'!$A:$AQ,MATCH(BI_UGe_Typical!$A28,ProposedHeader,0),FALSE) -> 0.0085 | F28: =IF($B$7="kWh",$B$4*$B$6,$B$5) -> 2134 | G28: 18.139 | H28: 0.4268 | I28: 0.02409638554
A29: Sub-Total C - Delivery (including Sub-Total B) | D29: =SUM(D26:D28) -> 150.57708 | G29: =SUM(G26:G28) -> 151.14408 | H29: 0.567 | I29: 0.003765513317
A30: Wholesale Market Service Rate (WMS) – not including CBR | B30: =VLOOKUP($A30,'Data Pass Through'!$A:$D,2,FALSE) -> 0.0041 | C30: =$B$4*$B$6 -> 2134 | D30: =B30*C30 -> 8.7494 | E30: =VLOOKUP($A30,'Data Pass Through'!$A:$D,3,FALSE) -> 0.0041 | F30: =$B$4*$B$6 -> 2134 | G30: 8.7494 | H30: 0 | I30: 0
A31: Capacity Based Recovery (CBR) – Applicable for Class B Customers | B31: =VLOOKUP($A31,'Data Pass Through'!$A:$D,2,FALSE) -> 0.0004 | C31: =$B$4*$B$6 -> 2134 | D31: 0.8536 | E31: =VLOOKUP($A31,'Data Pass Through'!$A:$D,3,FALSE) -> 0.0004 | F31: =$B$4*$B$6 -> 2134 | G31: 0.8536 | H31: 0 | I31: 0
A32: Rural Rate Protection Charge | B32: =VLOOKUP($A32,'Data Pass Through'!$A:$D,2,FALSE) -> 0.0015 | C32: =$B$4*$B$6 -> 2134 | D32: 3.201 | E32: =VLOOKUP($A32,'Data Pass Through'!$A:$D,3,FALSE) -> 0.0015 | F32: =$B$4*$B$6 -> 2134 | G32: 3.201 | H32: 0 | I32: 0
A33: Standard Supply Service – Administration Charge (if applicable) | B33: =VLOOKUP($A33,'Data Pass Through'!$A:$D,2,FALSE) -> 0.25 | C33: 1 | D33: 0.25 | E33: =VLOOKUP($A33,'Data Pass Through'!$A:$D,3,FALSE) -> 0.25 | F33: 1 | G33: 0.25 | H33: 0 | I33: 0
A34: TOU-Off Peak | B34: =VLOOKUP($A34,'Data Pass Through'!$A:$D,2,FALSE) -> 0.098 | C34: =B$4*VLOOKUP($B$3,'Data Billing Quantities'!$A:$O,MATCH($A34,'Data Billing Quantities'!$4:$4,0),FALSE) -> 1280 | D34: 125.44 | E34: =VLOOKUP($A34,'Data Pass Through'!$A:$D,3,FALSE) -> 0.098 | F34: =B$4*VLOOKUP($B$3,'Data Billing Quantities'!$A:$O,MATCH($A34,'Data Billing Quantities'!$4:$4,0),FALSE) -> 1280 | G34: =E34*F34 -> 125.44 | H34: 0 | I34: 0
A35: TOU-Mid Peak | B35: =VLOOKUP($A35,'Data Pass Through'!$A:$D,2,FALSE) -> 0.157 | C35: =B$4*VLOOKUP($B$3,'Data Billing Quantities'!$A:$O,MATCH($A35,'Data Billing Quantities'!$4:$4,0),FALSE) -> 360 | D35: 56.52 | E35: =VLOOKUP($A35,'Data Pass Through'!$A:$D,3,FALSE) -> 0.157 | F35: =B$4*VLOOKUP($B$3,'Data Billing Quantities'!$A:$O,MATCH($A35,'Data Billing Quantities'!$4:$4,0),FALSE) -> 360 | G35: =E35*F35 -> 56.52 | H35: 0 | I35: 0
A36: TOU-On Peak | B36: =VLOOKUP($A36,'Data Pass Through'!$A:$D,2,FALSE) -> 0.203 | C36: =B$4*VLOOKUP($B$3,'Data Billing Quantities'!$A:$O,MATCH($A36,'Data Billing Quantities'!$4:$4,0),FALSE) -> 360 | D36: 73.08 | E36: =VLOOKUP($A36,'Data Pass Through'!$A:$D,3,FALSE) -> 0.203 | F36: =B$4*VLOOKUP($B$3,'Data Billing Quantities'!$A:$O,MATCH($A36,'Data Billing Quantities'!$4:$4,0),FALSE) -> 360 | G36: =E36*F36 -> 73.08 | H36: 0 | I36: 0
A37: Total Bill on TOU (before Taxes) | D37: =SUM(D29:D36) -> 418.67108 | G37: =SUM(G29:G36) -> 419.23808 | H37: 0.567 | I37: 0.001354285087
A38: HST | B38: 0.13 | D38: =D37*B38 -> 54.4272404 | E38: =B38 -> 0.13 | G38: =G37*E38 -> 54.5009504 | H38: 0.07371 | I38: 0.001354285087
A39: Ontario Electricity Rebate (OER) | B39: =IF(($B$4*12)<250000,VLOOKUP($A39,'Data Pass Through'!$A$4:$C$19,2,0),0) -> -0.235 | D39: =D37*B39 -> -98.3877038 | E39: =IF(($B$4*12)<250000,VLOOKUP($A39,'Data Pass Through'!$A$4:$C$19,3,0),0) -> -0.235 | G39: =G37*E39 -> -98.5209488 | H39: -0.133245 | I39: -0.001354285087
A40: Total Bill on TOU | D40: =SUM(D37:D39) -> 374.7106166 | G40: =SUM(G37:G39) -> 375.2180816 | H40: 0.507465 | I40: 0.001354285087
A41: * Distribution rate protection applies to R1 and R2 customers

Sheet BI_GSd_Avg
A1: Bill Impacts (Average Consumption Level) - GSd
A3: Rate Class | B3: =RIGHT(A1,LEN(A1)-FIND("- ",A1,1)-1) -> GSd
A4: Monthly Consumption (kWh) | B4: =IF(COUNTIF(A1,"*Low*")>0,VLOOKUP(B3,'Data Billing Quantities'!$A:$Z,MATCH("Low kWh",'Data Billing Quantities'!4:4,0),FALSE),IF(COUNTIF(A1,"*Typical*")>0,VLOOKUP(B3,'Data Billing Quantities'!$A:$Z,MATCH("Typical kWh",'Data Billing Quantities'!4:4,0),FALSE),IF(COUNTIF(A1,"*Average*")>0,VLOOKUP(B3,'Data Billing Quantities'!$A:$Z,MATCH("Average kWh",'Data Billing Quantities'!4:4,0),FALSE),IF(COUNTIF(A1,"*High*")>0,VLOOKUP(B3,'Data Billing Quantities'!$A:$Z,MATCH("High kWh",'Data Billing Quantities'!4:4,0),FALSE),"error")))) -> 34334
A5: Peak (kW) | B5: =IF(COUNTIF(A1,"*Low*")>0,VLOOKUP(B3,'Data Billing Quantities'!$A:$Z,MATCH("Low kW",'Data Billing Quantities'!4:4,0),FALSE),IF(COUNTIF(A1,"*Typical*")>0,VLOOKUP(B3,'Data Billing Quantities'!$A:$Z,MATCH("Typical kW",'Data Billing Quantities'!4:4,0),FALSE),IF(COUNTIF(A1,"*Average*")>0,VLOOKUP(B3,'Data Billing Quantities'!$A:$Z,MATCH("Average kW",'Data Billing Quantities'!4:4,0),FALSE),IF(COUNTIF(A1,"*High*")>0,VLOOKUP(B3,'Data Billing Quantities'!$A:$Z,MATCH("High kW",'Data Billing Quantities'!4:4,0),FALSE),"error")))) -> 110
A6: Loss factor | B6: =VLOOKUP(B3,'Data Billing Quantities'!A:D,MATCH(A6,'Data Billing Quantities'!4:4,0),FALSE) -> 1.061
A7: Charge determinant | B7: =VLOOKUP(B3,'Data Billing Quantities'!A:D,MATCH(A7,'Data Billing Quantities'!4:4,0),FALSE) -> kW
B9: Current OEB-Approved | E9: Proposed | H9: Impact
B10: Rate | C10: Volume | D10: Charge | E10: Rate | F10: Volume | G10: Charge | H10: $ Change | I10: % Change
B11: ($) | D11: ($) | E11: ($) | G11: ($)
A12: Service Charge | B12: =VLOOKUP($B$3,'Data Current Rates'!$A:$AO,MATCH(BI_GSd_Avg!$A12,CurrentHeader,0),FALSE) -> 105.55 | C12: 1 | D12: =C12*B12 -> 105.55 | E12: =VLOOKUP($B$3,'Data Proposed Rates'!$A:$AQ,MATCH(BI_GSd_Avg!$A12,ProposedHeader,0),FALSE) -> 105.55 | F12: 1 | G12: =F12*E12 -> 105.55 | H12: =G12-D12 -> 0 | I12: =IF(ISERROR(H12/ABS(D12)),"N/A",(H12/ABS(D12))) -> 0
A13: Distribution Volumetric Charge | B13: =VLOOKUP($B$3,'Data Current Rates'!$A:$AO,MATCH(BI_GSd_Avg!$A13,CurrentHeader,0),FALSE) -> 21.3987 | C13: =IF($B$7="kWh",$B$4,$B$5) -> 110 | D13: =C13*B13 -> 2353.857 | E13: =VLOOKUP($B$3,'Data Proposed Rates'!$A:$AQ,MATCH(BI_GSd_Avg!$A13,ProposedHeader,0),FALSE) -> 22.5201 | F13: =IF($B$7="kWh",$B$4,$B$5) -> 110 | G13: =F13*E13 -> 2477.211 | H13: 123.354 | I13: 0.05240505264
A14: Z-Factor Fixed Rate Rider | E14: =VLOOKUP($B$3,'Data Proposed Rates'!$A:$AQ,MATCH(BI_GSd_Avg!$A14,ProposedHeader,0),FALSE) -> 40.23 | F14: 1 | G14: =F14*E14 -> 40.23 | H14: 40.23 | I14: N/A
A15: Group 2 Fixed Rate Rider | B15: =VLOOKUP($B$3,'Data Current Rates'!$A:$AO,MATCH(BI_GSd_Avg!$A15,CurrentHeader,0),FALSE) -> 0 | C15: 1 | D15: =C15*B15 -> 0 | E15: =VLOOKUP($B$3,'Data Proposed Rates'!$A:$AQ,MATCH(BI_GSd_Avg!$A15,ProposedHeader,0),FALSE) -> -3.62 | F15: 1 | G15: -3.62 | H15: -3.62 | I15: N/A
A16: Group 2 Volumetric Rate Rider | B16: =VLOOKUP($B$3,'Data Current Rates'!$A:$AO,MATCH(BI_GSd_Avg!$A16,CurrentHeader,0),FALSE) -> -0.071 | C16: =IF($B$7="kWh",$B$4,$B$5) -> 110 | D16: -7.81 | E16: =VLOOKUP($B$3,'Data Proposed Rates'!$A:$AQ,MATCH(BI_GSd_Avg!$A16,ProposedHeader,0),FALSE) -> -0.7683 | F16: =IF($B$7="kWh",$B$4,$B$5) -> 110 | G16: -84.513 | H16: -76.703 | I16: -9.821126761
A17: Sub-Total A (excluding pass through) | D17: =SUM(D12:D16) -> 2451.597 | G17: =SUM(G12:G16) -> 2534.858 | H17: 83.261 | I17: 0.03396194399
A18: Line Losses on Cost of Power | B18: 0 | C18: =IF(B$18=0,0,B$4*B$6-B$4) -> 0 | D18: =C18*B18 -> 0 | E18: 0 | F18: =IF(E$18=0,0,E$4*E$6-E$4) -> 0 | G18: 0 | H18: 0 | I18: N/A
A19: Total Deferral/Variance Account Rate Rider | B19: =VLOOKUP($B$3,'Data Current Rates'!$A:$AO,MATCH(BI_GSd_Avg!$A19,CurrentHeader,0),FALSE) -> -1.0953 | C19: =IF($B$7="kWh",$B$4,$B$5) -> 110 | D19: -120.483 | E19: =VLOOKUP($B$3,'Data Proposed Rates'!$A:$AQ,MATCH(BI_GSd_Avg!$A19,ProposedHeader,0),FALSE) -> -1.5392 | F19: =IF($B$7="kWh",$B$4,$B$5) -> 110 | G19: -169.312 | H19: -48.829 | I19: -0.405277093
A20: CBR Class B Rate Rider | B20: =VLOOKUP($B$3,'Data Current Rates'!$A:$AO,MATCH(BI_GSd_Avg!$A20,CurrentHeader,0),FALSE) -> 0.0172 | C20: =IF($B$7="kWh",$B$4,$B$5) -> 110 | D20: =C20*B20 -> 1.892 | E20: =VLOOKUP($B$3,'Data Proposed Rates'!$A:$AQ,MATCH(BI_GSd_Avg!$A20,ProposedHeader,0),FALSE) -> -0.1893 | F20: =IF($B$7="kWh",$B$4,$B$5) -> 110 | G20: =F20*E20 -> -20.823 | H20: -22.715 | I20: -12.00581395
A21: GA Rate Rider | B21: =VLOOKUP($B$3,'Data Current Rates'!$A:$AO,MATCH(BI_GSd_Avg!$A21,CurrentHeader,0),FALSE) -> -0.0009 | C21: =$B$4 -> 34334 | D21: =C21*B21 -> -30.9006 | E21: =VLOOKUP($B$3,'Data Proposed Rates'!$A:$AQ,MATCH(BI_GSd_Avg!$A21,ProposedHeader,0),FALSE) -> 0.0121 | F21: =$B$4 -> 34334 | G21: 415.4414 | H21: 446.342 | I21: 14.44444444
A22: Additional Fixed Rate Rider | B22: =VLOOKUP($B$3,'Data Current Rates'!$A:$AO,MATCH(BI_GSd_Avg!$A22,CurrentHeader,0),FALSE) -> 0 | C22: 1 | D22: 0 | E22: =VLOOKUP($B$3,'Data Proposed Rates'!$A:$AQ,MATCH(BI_GSd_Avg!$A22,ProposedHeader,0),FALSE) -> 0 | F22: 1 | G22: =F22*E22 -> 0 | H22: =G22-D22 -> 0 | I22: N/A
A23: Additional Volumetric Rate Rider | B23: =VLOOKUP($B$3,'Data Current Rates'!$A:$AO,MATCH(BI_GSd_Avg!$A23,CurrentHeader,0),FALSE) -> 0 | C23: =IF($B$7="kWh",$B$4,$B$5) -> 110 | D23: =C23*B23 -> 0 | E23: =VLOOKUP($B$3,'Data Proposed Rates'!$A:$AQ,MATCH(BI_GSd_Avg!$A23,ProposedHeader,0),FALSE) -> 0 | F23: =IF($B$7="kWh",$B$4,$B$5) -> 110 | G23: =F23*E23 -> 0 | H23: 0 | I23: N/A
A24: Sub-Total B - Distribution (includes Sub-Total A) | D24: =SUM(INDIRECT("D17:D"&ROW()-1)) -> 2302.1054 | G24: =SUM(INDIRECT("G17:G"&ROW()-1)) -> 2760.1644 | H24: 458.059 | I24: 0.1989739479
A25: Retail Transmission Rate – Network Service Rate | B25: =VLOOKUP($B$3,'Data Current Rates'!$A:$AO,MATCH(BI_GSd_Avg!$A25,CurrentHeader,0),FALSE) -> 3.2717 | C25: =IF($B$7="kWh",$B$4*$B$6,$B$5) -> 110 | D25: =C25*B25 -> 359.887 | E25: =VLOOKUP($B$3,'Data Proposed Rates'!$A:$AQ,MATCH(BI_GSd_Avg!$A25,ProposedHeader,0),FALSE) -> 3.3593 | F25: =IF($B$7="kWh",$B$4*$B$6,$B$5) -> 110 | G25: =F25*E25 -> 369.523 | H25: 9.636 | I25: 0.02677507106
A26: Retail Transmission Rate – Line and Transformation Connection Service Rate | B26: =VLOOKUP($B$3,'Data Current Rates'!$A:$AO,MATCH(BI_GSd_Avg!$A26,CurrentHeader,0),FALSE) -> 2.492 | C26: =IF($B$7="kWh",$B$4*$B$6,$B$5) -> 110 | D26: =C26*B26 -> 274.12 | E26: =VLOOKUP($B$3,'Data Proposed Rates'!$A:$AQ,MATCH(BI_GSd_Avg!$A26,ProposedHeader,0),FALSE) -> 2.5541 | F26: =IF($B$7="kWh",$B$4*$B$6,$B$5) -> 110 | G26: =F26*E26 -> 280.951 | H26: 6.831 | I26: 0.02491974318
A27: Sub-Total C - Delivery (including Sub-Total B) | D27: =SUM(D24:D26) -> 2936.1124 | G27: =SUM(G24:G26) -> 3410.6384 | H27: 474.526 | I27: 0.1616171098
A28: Wholesale Market Service Rate (WMS) – not including CBR | B28: =VLOOKUP($A28,'Data Pass Through'!$A:$D,2,FALSE) -> 0.0041 | C28: =$B$4*$B$6 -> 36428.374 | D28: =C28*B28 -> 149.3563334 | E28: =VLOOKUP($A28,'Data Pass Through'!$A:$D,3,FALSE) -> 0.0041 | F28: =$B$4*$B$6 -> 36428.374 | G28: =F28*E28 -> 149.3563334 | H28: 0 | I28: 0
A29: Capacity Based Recovery (CBR) – Applicable for Class B Customers | B29: =VLOOKUP($A29,'Data Pass Through'!$A:$D,2,FALSE) -> 0.0004 | C29: =$B$4*$B$6 -> 36428.374 | D29: 14.5713496 | E29: =VLOOKUP($A29,'Data Pass Through'!$A:$D,3,FALSE) -> 0.0004 | F29: 36428.374 | G29: 14.5713496 | H29: 0 | I29: 0
A30: Rural Rate Protection Charge | B30: =VLOOKUP($A30,'Data Pass Through'!$A:$D,2,FALSE) -> 0.0015 | C30: 36428.374 | D30: 54.642561 | E30: =VLOOKUP($A30,'Data Pass Through'!$A:$D,3,FALSE) -> 0.0015 | F30: 36428.374 | G30: 54.642561 | H30: 0 | I30: 0
A31: Standard Supply Service – Administration Charge (if applicable) | B31: =VLOOKUP($A31,'Data Pass Through'!$A:$D,2,FALSE) -> 0.25 | C31: 1 | D31: 0.25 | E31: =VLOOKUP($A31,'Data Pass Through'!$A:$D,3,FALSE) -> 0.25 | F31: 1 | G31: 0.25 | H31: 0 | I31: 0
A32: Average IESO Wholesale Market Price | B32: =VLOOKUP(A32,'Data Pass Through'!A4:C19,2,0) -> 0.1596 | C32: =$B$4*$B$6 -> 36428.374 | D32: =C32*B32 -> 5813.96849 | E32: =VLOOKUP($A32,'Data Pass Through'!$A:$D,3,FALSE) -> 0.1596 | F32: =$B$4*$B$6 -> 36428.374 | G32: 5813.96849 | H32: =G32-D32 -> 0 | I32: 0
A33: Total Bill on Average IESO Wholesale Market Price (before Taxes) | D33: =SUM(D27:D32) -> 8968.901134 | G33: =SUM(G27:G32) -> 9443.427134 | H33: =G33-D33 -> 474.526 | I33: 0.05290793074
A34: HST | B34: 0.13 | D34: =D33*B34 -> 1165.957147 | E34: 0.13 | G34: =G33*E34 -> 1227.645527 | H34: =G34-D34 -> 61.68838 | I34: 0.05290793074
A35: Ontario Electricity Rebate (OER) | B35: =IF(($B$4*12)<250000,VLOOKUP(A35,'Data Pass Through'!$A$4:$C$19,2,0),0) -> 0 | D35: =D33*B35 -> 0 | E35: =IF(($B$4*12)<250000,VLOOKUP(A35,'Data Pass Through'!$A$4:$C$19,3,0),0) -> 0 | G35: =G33*E35 -> 0 | H35: =G35-D35 -> 0 | I35: N/A
A36: Total Bill on Average IESO Wholesale Market Price | D36: =SUM(D33:D35) -> 10134.85828 | G36: =SUM(G33:G35) -> 10671.07266 | H36: =G36-D36 -> 536.21438 | I36: 0.05290793074

Sheet BI_UGd_Avg
A1: Bill Impacts (Average Consumption Level) - UGd
A3: Rate Class | B3: =RIGHT(A1,LEN(A1)-FIND("- ",A1,1)-1) -> UGd
A4: Monthly Consumption (kWh) | B4: =IF(COUNTIF(A1,"*Low*")>0,VLOOKUP(B3,'Data Billing Quantities'!$A:$Z,MATCH("Low kWh",'Data Billing Quantities'!4:4,0),FALSE),IF(COUNTIF(A1,"*Typical*")>0,VLOOKUP(B3,'Data Billing Quantities'!$A:$Z,MATCH("Typical kWh",'Data Billing Quantities'!4:4,0),FALSE),IF(COUNTIF(A1,"*Average*")>0,VLOOKUP(B3,'Data Billing Quantities'!$A:$Z,MATCH("Average kWh",'Data Billing Quantities'!4:4,0),FALSE),IF(COUNTIF(A1,"*High*")>0,VLOOKUP(B3,'Data Billing Quantities'!$A:$Z,MATCH("High kWh",'Data Billing Quantities'!4:4,0),FALSE),"error")))) -> 42592
A5: Peak (kW) | B5: =IF(COUNTIF(A1,"*Low*")>0,VLOOKUP(B3,'Data Billing Quantities'!$A:$Z,MATCH("Low kW",'Data Billing Quantities'!4:4,0),FALSE),IF(COUNTIF(A1,"*Typical*")>0,VLOOKUP(B3,'Data Billing Quantities'!$A:$Z,MATCH("Typical kW",'Data Billing Quantities'!4:4,0),FALSE),IF(COUNTIF(A1,"*Average*")>0,VLOOKUP(B3,'Data Billing Quantities'!$A:$Z,MATCH("Average kW",'Data Billing Quantities'!4:4,0),FALSE),IF(COUNTIF(A1,"*High*")>0,VLOOKUP(B3,'Data Billing Quantities'!$A:$Z,MATCH("High kW",'Data Billing Quantities'!4:4,0),FALSE),"error")))) -> 111
A6: Loss factor | B6: =VLOOKUP(B3,'Data Billing Quantities'!A:D,MATCH(A6,'Data Billing Quantities'!4:4,0),FALSE) -> 1.05
A7: Charge determinant | B7: =VLOOKUP(B3,'Data Billing Quantities'!A:D,MATCH(A7,'Data Billing Quantities'!4:4,0),FALSE) -> kW
B9: Current OEB-Approved | E9: Proposed | H9: Impact
B10: Rate | C10: Volume | D10: Charge | E10: Rate | F10: Volume | G10: Charge | H10: $ Change | I10: % Change
B11: ($) | D11: ($) | E11: ($) | G11: ($)
A12: Service Charge | B12: =VLOOKUP($B$3,'Data Current Rates'!$A:$AO,MATCH(BI_UGd_Avg!$A12,CurrentHeader,0),FALSE) -> 96.47 | C12: 1 | D12: =C12*B12 -> 96.47 | E12: =VLOOKUP($B$3,'Data Proposed Rates'!$A:$AQ,MATCH(BI_UGd_Avg!$A12,ProposedHeader,0),FALSE) -> 96.47 | F12: 1 | G12: =F12*E12 -> 96.47 | H12: =G12-D12 -> 0 | I12: =IF(ISERROR(H12/ABS(D12)),"N/A",(H12/ABS(D12))) -> 0
A13: Distribution Volumetric Charge | B13: =VLOOKUP($B$3,'Data Current Rates'!$A:$AO,MATCH(BI_UGd_Avg!$A13,CurrentHeader,0),FALSE) -> 12.4416 | C13: =IF($B$7="kWh",$B$4,$B$5) -> 111 | D13: =C13*B13 -> 1381.0176 | E13: =VLOOKUP($B$3,'Data Proposed Rates'!$A:$AQ,MATCH(BI_UGd_Avg!$A13,ProposedHeader,0),FALSE) -> 13.1059 | F13: =IF($B$7="kWh",$B$4,$B$5) -> 111 | G13: =F13*E13 -> 1454.7549 | H13: 73.7373 | I13: 0.05339345422
A14: Z-Factor Fixed Rate Rider | E14: =VLOOKUP($B$3,'Data Proposed Rates'!$A:$AQ,MATCH(BI_UGd_Avg!$A14,ProposedHeader,0),FALSE) -> 24.23 | F14: 1 | G14: =F14*E14 -> 24.23 | H14: 24.23 | I14: N/A
A15: Group 2 Fixed Rate Rider | B15: =VLOOKUP($B$3,'Data Current Rates'!$A:$AO,MATCH(BI_UGd_Avg!$A15,CurrentHeader,0),FALSE) -> 0 | C15: 1 | D15: =C15*B15 -> 0 | E15: =VLOOKUP($B$3,'Data Proposed Rates'!$A:$AQ,MATCH(BI_UGd_Avg!$A15,ProposedHeader,0),FALSE) -> -3.31 | F15: 1 | G15: -3.31 | H15: -3.31 | I15: N/A
A16: Group 2 Volumetric Rate Rider | B16: =VLOOKUP($B$3,'Data Current Rates'!$A:$AO,MATCH(BI_UGd_Avg!$A16,CurrentHeader,0),FALSE) -> -0.0421 | C16: =IF($B$7="kWh",$B$4,$B$5) -> 111 | D16: -4.6731 | E16: =VLOOKUP($B$3,'Data Proposed Rates'!$A:$AQ,MATCH(BI_UGd_Avg!$A16,ProposedHeader,0),FALSE) -> -0.4449 | F16: =IF($B$7="kWh",$B$4,$B$5) -> 111 | G16: -49.3839 | H16: -44.7108 | I16: -9.567695962
A17: Sub-Total A (excluding pass through) | D17: =SUM(D12:D16) -> 1472.8145 | G17: =SUM(G12:G16) -> 1522.761 | H17: 49.9465 | I17: 0.03391228155
A18: Line Losses on Cost of Power | B18: 0 | C18: =IF(B$18=0,0,B$4*B$6-B$4) -> 0 | D18: =C18*B18 -> 0 | E18: 0 | F18: =IF(E$18=0,0,E$4*E$6-E$4) -> 0 | G18: 0 | H18: 0 | I18: N/A
A19: Total Deferral/Variance Account Rate Rider | B19: =VLOOKUP($B$3,'Data Current Rates'!$A:$AO,MATCH(BI_UGd_Avg!$A19,CurrentHeader,0),FALSE) -> -1.3523 | C19: =IF($B$7="kWh",$B$4,$B$5) -> 111 | D19: -150.1053 | E19: =VLOOKUP($B$3,'Data Proposed Rates'!$A:$AQ,MATCH(BI_UGd_Avg!$A19,ProposedHeader,0),FALSE) -> -1.8871 | F19: =IF($B$7="kWh",$B$4,$B$5) -> 111 | G19: -209.4681 | H19: -59.3628 | I19: -0.395474377
A20: CBR Class B Rate Rider | B20: =VLOOKUP($B$3,'Data Current Rates'!$A:$AO,MATCH(BI_UGd_Avg!$A20,CurrentHeader,0),FALSE) -> 0.0212 | C20: =IF($B$7="kWh",$B$4,$B$5) -> 111 | D20: =C20*B20 -> 2.3532 | E20: =VLOOKUP($B$3,'Data Proposed Rates'!$A:$AQ,MATCH(BI_UGd_Avg!$A20,ProposedHeader,0),FALSE) -> -0.2353 | F20: =IF($B$7="kWh",$B$4,$B$5) -> 111 | G20: =F20*E20 -> -26.1183 | H20: -28.4715 | I20: -12.0990566
A21: GA Rate Rider | B21: =VLOOKUP($B$3,'Data Current Rates'!$A:$AO,MATCH(BI_UGd_Avg!$A21,CurrentHeader,0),FALSE) -> -0.0009 | C21: =$B$4 -> 42592 | D21: =C21*B21 -> -38.3328 | E21: =VLOOKUP($B$3,'Data Proposed Rates'!$A:$AQ,MATCH(BI_UGd_Avg!$A21,ProposedHeader,0),FALSE) -> 0.0121 | F21: =$B$4 -> 42592 | G21: 515.3632 | H21: 553.696 | I21: 14.44444444
A22: Additional Fixed Rate Rider | B22: =VLOOKUP($B$3,'Data Current Rates'!$A:$AO,MATCH(BI_UGd_Avg!$A22,CurrentHeader,0),FALSE) -> 0 | C22: 1 | D22: 0 | E22: =VLOOKUP($B$3,'Data Proposed Rates'!$A:$AQ,MATCH(BI_UGd_Avg!$A22,ProposedHeader,0),FALSE) -> 0 | F22: 1 | G22: =F22*E22 -> 0 | H22: =G22-D22 -> 0 | I22: N/A
A23: Additional Volumetric Rate Rider | B23: =VLOOKUP($B$3,'Data Current Rates'!$A:$AO,MATCH(BI_UGd_Avg!$A23,CurrentHeader,0),FALSE) -> 0 | C23: =IF($B$7="kWh",$B$4,$B$5) -> 111 | D23: =C23*B23 -> 0 | E23: =VLOOKUP($B$3,'Data Proposed Rates'!$A:$AQ,MATCH(BI_UGd_Avg!$A23,ProposedHeader,0),FALSE) -> 0 | F23: =IF($B$7="kWh",$B$4,$B$5) -> 111 | G23: =F23*E23 -> 0 | H23: 0 | I23: N/A
A24: Sub-Total B - Distribution (includes Sub-Total A) | D24: =SUM(INDIRECT("D17:D"&ROW()-1)) -> 1286.7296 | G24: =SUM(INDIRECT("G17:G"&ROW()-1)) -> 1802.5378 | H24: 515.8082 | I24: 0.4008675949
A25: Retail Transmission Rate – Network Service Rate | B25: =VLOOKUP($B$3,'Data Current Rates'!$A:$AO,MATCH(BI_UGd_Avg!$A25,CurrentHeader,0),FALSE) -> 4.1819 | C25: =IF($B$7="kWh",$B$4*$B$6,$B$5) -> 111 | D25: =C25*B25 -> 464.1909 | E25: =VLOOKUP($B$3,'Data Proposed Rates'!$A:$AQ,MATCH(BI_UGd_Avg!$A25,ProposedHeader,0),FALSE) -> 4.294 | F25: =IF($B$7="kWh",$B$4*$B$6,$B$5) -> 111 | G25: =F25*E25 -> 476.634 | H25: 12.4431 | I25: 0.02680599727
A26: Retail Transmission Rate – Line and Transformation Connection Service Rate | B26: =VLOOKUP($B$3,'Data Current Rates'!$A:$AO,MATCH(BI_UGd_Avg!$A26,CurrentHeader,0),FALSE) -> 3.1306 | C26: =IF($B$7="kWh",$B$4*$B$6,$B$5) -> 111 | D26: =C26*B26 -> 347.4966 | E26: =VLOOKUP($B$3,'Data Proposed Rates'!$A:$AQ,MATCH(BI_UGd_Avg!$A26,ProposedHeader,0),FALSE) -> 3.2087 | F26: =IF($B$7="kWh",$B$4*$B$6,$B$5) -> 111 | G26: =F26*E26 -> 356.1657 | H26: 8.6691 | I26: 0.02494729445
A27: Sub-Total C - Delivery (including Sub-Total B) | D27: =SUM(D24:D26) -> 2098.4171 | G27: =SUM(G24:G26) -> 2635.3375 | H27: 536.9204 | I27: 0.2558692454
A28: Wholesale Market Service Rate (WMS) – not including CBR | B28: =VLOOKUP($A28,'Data Pass Through'!$A:$D,2,FALSE) -> 0.0041 | C28: =$B$4*$B$6 -> 44721.6 | D28: =C28*B28 -> 183.35856 | E28: =VLOOKUP($A28,'Data Pass Through'!$A:$D,3,FALSE) -> 0.0041 | F28: =$B$4*$B$6 -> 44721.6 | G28: =F28*E28 -> 183.35856 | H28: 0 | I28: 0
A29: Capacity Based Recovery (CBR) – Applicable for Class B Customers | B29: =VLOOKUP($A29,'Data Pass Through'!$A:$D,2,FALSE) -> 0.0004 | C29: =$B$4*$B$6 -> 44721.6 | D29: 17.88864 | E29: =VLOOKUP($A29,'Data Pass Through'!$A:$D,3,FALSE) -> 0.0004 | F29: 44721.6 | G29: 17.88864 | H29: 0 | I29: 0
A30: Rural Rate Protection Charge | B30: =VLOOKUP($A30,'Data Pass Through'!$A:$D,2,FALSE) -> 0.0015 | C30: 44721.6 | D30: 67.0824 | E30: =VLOOKUP($A30,'Data Pass Through'!$A:$D,3,FALSE) -> 0.0015 | F30: 44721.6 | G30: 67.0824 | H30: 0 | I30: 0
A31: Standard Supply Service – Administration Charge (if applicable) | B31: =VLOOKUP($A31,'Data Pass Through'!$A:$D,2,FALSE) -> 0.25 | C31: 1 | D31: 0.25 | E31: =VLOOKUP($A31,'Data Pass Through'!$A:$D,3,FALSE) -> 0.25 | F31: 1 | G31: 0.25 | H31: 0 | I31: 0
A32: Average IESO Wholesale Market Price | B32: =VLOOKUP(A32,'Data Pass Through'!A4:C19,2,0) -> 0.1596 | C32: =$B$4*$B$6 -> 44721.6 | D32: =C32*B32 -> 7137.56736 | E32: =VLOOKUP($A32,'Data Pass Through'!$A:$D,3,FALSE) -> 0.1596 | F32: =$B$4*$B$6 -> 44721.6 | G32: 7137.56736 | H32: =G32-D32 -> 0 | I32: 0
A33: Total Bill on Average IESO Wholesale Market Price (before Taxes) | D33: =SUM(D27:D32) -> 9504.56406 | G33: =SUM(G27:G32) -> 10041.48446 | H33: =G33-D33 -> 536.9204 | I33: 0.05649079712
A34: HST | B34: 0.13 | D34: =D33*B34 -> 1235.593328 | E34: 0.13 | G34: =G33*E34 -> 1305.39298 | H34: =G34-D34 -> 69.799652 | I34: 0.05649079712
A35: Ontario Electricity Rebate (OER) | B35: =IF(($B$4*12)<250000,VLOOKUP(A35,'Data Pass Through'!$A$4:$C$19,2,0),0) -> 0 | D35: =D33*B35 -> 0 | E35: =IF(($B$4*12)<250000,VLOOKUP(A35,'Data Pass Through'!$A$4:$C$19,3,0),0) -> 0 | G35: =G33*E35 -> 0 | H35: =G35-D35 -> 0 | I35: N/A
A36: Total Bill on Average IESO Wholesale Market Price | D36: =SUM(D33:D35) -> 10740.15739 | G36: =SUM(G33:G35) -> 11346.87744 | H36: =G36-D36 -> 606.720052 | I36: 0.05649079712

Sheet BI_StLgt_Avg
A1: Bill Impacts (Average Consumption Level) - St Lgt
A3: Rate Class | B3: =RIGHT(A1,LEN(A1)-FIND("- ",A1,1)-1) -> St Lgt
A4: Monthly Consumption (kWh) | B4: =IF(COUNTIF(A1,"*Low*")>0,VLOOKUP(B3,'Data Billing Quantities'!$A:$Z,MATCH("Low kWh",'Data Billing Quantities'!4:4,0),FALSE),IF(COUNTIF(A1,"*Typical*")>0,VLOOKUP(B3,'Data Billing Quantities'!$A:$Z,MATCH("Typical kWh",'Data Billing Quantities'!4:4,0),FALSE),IF(COUNTIF(A1,"*Average*")>0,VLOOKUP(B3,'Data Billing Quantities'!$A:$Z,MATCH("Average kWh",'Data Billing Quantities'!4:4,0),FALSE),IF(COUNTIF(A1,"*High*")>0,VLOOKUP(B3,'Data Billing Quantities'!$A:$Z,MATCH("High kWh",'Data Billing Quantities'!4:4,0),FALSE),"error")))) -> 1274
A5: Peak (kW) | B5: =IF(COUNTIF(A1,"*Low*")>0,VLOOKUP(B3,'Data Billing Quantities'!$A:$Z,MATCH("Low kW",'Data Billing Quantities'!4:4,0),FALSE),IF(COUNTIF(A1,"*Typical*")>0,VLOOKUP(B3,'Data Billing Quantities'!$A:$Z,MATCH("Typical kW",'Data Billing Quantities'!4:4,0),FALSE),IF(COUNTIF(A1,"*Average*")>0,VLOOKUP(B3,'Data Billing Quantities'!$A:$Z,MATCH("Average kW",'Data Billing Quantities'!4:4,0),FALSE),IF(COUNTIF(A1,"*High*")>0,VLOOKUP(B3,'Data Billing Quantities'!$A:$Z,MATCH("High kW",'Data Billing Quantities'!4:4,0),FALSE),"error")))) -> 0
A6: Loss factor | B6: =VLOOKUP(B3,'Data Billing Quantities'!A:D,MATCH(A6,'Data Billing Quantities'!4:4,0),FALSE) -> 1.092
A7: Charge determinant | B7: =VLOOKUP(B3,'Data Billing Quantities'!A:D,MATCH(A7,'Data Billing Quantities'!4:4,0),FALSE) -> kWh
B9: Current OEB-Approved | E9: Proposed | H9: Impact
B10: Rate ($) | C10: Volume | D10: Charge ($) | E10: Rate ($) | F10: Volume | G10: Charge ($) | H10: $ Change | I10: % Change
A11: Service Charge | B11: =VLOOKUP($B$3,'Data Current Rates'!$A:$AO,MATCH(BI_StLgt_Avg!$A11,CurrentHeader,0),FALSE) -> 3.31 | C11: 1 | D11: =B11*C11 -> 3.31 | E11: =VLOOKUP($B$3,'Data Proposed Rates'!$A:$AQ,MATCH(BI_StLgt_Avg!$A11,ProposedHeader,0),FALSE) -> 3.42 | F11: 1 | G11: =E11*F11 -> 3.42 | H11: =G11-D11 -> 0.11 | I11: =IF(ISERROR(H11/ABS(D11)),"N/A",(H11/ABS(D11))) -> 0.0332326284
A12: Distribution Volumetric Charge | B12: =VLOOKUP($B$3,'Data Current Rates'!$A:$AO,MATCH(BI_StLgt_Avg!$A12,CurrentHeader,0),FALSE) -> 0.1235 | C12: =IF($B$7="kWh",$B$4,$B$5) -> 1274 | D12: =B12*C12 -> 157.339 | E12: =VLOOKUP($B$3,'Data Proposed Rates'!$A:$AQ,MATCH(BI_StLgt_Avg!$A12,ProposedHeader,0),FALSE) -> 0.1297 | F12: =IF($B$7="kWh",$B$4,$B$5) -> 1274 | G12: 165.2378 | H12: 7.8988 | I12: 0.05020242915
A13: Z-Factor Fixed Rate Rider | E13: =VLOOKUP($B$3,'Data Proposed Rates'!$A:$AQ,MATCH(BI_StLgt_Avg!$A13,ProposedHeader,0),FALSE) -> 2.62 | F13: 1 | G13: 2.62 | H13: 2.62 | I13: N/A
A14: Group 2 Fixed Rate Rider | B14: =VLOOKUP($B$3,'Data Current Rates'!$A:$AO,MATCH(BI_StLgt_Avg!$A14,CurrentHeader,0),FALSE) -> 0 | C14: 1 | D14: =B14*C14 -> 0 | E14: =VLOOKUP($B$3,'Data Proposed Rates'!$A:$AQ,MATCH(BI_StLgt_Avg!$A14,ProposedHeader,0),FALSE) -> -0.12 | F14: 1 | G14: -0.12 | H14: -0.12 | I14: N/A
A15: Group 2 Volumetric Rate Rider | B15: =VLOOKUP($B$3,'Data Current Rates'!$A:$AO,MATCH(BI_StLgt_Avg!$A15,CurrentHeader,0),FALSE) -> -0.0004 | C15: =IF($B$7="kWh",$B$4,$B$5) -> 1274 | D15: =B15*C15 -> -0.5096 | E15: =VLOOKUP($B$3,'Data Proposed Rates'!$A:$AQ,MATCH(BI_StLgt_Avg!$A15,ProposedHeader,0),FALSE) -> -0.0044 | F15: =IF($B$7="kWh",$B$4,$B$5) -> 1274 | G15: -5.6056 | H15: -5.096 | I15: -10
A16: Sub-Total A (excluding pass through) | D16: =SUM(D11:D15) -> 160.1394 | G16: =SUM(G11:G15) -> 165.5522 | H16: 5.4128 | I16: 0.03380055127
A17: Line Losses on Cost of Power | B17: =IF($B$4*12>=150000,0,IF($B$4>=750,$B32,$B31)) -> 0.142 | C17: =IF($B17=0,0,$B4*$B6-$B4) -> 117.208 | D17: =B17*C17 -> 16.643536 | E17: =IF($B$4*12>=150000,0,IF($B$4>=750,$E32,$E31)) -> 0.142 | F17: =IF($B17=0,0,$B4*$B6-$B4) -> 117.208 | G17: 16.643536 | H17: 0 | I17: 0
A18: Total Deferral/Variance Account Rate Rider | B18: =VLOOKUP($B$3,'Data Current Rates'!$A:$AO,MATCH(BI_StLgt_Avg!$A18,CurrentHeader,0),FALSE) -> -0.0036 | C18: =IF($B$7="kWh",$B$4,$B$5) -> 1274 | D18: -4.5864 | E18: =VLOOKUP($B$3,'Data Proposed Rates'!$A:$AQ,MATCH(BI_StLgt_Avg!$A18,ProposedHeader,0),FALSE) -> -0.0049 | F18: =IF($B$7="kWh",$B$4,$B$5) -> 1274 | G18: -6.2426 | H18: -1.6562 | I18: -0.3611111111
A19: CBR Class B Rate Rider | B19: =VLOOKUP($B$3,'Data Current Rates'!$A:$AO,MATCH(BI_StLgt_Avg!$A19,CurrentHeader,0),FALSE) -> 0.0001 | C19: =IF($B$7="kWh",$B$4,$B$5) -> 1274 | D19: 0.1274 | E19: =VLOOKUP($B$3,'Data Proposed Rates'!$A:$AQ,MATCH(BI_StLgt_Avg!$A19,ProposedHeader,0),FALSE) -> -0.0006 | F19: =IF($B$7="kWh",$B$4,$B$5) -> 1274 | G19: -0.7644 | H19: -0.8918 | I19: -7
A20: GA Rate Rider | B20: =VLOOKUP($B$3,'Data Current Rates'!$A:$AO,MATCH(BI_StLgt_Avg!$A20,CurrentHeader,0),FALSE) -> 0 | C20: =IF($B$7="kWh",$B$4,$B$5) -> 1274 | D20: 0 | E20: =VLOOKUP($B$3,'Data Proposed Rates'!$A:$AQ,MATCH(BI_StLgt_Avg!$A20,ProposedHeader,0),FALSE) -> 0 | F20: =IF($B$7="kWh",$B$4,$B$5) -> 1274 | G20: 0 | H20: 0 | I20: N/A
A21: Additional Fixed Rate Rider | B21: =VLOOKUP($B$3,'Data Current Rates'!$A:$AO,MATCH(BI_StLgt_Avg!$A21,CurrentHeader,0),FALSE) -> 0 | C21: 1 | D21: 0 | E21: =VLOOKUP($B$3,'Data Proposed Rates'!$A:$AQ,MATCH(BI_StLgt_Avg!$A21,ProposedHeader,0),FALSE) -> 0 | F21: 1 | G21: 0 | H21: 0 | I21: N/A
A22: Additional Volumetric Rate Rider | B22: =VLOOKUP($B$3,'Data Current Rates'!$A:$AO,MATCH(BI_StLgt_Avg!$A22,CurrentHeader,0),FALSE) -> 0 | C22: =IF($B$7="kWh",$B$4,$B$5) -> 1274 | D22: 0 | E22: =VLOOKUP($B$3,'Data Proposed Rates'!$A:$AQ,MATCH(BI_StLgt_Avg!$A22,ProposedHeader,0),FALSE) -> 0 | F22: =IF($B$7="kWh",$B$4,$B$5) -> 1274 | G22: 0 | H22: 0 | I22: N/A
A23: Sub-Total B - Distribution (includes Sub-Total A) | D23: =SUM(INDIRECT("D16:D"&ROW()-1)) -> 172.323936 | G23: =SUM(INDIRECT("G16:G"&ROW()-1)) -> 175.188736 | H23: 2.8648 | I23: 0.01662450421
A24: Retail Transmission Rate – Network Service Rate | B24: =VLOOKUP($B$3,'Data Current Rates'!$A:$AO,MATCH(BI_StLgt_Avg!$A24,CurrentHeader,0),FALSE) -> 0.0074 | C24: =IF($B$7="kWh",$B$4*$B$6,$B$5) -> 1391.208 | D24: =B24*C24 -> 10.2949392 | E24: =VLOOKUP($B$3,'Data Proposed Rates'!$A:$AQ,MATCH(BI_StLgt_Avg!$A24,ProposedHeader,0),FALSE) -> 0.0076 | F24: =IF($B$7="kWh",$B$4*$B$6,$B$5) -> 1391.208 | G24: 10.5731808 | H24: 0.2782416 | I24: 0.02702702703
A25: Retail Transmission Rate – Line and Transformation Connection Service Rate | B25: =VLOOKUP($B$3,'Data Current Rates'!$A:$AO,MATCH(BI_StLgt_Avg!$A25,CurrentHeader,0),FALSE) -> 0.0057 | C25: =IF($B$7="kWh",$B$4*$B$6,$B$5) -> 1391.208 | D25: 7.9298856 | E25: =VLOOKUP($B$3,'Data Proposed Rates'!$A:$AQ,MATCH(BI_StLgt_Avg!$A25,ProposedHeader,0),FALSE) -> 0.0058 | F25: =IF($B$7="kWh",$B$4*$B$6,$B$5) -> 1391.208 | G25: 8.0690064 | H25: 0.1391208 | I25: 0.01754385965
A26: Sub-Total C - Delivery (including Sub-Total B) | D26: =SUM(D23:D25) -> 190.5487608 | G26: =SUM(G23:G25) -> 193.8309232 | H26: 3.2821624 | I26: 0.01722479005
A27: Wholesale Market Service Rate (WMS) – not including CBR | B27: =VLOOKUP($A27,'Data Pass Through'!$A:$D,2,FALSE) -> 0.0041 | C27: =$B$4*$B$6 -> 1391.208 | D27: =B27*C27 -> 5.7039528 | E27: =VLOOKUP($A27,'Data Pass Through'!$A:$D,3,FALSE) -> 0.0041 | F27: =$B$4*$B$6 -> 1391.208 | G27: 5.7039528 | H27: 0 | I27: 0
A28: Capacity Based Recovery (CBR) – Applicable for Class B Customers | B28: =VLOOKUP($A28,'Data Pass Through'!$A:$D,2,FALSE) -> 0.0004 | C28: =$B$4*$B$6 -> 1391.208 | D28: 0.5564832 | E28: =VLOOKUP($A28,'Data Pass Through'!$A:$D,3,FALSE) -> 0.0004 | F28: =$B$4*$B$6 -> 1391.208 | G28: 0.5564832 | H28: 0 | I28: 0
A29: Rural Rate Protection Charge | B29: =VLOOKUP($A29,'Data Pass Through'!$A:$D,2,FALSE) -> 0.0015 | C29: =$B$4*$B$6 -> 1391.208 | D29: 2.086812 | E29: =VLOOKUP($A29,'Data Pass Through'!$A:$D,3,FALSE) -> 0.0015 | F29: =$B$4*$B$6 -> 1391.208 | G29: 2.086812 | H29: 0 | I29: 0
A30: Standard Supply Service – Administration Charge (if applicable) | B30: =VLOOKUP($A30,'Data Pass Through'!$A:$D,2,FALSE) -> 0.25 | C30: 1 | D30: 0.25 | E30: =VLOOKUP($A30,'Data Pass Through'!$A:$D,3,FALSE) -> 0.25 | F30: 1 | G30: 0.25 | H30: 0 | I30: 0
A31: RPP Tier 1 | B31: =VLOOKUP($A31,'Data Pass Through'!$A:$D,2,FALSE) -> 0.12 | C31: =IF(($B4*12>=150000),750,IF($B4>=750,750,$B4)) -> 750 | D31: 90 | E31: =VLOOKUP($A31,'Data Pass Through'!$A:$D,3,FALSE) -> 0.12 | F31: =IF(($B4*12>=150000),750,IF($B4>=750,750,$B4)) -> 750 | G31: 90 | H31: 0 | I31: 0
A32: RPP Tier 2 | B32: =VLOOKUP($A32,'Data Pass Through'!$A:$D,2,FALSE) -> 0.142 | C32: =IF(($B4*12>=150000),($B4*$B6)-750,IF($B4>=750,($B4-750),0)) -> 524 | D32: 74.408 | E32: =VLOOKUP($A32,'Data Pass Through'!$A:$D,3,FALSE) -> 0.142 | F32: =IF(($B4*12>=150000),($B4*$B6)-750,IF($B4>=750,($B4-750),0)) -> 524 | G32: 74.408 | H32: 0 | I32: 0
A33: Total Bill on Two-Tier RPP (before Taxes) | D33: =SUM(D26:D32) -> 363.5540088 | G33: =SUM(G26:G32) -> 366.8361712 | H33: 3.2821624 | I33: 0.009027991222
A34: HST | B34: 0.13 | D34: =D33*B34 -> 47.26202114 | E34: =B34 -> 0.13 | G34: =G33*E34 -> 47.68870226 | H34: 0.426681112 | I34: 0.009027991222
A35: Ontario Electricity Rebate (OER) | B35: =IF(($B$4*12)<250000,VLOOKUP(A35,'Data Pass Through'!$A$4:$C$19,2,0),0) -> -0.235 | D35: =D33*B35 -> -85.43519207 | E35: =IF(($B$4*12)<250000,VLOOKUP($A35,'Data Pass Through'!$A$4:$C$19,3,0),0) -> -0.235 | G35: =G33*E35 -> -86.20650023 | H35: -0.771308164 | I35: -0.009027991222
A36: Total Bill on Two-Tier RPP | D36: =SUM(D33:D35) -> 325.3808379 | G36: =SUM(G33:G35) -> 328.3183732 | H36: 2.937535348 | I36: 0.009027991222
A37: * Distribution rate protection applies to R1 and R2 customers

Sheet BI_SenLgt_Avg
A1: Bill Impacts (Average Consumption Level) - Sen Lgt
A3: Rate Class | B3: =RIGHT(A1,LEN(A1)-FIND("- ",A1,1)-1) -> Sen Lgt
A4: Monthly Consumption (kWh) | B4: =IF(COUNTIF(A1,"*Low*")>0,VLOOKUP(B3,'Data Billing Quantities'!$A:$Z,MATCH("Low kWh",'Data Billing Quantities'!4:4,0),FALSE),IF(COUNTIF(A1,"*Typical*")>0,VLOOKUP(B3,'Data Billing Quantities'!$A:$Z,MATCH("Typical kWh",'Data Billing Quantities'!4:4,0),FALSE),IF(COUNTIF(A1,"*Average*")>0,VLOOKUP(B3,'Data Billing Quantities'!$A:$Z,MATCH("Average kWh",'Data Billing Quantities'!4:4,0),FALSE),IF(COUNTIF(A1,"*High*")>0,VLOOKUP(B3,'Data Billing Quantities'!$A:$Z,MATCH("High kWh",'Data Billing Quantities'!4:4,0),FALSE),"error")))) -> 49
A5: Peak (kW) | B5: =IF(COUNTIF(A1,"*Low*")>0,VLOOKUP(B3,'Data Billing Quantities'!$A:$Z,MATCH("Low kW",'Data Billing Quantities'!4:4,0),FALSE),IF(COUNTIF(A1,"*Typical*")>0,VLOOKUP(B3,'Data Billing Quantities'!$A:$Z,MATCH("Typical kW",'Data Billing Quantities'!4:4,0),FALSE),IF(COUNTIF(A1,"*Average*")>0,VLOOKUP(B3,'Data Billing Quantities'!$A:$Z,MATCH("Average kW",'Data Billing Quantities'!4:4,0),FALSE),IF(COUNTIF(A1,"*High*")>0,VLOOKUP(B3,'Data Billing Quantities'!$A:$Z,MATCH("High kW",'Data Billing Quantities'!4:4,0),FALSE),"error")))) -> 0
A6: Loss factor | B6: =VLOOKUP(B3,'Data Billing Quantities'!A:D,MATCH(A6,'Data Billing Quantities'!4:4,0),FALSE) -> 1.092
A7: Charge determinant | B7: =VLOOKUP(B3,'Data Billing Quantities'!A:D,MATCH(A7,'Data Billing Quantities'!4:4,0),FALSE) -> kWh
B9: Current OEB-Approved | E9: Proposed | H9: Impact
B10: Rate ($) | C10: Volume | D10: Charge ($) | E10: Rate ($) | F10: Volume | G10: Charge ($) | H10: $ Change | I10: % Change
A11: Service Charge | B11: =VLOOKUP($B$3,'Data Current Rates'!$A:$AO,MATCH(BI_SenLgt_Avg!$A11,CurrentHeader,0),FALSE) -> 3.37 | C11: 1 | D11: =B11*C11 -> 3.37 | E11: =VLOOKUP($B$3,'Data Proposed Rates'!$A:$AQ,MATCH(BI_SenLgt_Avg!$A11,ProposedHeader,0),FALSE) -> 3.51 | F11: 1 | G11: =E11*F11 -> 3.51 | H11: =G11-D11 -> 0.14 | I11: =IF(ISERROR(H11/ABS(D11)),"N/A",(H11/ABS(D11))) -> 0.04154302671
A12: Distribution Volumetric Charge | B12: =VLOOKUP($B$3,'Data Current Rates'!$A:$AO,MATCH(BI_SenLgt_Avg!$A12,CurrentHeader,0),FALSE) -> 0.1901 | C12: =IF($B$7="kWh",$B$4,$B$5) -> 49 | D12: =B12*C12 -> 9.3149 | E12: =VLOOKUP($B$3,'Data Proposed Rates'!$A:$AQ,MATCH(BI_SenLgt_Avg!$A12,ProposedHeader,0),FALSE) -> 0.2002 | F12: =IF($B$7="kWh",$B$4,$B$5) -> 49 | G12: 9.8098 | H12: 0.4949 | I12: 0.05312993161
A13: Z-Factor Fixed Rate Rider | E13: =VLOOKUP($B$3,'Data Proposed Rates'!$A:$AQ,MATCH(BI_SenLgt_Avg!$A13,ProposedHeader,0),FALSE) -> 0.22 | F13: 1 | G13: 0.22 | H13: 0.22 | I13: N/A
A14: Group 2 Fixed Rate Rider | B14: =VLOOKUP($B$3,'Data Current Rates'!$A:$AO,MATCH(BI_SenLgt_Avg!$A14,CurrentHeader,0),FALSE) -> 0 | C14: 1 | D14: =B14*C14 -> 0 | E14: =VLOOKUP($B$3,'Data Proposed Rates'!$A:$AQ,MATCH(BI_SenLgt_Avg!$A14,ProposedHeader,0),FALSE) -> -0.12 | F14: 1 | G14: -0.12 | H14: -0.12 | I14: N/A
A15: Group 2 Volumetric Rate Rider | B15: =VLOOKUP($B$3,'Data Current Rates'!$A:$AO,MATCH(BI_SenLgt_Avg!$A15,CurrentHeader,0),FALSE) -> -0.0005 | C15: =IF($B$7="kWh",$B$4,$B$5) -> 49 | D15: =B15*C15 -> -0.0245 | E15: =VLOOKUP($B$3,'Data Proposed Rates'!$A:$AQ,MATCH(BI_SenLgt_Avg!$A15,ProposedHeader,0),FALSE) -> -0.0069 | F15: =IF($B$7="kWh",$B$4,$B$5) -> 49 | G15: -0.3381 | H15: -0.3136 | I15: -12.8
A16: Sub-Total A (excluding pass through) | D16: =SUM(D11:D15) -> 12.6604 | G16: =SUM(G11:G15) -> 13.0817 | H16: 0.4213 | I16: 0.03327698967
A17: Line Losses on Cost of Power | B17: =IF($B$4*12>=150000,0,IF($B$4>=750,$B32,$B31)) -> 0.12 | C17: =IF($B17=0,0,$B4*$B6-$B4) -> 4.508 | D17: =B17*C17 -> 0.54096 | E17: =IF($B$4*12>=150000,0,IF($B$4>=750,$E32,$E31)) -> 0.12 | F17: =IF($B17=0,0,$B4*$B6-$B4) -> 4.508 | G17: 0.54096 | H17: 0 | I17: 0
A18: Total Deferral/Variance Account Rate Rider | B18: =VLOOKUP($B$3,'Data Current Rates'!$A:$AO,MATCH(BI_SenLgt_Avg!$A18,CurrentHeader,0),FALSE) -> -0.0036 | C18: =IF($B$7="kWh",$B$4,$B$5) -> 49 | D18: -0.1764 | E18: =VLOOKUP($B$3,'Data Proposed Rates'!$A:$AQ,MATCH(BI_SenLgt_Avg!$A18,ProposedHeader,0),FALSE) -> -0.005 | F18: =IF($B$7="kWh",$B$4,$B$5) -> 49 | G18: -0.245 | H18: -0.0686 | I18: -0.3888888889
A19: CBR Class B Rate Rider | B19: =VLOOKUP($B$3,'Data Current Rates'!$A:$AO,MATCH(BI_SenLgt_Avg!$A19,CurrentHeader,0),FALSE) -> 0.0001 | C19: =IF($B$7="kWh",$B$4,$B$5) -> 49 | D19: 0.0049 | E19: =VLOOKUP($B$3,'Data Proposed Rates'!$A:$AQ,MATCH(BI_SenLgt_Avg!$A19,ProposedHeader,0),FALSE) -> -0.0006 | F19: =IF($B$7="kWh",$B$4,$B$5) -> 49 | G19: -0.0294 | H19: -0.0343 | I19: -7
A20: GA Rate Rider | B20: =VLOOKUP($B$3,'Data Current Rates'!$A:$AO,MATCH(BI_SenLgt_Avg!$A20,CurrentHeader,0),FALSE) -> 0 | C20: =IF($B$7="kWh",$B$4,$B$5) -> 49 | D20: 0 | E20: =VLOOKUP($B$3,'Data Proposed Rates'!$A:$AQ,MATCH(BI_SenLgt_Avg!$A20,ProposedHeader,0),FALSE) -> 0 | F20: =IF($B$7="kWh",$B$4,$B$5) -> 49 | G20: 0 | H20: 0 | I20: N/A
A21: Additional Fixed Rate Rider | B21: =VLOOKUP($B$3,'Data Current Rates'!$A:$AO,MATCH(BI_SenLgt_Avg!$A21,CurrentHeader,0),FALSE) -> 0 | C21: 1 | D21: 0 | E21: =VLOOKUP($B$3,'Data Proposed Rates'!$A:$AQ,MATCH(BI_SenLgt_Avg!$A21,ProposedHeader,0),FALSE) -> 0 | F21: 1 | G21: 0 | H21: 0 | I21: N/A
A22: Additional Volumetric Rate Rider | B22: =VLOOKUP($B$3,'Data Current Rates'!$A:$AO,MATCH(BI_SenLgt_Avg!$A22,CurrentHeader,0),FALSE) -> 0 | C22: =IF($B$7="kWh",$B$4,$B$5) -> 49 | D22: 0 | E22: =VLOOKUP($B$3,'Data Proposed Rates'!$A:$AQ,MATCH(BI_SenLgt_Avg!$A22,ProposedHeader,0),FALSE) -> 0 | F22: =IF($B$7="kWh",$B$4,$B$5) -> 49 | G22: 0 | H22: 0 | I22: N/A
A23: Sub-Total B - Distribution (includes Sub-Total A) | D23: =SUM(INDIRECT("D16:D"&ROW()-1)) -> 13.02986 | G23: =SUM(INDIRECT("G16:G"&ROW()-1)) -> 13.34826 | H23: 0.3184 | I23: 0.02443617967
A24: Retail Transmission Rate – Network Service Rate | B24: =VLOOKUP($B$3,'Data Current Rates'!$A:$AO,MATCH(BI_SenLgt_Avg!$A24,CurrentHeader,0),FALSE) -> 0.0074 | C24: =IF($B$7="kWh",$B$4*$B$6,$B$5) -> 53.508 | D24: =B24*C24 -> 0.3959592 | E24: =VLOOKUP($B$3,'Data Proposed Rates'!$A:$AQ,MATCH(BI_SenLgt_Avg!$A24,ProposedHeader,0),FALSE) -> 0.0076 | F24: =IF($B$7="kWh",$B$4*$B$6,$B$5) -> 53.508 | G24: 0.4066608 | H24: 0.0107016 | I24: 0.02702702703
A25: Retail Transmission Rate – Line and Transformation Connection Service Rate | B25: =VLOOKUP($B$3,'Data Current Rates'!$A:$AO,MATCH(BI_SenLgt_Avg!$A25,CurrentHeader,0),FALSE) -> 0.0057 | C25: =IF($B$7="kWh",$B$4*$B$6,$B$5) -> 53.508 | D25: 0.3049956 | E25: =VLOOKUP($B$3,'Data Proposed Rates'!$A:$AQ,MATCH(BI_SenLgt_Avg!$A25,ProposedHeader,0),FALSE) -> 0.0058 | F25: =IF($B$7="kWh",$B$4*$B$6,$B$5) -> 53.508 | G25: 0.3103464 | H25: 0.0053508 | I25: 0.01754385965
A26: Sub-Total C - Delivery (including Sub-Total B) | D26: =SUM(D23:D25) -> 13.7308148 | G26: =SUM(G23:G25) -> 14.0652672 | H26: 0.3344524 | I26: 0.02435779703
A27: Wholesale Market Service Rate (WMS) – not including CBR | B27: =VLOOKUP($A27,'Data Pass Through'!$A:$D,2,FALSE) -> 0.0041 | C27: =$B$4*$B$6 -> 53.508 | D27: =B27*C27 -> 0.2193828 | E27: =VLOOKUP($A27,'Data Pass Through'!$A:$D,3,FALSE) -> 0.0041 | F27: =$B$4*$B$6 -> 53.508 | G27: 0.2193828 | H27: 0 | I27: 0
A28: Capacity Based Recovery (CBR) – Applicable for Class B Customers | B28: =VLOOKUP($A28,'Data Pass Through'!$A:$D,2,FALSE) -> 0.0004 | C28: =$B$4*$B$6 -> 53.508 | D28: 0.0214032 | E28: =VLOOKUP($A28,'Data Pass Through'!$A:$D,3,FALSE) -> 0.0004 | F28: =$B$4*$B$6 -> 53.508 | G28: 0.0214032 | H28: 0 | I28: 0
A29: Rural Rate Protection Charge | B29: =VLOOKUP($A29,'Data Pass Through'!$A:$D,2,FALSE) -> 0.0015 | C29: =$B$4*$B$6 -> 53.508 | D29: 0.080262 | E29: =VLOOKUP($A29,'Data Pass Through'!$A:$D,3,FALSE) -> 0.0015 | F29: =$B$4*$B$6 -> 53.508 | G29: 0.080262 | H29: 0 | I29: 0
A30: Standard Supply Service – Administration Charge (if applicable) | B30: =VLOOKUP($A30,'Data Pass Through'!$A:$D,2,FALSE) -> 0.25 | C30: 1 | D30: 0.25 | E30: =VLOOKUP($A30,'Data Pass Through'!$A:$D,3,FALSE) -> 0.25 | F30: 1 | G30: 0.25 | H30: 0 | I30: 0
A31: RPP Tier 1 | B31: =VLOOKUP($A31,'Data Pass Through'!$A:$D,2,FALSE) -> 0.12 | C31: =IF(($B4*12>=150000),750,IF($B4>=750,750,$B4)) -> 49 | D31: 5.88 | E31: =VLOOKUP($A31,'Data Pass Through'!$A:$D,3,FALSE) -> 0.12 | F31: =IF(($B4*12>=150000),750,IF($B4>=750,750,$B4)) -> 49 | G31: 5.88 | H31: 0 | I31: 0
A32: RPP Tier 2 | B32: =VLOOKUP($A32,'Data Pass Through'!$A:$D,2,FALSE) -> 0.142 | C32: =IF(($B4*12>=150000),($B4*$B6)-750,IF($B4>=750,($B4-750),0)) -> 0 | D32: 0 | E32: =VLOOKUP($A32,'Data Pass Through'!$A:$D,3,FALSE) -> 0.142 | F32: =IF(($B4*12>=150000),($B4*$B6)-750,IF($B4>=750,($B4-750),0)) -> 0 | G32: 0 | H32: 0 | I32: N/A
A33: Total Bill on Two-Tier RPP (before Taxes) | D33: =SUM(D26:D32) -> 20.1818628 | G33: =SUM(G26:G32) -> 20.5163152 | H33: 0.3344524 | I33: 0.01657192913
A34: HST | B34: 0.13 | D34: =D33*B34 -> 2.623642164 | E34: =B34 -> 0.13 | G34: =G33*E34 -> 2.667120976 | H34: 0.043478812 | I34: 0.01657192913
A35: Ontario Electricity Rebate (OER) | B35: =IF(($B$4*12)<250000,VLOOKUP(A35,'Data Pass Through'!$A$4:$C$19,2,0),0) -> -0.235 | D35: =D33*B35 -> -4.742737758 | E35: =IF(($B$4*12)<250000,VLOOKUP($A35,'Data Pass Through'!$A$4:$C$19,3,0),0) -> -0.235 | G35: =G33*E35 -> -4.821334072 | H35: -0.078596314 | I35: -0.01657192913
A36: Total Bill on Two-Tier RPP | D36: =SUM(D33:D35) -> 18.06276721 | G36: =SUM(G33:G35) -> 18.3621021 | H36: 0.299334898 | I36: 0.01657192913
A37: * Distribution rate protection applies to R1 and R2 customers

Sheet BI_USL_Avg
A1: Bill Impacts (Average Consumption Level) - USL
A3: Rate Class | B3: =RIGHT(A1,LEN(A1)-FIND("- ",A1,1)-1) -> USL
A4: Monthly Consumption (kWh) | B4: =IF(COUNTIF(A1,"*Low*")>0,VLOOKUP(B3,'Data Billing Quantities'!$A:$Z,MATCH("Low kWh",'Data Billing Quantities'!4:4,0),FALSE),IF(COUNTIF(A1,"*Typical*")>0,VLOOKUP(B3,'Data Billing Quantities'!$A:$Z,MATCH("Typical kWh",'Data Billing Quantities'!4:4,0),FALSE),IF(COUNTIF(A1,"*Average*")>0,VLOOKUP(B3,'Data Billing Quantities'!$A:$Z,MATCH("Average kWh",'Data Billing Quantities'!4:4,0),FALSE),IF(COUNTIF(A1,"*High*")>0,VLOOKUP(B3,'Data Billing Quantities'!$A:$Z,MATCH("High kWh",'Data Billing Quantities'!4:4,0),FALSE),"error")))) -> 477
A5: Peak (kW) | B5: =IF(COUNTIF(A1,"*Low*")>0,VLOOKUP(B3,'Data Billing Quantities'!$A:$Z,MATCH("Low kW",'Data Billing Quantities'!4:4,0),FALSE),IF(COUNTIF(A1,"*Typical*")>0,VLOOKUP(B3,'Data Billing Quantities'!$A:$Z,MATCH("Typical kW",'Data Billing Quantities'!4:4,0),FALSE),IF(COUNTIF(A1,"*Average*")>0,VLOOKUP(B3,'Data Billing Quantities'!$A:$Z,MATCH("Average kW",'Data Billing Quantities'!4:4,0),FALSE),IF(COUNTIF(A1,"*High*")>0,VLOOKUP(B3,'Data Billing Quantities'!$A:$Z,MATCH("High kW",'Data Billing Quantities'!4:4,0),FALSE),"error")))) -> 0
A6: Loss factor | B6: =VLOOKUP(B3,'Data Billing Quantities'!A:D,MATCH(A6,'Data Billing Quantities'!4:4,0),FALSE) -> 1.092
A7: Charge determinant | B7: =VLOOKUP(B3,'Data Billing Quantities'!A:D,MATCH(A7,'Data Billing Quantities'!4:4,0),FALSE) -> kWh
B9: Current OEB-Approved | E9: Proposed | H9: Impact
B10: Rate ($) | C10: Volume | D10: Charge ($) | E10: Rate ($) | F10: Volume | G10: Charge ($) | H10: $ Change | I10: % Change
A11: Service Charge | B11: =VLOOKUP($B$3,'Data Current Rates'!$A:$AO,MATCH(BI_USL_Avg!$A11,CurrentHeader,0),FALSE) -> 38.29 | C11: 1 | D11: =B11*C11 -> 38.29 | E11: =VLOOKUP($B$3,'Data Proposed Rates'!$A:$AQ,MATCH(BI_USL_Avg!$A11,ProposedHeader,0),FALSE) -> 38.29 | F11: 1 | G11: =E11*F11 -> 38.29 | H11: =G11-D11 -> 0 | I11: =IF(ISERROR(H11/ABS(D11)),"N/A",(H11/ABS(D11))) -> 0
A12: Distribution Volumetric Charge | B12: =VLOOKUP($B$3,'Data Current Rates'!$A:$AO,MATCH(BI_USL_Avg!$A12,CurrentHeader,0),FALSE) -> 0.0337 | C12: =IF($B$7="kWh",$B$4,$B$5) -> 477 | D12: =B12*C12 -> 16.0749 | E12: =VLOOKUP($B$3,'Data Proposed Rates'!$A:$AQ,MATCH(BI_USL_Avg!$A12,ProposedHeader,0),FALSE) -> 0.0395 | F12: =IF($B$7="kWh",$B$4,$B$5) -> 477 | G12: 18.8415 | H12: 2.7666 | I12: 0.1721068249
A13: Z-Factor Fixed Rate Rider | E13: =VLOOKUP($B$3,'Data Proposed Rates'!$A:$AQ,MATCH(BI_USL_Avg!$A13,ProposedHeader,0),FALSE) -> 0.93 | F13: 1 | G13: 0.93 | H13: 0.93 | I13: N/A
A14: Group 2 Fixed Rate Rider | B14: =VLOOKUP($B$3,'Data Current Rates'!$A:$AO,MATCH(BI_USL_Avg!$A14,CurrentHeader,0),FALSE) -> 0 | C14: 1 | D14: =B14*C14 -> 0 | E14: =VLOOKUP($B$3,'Data Proposed Rates'!$A:$AQ,MATCH(BI_USL_Avg!$A14,ProposedHeader,0),FALSE) -> -1.31 | F14: 1 | G14: -1.31 | H14: -1.31 | I14: N/A
A15: Group 2 Volumetric Rate Rider | B15: =VLOOKUP($B$3,'Data Current Rates'!$A:$AO,MATCH(BI_USL_Avg!$A15,CurrentHeader,0),FALSE) -> -0.0003 | C15: =IF($B$7="kWh",$B$4,$B$5) -> 477 | D15: =B15*C15 -> -0.1431 | E15: =VLOOKUP($B$3,'Data Proposed Rates'!$A:$AQ,MATCH(BI_USL_Avg!$A15,ProposedHeader,0),FALSE) -> -0.0014 | F15: =IF($B$7="kWh",$B$4,$B$5) -> 477 | G15: -0.6678 | H15: -0.5247 | I15: -3.666666667
A16: Sub-Total A (excluding pass through) | D16: =SUM(D11:D15) -> 54.2218 | G16: =SUM(G11:G15) -> 56.0837 | H16: 1.8619 | I16: 0.03433858706
A17: Line Losses on Cost of Power | B17: =IF($B$4*12>=150000,0,IF($B$4>=750,$B32,$B31)) -> 0.12 | C17: =IF($B17=0,0,$B4*$B6-$B4) -> 43.884 | D17: =B17*C17 -> 5.26608 | E17: =IF($B$4*12>=150000,0,IF($B$4>=750,$E32,$E31)) -> 0.12 | F17: =IF($B17=0,0,$B4*$B6-$B4) -> 43.884 | G17: 5.26608 | H17: 0 | I17: 0
A18: Total Deferral/Variance Account Rate Rider | B18: =VLOOKUP($B$3,'Data Current Rates'!$A:$AO,MATCH(BI_USL_Avg!$A18,CurrentHeader,0),FALSE) -> -0.0036 | C18: =IF($B$7="kWh",$B$4,$B$5) -> 477 | D18: -1.7172 | E18: =VLOOKUP($B$3,'Data Proposed Rates'!$A:$AQ,MATCH(BI_USL_Avg!$A18,ProposedHeader,0),FALSE) -> -0.0047 | F18: =IF($B$7="kWh",$B$4,$B$5) -> 477 | G18: -2.2419 | H18: -0.5247 | I18: -0.3055555556
A19: CBR Class B Rate Rider | B19: =VLOOKUP($B$3,'Data Current Rates'!$A:$AO,MATCH(BI_USL_Avg!$A19,CurrentHeader,0),FALSE) -> 0.0001 | C19: =IF($B$7="kWh",$B$4,$B$5) -> 477 | D19: 0.0477 | E19: =VLOOKUP($B$3,'Data Proposed Rates'!$A:$AQ,MATCH(BI_USL_Avg!$A19,ProposedHeader,0),FALSE) -> -0.0006 | F19: =IF($B$7="kWh",$B$4,$B$5) -> 477 | G19: -0.2862 | H19: -0.3339 | I19: -7
A20: GA Rate Rider | B20: =VLOOKUP($B$3,'Data Current Rates'!$A:$AO,MATCH(BI_USL_Avg!$A20,CurrentHeader,0),FALSE) -> 0 | C20: =IF($B$7="kWh",$B$4,$B$5) -> 477 | D20: 0 | E20: =VLOOKUP($B$3,'Data Proposed Rates'!$A:$AQ,MATCH(BI_USL_Avg!$A20,ProposedHeader,0),FALSE) -> 0 | F20: =IF($B$7="kWh",$B$4,$B$5) -> 477 | G20: 0 | H20: 0 | I20: N/A
A21: Additional Fixed Rate Rider | B21: =VLOOKUP($B$3,'Data Current Rates'!$A:$AO,MATCH(BI_USL_Avg!$A21,CurrentHeader,0),FALSE) -> 0 | C21: 1 | D21: 0 | E21: =VLOOKUP($B$3,'Data Proposed Rates'!$A:$AQ,MATCH(BI_USL_Avg!$A21,ProposedHeader,0),FALSE) -> 0 | F21: 1 | G21: 0 | H21: 0 | I21: N/A
A22: Additional Volumetric Rate Rider | B22: =VLOOKUP($B$3,'Data Current Rates'!$A:$AO,MATCH(BI_USL_Avg!$A22,CurrentHeader,0),FALSE) -> 0 | C22: =IF($B$7="kWh",$B$4,$B$5) -> 477 | D22: 0 | E22: =VLOOKUP($B$3,'Data Proposed Rates'!$A:$AQ,MATCH(BI_USL_Avg!$A22,ProposedHeader,0),FALSE) -> 0 | F22: =IF($B$7="kWh",$B$4,$B$5) -> 477 | G22: 0 | H22: 0 | I22: N/A
A23: Sub-Total B - Distribution (includes Sub-Total A) | D23: =SUM(INDIRECT("D16:D"&ROW()-1)) -> 57.81838 | G23: =SUM(INDIRECT("G16:G"&ROW()-1)) -> 58.82168 | H23: 1.0033 | I23: 0.01735261348
